Workbook

Sheet Readme First
A3: 1 | B3: All lines in the Portfolio view are coded with a reference, such as "aa" or "f". This makes conference discussions and data requests much easier.
C4: Some reference letters were purposely omitted.
A5: 2 | B5: Some programs in the Portfolio and Sector Views, (Single Family Existing and Electronic Media Tools & Marketing, for instance) are comprised
B6: of sub-groupings.
C7: Those sub-groups are color-coded and indented. Their totals add up to the grouping above.
A8: 3 | B8: In all program detail pages, program names, order number, and fuel type are noted in both the horizontal and vertical margins, providing a quick reference
B9: for readers, no matter where they are in the worksheet.
A10: 4 | B10: Measure tables are calculated for 2024/25-specific values.
B11: Original 2023 (the 2023 values originally stated in the 2023 ACP) are hard-coded in the detail pages for reference.
A12: 5 | B12: PSE added new navigation buttons to the detail pages. Now, readers can navigate directly to a corresponding gas or electric detail page.
B13: (The exception, of course, are those programs that are gas-or electric-only, or retired [red tab] programs.)
A14: 6 | B14: Tabs colored red indicate a retired program or a program that is on hiatus
C15: Over the years, as programs are retired and new programs implemented, old sheets within this workbook are re-purposed. As a result, all tabs may not be
C16: program sequential order, according to Exhibit 1's Portfolio View.

Sheet Budget Category Descriptions
B1: Exhibit 1 Budget Category Definitions
B3: Cost Element | C3: Also referred to as a General Ledger account number, the cost element is the finest level of detail within PSE accounting systems. There are often many cost element numbers that "roll up" into a cost element segment. For instance, the overhead segment includes material OH, transportation OH, labor OH, etc. Employee/Office Expenses include travel, meals, lodging, parking, etc. Cost elements have a very specific connotation and are typically designed to meet a variety of accounting standards, such as FERC requirements. Therefore, in Exhibit 1, the term "cost element" is rarely used. The groupings that represent the budget allocations are most accurately listed in the below table.
B4: Order number(s) | C4: This is the main level of tracking expenditures and expenses in Energy Effiency. Per FERC rules, all conservation order numbers start with a "1823nnnn", where "n" is some number. Cost elements apply to all order numbers (for instance, all conservation programs that offer incentives will have at least a labor, incentive and overhead cost element within the order number.
B5: Labor | C5: Energy Efficiency program staff labor. Average FTE cost including management assessments. This Budget Category group includes assessments from Major Accounts management, Resource Planning, Corporate Communications management, IT specialists and some building maintenance allocations.
B6: Marketing Labor | C6: Also Energy Efficiency staff labor, associated specifically with Marketing functions. Marketing allocates staffing according to program needs.
B7: Overhead | C7: Overhead--costs associated with primarily employee labor; benefits, for instance.
B8: Micro-Overhead | C8: New for 2017, these expenditures are not incremental from 2016 budget amounts. Rather, this budget category reflects assessments (both labor and non-labor, such as office supplies, departmental meetings, group trainings, etc.) that were formerly calculated, aggregated, and then represented in the Labor category. A result of PSE accounting revisions implemented in 2017, this enhancement will provide a more direct view of expenditures that assess over a cost center, rather than directly to an order number. Annual Schedule 120 audits of assessed costs will become clearer.
B9: Marketing | C9: Service and materials associated with the cost of printing program brochures, marketing pieces, advertising, banners, etc. Also includes marketing conducted by vendors and contractors.
B10: Employee/Office Expense | C10: Costs associated with EE staff attending events, employee training, conferences, business meals, business parking, ferry & bridge tolls, mileage incurred on employee automobiles, office supplies, phones, subscriptions, software/hardware, etc.
B11: Outside Services | C11: Contractors and vendors, such as PECI, Ecos, CostCo, EFI, etc. Legal expenses, technical services (CMS design, PSE.com web portals, etc.). These costs do NOT include brochure development, marketing pieces, (which are classified under MARKETING). These costs do NOT include incentives paid to customers by contractors.
B12: Materials | C12: Primarily tools, trade show equipment, etc.
B13: Miscellaneous | C13: This category should seldomly be used, and only expenses that cannot be classified under one of the above categories.
B14: Direct Benefit to Customer | C14: All costs associated with rebates, grants, remuneration, value-added services. PSE cost element # 62510000; Consumer Incentive Payments, is classified by the Accounting department as Miscellaneous. However, it is one of the primarily elements of Energy Efficiency's Direct Benefit to Customer (DBtC).
B15: Revenue (Enter as a negative) | C15: Any amount that PSE is paid by a customer, partner, municipality or outside entity.

Sheet Global Figures Reference
A1: Global References
B8: Biennial Years
C9: First Year | D9: 2024
C10: Second Year | D10: 2025
B12: Messages
C13: Horizontal Table Reference | D13: This table summarizes the subtotals in the detail table below and is used to populate 2024-2025 Sector view tables (located at the front of this workbook).
C14: Horizontal Table Labels | D14: 2023 ACP (For comparison)
D15: 2024
D16: 2025
D17: 2024-2025 Total

Sheet Savings Terminology
A1: PSE's formerly used terms | B1: Updated Terms (2018) | C1: Definition
A2: Total Biennial Potential | B2: CPA Pro-Rata Share | C2: Pro-rata share of the utilities IRP's Conservation Potential Assessment's 10-year potential or 2 year total (whichever is greater). Includes NEEA.
A3: Total Base Savings | B3: EIA Target | C3: [(CPA Pro-Rata Share) + (other programs/measures with confident savings that were omitted from CPA)]
A4: Decoupling Penalty Target | B4: Decoupling Threshold | C4: [EIA Target * 0.05]
A5: Total Portfolio Target | B5: Total Utility Conservation Goal/Achievement | C5: All savings programs funded by Conservation Riders [EIA Target + Decoupling Threshold]
A6: (Loosely) "Excluded" | B6: Excluded Programs | C6: Programs approved by the Commission to be excluded from a Penalty Threshold. For last three biennia, these included NEEA and Pilots with Uncertain Savings.
A7: Utility-Specific Savings | B7: Utility-Specific Conservation Goal/Achievement | C7: [Total Utility Conservation Goal/Achievement – (Excluded programs (for instance, NEEA, Pilots with uncertain savings, retail wheeling accounts, etc.) + adjustments)]
A8: EIA Penalty Target | B8: EIA Penalty Threshold | C8: [Utility-Specific Conservation - Decoupling Threshold]
A9: Excess Savings (1) | B9: Excess Savings (Dept of Commerce driven) | C9: (Referencing results) The difference of [Total Utility Conservation Achievement – Total Utility Conservation Goal]
A10: Excess Savings (2P) | B10: PSE Excess Savings for Penalty Thresholds (UTC Driven) | C10: (Referencing results) The difference of Total Utility-Specific Conservation Achievement - Goal.

Sheet Building the 2-yr elec target
F5: Puget Sound Energy 2024-2025 Electric Portfolio Savings
G8: Index | H8: Description | I8: MWh | J8: aMW | K8: Comment | N8: Calculation
H10: Colored cells correspond to indicated lines in Exhibit 1: Portfolio--2024-2025 Tab.
H11: Calculate the EIA Target
G12: a | H12: CPA Pro-Rata Share IRP & CPA Guidance | I12: 304400 | J12: 34.74885845 | K12: IRP guidance (no behavior savings) | L12: Represents all available conservation that is cost-effective, reliable, and feasible, as a 20% pro-rata share of PSE's 10-year conservation potential, per RCW 19.285.040(1). | N12: Exhibit i
G13: b | H13: EIA Target | I13: 304400 | J13: 34.74885845 | L13: Meets RCW 18.285.040(1)(a) and (b) requirements.
H14: Calculate the Penalty Thresholds
G15: c | H15: Subtract NEEA Savings | I15: -35698.422 | J15: -4.075162329 | L15: Exhibit 5 NEEA savings forecast for PSE
G16: d | H16: EIA Penalty Threshold | I16: 268701.578 | J16: 30.67369612 | K16: EIA Target + Decoupling Commitment. $50/MWh of shortfall. | L16: ~$70/MWh shortfall penalty, based on 2022 inflation, per RCW 19.285.060. | N16: = b - c
G17: e | H17: Decoupling Threshold | I17: 15220 | J17: 1.737442922 | L17: 5 percent of EIA Target | N17: = b * .05
H18: Build the Total Utility Conservation Goal
G19: f | H19: Add Firm Savings Excluded from CPA | I19: 8000 | J19: 0.9132420091 | K19: 15,000 residential HER customers | L19: Schedule 449s and special contracts.
G20: g | H20: Add Pilots with Uncertain Savings | I20: 0 | J20: 0 | K20: New Residential + Small Business | L20: Single Family AMI Engagement Pilot.
G21: h | H21: Add Program Savings Build-Out | I21: 70000 | J21: 7.99086758 | L21: Based on bottom-up build of program savings with contractor and program staff input.
G22: i | H22: Total 2024-2025 Utility Conservation Goal | I22: 397620 | J22: 45.39041096 | L22: This is the total Conservation Goal to which PSE is managing. | N22: = b + e + (f + g + h)
L29: D.C. = Decoupling Commitment
L30: EIA = Energy Independence Act; referencing RCW 19.285, or "I-937".
L31: HER = Residential Home Energy Reports
L32: IRP = Integrated Resource Plan

Sheet Building the 2-yr gas target
D7: Puget Sound Energy 2024-2025 Natural Gas Portfolio Savings
E10: Index | F10: Description | G10: Therms | H10: Comment | I10: Calculation
F11: Colored cells correspond to indicated lines in Exhibit 1: Portfolio--2024-2025 Tab.
F12: Calculate the CPA Based Target
E13: a | F13: CPA First Two Years & select ramp rate adjustments | G13: 6541000 | H13: First 2 year savings potential with select discretionary measure ramp rate adjustments.
E14: b | F14: Subtract Gas Furnace Savings | G14: -451000 | H14: Switching from 80% gas furnace baseline to Current Practice Baseline in RTF deemed savings.
E15: c | F15: CPA Based Target | G15: 6090000
F16: Calculate the Penalty Thresholds
E17: d | F17: Subtract NEEA Savings | G17: 0 | H17: No savings forecasted in PSE service territory.
E18: e | F18: Natural Gas Penalty Threshold | G18: 6090000 | H18: Penalty outlined in Stipulation Agreement, UG-011571 Section M43. | I18: = c + d
E19: f | F19: Decoupling Threshold | G19: 304500 | H19: Penalty = Up to $75,000, depending on range. | I19: = e * 0.05
F20: Build the Total Utility Conservation Goal
E21: g | F21: Add Program Savings Build-Out | G21: 640000 | H21: Based on bottom-up build of program savings with contractor and program staff input.
E22: h | F22: 2024-2025 Utility Conservation Goal | G22: 7034500 | H22: This is the total Conservation Goal to which Energy Efficiency is managing. | I22: = e + f + g
G27: It is important to note that many specific natural gas program total values include decimals. Their aggregation may
G28: result in slight rounding differences between this table and the Portfolio View of Exhibit 1.
G31: [1] In Docket UG-170034, Public Version Testimony, (UE-170033) 2017 GRC Piliaris direct, page 145 of 159:
G32: 11 “What would happen if PSE does not meet these decoupling-related gas
G33: 12 conservation commitments?
G34: 13 A. PSE proposes to pay $20,000 for meeting between 4.5 percent and 5.0 percent of
G35: 14 its incremental gas conservation commitment, $50,000 for meeting between 3.75
G36: 15 percent and 4.5 percent of its incremental commitment, and $75,000 for less than
G37: 16 3.75 percent of its incremental commitment.”

Sheet Overview Summary Tables (hidden)
B3: Chapter 1: Exec Summary
B5: 2022-2023 Energy Efficiency
B6: Portfolio Amounts
C7: Total Savings | D7: Budgets | E7: EIA & Natural Gas Penalty Target | F7: TRC B/C Ratio
B8: Electric | C8: =#REF! ->  | D8: =#REF! ->  | E8: =#REF! -> 
C9: =C8/8760 ->  | E9: =E8/8760 -> 
B10: Natural Gas | C10: =#REF! ->  | D10: =#REF! ->  | E10: =#REF! -> 
B11: Total Budget | D11: =SUM(D8:D10) -> 
H14: Chapter 4: Developing Portfolio
H16: 2022-2023 Energy Efficiency
H17: Sector Savings Goals
I18: REM | J18: BEM | K18: Pilots | L18: Regional (NEEA + Generation)
H19: Electric | I19: =#REF! ->  | J19: =#REF! ->  | K19: =#REF! ->  | L19: =#REF! -> 
I20: =I19/8760 ->  | J20: =J19/8760 ->  | K20: =K19/8760 ->  | L20: =L19/8760 -> 
H21: Natural Gas | I21: =#REF! ->  | J21: =#REF! ->  | K21: =#REF! ->  | L21: =#REF! -> 
H23: Source - Exhibit 1: Savings and Budgets
N24: Chapter 4: Developing Portfolio
N26: 2022-2023 Energy Efficiency
N27: Sector Anticipated Expenditures
O28: REM | P28: BEM | Q28: Pilots | R28: Regional (NEEA + Generation) | S28: Portfolio Support | T28: Research & Compliance | U28: Other Electric Programs
N29: Electric | O29: =#REF! ->  | P29: =#REF! ->  | Q29: =#REF! ->  | R29: =#REF! ->  | S29: =#REF! ->  | T29: =#REF! ->  | U29: =#REF! -> 
N30: Natural Gas | O30: =#REF! ->  | P30: =#REF! ->  | Q30: =#REF! ->  | R30: =#REF! ->  | S30: =#REF! ->  | T30: =#REF! ->  | U30: =#REF! -> 
N31: Sector Total | O31: =SUM(O29:O30) ->  | P31: =SUM(P29:P30) -> 
N33: Source - Exhibit 1: Savings and Budgets
X36: Chapter 5: REM Overview
X38: 2022-2023 Residential Energy Management
Y39: Total Savings Electric: MWh Natural Gas: Therms | Z39: Budgets | AA39: Total Resource Cost
X40: Electric | Y40: =#REF! ->  | Z40: =#REF! -> 
X41: aMW | Y41: =Y40/8760 -> 
X42: Natural Gas | Y42: =#REF! ->  | Z42: =#REF! -> 
X43: Total Budget | Z43: =Z40+Z42 -> 
X46: Note: consistent with WAC 480-109-100(10)(b), Low Income Weatherization (LIW) electric figures are excluded from REM and Portfolio TRC ratios. LIW natural gas figures are also excluded from REM and Portfolio cost-effectiveness totals.
X48: Chapter 7: BEM Overview
X50: 2022-2023 Business Energy Management
Y51: Total Savings Electric: MWh Natural Gas: Therms | Z51: Budgets | AA51: Total Resource Cost
X52: Electric | Y52: =#REF! ->  | Z52: =#REF! -> 
X53: aMW | Y53: =Y52/8760 -> 
X54: Natural Gas | Y54: =#REF! ->  | Z54: =#REF! -> 
X55: Total Budget | Z55: =Z52+Z54 -> 

Sheet Electric Comparison
H5: kWh Savings | R5: Electric Rider Budget
H6: 2025 | M6: 2024/2025 | R6: 2025 | W6: 2024/2025
H7: 2024 Forecast | I7: 2025 ACP | J7: 2025 BCP | K7: Difference | L7: % Change | M7: 2024 Fcast+2025 ACP | N7: 2024-25 BCP 2-yr | O7: Difference | P7: % Change | R7: 2024 Forecast | S7: 2025 ACP | T7: 2025 BCP | U7: Difference | V7: % Change | W7: 2024 Fcast+2025 ACP | X7: 2024-25 BCP 2-yr | Y7: Difference | Z7: % Change
E8: Residential Energy Management
B9: LIW Detail_REM E201_Elec | C9: E201 | D9: 18230611 | E9: Low Income Weatherization | H9: 1986456 | I9: ='2025 Sector View Elect'!S8 -> 2150056.099 | J9: 2153755.7 | K9: =I9-J9 -> -3699.601 | L9: =(I9-J9)/J9 -> -0.001717744032 | M9: =H9+I9 -> 4136512.099 | N9: 4307511.4 | O9: =M9-N9 -> -170999.301 | P9: =(M9-N9)/N9 -> -0.03969793347 | R9: 9497462.33 | S9: ='2025 Sector View Elect'!R8 -> 14610902.59 | T9: 10770908.1 | U9: =S9-T9 -> 3839994.494 | V9: =(S9-T9)/T9 -> 0.3565153893 | W9: =R9+S9 -> 24108364.92 | X9: 21532137.6 | Y9: =W9-X9 -> 2576227.324 | Z9: =(W9-X9)/X9 -> 0.1196456837
B10: HomePrint Detail_REM_E214 Elec | C10: E214 | D10: 18230625 | E10: Home Energy Assessments | I10: ='2025 Sector View Elect'!S9 -> 0 | J10: 0 | K10: =I10-J10 -> 0 | L10: =(I10-J10)/J10 ->  | M10: =H10+I10 -> 0 | N10: 0 | O10: =M10-N10 -> 0 | P10: =(M10-N10)/N10 ->  | S10: ='2025 Sector View Elect'!R9 -> 0 | T10: 0 | U10: =S10-T10 -> 0 | V10: =(S10-T10)/T10 ->  | W10: =R10+S10 -> 0 | X10: 0 | Y10: =W10-X10 -> 0 | Z10: =(W10-X10)/X10 -> 
B11: WaterHea_Detail_REM_E214 Elec | C11: E214 | D11: 18230626 | E11: SF Existing Water Heat | H11: 913411.54 | I11: ='2025 Sector View Elect'!S10 -> 637466.48 | J11: 722424.03 | K11: -84957.55 | L11: -0.1176006701 | M11: 1550878.02 | N11: 1434501.086 | O11: 116376.9342 | P11: 0.08112711477 | R11: 719053.91 | S11: ='2025 Sector View Elect'!R10 -> 833654.57 | T11: 849042.3 | U11: =S11-T11 -> -15387.73 | V11: -0.01812363177 | W11: 1552708.48 | X11: 1686057 | Y11: =W11-X11 -> -133348.52 | Z11: -0.07908897505
B12: Wx_Detail_REM E214 Elec | C12: E214 | D12: 18230627 | E12: SF Existing Weatherization | H12: 1886887.64 | I12: ='2025 Sector View Elect'!S11 -> 1956799.347 | J12: 1671376.932 | K12: 285422.4148 | L12: 0.1707708233 | M12: 3843686.987 | N12: 3342753.865 | O12: 500933.1225 | P12: 0.1498564186 | R12: 4339400.17 | S12: ='2025 Sector View Elect'!R11 -> 5156427.19 | T12: 3572677.3 | U12: 1583749.89 | V12: 0.4432949738 | W12: 9495827.36 | X12: 7137287.2 | Y12: =W12-X12 -> 2358540.16 | Z12: 0.3304533072
B13: SpcHeat Detail_REM_E214 Elec | C13: E214 | D13: 18230628 | E13: SF Existing Space Heat | H13: 8431852 | I13: ='2025 Sector View Elect'!S12 -> 7325321 | J13: 8628361 | K13: -1303040 | L13: -0.1510182525 | M13: 15757173 | N13: 17215268.05 | O13: -1458095.046 | P13: -0.08469778351 | R13: 7060428.29 | S13: ='2025 Sector View Elect'!R12 -> 6521010.46 | T13: 6618626.4 | U13: -97615.94 | V13: -0.01474867051 | W13: 13581438.75 | X13: 13182525.9 | Y13: 398912.85 | Z13: 0.03026072947
C14: E214 | D14: 18230162 | E14: Residential Midstream HVAC and Water Heat | H14: 21901574.7 | I14: ='2025 Sector View Elect'!S13 -> 14604340 | J14: 14604340 | K14: 0 | L14: 0 | M14: 36505914.7 | N14: 28513235 | O14: 7992679.7 | P14: 0.2803147275 | R14: 8666117.55 | S14: ='2025 Sector View Elect'!R13 -> 5925853.01 | T14: 7499930.1 | U14: -1574077.09 | V14: -0.2098789014 | W14: 14591970.56 | X14: 14652102.65 | Y14: -60132.09 | Z14: -0.004103990494
B15: HmAppplc_Detail_REM_E214 Elec | C15: E214 | D15: 18230434 | E15: Home Appliances | H15: 1009416.94 | I15: ='2025 Sector View Elect'!S14 -> 755323.95 | J15: 688576.7 | K15: 66747.25 | L15: 0.09693509815 | M15: 1764740.89 | N15: 1377153.4 | O15: 387587.49 | P15: 0.2814410435 | R15: 1153943.42 | S15: ='2025 Sector View Elect'!R14 -> 952325.71 | T15: 882551.5 | U15: 69774.21 | V15: 0.07905964694 | W15: 2106269.13 | X15: 1761911 | Y15: 344358.13 | Z15: 0.1954458142
B16: Lighting Detail_REM_E214 Elec | C16: E214 | D16: 18230440 | E16: Energy Efficient Lighting Services | H16: 299128.6 | I16: ='2025 Sector View Elect'!S15 -> 0 | J16: 0 | K16: 0 | M16: 299128.6 | N16: 140173 | O16: 158955.6 | P16: 1.133995848 | R16: 212933.44 | S16: ='2025 Sector View Elect'!R15 -> 0 | T16: 0 | U16: 0 | W16: 212933.44 | X16: 166272.3 | Y16: 46661.14 | Z16: 0.2806308688
B17: HER Detail_REM_E214 elec. | C17: E214 | D17: 18230461 | E17: Home Energy Reports | H17: 43794790.2 | I17: ='2025 Sector View Elect'!S16 -> 43200000 | J17: 39804000 | K17: 3396000 | L17: 0.08531805849 | M17: 86994790.2 | N17: 79608000 | O17: 7386790.2 | P17: 0.09278954628 | R17: 1506147.02 | S17: ='2025 Sector View Elect'!R16 -> 1429073.82 | T17: 2345072.7 | U17: -915998.88 | V17: -0.3906057497 | W17: 2935220.84 | X17: 4686953.4 | Y17: -1751732.56 | Z17: -0.373746528
B18: Web Tstat Detail_REM E214 Elec | C18: E214 | D18: 18230023 | E18: Smart Thermostats | H18: 1013367 | I18: ='2025 Sector View Elect'!S17 -> 852882 | J18: 861196 | K18: -8314 | L18: -0.009654016043 | M18: 1866249 | N18: 1828000.435 | O18: 38248.565 | P18: 0.02092371767 | R18: 881278.13 | S18: ='2025 Sector View Elect'!R17 -> 809883.22 | T18: 818089 | U18: -8205.78 | V18: -0.01003042456 | W18: 1691161.35 | X18: 1817199.53 | Y18: -126038.18 | Z18: -0.0693584705
C19: E214 | D19: 18230016 | E19: Electric Vehicle Chargers | H19: 121193.6 | I19: ='2025 Sector View Elect'!S18 -> 145200 | J19: 145200 | K19: 0 | L19: 0 | M19: 266393.6 | N19: 290400 | O19: -24006.4 | P19: -0.08266666667 | R19: 5082.51 | S19: ='2025 Sector View Elect'!R18 -> 19758.86 | T19: 20938 | U19: -1179.14 | V19: -0.05631578947 | W19: 24841.37 | X19: 41268 | Y19: -16426.63 | Z19: -0.3980476398
B20: SFNC Detail_REM E215 Elec | C20: E215 | D20: 18230405 | E20: Single Family New Construction | H20: 538074 | I20: ='2025 Sector View Elect'!S19 -> 2040600 | J20: 315000 | K20: 1725600 | L20: 5.478095238 | M20: 2578674 | N20: 630000 | O20: 1948674 | P20: 3.093133333 | R20: 955386.31 | S20: ='2025 Sector View Elect'!R19 -> 2405211.31 | T20: 784367.5 | U20: 1620843.81 | V20: 2.066434178 | W20: 3360597.62 | X20: 1566664 | Y20: 1793933.62 | Z20: 1.145065962
B21: MfgHmNew Detail_REM E215 Elec | C21: E215 | D21: 18230071 | E21: Manufactured Home New Construction | H21: 224572 | I21: ='2025 Sector View Elect'!S20 -> 186128 | J21: 186128 | K21: 0 | L21: 0 | M21: 410700 | N21: 372256 | O21: 38444 | P21: 0.1032730164 | R21: 382079.03 | S21: ='2025 Sector View Elect'!R20 -> 327931.19 | T21: 329621.9 | U21: -1690.71 | V21: -0.005129240503 | W21: 710010.22 | X21: 658377.4 | Y21: 51632.82 | Z21: 0.07842435053
B22: Efficiency Boost E217 Elec | C22: E214 & 217 | D22: 18230751 | E22: Efficiency Boost | H22: 0 | I22: ='2025 Sector View Elect'!S21 -> 0 | J22: 0 | K22: 0 | M22: 0 | N22: 0 | O22: 0 | R22: 115755.47 | S22: ='2025 Sector View Elect'!R21 -> 77997.44 | T22: 74503.7 | U22: 3493.74 | V22: 0.04689350999 | W22: 193752.91 | X22: 175991.2 | Y22: 17761.71 | Z22: 0.100923853
B23: MF Retr Detail_REM E217 Elec | C23: E217 | D23: 18230407 | E23: Multifamily Retrofit | H23: 5363678.82 | I23: ='2025 Sector View Elect'!S22 -> 6755191 | J23: 5604957.2 | K23: 1150233.8 | L23: 0.2052172316 | M23: 12118869.82 | N23: 11026114.4 | O23: 1092755.42 | P23: 0.09910612028 | R23: 9607582.67 | S23: ='2025 Sector View Elect'!R22 -> 10535709.45 | T23: 6676712.18 | U23: 3858997.27 | V23: 0.5779786766 | W23: 20143292.12 | X23: 13256298.96 | Y23: 6886993.16 | Z23: 0.5195260895
B24: MFNC Detail_REM E218 Elec | C24: E218 | D24: 18230486 | E24: Multi-Family New Construction | H24: 3710226 | I24: ='2025 Sector View Elect'!S23 -> 4000000 | J24: 4000000 | K24: 0 | L24: 0 | M24: 7710226 | N24: 8015000 | O24: -304774 | P24: -0.03802545228 | R24: 2105563.98 | S24: ='2025 Sector View Elect'!R23 -> 2620384.81 | T24: 2606619.6 | U24: 13765.21 | V24: 0.005280866452 | W24: 4725948.79 | X24: 5150281.6 | Y24: -424332.81 | Z24: -0.08239021532
G25: Total, Residential Energy Management | H25: =SUM(H9:H24) -> 91194629.04 | I25: ='2025 Sector View Elect'!S24 -> 84609307.88 | J25: 79385315.56 | K25: 5223992.314 | L25: 0.06580552432 | M25: 175803936.9 | N25: 158100366.6 | O25: 17703570.28 | P25: 0.111976782 | R25: =SUM(R9:R24) -> 47208214.23 | S25: ='2025 Sector View Elect'!R24 -> 52226123.63 | T25: 43849660.28 | U25: 8376463.354 | V25: =(S25-T25)/T25 -> 0.19102687 | W25: 99434337.86 | X25: 87471327.74 | Y25: 11963010.12 | Z25: =(W25-X25)/X25 -> 0.1367649312
E28: Business Energy Managment
E29: Commercial/Industrial Retrofit | H29: 42652366 | I29: ='2025 Sector View Elect'!S28 -> 42500000 | J29: 42500000 | K29: 0 | L29: 0 | M29: 85152366 | N29: 86600000 | O29: =M29-N29 -> -1447634 | P29: =(M29-N29)/N29 -> -0.01671632794 | R29: 20573161.11 | S29: ='2025 Sector View Elect'!R28 -> 21488991.75 | T29: 21676426.6 | U29: =S29-T29 -> -187434.85 | V29: =(S29-T29)/T29 -> -0.008646944142 | W29: 42062152.86 | X29: 43331980.1 | Y29: =W29-X29 -> -1269827.24 | Z29: =(W29-X29)/X29 -> -0.02930462068
B30: CI Retr Detail_BEM E250 Elec | C30: E250 | D30: 18230711 | E30: Retrofit Custom Grants | H30: 9328666 | I30: ='2025 Sector View Elect'!S29 -> 8000000 | J30: 8000000 | K30: 0 | L30: 0 | M30: 17328666 | N30: 16000000 | O30: 1328666 | P30: 0.083041625 | R30: 5282164.4 | S30: ='2025 Sector View Elect'!R29 -> 5506652.46 | T30: 5608469.7 | U30: -101817.24 | V30: -0.01815419276 | W30: 10788816.86 | X30: 11111750.8 | Y30: -322933.94 | Z30: -0.02906238142
B31: BusLgtGrants_BEM E250 Elect | C31: E250 | D31: 18230724 | E31: Custom Lighting Grants | H31: 18599999 | I31: ='2025 Sector View Elect'!S30 -> 15600000 | J31: 15600000 | K31: 0 | L31: 0 | M31: 34199999 | N31: 34200000 | O31: -1 | P31: -2.923976608e-08 | R31: 9608474.56 | S31: ='2025 Sector View Elect'!R30 -> 7173393.14 | T31: 7264662 | U31: -91268.86 | V31: -0.01256340075 | W31: 16781867.7 | X31: 15606900 | Y31: 1174967.7 | Z31: 0.07528514311
B32: CI Indust_BEM_E250_Elec | C32: E250 | D32: 18231137 | E32: Industrial Programs | H32: 5341858 | I32: ='2025 Sector View Elect'!S31 -> 7500000 | J32: 7500000 | K32: 0 | L32: 0 | M32: 12841858 | N32: 16000000 | O32: -3158142 | P32: -0.197383875 | R32: 2777948.46 | S32: ='2025 Sector View Elect'!R31 -> 3612809.81 | T32: 3679278.1 | U32: -66468.29 | V32: -0.01806557922 | W32: 6390758.27 | X32: 7323759.6 | Y32: -933001.33 | Z32: -0.1273937678
C33: E250 | D33: 18230013 | E33: Clean Buildings Accelerator | H33: 579071 | I33: ='2025 Sector View Elect'!S32 -> 1300000 | J33: 1300000 | K33: 0 | L33: 0 | M33: 1879071 | N33: 2300000 | O33: -420929 | P33: -0.1830126087 | R33: 411774.48 | S33: ='2025 Sector View Elect'!R32 -> 652922.1 | T33: 577733.4 | U33: 75188.7 | V33: 0.1301442845 | W33: 1064696.58 | X33: 1145337.4 | Y33: -80640.82 | Z33: -0.07040791648
C34: E250 | D34: 18239043 | E34: Telecommunications Efficiency | H34: 5502772 | I34: ='2025 Sector View Elect'!S33 -> 7100000 | J34: 7100000 | K34: 0 | L34: 0 | M34: 12602772 | N34: 12100000 | O34: 502772 | P34: 0.04155140496 | R34: 1297530.75 | S34: ='2025 Sector View Elect'!R33 -> 3609446.05 | T34: 3614319.9 | U34: -4873.85 | V34: -0.001348483293 | W34: 4906976.8 | X34: 6281074.8 | Y34: -1374098 | Z34: -0.2187679726
C35: E250 | D35: 18230015 | E35: Virtual Commissioning | H35: 3300000 | I35: ='2025 Sector View Elect'!S34 -> 3000000 | J35: 3000000 | K35: 0 | L35: 0 | M35: 6300000 | N35: 6000000 | O35: 300000 | P35: 0.05 | R35: 1195268.46 | S35: ='2025 Sector View Elect'!R34 -> 933768.19 | T35: 931963.5 | U35: 1804.69 | V35: 0.001936438498 | W35: 2129036.65 | X35: 1863157.5 | Y35: 265879.15 | Z35: 0.1427035288
B36: CI NC Detail_BEM E251 Elec | C36: E251 | D36: 18230715 | E36: Commercial/Industrial New Construction | H36: 7983867 | I36: ='2025 Sector View Elect'!S35 -> 3000000 | J36: 3000000 | K36: 0 | L36: 0 | M36: 10983867 | N36: 6000000 | O36: 4983867 | P36: 0.8306445 | R36: 2692809.14 | S36: ='2025 Sector View Elect'!R35 -> 1947448.37 | T36: 1975852.8 | U36: -28404.43 | V36: -0.01437578245 | W36: 4640257.51 | X36: 3926419.8 | Y36: 713837.71 | Z36: 0.1818037159
E37: Commercial Strategic Energy Management | I37: ='2025 Sector View Elect'!S36 -> 14744500 | J37: 14744500 | K37: 0 | L37: 0 | M37: 14744500 | N37: 29489000 | O37: -14744500 | P37: -0.5 | S37: ='2025 Sector View Elect'!R36 -> 2673874.07 | T37: 2860295.7 | U37: -186421.63 | V37: -0.0651756495 | W37: 2673874.07 | X37: 5662250.6 | Y37: -2988376.53 | Z37: -0.5277718598
B38: RCM Detail_BEM E253 Elec | C38: E253 | D38: 18230723 | E38: SEM | H38: 11070241 | I38: ='2025 Sector View Elect'!S37 -> 13744500 | J38: 13744500 | K38: 0 | L38: 0 | M38: 24814741 | N38: 27489000 | O38: -2674259 | P38: -0.0972846957 | R38: 2050039.4 | S38: ='2025 Sector View Elect'!R37 -> 2103677.28 | T38: 2174179.2 | U38: -70501.92 | V38: -0.03242691311 | W38: 4153716.68 | X38: 4307299.1 | Y38: -153582.42 | Z38: -0.03565631651
C39: E253 | D39: 18236102 | E39: Pay For Performance | H39: 1006800.5 | I39: ='2025 Sector View Elect'!S38 -> 1000000 | J39: 1000000 | K39: 0 | L39: 0 | M39: 2006800.5 | N39: 2000000 | O39: 6800.5 | P39: 0.00340025 | R39: 520993.56 | S39: ='2025 Sector View Elect'!R38 -> 570196.79 | T39: 686116.5 | U39: -115919.71 | V39: -0.1689504771 | W39: 1091190.35 | X39: 1354951.5 | Y39: -263761.15 | Z39: -0.194664643
E40: High Voltage, Self-Directed | I40: ='2025 Sector View Elect'!S39 -> 6800000 | J40: 8973676 | K40: -2173676 | L40: -0.2422280457 | M40: 6800000 | N40: 11964901 | O40: -5164901 | P40: -0.4316710184 | S40: ='2025 Sector View Elect'!R39 -> 5636799.13 | T40: 6292348.7 | U40: -655549.57 | V40: -0.1041820155 | W40: 5636799.13 | X40: 8726972.1 | Y40: -3090172.97 | Z40: -0.3540945169
B41: LPSD_Detail_449_Elec | C41: E258 | D41: 18230720 | E41: 449 Customers | H41: 4511775 | I41: ='2025 Sector View Elect'!S40 -> 6000000 | J41: 6000000 | K41: 0 | L41: 0 | M41: 10511775 | N41: 8000000 | O41: 2511775 | P41: 0.313971875 | R41: 3739748.5 | S41: ='2025 Sector View Elect'!R40 -> 4381515.89 | T41: 4395183 | U41: -13667.11 | V41: -0.003109565631 | W41: 8121264.39 | X41: 5733360.5 | Y41: 2387903.89 | Z41: 0.416492891
B42: LPSD_Detail_Non-449 Elec | C42: E258 | D42: 18230721 | E42: Non-449 Customers | H42: 228744 | I42: ='2025 Sector View Elect'!S41 -> 800000 | J42: 2973676 | K42: -2173676 | L42: -0.7309727085 | M42: 1028744 | N42: 3964901 | O42: -2936157 | P42: -0.7405372795 | R42: 628261.15 | S42: ='2025 Sector View Elect'!R41 -> 1255283.24 | T42: 1897165.7 | U42: -641882.46 | V42: -0.3383375843 | W42: 1883544.39 | X42: 2993611.6 | Y42: -1110067.21 | Z42: -0.3708120352
C43: E262 | E43: Business Rebates | I43: ='2025 Sector View Elect'!S42 -> 31486849.06 | J43: 31155528.35 | K43: 331320.71 | L43: 0.01063441153 | M43: 31486849.06 | N43: 62456266.7 | O43: -30969417.64 | P43: -0.4958576501 | S43: ='2025 Sector View Elect'!R42 -> 16185684.05 | T43: 15985711.34 | U43: 199972.71 | V43: 0.01250946584 | W43: 16185684.05 | X43: 32024095.53 | Y43: -15838411.48 | Z43: -0.4945779488
B44: Comm Lgt Mkdn_E262 Elect | C44: E262 | D44: 18230714 | E44: Lighting to Go--also referred to as Business Lighting Markdowns | H44: 32407856 | I44: ='2025 Sector View Elect'!S43 -> 13500000 | J44: 13500000 | K44: 0 | L44: 0 | M44: 45907856 | N44: 27000000 | O44: 18907856 | P44: 0.700290963 | R44: 5480264.08 | S44: ='2025 Sector View Elect'!R43 -> 2559511.76 | T44: 3244025.99 | U44: -684514.23 | V44: -0.2110076282 | W44: 8039775.84 | X44: 6481825.68 | Y44: 1557950.16 | Z44: 0.2403566891
B45: Comm Kit-Laund_E262 Elect | C45: E262 | D45: 18230716 | E45: Commercial Foodservice | H45: 7649259.26 | I45: ='2025 Sector View Elect'!S44 -> 1162661 | J45: 872815 | K45: 289846 | L45: 0.3320818272 | M45: 8811920.26 | N45: 2303750 | O45: 6508170.26 | P45: 2.825033211 | R45: 7567220.34 | S45: ='2025 Sector View Elect'!R44 -> 1048840.32 | T45: 831584.55 | U45: 217255.77 | V45: 0.2612551784 | W45: 8616060.66 | X45: 1864148.55 | Y45: 6751912.11 | Z45: 3.621981794
B46: Comm HVAC_E262 Elect | C46: E262 | D46: 18230718 | E46: Commercial HVAC Rebates | H46: 334940.72 | I46: ='2025 Sector View Elect'!S45 -> 684738.06 | J46: 1143263.35 | K46: -458525.29 | L46: -0.401067077 | M46: 1019678.78 | N46: 1904066.7 | O46: -884387.92 | P46: -0.4644731826 | R46: 387163.55 | S46: ='2025 Sector View Elect'!R45 -> 611133.51 | T46: 731407.7 | U46: -120274.19 | V46: -0.1644420615 | W46: 998297.06 | X46: 1361955.2 | Y46: -363658.14 | Z46: -0.2670118224
C47: E262 | D47: 18230524 | E47: Commercial Midstream HVAC and Water Heat | H47: 583194.13 | I47: ='2025 Sector View Elect'!S46 -> 639450 | J47: 639450 | K47: 0 | L47: 0 | M47: 1222644.13 | N47: 1248450 | O47: -25805.87 | P47: -0.02067032721 | R47: 595943.07 | S47: ='2025 Sector View Elect'!R46 -> 592007.66 | T47: 658325.7 | U47: -66318.04 | V47: -0.1007374313 | W47: 1187950.73 | X47: 1287597 | Y47: -99646.27 | Z47: -0.07738933067
B48: Sm Bus DI_E262 Elect | C48: E262 | D48: 18230570 | E48: Small Business Direct Install | H48: 17861868.73 | I48: ='2025 Sector View Elect'!S47 -> 13000000 | J48: 13000000 | K48: 0 | L48: 0 | M48: 30861868.73 | N48: 26000000 | O48: 4861868.73 | P48: 0.1869949512 | R48: 12900463.57 | S48: ='2025 Sector View Elect'!R47 -> 8471833.83 | T48: 7835556.6 | U48: 636277.23 | V48: 0.08120383305 | W48: 21372297.4 | X48: 15664385.3 | Y48: 5707912.1 | Z48: 0.3643878767
C49: E262 | D49: 18230569 | E49: Lodging Rebates | H49: 2941373 | I49: ='2025 Sector View Elect'!S48 -> 2500000 | J49: 2000000 | K49: 500000 | L49: 0.25 | M49: 5441373 | N49: 4000000 | O49: 1441373 | P49: 0.36034325 | R49: 3493174.19 | S49: ='2025 Sector View Elect'!R48 -> 2902356.97 | T49: 2684810.8 | U49: 217546.17 | V49: 0.08102849184 | W49: 6395531.16 | X49: 5364183.8 | Y49: 1031347.36 | Z49: 0.1922654776
G50: Total, Business Energy Management | H50: =SUM(H30:H49) -> 129232285.3 | I50: ='2025 Sector View Elect'!S49 -> 98531349.06 | J50: 100373704.3 | K50: -1842355.29 | L50: -0.01835495962 | M50: 227763634.4 | N50: 196510167.7 | O50: 31253466.7 | P50: 0.1590424916 | R50: =SUM(R30:R49) -> 60629241.66 | S50: ='2025 Sector View Elect'!R49 -> 47932797.37 | T50: 48790635.14 | U50: -857837.77 | V50: -0.01758201687 | W50: 108562039 | X50: 93671718.13 | Y50: 14890320.9 | Z50: 0.1589628246
E53: Pilots With Uncertain Savings
B54: REM Pilots E249 Elec | C54: E249 | E54: Residential Pilots | I54: ='2025 Sector View Elect'!S53 -> 0 | J54: 0 | K54: 0 | M54: 0 | N54: 0 | O54: =M54-N54 -> 0 | P54: =(M54-N54)/N54 ->  | S54: ='2025 Sector View Elect'!R53 -> 0 | T54: 0 | U54: =S54-T54 -> 0 | V54: =(S54-T54)/T54 ->  | W54: 0 | Y54: =W54-X54 -> 0 | Z54: =(W54-X54)/X54 -> 
C55: E249 | D55: 18230749 | E55: Single Family AMI Engagement | H55: 0 | I55: ='2025 Sector View Elect'!S54 -> 0 | J55: 0 | K55: 0 | M55: 0 | N55: 0 | O55: 0 | R55: 17963.81 | S55: ='2025 Sector View Elect'!R54 -> 0 | T55: 0 | U55: 0 | W55: 17963.81 | X55: 10920.4 | Y55: 7043.41 | Z55: 0.6449772902
B56: BEM Pilots E249 Elec | C56: E249 | E56: Commercial Pilots | I56: ='2025 Sector View Elect'!S55 -> 0 | J56: 0 | K56: 0 | M56: 0 | N56: 0 | O56: 0 | S56: ='2025 Sector View Elect'!R55 -> 0 | T56: 0 | U56: 0 | W56: 0 | X56: 10920.4 | Y56: -10920.4 | Z56: -1
C57: E249 | M57: 0 | T57: 0 | W57: 0 | X57: 0
G58: Total, Pilots | H58: =SUM(H55:H57) -> 0 | I58: ='2025 Sector View Elect'!S57 -> 0 | J58: 0 | K58: 0 | M58: 0 | N58: 0 | O58: =M58-N58 -> 0 | P58: =(M58-N58)/N58 ->  | R58: =SUM(R55:R57) -> 17963.81 | S58: ='2025 Sector View Elect'!R57 -> 0 | T58: 0 | U58: =S58-T58 -> 0 | V58: =(S58-T58)/T58 ->  | W58: 17963.81 | X58: 10920.4 | Y58: =W58-X58 -> 7043.41 | Z58: =(W58-X58)/X58 -> 0.6449772902
E62: Regional Efficiency Programs
B63: NEEA Detail_E254 elec | C63: E254 | D63: 18230421 | E63: Northwest Energy Efficiency Alliance | H63: 16721673 | I63: ='2025 Sector View Elect'!S62 -> 18976749 | J63: 18976749 | K63: 0 | L63: 0 | M63: 35698422 | N63: 35698422 | O63: =M63-N63 -> 0 | P63: =(M63-N63)/N63 -> 0 | R63: 4829812.02 | S63: ='2025 Sector View Elect'!R62 -> 6687538.2 | T63: 4798648 | U63: =S63-T63 -> 1888890.2 | V63: =(S63-T63)/T63 -> 0.393629664 | W63: 11517350.22 | X63: 9715288 | Y63: =W63-X63 -> 1802062.22 | Z63: =(W63-X63)/X63 -> 0.1854872671
B64: TDSM_Regnl_elec_e219 | C64: E219 | D64: 18230567 | E64: Targeted DSM | I64: ='2025 Sector View Elect'!S63 -> 0 | J64: 0 | K64: 0 | M64: 0 | N64: 0 | O64: 0 | R64: 333894.53 | S64: ='2025 Sector View Elect'!R63 -> 580292.28 | T64: 598117.2 | U64: -17824.92 | V64: =(S64-T64)/T64 -> -0.02980171779 | W64: 914186.81 | X64: 1167084 | Y64: -252897.19 | Z64: -0.2166915064
B65: T&D Detail_Reg E292 elec | C65: E292 | D65: 18230713 | E65: Transmission & Distribution | H65: 4447527 | I65: ='2025 Sector View Elect'!S64 -> 4403843.988 | J65: 8878000 | K65: -4474156.012 | L65: -0.5039599022 | M65: 8851370.988 | N65: 17756000 | O65: -8904629.012 | P65: -0.5014997191 | S65: ='2025 Sector View Elect'!R64 -> 0 | T65: 0 | U65: 0 | W65: 0 | X65: 0 | Y65: 0
G66: Total, Regional Efficiency Programs | H66: =SUM(H63:H65) -> 21169200 | I66: ='2025 Sector View Elect'!S65 -> 23380592.99 | J66: 27854749 | K66: -4474156.012 | L66: =(I66-J66)/J66 -> -0.1606245316 | M66: 44549792.99 | N66: 53454422 | O66: -8904629.012 | P66: -0.1665835805 | R66: =SUM(R63:R65) -> 5163706.55 | S66: ='2025 Sector View Elect'!R65 -> 7267830.48 | T66: 5396765.2 | U66: 1871065.28 | V66: 0.3467012573 | W66: 12431537.03 | X66: 10882372 | Y66: 1549165.03 | Z66: 0.1423554561
E70: Energy Efficiency Portfolio Support
B71: Data & Systm Svcs_Elect | D71: 18230745 | E71: Data and Systems Services | R71: 1130957.79 | S71: ='2025 Sector View Elect'!R70 -> 1062878.74 | T71: 1109693.7 | U71: =S71-T71 -> -46814.96 | V71: =(S71-T71)/T71 -> -0.04218728105 | W71: 2193836.53 | X71: 2195253.6 | Y71: =W71-X71 -> -1417.07 | Z71: =(W71-X71)/X71 -> -0.0006455153974
B72: Rebt Procg Detail_Elect | D72: 18230507 | E72: Rebates Processing | R72: 1026266.99 | S72: ='2025 Sector View Elect'!R71 -> 1110334.11 | T72: 1164361.3 | U72: -54027.19 | V72: -0.04640070913 | W72: 2136601.1 | X72: 2300747 | Y72: -164145.9 | Z72: -0.07134461112
B73: VTeam Detail_R&C_Elec | D73: 18230418 | E73: Verification Team | R73: 905020.2 | S73: ='2025 Sector View Elect'!R72 -> 1100571.5 | T73: 1157298.3 | U73: -56726.8 | V73: -0.04901657593 | W73: =R73+S73 -> 2005591.7 | X73: 2285133.3 | Y73: -279541.6 | Z73: -0.1223305441
B74: ProgDev Detail_R&C_ Elec | D74: 18230810 | E74: Programs Support | R74: 1082256.04 | S74: ='2025 Sector View Elect'!R73 -> 1238114.57 | T74: 1309924.2 | U74: -71809.63 | V74: -0.05481968346 | W74: 2320370.61 | X74: 2582821.2 | Y74: -262450.59 | Z74: -0.1016139212
B75: TradeAlly Detail_PS_ Elec | D75: 18230730 | E75: Trade Ally Memberships | R75: 452046.94 | S75: ='2025 Sector View Elect'!R74 -> 174000 | T75: 174000 | U75: 0 | V75: 0 | W75: 626046.94 | X75: 348000 | Y75: 278046.94 | Z75: 0.7989854598
B76: CAN_Elect | D76: 18230568 | E76: Trade Ally Network (revenue + cost) | R76: -219022.5 | S76: ='2025 Sector View Elect'!R75 -> -24018.1 | T76: -1730 | U76: -22288.1 | V76: 12.8832948 | W76: -243040.6 | X76: -21220 | Y76: -221820.6 | Z76: 10.45337418
B77: ABS Detail_PSWE_Elec | D77: 18230052 | E77: Automated Benchmarking System | R77: 540954.66 | S77: ='2025 Sector View Elect'!R76 -> 2374307.82 | T77: 2400464.5 | U77: -26156.68 | V77: -0.01089650774 | W77: 2915262.48 | X77: 3044692 | Y77: -129429.52 | Z77: -0.04250988934
B78: Engy Adv Detail_PSCE Elec | D78: 18230575 | E78: Energy Advisors | R78: 1384889.13 | S78: ='2025 Sector View Elect'!R77 -> 1509836.89 | T78: 1599938.7 | U78: -90101.81 | V78: -0.05631578885 | W78: 2894726.02 | X78: 3192601.6 | Y78: -297875.58 | Z78: -0.09330183259
D79: 18230032 | E79: Public Participation - Equity | R79: 2043.05 | S79: ='2025 Sector View Elect'!R78 -> 43635 | T79: 43635 | U79: 0 | V79: 0 | W79: 45678.05 | X79: 87270 | Y79: -41591.95 | Z79: -0.4765893205
B80: EEC Detail_PS_Elec | D80: 18230576 | E80: Energy Efficient Communities | R80: 1050714.5 | S80: ='2025 Sector View Elect'!R79 -> 1261822.45 | T80: 1331335 | U80: -69512.55 | V80: -0.05221266623 | W80: 2312536.95 | X80: 2626817 | Y80: -314280.05 | Z80: -0.1196429176
B81: CustOnline Detail_PSWE_Elec | E81: Customer Digital Services | S81: ='2025 Sector View Elect'!R80 -> 1530203.08 | T81: 1632734.71 | U81: -102531.63 | V81: -0.06279748288 | W81: 1530203.08 | X81: 3380658.02 | Y81: -1850454.94 | Z81: -0.5473653144
D82: 18230577 | F82: Digital Experience | R82: 47907.55 | S82: ='2025 Sector View Elect'!R81 -> 0 | T82: 0 | U82: 0 | W82: 47907.55 | X82: 0 | Y82: 47907.55
D83: 18230571 | F83: Customer Digital Experience | R83: 419854.6 | S83: ='2025 Sector View Elect'!R82 -> 467556.81 | T83: 515957.05 | U83: -48400.24 | V83: -0.09380672287 | W83: 887411.41 | X83: 1031002.1 | Y83: -143590.69 | Z83: -0.1392729365
B84: CustAwarTools_elec | D84: 18230572 | F84: Customer Awareness Tools | R84: 798404.31 | S84: ='2025 Sector View Elect'!R83 -> 766656.85 | T84: 825326.06 | U84: -58669.21 | V84: -0.07108609899 | W84: 1565061.16 | X84: 1648372.12 | Y84: -83310.96 | Z84: -0.0505413547
B85: ShopPSE_elec | D85: 18230509 | F85: PSE Marketplace | R85: 340544.14 | S85: ='2025 Sector View Elect'!R84 -> 295989.42 | T85: 291451.6 | U85: 4537.82 | V85: 0.01556972067 | W85: 636533.56 | X85: 701283.8 | Y85: -64750.24 | Z85: -0.09233100779
B86: Mkt Intgn Detail_PSWE_Elec | D86: 18230573 | E86: Market Integration | R86: 1847657.24 | S86: ='2025 Sector View Elect'!R85 -> 2599476.52 | T86: 2202912.8 | U86: 396563.72 | V86: 0.1800178927 | W86: 4447133.76 | X86: 4370753.5 | Y86: 76380.26 | Z86: 0.01747530718
B87: Events Detail_PSCE Elec | D87: 18230574 | E87: Events | R87: 464939.55 | S87: ='2025 Sector View Elect'!R86 -> 544845.58 | T87: 537500.5 | U87: 7345.08 | V87: 0.0136652524 | W87: 1009785.13 | X87: 1059424.8 | Y87: -49639.67 | Z87: -0.04685530299
G88: Total, Portfolio Support | R88: =SUM(R71:R87) -> 11275434.19 | S88: ='2025 Sector View Elect'!R87 -> 14526008.16 | T88: 14662068.71 | U88: -136060.55 | V88: -0.009279764861 | W88: 25801442.35 | X88: 27452952.02 | Y88: -1651509.67 | Z88: -0.06015781723
S89: ='2025 Sector View Elect'!R88 -> 0
S90: ='2025 Sector View Elect'!R89 -> 0
S91: ='2025 Sector View Elect'!R90 -> 0
E92: Research & Compliance | S92: ='2025 Sector View Elect'!R91 -> 0
B93: SuppCrv Detail_R&C_Elec | D93: 18230564 | E93: Conservation Supply Curves | R93: 852738.09 | S93: ='2025 Sector View Elect'!R92 -> 591697.45 | T93: 878962.6 | U93: -287265.15 | V93: -0.3268229501 | W93: 1444435.54 | X93: 1160742.6 | Y93: =W93-X93 -> 283692.94 | Z93: =(W93-X93)/X93 -> 0.2444064171
B94: Strat Plan Detail_R&C_Elec | D94: 18230561 | E94: Strategic Planning | R94: 445837.68 | S94: ='2025 Sector View Elect'!R93 -> 778451.94 | T94: 669661.1 | U94: 108790.84 | V94: 0.162456562 | W94: 1224289.62 | X94: 1319970.7 | Y94: -95681.08 | Z94: -0.07248727566
B95: Mktg Resch Detail_PS_ Elec | D95: 18230560 | E95: Market Research | R95: 175403.06 | S95: ='2025 Sector View Elect'!R94 -> 165616.58 | T95: 173090 | U95: -7473.42 | V95: -0.04317649778 | W95: 341019.64 | X95: 341050 | Y95: -30.36 | Z95: -8.90192054e-05
B96: Eval Detail_R&C_Elec | D96: 18230563 | E96: Program Evaluation | R96: 1922887.46 | S96: ='2025 Sector View Elect'!R95 -> 1558895.11 | T96: 2070324.7 | U96: -511429.59 | V96: -0.2470286859 | W96: 3481782.57 | X96: 4128485.6 | Y96: -646703.03 | Z96: -0.1566441288
B97: BECAR Detail_R&C Elec | D97: 18230559 | E97: Biennial Consv. Aquisitn. Review | R97: 70638.97 | S97: ='2025 Sector View Elect'!R96 -> 58000 | T97: 143000 | U97: -85000 | V97: -0.5944055944 | W97: 128638.97 | X97: 286000 | Y97: -157361.03 | Z97: -0.5502133916
B98: TechEval Detail Elec | C98: E261 | D98: 18230511 | E98: Technology Evaluation | R98: 18750 | S98: ='2025 Sector View Elect'!R97 -> 142176.02 | T98: 75000 | U98: 67176.02 | V98: 0.8956802667 | W98: 160926.02 | X98: 150000 | Y98: 10926.02 | Z98: 0.07284013333
G99: Total, Research & Compliance | R99: =SUM(R93:R98) -> 3486255.26 | S99: ='2025 Sector View Elect'!R98 -> 3294837.1 | T99: 4010038.4 | U99: -715201.3 | V99: -0.178352731 | W99: 6781092.36 | X99: 7386248.9 | Y99: -605156.54 | Z99: -0.08193015808
E103: Other Customer Programs
B104: Net Mtr Details_Oth Elec E150 | C104: E150 | D104: 18230128 | E104: Net Metering | R104: 4167969.14 | S104: ='2025 Sector View Elect'!R103 -> 4282165.07 | T104: 4345960 | U104: -63794.93 | V104: -0.01467913418 | W104: 8450134.21 | X104: 8440235 | Y104: =W104-X104 -> 9899.21 | Z104: =(W104-X104)/X104 -> 0.001172859523
B105: DemndResp_Detail_E249_Elec | C105: 249A | D105: 18230566 | E105: Demand Response Pilot | R105: 124252.56 | S105: ='2025 Sector View Elect'!R104 -> 420000 | T105: 420000 | U105: 0 | V105: 0 | W105: 544252.56 | X105: 740000 | Y105: -195747.44 | Z105: -0.2645235676
C106: 272, 271 | D106: 18230753 | E106: Demand Response Administration | R106: 2502591.77 | S106: ='2025 Sector View Elect'!R105 -> 6469439.15 | T106: 5300945 | U106: 1168494.15 | V106: =(S106-T106)/T106 -> 0.220431291 | W106: 8972030.92 | X106: 10231690 | Y106: -1259659.08 | Z106: -0.1231134915
G107: Total, Other Energy Efficiency Programs | R107: =SUM(R104:R106) -> 6794813.47 | S107: ='2025 Sector View Elect'!R106 -> 11171604.22 | T107: 10066905 | U107: 1104699.22 | V107: 0.1097357351 | W107: 17966417.69 | X107: 19411925 | Y107: -1445507.31 | Z107: -0.07446491319
G111: GRAND TOTAL, ELECTRIC PROGRAMS | H111: =H66+H58+H50+H25 -> 241596114.4 | I111: ='2025 Sector View Elect'!S110 -> 206521249.9 | J111: 207613768.9 | K111: =I111-J111 -> -1092518.988 | L111: =(I111-J111)/J111 -> -0.005262266534 | M111: =M66+M58+M50+M25 -> 448117364.3 | N111: 408064956.3 | O111: =M111-N111 -> 40052407.97 | P111: =(M111-N111)/N111 -> 0.09815204014 | R111: =SUM(R107+R99+R88+R66+R58+R50+R25) -> 134575629.2 | S111: ='2025 Sector View Elect'!R110 -> 136419201 | T111: 126776072.7 | U111: 9643128.234 | V111: 0.0760642606 | W111: 270994830.1 | X111: 246287464.2 | Y111: =W111-X111 -> 24707365.94 | Z111: =(W111-X111)/X111 -> 0.1003192185

Sheet Natural Gas Comparison
D4: Therm Savings | N4: Natural Gas Rider Budget | X4: Total Rider Budget
D5: 2025 | I5: 2024/2025 | N5: 2025 | S5: 2024/2025 | X5: 2025 | AC5: 2024/2025
A6: Order Number | B6: Program | D6: 2024 Forecast | E6: 2025 ACP | F6: 2025 BCP yr 2 | G6: Difference | H6: % Change | I6: 2024 Fcast+2025 ACP | J6: 2024/25 BCP | K6: Difference | L6: % Change | N6: 2024 Forecast | O6: 2025 ACP | P6: 2025 BCP year 2 | Q6: Difference | R6: % Change | S6: 2024 Fcast+2025 ACP | T6: 2024/25 BCP | U6: Difference | V6: % Change | X6: 2024 Forecast | Y6: 2025 ACP | Z6: 2025 BCP | AA6: Difference | AB6: % Change | AC6: 2024 Fcast+2025 ACP | AD6: 2025 BCP 2-yr | AE6: Difference | AF6: % Change
A8: 18230661 | B8: Low Income Weatherization | D8: 34017.51 | E8: ='LowIncWx Detail_REM G201 Gas'!N6 -> 21727.67 | F8: 21918 | G8: =E8-F8 -> -190.33 | H8: =(E8-F8)/F8 -> -0.008683730267 | I8: =D8+E8 -> 55745.18 | J8: 43836 | K8: =I8-J8 -> 11909.18 | L8: =(I8-J8)/J8 -> 0.2716757916 | N8: 1763117.97 | O8: ='LowIncWx Detail_REM G201 Gas'!M6 -> 1981021.18 | P8: 1586031.85 | Q8: =O8-P8 -> 394989.33 | R8: =(O8-P8)/P8 -> 0.2490424956 | S8: =N8+O8 -> 3744139.15 | T8: 3170372.7 | U8: =S8-T8 -> 573766.45 | V8: =(S8-T8)/T8 -> 0.1809776024
A9: 18230249 | B9: SF Existing Water Heat | D9: 49849.69 | E9: ='WtrHeat Detail_REM G214 Gas'!N6 -> 61231.1 | F9: 61231.1 | G9: =E9-F9 -> 0 | H9: 0 | I9: =D9+E9 -> 111080.79 | J9: 122462.2 | K9: =I9-J9 -> -11381.41 | L9: -0.09293814744 | N9: 391298.11 | O9: ='WtrHeat Detail_REM G214 Gas'!M6 -> 666299.08 | P9: 666299.1 | Q9: =O9-P9 -> -0.02000000002 | R9: -3.001654965e-08 | S9: =N9+O9 -> 1057597.19 | T9: 1329189.6 | U9: =S9-T9 -> -271592.41 | V9: -0.2043293222
A10: 18230637 | B10: SF Existing Weatherization | D10: 489593.27 | E10: ='Wx Detail_REM G214 Gas'!N6 -> 500077.2873 | F10: 334873.1343 | G10: 165204.153 | H10: 0.4933335526 | I10: 989670.5573 | J10: 669746.2686 | K10: 319924.2887 | L10: 0.4776798374 | N10: 11124304.19 | O10: ='Wx Detail_REM G214 Gas'!M6 -> 12395160.64 | P10: 7138527.9 | Q10: 5256632.74 | R10: 0.736374896 | S10: 23519464.83 | T10: 14256488.4 | U10: 9262976.43 | V10: 0.6497375911
A11: 18230638 | B11: SF Existing Space Heat | D11: 206436.01 | E11: ='SpHeat Detail_REM G214 Gas'!N6 -> 447011.9 | F11: 209522.8 | G11: 237489.1 | H11: 1.133476166 | I11: 653447.91 | J11: 420207.4 | K11: 233240.51 | L11: 0.5550604535 | N11: 1768487.15 | O11: ='SpHeat Detail_REM G214 Gas'!M6 -> 2696118.93 | P11: 1642716 | Q11: 1053402.93 | R11: 0.6412568758 | S11: 4464606.08 | T11: 3210655.2 | U11: 1253950.88 | V11: 0.3905591856
A12: 18230161 | B12: Residential Midstream HVAC and Water Heat | D12: 13018.43 | E12: ='HVAC&WH Mdstm_G214 Gas'!N6 -> 76404 | F12: 76404 | G12: 0 | H12: 0 | I12: 89422.43 | J12: 148131 | K12: -58708.57 | L12: -0.3963287225 | N12: 78155.59 | O12: ='HVAC&WH Mdstm_G214 Gas'!M6 -> 540146 | P12: 540146 | Q12: 0 | R12: 0 | S12: 618301.59 | T12: 1050491 | U12: -432189.41 | V12: -0.4114165757
A13: 18230434 | B13: Home Appliances | D13: 6561 | E13: ='HmApplSvgs Detail_REM G214 Gas'!N6 -> 4836 | F13: 4836 | G13: 0 | H13: 0 | I13: 11397 | J13: 9672 | K13: 1725 | L13: 0.1783498759 | N13: 0 | O13: ='HmApplSvgs Detail_REM G214 Gas'!M6 -> 0 | P13: 0 | Q13: 0 | S13: 0 | T13: 0 | U13: 0
A14: 18230687 | B14: Smart Thermostats | D14: 256782.01 | E14: ='WebTstat Detail_REM G214 Gas'!N6 -> 195043.5 | F14: 262087.2 | G14: -67043.7 | H14: -0.255806846 | I14: 451825.51 | J14: 553597.8 | K14: -101772.29 | L14: -0.1838379596 | N14: 1300513.17 | O14: ='WebTstat Detail_REM G214 Gas'!M6 -> 1735737.99 | P14: 2184033.6 | Q14: -448295.61 | R14: -0.2052603998 | S14: 3036251.16 | T14: 4356049.8 | U14: -1319798.64 | V14: -0.3029806133
A15: 18230738 | B15: Home Energy Reports | D15: 1244736.21 | E15: ='HER Detail_REM G214 gas'!N6 -> 1244780.11 | F15: 1244780.11 | G15: 0 | H15: 0 | I15: 2489516.32 | J15: 2489560.22 | K15: -43.9 | L15: -1.763363651e-05 | N15: 1302218.58 | O15: ='HER Detail_REM G214 gas'!M6 -> 1188260.52 | P15: 1937426.59 | Q15: -749166.07 | R15: -0.3866810097 | S15: 2490479.1 | T15: 3871661.18 | U15: -1381182.08 | V15: -0.3567414647
A16: 18230684 | B16: Single Family New Construction | D16: 0 | E16: ='SFNC Detail_REM G215 Gas'!N6 -> 0 | F16: 0 | G16: 0 | I16: 0 | J16: 0 | K16: 0 | N16: 2441.32 | O16: ='SFNC Detail_REM G215 Gas'!M6 -> 0 | P16: 0 | Q16: 0 | S16: 2441.32 | T16: 0 | U16: 2441.32
A17: 18230752 | B17: Manufactured Home New Construction | D17: 138 | E17: ='NCMfgHome Detail_REM G215 Gas'!N6 -> 547.4 | F17: 547.4 | G17: 0 | H17: 0 | I17: 685.4 | J17: 1094.8 | K17: -409.4 | L17: -0.3739495798 | N17: 17139.31 | O17: ='NCMfgHome Detail_REM G215 Gas'!M6 -> 14800 | P17: 14800 | Q17: 0 | R17: 0 | S17: 31939.31 | T17: 29600 | U17: 2339.31 | V17: 0.07903074324
A18: 18230254 | B18: Efficiency Boost | D18: 0 | E18: ='Efficiency Boost_G217 Gas'!N6 -> 0 | F18: 0 | G18: 0 | I18: 0 | J18: 0 | K18: 0 | N18: 97806.21 | O18: ='Efficiency Boost_G217 Gas'!M6 -> 68573.98 | P18: 77234 | Q18: -8660.02 | R18: -0.1121270425 | S18: 166380.19 | T18: 153100 | U18: 13280.19 | V18: 0.08674193338
A19: 18230736 | B19: Multifamily Retrofit | D19: 14992.24 | E19: ='MF Retr Detail_REM G217 Gas'!N6 -> 17433.6 | F19: 15374.16 | G19: 2059.44 | H19: 0.1339546356 | I19: 32425.84 | J19: 30050.32 | K19: 2375.52 | L19: 0.07905140444 | N19: 330387.78 | O19: ='MF Retr Detail_REM G217 Gas'!M6 -> 366523 | P19: 289834.18 | Q19: 76688.82 | R19: 0.2645955008 | S19: 696910.78 | T19: 569784.46 | U19: 127126.32 | V19: 0.2231129996
A20: 18230673 | B20: Multi-Family New Construction | D20: 3022 | E20: ='MFNC Detail_REM G218 Gas'!N6 -> 3200 | F20: 3200 | G20: 0 | H20: =(E20-F20)/F20 -> 0 | I20: 6222 | J20: 7200 | K20: -978 | L20: -0.1358333333 | N20: 63569.46 | O20: ='MFNC Detail_REM G218 Gas'!M6 -> 34020 | P20: 33500 | Q20: 520 | R20: 0.01552238806 | S20: 97589.46 | T20: 72289 | U20: 25300.46 | V20: 0.349990455
B21: Total, Residential Energy Management | D21: =SUM(D8:D20) -> 2319146.37 | E21: =SUM(E8:E20) -> 2572292.567 | F21: 2234773.904 | G21: 337518.663 | H21: 0.1510303402 | I21: 4891438.937 | J21: 4495558.009 | K21: 395880.9287 | L21: 0.08806046501 | N21: =SUM(N8:N20) -> 18239438.84 | O21: =SUM(O8:O20) -> 21686661.32 | P21: 16110549.22 | Q21: 5576112.1 | R21: 0.3461155808 | S21: 39926100.16 | T21: 32069681.34 | U21: 7856418.82 | V21: 0.2449796347
B26: Commercial/Industrial Retrofit | D26: 333049 | E26: =E27+E28+E29 -> 389000 | F26: 389000 | G26: 0 | H26: =(E26-F26)/F26 -> 0 | I26: 722049 | J26: 782000 | K26: =I26-J26 -> -59951 | L26: =(I26-J26)/J26 -> -0.07666368286 | N26: 2172953.79 | O26: =SUM(O27:O29) -> 2796608.63 | P26: 2833815.6 | Q26: =O26-P26 -> -37206.97 | R26: =(O26-P26)/P26 -> -0.01312963695 | S26: 4969562.42 | T26: 5629956 | U26: =S26-T26 -> -660393.58 | V26: -0.117299954
A27: 18230731 | B27: Retrofit Custom Grants | D27: 192565 | E27: ='CI Retr Detail_BEM G250 Gas'!M6 -> 290000 | F27: 290000 | G27: 0 | H27: 0 | I27: 482565 | J27: 580000 | K27: -97435 | L27: -0.1679913793 | N27: 1933318.71 | O27: ='CI Retr Detail_BEM G250 Gas'!L6 -> 2411563.14 | P27: 2448760.3 | Q27: -37197.16 | R27: -0.01519020053 | S27: 4344881.85 | T27: 4865076 | U27: -520194.15 | V27: -0.106924157
A28: 18231037 | B28: Industrial Programs | D28: 79000 | E28: =CI_Indust_BEM_G250_Gas!M6 -> 24000 | F28: 24000 | G28: 0 | H28: 0 | I28: 103000 | J28: 52000 | K28: 51000 | L28: 0.9807692308 | N28: 109009.45 | O28: =CI_Indust_BEM_G250_Gas!L6 -> 191033.8 | P28: 198731.7 | Q28: -7697.9 | R28: -0.03873513888 | S28: 300043.25 | T28: 395995.4 | U28: -95952.15 | V28: -0.2423062238
A29: 18230220 | B29: Clean Buildings Accelerator | D29: 61484 | E29: ='Cln Build Accel_G250_Gas'!M6 -> 75000 | F29: 75000 | G29: 0 | H29: 0 | I29: 136484 | J29: 150000 | K29: -13516 | L29: -0.09010666667 | N29: 130625.63 | O29: ='Cln Build Accel_G250_Gas'!L6 -> 194011.69 | P29: 186323.6 | Q29: 7688.09 | R29: 0.04126203015 | S29: 324637.32 | T29: 368884.6 | U29: -44247.28 | V29: -0.1199488404
A30: 18230706 | B30: Commercial/Industrial New Construction | D30: 34907 | E30: ='CI NC Detail_BEM G251 Gas'!M6 -> 20000 | F30: 20000 | G30: 0 | H30: 0 | I30: 54907 | J30: 40000 | K30: 14907 | L30: 0.372675 | N30: 393605.04 | O30: ='CI NC Detail_BEM G251 Gas'!L6 -> 259194.64 | P30: 263993.8 | Q30: -4799.16 | R30: -0.0181790633 | S30: 652799.68 | T30: 520989.1 | U30: 131810.58 | V30: 0.2530006482
B31: Commercial Strategic Energy Management | E31: =SUM(E32:E33) -> 383502 | F31: 383502 | G31: 0 | H31: 0 | I31: 383502 | J31: 766004 | K31: -382502 | L31: -0.4993472619 | O31: =SUM(O32:O33) -> 1001363.37 | P31: 989086.9 | Q31: 12276.47 | R31: 0.01241192255 | S31: 1001363.37 | T31: 1950342.4 | U31: -948979.03 | V31: -0.486570476
A32: 18230691 | B32: SEM | D32: 407004 | E32: ='RCM Detail_BEM 253 Gas'!M6 -> 370000 | F32: 370000 | G32: 0 | H32: 0 | I32: 777004 | J32: 740000 | K32: 37004 | L32: 0.05000540541 | N32: 848627.73 | O32: ='RCM Detail_BEM 253 Gas'!L6 -> 890041.03 | P32: 792097.4 | Q32: 97943.63 | R32: 0.1236509929 | S32: 1738668.76 | T32: 1568842.9 | U32: 169825.86 | V32: 0.1082491179
A33: 18231039 | B33: Pay For Performance | D33: 11120 | E33: ='Pay For Perf_E253_Gas'!M6 -> 13502 | F33: 13502 | G33: 0 | H33: 0 | I33: 24622 | J33: 26004 | K33: -1382 | L33: -0.0531456699 | N33: 85295.19 | O33: ='Pay For Perf_E253_Gas'!L6 -> 111322.34 | P33: 196989.5 | Q33: -85667.16 | R33: -0.4348818592 | S33: 196617.53 | T33: 381499.5 | U33: -184881.97 | V33: -0.4846191673
B34: Business Rebates | E34: =SUM(E35:E39) -> 464970.55 | F34: 432928.55 | G34: 32042 | H34: 0.07401221287 | I34: 464970.55 | J34: 955627.1 | K34: -490656.55 | L34: -0.5134393426 | O34: =SUM(O35:O39) -> 3049244.2 | P34: 3242115.35 | Q34: -192871.15 | R34: -0.059489293 | S34: 3049244.2 | T34: 7052326.45 | U34: -4003082.25 | V34: -0.5676257726
A35: 18231027 | B35: Commercial Foodservice | D35: 565028.67 | E35: ='Comm Kit-Laund_G262 Gas'!N6 -> 171582 | F35: 109590 | G35: 61992 | H35: 0.5656720504 | I35: 736610.67 | J35: 324300 | K35: 412310.67 | L35: 1.271386586 | N35: 4220297.38 | O35: ='Comm Kit-Laund_G262 Gas'!M6 -> 1494339.69 | P35: 1160580.05 | Q35: 333759.64 | R35: 0.2875800252 | S35: 5714637.07 | T35: 2966681.55 | U35: 2747955.52 | V35: 0.9262724946
A36: 18231029 | B36: Commercial HVAC Rebates | D36: 16261.66 | E36: ='Comm HVAC Rbts_G262 Gas'!N6 -> 19428.55 | F36: 23818.55 | G36: -4390 | H36: -0.184310128 | I36: 35690.21 | J36: 45157.1 | K36: -9466.89 | L36: -0.2096434448 | N36: 37672.11 | O36: ='Comm HVAC Rbts_G262 Gas'!M6 -> 127238.43 | P36: 122839.8 | Q36: 4398.63 | R36: 0.03580785706 | S36: 164910.54 | T36: 244364.8 | U36: -79454.26 | V36: -0.3251460931
A37: 18230248 | B37: Commercial Midstream HVAC and Water Heat | D37: 227694.65 | E37: ='Comm Midstream_G262 Gas'!N6 -> 270270 | F37: 270270 | G37: 0 | H37: 0 | I37: 497964.65 | J37: 527670 | K37: -29705.35 | L37: -0.05629531715 | N37: 1108598.05 | O37: ='Comm Midstream_G262 Gas'!M6 -> 1412866.08 | P37: 1598355.5 | Q37: -185489.42 | R37: -0.1160501653 | S37: 2521464.13 | T37: 3120600.1 | U37: -599135.97 | V37: -0.1919938316
A38: 18230273 | B38: Small Business Direct Install | D38: 6496 | E38: ='Sm Bus DI_G262 Gas'!N6 -> 3690 | F38: 29250 | G38: -25560 | H38: =(E38-F38)/F38 -> -0.8738461538 | I38: 10186 | J38: 58500 | K38: -48314 | L38: -0.8258803419 | N38: 28554.66 | O38: ='Sm Bus DI_G262 Gas'!M6 -> 14800 | P38: 360340 | Q38: -345540 | R38: -0.9589276794 | S38: 43354.66 | T38: 720680 | U38: -677325.34 | V38: -0.9398420103
A39: 18230269 | B39: Lodging Rebates | D39: 0 | E39: ='Lodging Rbats_Gas'!N6 -> 0 | F39: 0 | G39: 0 | H39: =(E39-F39)/E39 ->  | I39: 0 | J39: 0 | K39: 0 | N39: 0 | O39: ='Lodging Rbats_Gas'!M6 -> 0 | P39: 0 | Q39: 0 | S39: 0 | T39: 0 | U39: 0
B40: Total, Business Energy Management | D40: =SUM(D27:D39) -> 1601560.98 | E40: =SUM(E27:E31)+E34 -> 1257472.55 | F40: 1225430.55 | G40: 32042 | H40: =(E40-F40)/F40 -> 0.02614754463 | I40: 2859033.53 | J40: 2543631.1 | K40: 315402.43 | L40: 0.1239969231 | N40: =SUM(N27:N39) -> 8895603.95 | O40: =SUM(O27:O31)+O34 -> 7106410.84 | P40: 7329011.65 | Q40: -222600.81 | R40: -0.03037255508 | S40: 16002014.79 | T40: 15153613.95 | U40: 848400.84 | V40: 0.05598670012
B45: Residential Pilots | E45: =SUM(E46:E47) -> 0 | F45: 0 | G45: 0 | J45: 0 | K45: =I45-J45 -> 0 | L45: =(I45-J45)/J45 ->  | O45: =SUM(O46:O47) -> 0 | P45: 0 | Q45: =O45-P45 -> 0 | R45: =(O45-P45)/P45 ->  | S45: 0 | T45: 0 | U45: =S45-T45 -> 0
A46: 18230255 | B46: Placeholder | E46: ='HEA Behavioral Pilot_Gas'!N6 -> 0 | F46: 0 | G46: 0 | J46: 0 | K46: 0 | O46: ='HEA Behavioral Pilot_Gas'!M6 -> 0 | P46: 0 | Q46: 0 | S46: 0 | T46: 0 | U46: 0
A47: 18230256 | B47: Placeholder | E47: ='Retail Choice Pilot_Gas'!N6 -> 0 | F47: 0 | G47: 0 | J47: 0 | K47: 0 | O47: ='Retail Choice Pilot_Gas'!M6 -> 0 | P47: 0 | Q47: 0 | S47: 0 | T47: 0 | U47: 0
B48: Commercial Pilots | E48: =SUM(E49) -> 0 | F48: 0 | G48: 0 | J48: 0 | K48: 0 | O48: =SUM(O49) -> 0 | P48: 0 | Q48: 0 | S48: 0 | T48: 0 | U48: 0
A49: 18231038 | B49: Placeholder | E49: ='SMB AMI Engmt Pilot_Gas'!N6 -> 0 | F49: 0 | G49: 0 | J49: 0 | K49: 0 | O49: ='SMB AMI Engmt Pilot_Gas'!M6 -> 0 | P49: 0 | Q49: 0 | S49: 0 | T49: 0 | U49: 0
B50: Total, Pilots | E50: =E45+E48 -> 0 | F50: 0 | G50: 0 | J50: 0 | K50: 0 | O50: =O45+O48 -> 0 | P50: 0 | Q50: 0 | S50: 0 | T50: 0 | U50: 0
A55: 18230267 | B55: Targeted DSM | E55: ='TDSM_Regnl_G219 Gas'!N6 -> 0 | F55: 0 | G55: 0 | J55: 0 | K55: =I55-J55 -> 0 | N55: 180931.57 | O55: ='TDSM_Regnl_G219 Gas'!M6 -> 267519.32 | P55: 277349.2 | Q55: =O55-P55 -> -9829.88 | R55: -0.03544225114 | S55: 448450.89 | T55: 563902 | U55: =S55-T55 -> -115451.11 | V55: -0.2047361244
A56: 18230660 | B56: NW Gas Market Transformation | E56: ='NEEA Gas MT_no Sched Gas'!N6 -> 0 | F56: 0 | G56: 0 | J56: 0 | K56: 0 | N56: 1192718 | O56: ='NEEA Gas MT_no Sched Gas'!M6 -> 2983459 | P56: 1590236 | Q56: 1393223 | R56: 0.8761108414 | S56: 4176177 | T56: 3180472 | U56: 995705 | V56: 0.3130683119
B57: Total, Regional Efficiency Programs | E57: =SUM(E55:E56) -> 0 | F57: 0 | G57: 0 | J57: 0 | K57: 0 | N57: =SUM(N55:N56) -> 1373649.57 | O57: =SUM(O55:O56) -> 3250978.32 | P57: 1867585.2 | Q57: 1383393.12 | R57: 0.7407389607 | S57: 4624627.89 | T57: 3744374 | U57: 880253.89 | V57: 0.235087064
A62: 18231005 | B62: Data and Systems Services | N62: 171249.47 | O62: ='Data & Systm Svcs Detail Gas'!M6 -> 168960.38 | P62: 176560.8 | Q62: =O62-P62 -> -7600.42 | R62: -0.04304704102 | S62: 340209.85 | T62: 349144.9 | U62: =S62-T62 -> -8935.05 | V62: -0.02559123733
A63: 18230659 | B63: Rebates Processing | N63: 92140.31 | O63: ='Rebt Procg_Detail Gas'!M6 -> 152299.04 | P63: 160283.7 | Q63: -7984.66 | R63: -0.04981579537 | S63: 244439.35 | T63: 316433 | U63: -71993.65 | V63: -0.2275162515
A64: 18230668 | B64: Verification Team | N64: 87622.28 | O64: ='Verifctn team Detail Gas'!M6 -> 153558.65 | P64: 161946.7 | Q64: -8388.05 | R64: -0.05179512766 | S64: 241180.93 | T64: 319536.7 | U64: -78355.77 | V64: -0.2452168092
A65: 18230688 | B65: Programs Support | N65: 163278.35 | O65: ='Progs Supp Detail_PS_Gas'!M6 -> 185005.63 | P65: 195735.8 | Q65: -10730.17 | R65: -0.05481965997 | S65: 348283.98 | T65: 385938.8 | U65: -37654.82 | V65: -0.09756681629
A66: 18230698 | B66: Trade Ally Memberships | N66: 12953.51 | O66: ='TradeAlly Detail_PS_gas'!M6 -> 26000 | P66: 26000 | Q66: 0 | R66: 0 | S66: 38953.51 | T66: 52000 | U66: -13046.49 | V66: -0.2508940385
A67: 18230268 | B67: Trade Ally Network (revenue + cost) | N67: -71755.62 | O67: ='REP_PS_Detail Gas'!M6 -> -16361.9 | P67: -2270 | Q67: -14091.9 | R67: 6.207885463 | S67: -88117.52 | T67: -1760 | U67: -86357.52 | V67: 49.06677273
A68: 18230231 | B68: Automated Benchmarking System | N68: 302435.06 | O68: ='Energy CAP_Gas'!M6 -> 734707.82 | P68: 760864.5 | Q68: -26156.68 | R68: -0.03437757971 | S68: 1037142.88 | T68: 1268092 | U68: -230949.12 | V68: -0.182123316
A69: 18230226 | B69: Energy Advisors | N69: 214180.23 | O69: ='Engy Adv Detail_PSCE_Gas'!M6 -> 241271.46 | P69: 255669.7 | Q69: -14398.24 | R69: -0.05631578556 | S69: 455451.69 | T69: 508781.2 | U69: -53329.51 | V69: -0.1048181615
A70: 18230230 | B70: Public Participation - Equity | O70: ='Public Part Equity_Gas'!M6 -> 43635 | P70: 43635 | Q70: 0 | R70: 0 | S70: 43635 | T70: 87270 | U70: -43635 | V70: -0.5
A71: 18230227 | B71: Energy Efficient Communities | N71: 163247.85 | O71: ='EEC Detail_PS_Gas'!M6 -> 189665.14 | P71: 200256 | Q71: -10590.86 | R71: -0.05288660515 | S71: 352912.99 | T71: 395049.5 | U71: -42136.51 | V71: -0.1066613424
B72: Customer Digital Services | O72: =SUM(O73:O76) -> 551636.16 | P72: 568609.87 | Q72: -16973.71 | R72: -0.02985124054 | S72: =N72+O72 -> 551636.16 | T72: 1252898.54 | U72: -701262.38 | V72: =(S72-T72)/T72 -> -0.5597120258
A73: 18230228 | B73: Digital Experience | D73: 0 | N73: 47907.55 | O73: ='Dig Exprnc_Gas'!M6 -> 0 | P73: 0 | Q73: 0 | S73: 47907.55 | T73: 0 | U73: 47907.55
A74: 18230271 | B74: Customer Digital Experience | D74: 0 | N74: 74702.63 | O74: ='Customer Dig Exprnc_Gas'!M6 -> 97650.91 | P74: 106541.34 | Q74: -8890.43 | R74: -0.08344582488 | S74: 172353.54 | T74: 212090.88 | U74: -39737.34 | V74: -0.1873599657
A75: 18230272 | B75: Cutomer Awareness Tools | D75: 0 | N75: 139231.68 | O75: =CustAwarTools_gas!M6 -> 159198.94 | P75: 170616.93 | Q75: -11417.99 | R75: -0.06692178789 | S75: 298430.62 | T75: 339523.86 | U75: -41093.24 | V75: -0.1210319652
A76: 18230662 | B76: PSE Marketplace | D76: 0 | N76: 331741.49 | O76: ='PSE Mktplc_gas'!M6 -> 294786.31 | P76: 291451.6 | Q76: 3334.71 | R76: 0.01144172823 | S76: 626527.8 | T76: 701283.8 | U76: -74756 | V76: -0.1065987835
A77: 18230224 | B77: Market Integration | N77: 289121.54 | O77: ='Mkt Intg Detail_PSWE_Gas'!M6 -> 396629.6 | P77: 329028.4 | Q77: 67601.2 | R77: 0.2054570365 | S77: 685751.14 | T77: 652820.4 | U77: 32930.74 | V77: 0.05044379741
A78: 18230225 | B78: Events | N78: 95982.57 | O78: ='Events Detail_PSCE_Gas'!M6 -> 87691.79 | P78: 116859.5 | Q78: -29167.71 | R78: -0.2495963957 | S78: 183674.36 | T78: 230333.2 | U78: -46658.84 | V78: -0.2025710579
B79: Total, Portfolio Support | N79: =SUM(N62:N78) -> 2114038.9 | O79: =SUM(O62:O72)+SUM(O77:O78) -> 2914698.77 | P79: 2993179.97 | Q79: -78481.2 | R79: -0.02622000708 | S79: 5028737.67 | T79: 5816538.24 | U79: -787800.57 | V79: -0.1354414838
A84: 18230264 | B84: Conservation Supply Curves | N84: 126037.18 | O84: ='Supp Crv Detail_R&C_gas'!M6 -> 88837.86 | P84: 127219.4 | Q84: -38381.54 | R84: -0.3016956533 | S84: 214875.04 | T84: 164648.4 | U84: 50226.64 | V84: 0.305053921
A85: 18230261 | B85: Strategic Planning | N85: 70057.68 | O85: ='Strat Pln Detail_R&C_Gas'!M6 -> 114121.87 | P85: 112119.3 | Q85: 2002.57 | R85: 0.01786106406 | S85: 184179.55 | T85: 220997.2 | U85: -36817.65 | V85: -0.1665978121
A86: 18230260 | B86: Market Research | N86: 29167.27 | O86: ='Mktg Rsch Detail_PS_gas'!M6 -> 25782.41 | P86: 34618 | Q86: -8835.59 | R86: -0.2552310937 | S86: 54949.68 | T86: 68210 | U86: -13260.32 | V86: -0.1944043395
A87: 18230263 | B87: Program Evaluation | N87: 286969.15 | O87: ='Eval Detail_R&C_Gas'!M6 -> 175568.11 | P87: 309991 | Q87: -134422.89 | R87: -0.4336348152 | S87: 462537.26 | T87: 618154.2 | U87: -155616.94 | V87: -0.2517445324
A88: 18230262 | B88: Biennial Consv. Aquisitn. Review | N88: 6963.28 | O88: ='BCAR Detail Gas'!M6 -> 8700 | P88: 7000 | Q88: 1700 | R88: 0.2428571429 | S88: 15663.28 | T88: 14000 | U88: 1663.28 | V88: 0.1188057143
A89: 18230229 | B89: Technology Evaluation | O89: ='TechEval Detail Gas'!L6 -> 22419 | P89: 0 | Q89: 22419 | S89: 22419 | T89: 0 | U89: 22419
B90: Total, Research & Compliance | N90: =SUM(N84:N89) -> 519194.56 | O90: =SUM(O84:O89) -> 435429.25 | P90: 590947.7 | Q90: -155518.45 | R90: -0.2631678742 | S90: 954623.81 | T90: 1086009.8 | U90: -131385.99 | V90: -0.1209804829
A95: 18230266 | B95: Demand Response Pilot | N95: 73600.28 | O95: =DmndResp_Detail_G249A_Gas!M6 -> 180000 | P95: 180000 | Q95: 0 | R95: 0 | S95: 253600.28 | T95: 360000 | U95: -106399.72 | V95: -0.2955547778
B96: Total, Other Energy Efficiency Programs | N96: =SUM(N95) -> 73600.28 | O96: =SUM(O95:O95) -> 180000 | P96: 180000 | Q96: 0 | R96: 0 | S96: 253600.28 | T96: 360000 | U96: -106399.72 | V96: -0.2955547778
B98: GRAND TOTAL, NATURAL GAS PROGRAMS | D98: =SUM(D40+D21) -> 3920707.35 | E98: =E90+E79+E57+E50+E40+E21 -> 3829765.117 | F98: 3460204.454 | G98: =E98-F98 -> 369560.663 | H98: =(E98-F98)/E98 -> 0.0964969526 | I98: =D98+E98 -> 7750472.467 | J98: 7039189.109 | K98: =I98-J98 -> 711283.3587 | L98: =(I98-J98)/I98 -> 0.0917729031 | N98: =SUM(N96+N90+N79+N57+N40+N21) -> 31215526.1 | O98: =O90+O79+O57+O50+O40+O21+O96 -> 35574178.5 | P98: 29071273.74 | Q98: =O98-P98 -> 6502904.76 | R98: 0.223688333 | S98: 66789704.6 | T98: 58230217.33 | U98: 8559487.27 | V98: 0.146993909

Sheet Portfolio--2025 Specific
G1: BCP 2025
F2: PSE Conservation Rider Savings Goals and Budgets
D3: =NOW() -> 2024-11-15T09:45:04.230
C4: Schedule Nos. (Unless otherwise noted, applies to both electric and gas) | D4: Program Name | G4: MWh Savings | H4: Electric Rider Budget | I4: Therm Savings | J4: Gas Rider Budget | K4: Total Rider Budget
D5: (All indented program or activity names are color-coded and comprise the totals of the above program or activity grouping.)
D6: Residential Energy Management
C7: 201 | D7: Low Income Weatherization | G7: ='2025 Sector View Elect'!S8/1000 -> 2150.056099 | H7: ='2025 Sector View Elect'!R8 -> 14610902.59 | I7: ='2025 Sector View Gas'!S8 -> 21727.67 | J7: ='2025 Sector View Gas'!R8 -> 1981021.18 | K7: =H7+J7 -> 16591923.77
C8: 214 | D8: Single Family Existing Subtotal | G8: =SUM(G9:G18) -> 69477.33278 | H8: =SUM(H9:H18) -> 21647986.84 | I8: =SUM(I9:I17) -> 2529383.897 | J8: =SUM(J9:J17) -> 19221723.16 | K8: =H8+J8 -> 40869710
E9: Residential lighting | G9: ='2025 Sector View Elect'!S15/1000 -> 0 | H9: ='2025 Sector View Elect'!R15 -> 0 | K9: 0
E10: Space heat | G10: ='2025 Sector View Elect'!S12/1000 -> 7325.321 | H10: ='2025 Sector View Elect'!R12 -> 6521010.46 | I10: ='2025 Sector View Gas'!S11 -> 447011.9 | J10: ='2025 Sector View Gas'!R11 -> 2696118.93 | K10: 9217129.39
E11: Water heat | G11: ='2025 Sector View Elect'!S10/1000 -> 637.46648 | H11: ='2025 Sector View Elect'!R10 -> 833654.57 | I11: ='2025 Sector View Gas'!S9 -> 61231.1 | J11: ='2025 Sector View Gas'!R9 -> 666299.08 | K11: 1499953.65
E12: Home Energy Assessment | G12: ='2025 Sector View Elect'!S9/1000 -> 0 | H12: ='2025 Sector View Elect'!R9 -> 0 | K12: =H12+J12 -> 0
E13: Home Appliances | G13: ='2025 Sector View Elect'!S14/1000 -> 755.32395 | H13: ='2025 Sector View Elect'!R14 -> 952325.71 | I13: ='2025 Sector View Gas'!S13 -> 4836 | J13: ='2025 Sector View Gas'!R13 -> 0 | K13: 952325.71
E14: Smart Thermostats | G14: ='2025 Sector View Elect'!S17/1000 -> 852.882 | H14: ='2025 Sector View Elect'!R17 -> 809883.22 | I14: ='2025 Sector View Gas'!S14 -> 195043.5 | J14: ='2025 Sector View Gas'!R14 -> 1735737.99 | K14: 2545621.21
E15: Weatherization | G15: ='2025 Sector View Elect'!S11/1000 -> 1956.799347 | H15: ='2025 Sector View Elect'!R11 -> 5156427.19 | I15: ='2025 Sector View Gas'!S10 -> 500077.2873 | J15: ='2025 Sector View Gas'!R10 -> 12395160.64 | K15: 17551587.83
E16: Home Energy Reports | G16: ='2025 Sector View Elect'!S16/1000 -> 43200 | H16: ='2025 Sector View Elect'!R16 -> 1429073.82 | I16: ='2025 Sector View Gas'!S15 -> 1244780.11 | J16: ='2025 Sector View Gas'!R15 -> 1188260.52 | K16: 2617334.34
E17: Midstream HVAC and Water Heat | G17: ='2025 Sector View Elect'!S13/1000 -> 14604.34 | H17: ='2025 Sector View Elect'!R13 -> 5925853.01 | I17: ='2025 Sector View Gas'!S12 -> 76404 | J17: ='2025 Sector View Gas'!R12 -> 540146 | K17: 6465999.01
E18: SF Electric Vehicle Chargers | G18: ='2025 Sector View Elect'!S18/1000 -> 145.2 | H18: ='2025 Sector View Elect'!R18 -> 19758.86 | K18: 19758.86
C19: 215 | D19: Single Family New Construction | G19: ='2025 Sector View Elect'!S19/1000+'2025 Sector View Elect'!S20/1000 -> 2226.728 | H19: ='2025 Sector View Elect'!R19+'2025 Sector View Elect'!R20 -> 2733142.5 | I19: =+'2025 Sector View Gas'!S16+'2025 Sector View Gas'!S17 -> 547.4 | J19: ='2025 Sector View Gas'!R16+'2025 Sector View Gas'!R17 -> 14800 | K19: 2747942.5
C20: 214 & 217 | D20: Moderate Income Residences | G20: ='2025 Sector View Elect'!S21 -> 0 | H20: ='2025 Sector View Elect'!R21 -> 77997.44 | I20: ='2025 Sector View Gas'!S18 -> 0 | J20: ='2025 Sector View Gas'!R18 -> 68573.98 | K20: 146571.42
C21: 217 | D21: Multifamily Retrofit | G21: =('2025 Sector View Elect'!S22/1000) -> 6755.191 | H21: ='2025 Sector View Elect'!R22 -> 10535709.45 | I21: ='2025 Sector View Gas'!S19 -> 17433.6 | J21: ='2025 Sector View Gas'!R19 -> 366523 | K21: 10902232.45
C22: 218 | D22: Multifamily New Construction | G22: ='2025 Sector View Elect'!S23/1000 -> 4000 | H22: ='2025 Sector View Elect'!R23 -> 2620384.81 | I22: ='2025 Sector View Gas'!S20 -> 3200 | J22: ='2025 Sector View Gas'!R20 -> 34020 | K22: 2654404.81
D23: Total, Residential Programs | G23: =G7+G8+SUM(G19:G22) -> 84609.30788 | H23: =H7+H8+SUM(H19:H22) -> 52226123.63 | I23: =I7+I8+SUM(I19:I22) -> 2572292.567 | J23: =J7+J8+SUM(J19:J22) -> 21686661.32 | K23: =H23+J23 -> 73912784.95
D25: Business Energy Management
C26: 250 | D26: Commercial / Industrial Retrofit | G26: =('2025 Sector View Elect'!S28/1000) -> 42500 | H26: ='2025 Sector View Elect'!R28 -> 21488991.75 | I26: ='2025 Sector View Gas'!S26 -> 389000 | J26: ='2025 Sector View Gas'!R26 -> 2796608.63 | K26: =H26+J26 -> 24285600.38
C27: 251 | D27: Commercial/Industrial New Construction | G27: ='2025 Sector View Elect'!S35/1000 -> 3000 | H27: ='2025 Sector View Elect'!R35 -> 1947448.37 | I27: ='2025 Sector View Gas'!S30 -> 20000 | J27: ='2025 Sector View Gas'!R30 -> 259194.64 | K27: 2206643.01
C28: 253 | D28: Commercial Strategic Energy Management | G28: ='2025 Sector View Elect'!S36/1000 -> 14744.5 | H28: ='2025 Sector View Elect'!R36 -> 2673874.07 | I28: ='2025 Sector View Gas'!S31 -> 383502 | J28: ='2025 Sector View Gas'!R31 -> 1001363.37 | K28: 3675237.44
C29: E258 | D29: Large Power User - Self Directed Program Subtotal | G29: =G30+G31 -> 6800 | H29: =H30+H31 -> 5636799.13 | K29: 5636799.13
C30: E258 | E30: 449 Customers | G30: ='2025 Sector View Elect'!S40/1000 -> 6000 | H30: ='2025 Sector View Elect'!R40 -> 4381515.89 | K30: 4381515.89
C31: E258 | E31: Non-449 Customers | G31: ='2025 Sector View Elect'!S41/1000 -> 800 | H31: ='2025 Sector View Elect'!R41 -> 1255283.24 | K31: 1255283.24
C32: 262 | D32: Commercial Rebates | G32: ='2025 Sector View Elect'!S42/1000 -> 31486.84906 | H32: ='2025 Sector View Elect'!R42 -> 16185684.05 | I32: ='2025 Sector View Gas'!S34 -> 464970.55 | J32: ='2025 Sector View Gas'!R34 -> 3049244.2 | K32: 19234928.25
D33: Subtotal, Business Programs | G33: =SUM(G26:G29)+SUM(G32:G32) -> 98531.34906 | H33: =SUM(H26:H29)+SUM(H32:H32) -> 47932797.37 | I33: =SUM(I26:I32) -> 1257472.55 | J33: =SUM(J26:J32) -> 7106410.84 | K33: 55039208.21
D35: Pilots With Uncertain Savings
C36: 249 | D36: Residential | G36: ='2025 Sector View Elect'!S53/1000 -> 0 | H36: ='2025 Sector View Elect'!R53 -> 0 | I36: ='2025 Sector View Gas'!S45 -> 0 | J36: ='2025 Sector View Gas'!R45 -> 0 | K36: =H36+J36 -> 0
C37: 249 | D37: Commercial | G37: ='2025 Sector View Elect'!S55/1000 -> 0 | H37: ='2025 Sector View Elect'!R55 -> 0 | I37: ='2025 Sector View Gas'!S48 -> 0 | J37: ='2025 Sector View Gas'!R48 -> 0 | K37: =H37+J37 -> 0
D38: Subtotal, Pilots | G38: =SUM(G36:G37) -> 0 | H38: =SUM(H36:H37) -> 0 | I38: =SUM(I36:I37) -> 0 | J38: =SUM(J36:J37) -> 0 | K38: =H38+J38 -> 0
D40: Regional Efficiency Programs
C41: E254 | D41: NW Energy Efficiency Alliance (NEEA) | G41: ='2025 Sector View Elect'!S62/1000 -> 18976.749 | H41: ='2025 Sector View Elect'!R62 -> 6687538.2 | K41: =H41+J41 -> 6687538.2
D42: NEEA Natural Gas Market Transformation | I42: ='2025 Sector View Gas'!S56 -> 0 | J42: ='2025 Sector View Gas'!R56 -> 2983459 | K42: =H42+J42 -> 2983459
C43: 219 | D43: Targeted DSM Pilot | G43: ='2025 Sector View Elect'!S63/1000 -> 0 | H43: ='2025 Sector View Elect'!R63 -> 580292.28 | I43: ='2025 Sector View Gas'!S55 -> 0 | J43: ='2025 Sector View Gas'!R55 -> 267519.32 | K43: =H43+J43 -> 847811.6
C44: E292 | D44: Generation, Transmission and Distribution | G44: ='2025 Sector View Elect'!S64/1000 -> 4403.843988 | H44: ='2025 Sector View Elect'!R64 -> 0 | K44: =H44+J44 -> 0
D45: Subtotal, Regional Programs | G45: =SUM(G41:G44) -> 23380.59299 | H45: =SUM(H41:H44) -> 7267830.48 | I45: =SUM(I41:I44) -> 0 | J45: =SUM(J41:J44) -> 3250978.32 | K45: =H45+J45 -> 10518808.8
D47: Energy Efficiency Portfolio Support
D48: Data and Systems Services | H48: ='2025 Sector View Elect'!R70 -> 1062878.74 | J48: ='2025 Sector View Gas'!R62 -> 168960.38 | K48: =H48+J48 -> 1231839.12
D49: Rebates Processing | H49: ='2025 Sector View Elect'!R71 -> 1110334.11 | J49: ='2025 Sector View Gas'!R63 -> 152299.04 | K49: 1262633.15
D50: Verification Team | H50: ='2025 Sector View Elect'!R72 -> 1100571.5 | J50: ='2025 Sector View Gas'!R64 -> 153558.65 | K50: 1254130.15
D51: Programs Support | H51: ='2025 Sector View Elect'!R73 -> 1238114.57 | J51: ='2025 Sector View Gas'!R65 -> 185005.63 | K51: 1423120.2
D52: Trade Ally Memberships | H52: ='2025 Sector View Elect'!R74 -> 174000 | J52: ='2025 Sector View Gas'!R66 -> 26000 | K52: 200000
D53: Trade Ally Network (revenue + cost) | H53: ='2025 Sector View Elect'!R75 -> -24018.1 | J53: ='2025 Sector View Gas'!R67 -> -16361.9 | K53: -40380
D54: Automated Benchmarking System | H54: ='2025 Sector View Elect'!R76 -> 2374307.82 | J54: ='2025 Sector View Gas'!R68 -> 734707.82 | K54: 3109015.64
D55: Energy Advisors | H55: ='2025 Sector View Elect'!R77 -> 1509836.89 | J55: ='2025 Sector View Gas'!R69 -> 241271.46 | K55: 1751108.35
D56: Public Participation - Equity | H56: ='2025 Sector View Elect'!R78 -> 43635 | J56: ='2025 Sector View Gas'!R70 -> 43635 | K56: =H56+J56 -> 87270
D57: Energy Efficient Communities | H57: ='2025 Sector View Elect'!R79 -> 1261822.45 | J57: ='2025 Sector View Gas'!R71 -> 189665.14 | K57: 1451487.59
D58: Customer Digital Services | H58: ='2025 Sector View Elect'!R80 -> 1530203.08 | J58: ='2025 Sector View Gas'!R72 -> 551636.16 | K58: =H58+J58 -> 2081839.24
D59: Market Integration | H59: ='2025 Sector View Elect'!R85 -> 2599476.52 | J59: ='2025 Sector View Gas'!R77 -> 396629.6 | K59: 2996106.12
D60: Events | H60: ='2025 Sector View Elect'!R86 -> 544845.58 | J60: ='2025 Sector View Gas'!R78 -> 87691.79 | K60: 632537.37
D61: Subtotal, Portfolio Support | H61: =SUM(H48:H60) -> 14526008.16 | J61: =SUM(J48:J60) -> 2914698.77 | K61: =H61+J61 -> 17440706.93
D63: Energy Efficiency Research & Compliance
D64: Conservation Supply Curves | H64: ='2025 Sector View Elect'!R92 -> 591697.45 | J64: ='2025 Sector View Gas'!R84 -> 88837.86 | K64: =H64+J64 -> 680535.31
D65: Strategic Planning | H65: ='2025 Sector View Elect'!R93 -> 778451.94 | J65: ='2025 Sector View Gas'!R85 -> 114121.87 | K65: 892573.81
D66: Market Research | H66: ='2025 Sector View Elect'!R94 -> 165616.58 | J66: ='2025 Sector View Gas'!R86 -> 25782.41 | K66: 191398.99
D67: Program Evaluation | H67: ='2025 Sector View Elect'!R95 -> 1558895.11 | J67: ='2025 Sector View Gas'!R87 -> 175568.11 | K67: 1734463.22
D68: Biennial Conservation Acquisition Review | H68: ='2025 Sector View Elect'!R96 -> 58000 | J68: ='2025 Sector View Gas'!R88 -> 8700 | K68: 66700
D69: Energy Efficient Technology Evaluation | H69: ='2025 Sector View Elect'!R97 -> 142176.02 | J69: ='2025 Sector View Gas'!R89 -> 22419 | K69: =H69+J69 -> 164595.02
D70: Subtotal, Research & Compliance | H70: =SUM(H64:H69) -> 3294837.1 | J70: =SUM(J64:J69) -> 435429.25 | K70: =H70+J70 -> 3730266.35
C72: Total Savings, Efficiency Programs Included in CE Calculations | G72: =G23+G33+G38+G45 -> 206521.2499 | H72: =H23+H33+H38+H45+H61+H70 -> 125247596.7 | I72: =I23+I33+I38+I45 -> 3829765.117 | J72: =J23+J33+J38+J45+J61+J70 -> 35394178.5 | K72: =H72+J72 -> 160641775.2
D74: Other Customer Programs
C75: E150 | D75: Net Metering | H75: ='2025 Sector View Elect'!R103 -> 4282165.07 | K75: =H75+J75 -> 4282165.07
C76: 249A | D76: Demand Response Pilot | H76: ='2025 Sector View Elect'!R104 -> 420000 | J76: ='2025 Sector View Gas'!R95 -> 180000 | K76: =H76+J76 -> 600000
C77: 272, 271 | D77: Demand Response Administration | H77: ='2025 Sector View Elect'!R105 -> 6469439.15 | K77: =H77+J77 -> 6469439.15
D78: Subtotal, Other Energy Efficiency Programs | H78: =SUM(H75:H77) -> 11171604.22 | J78: =SUM(J75:J76) -> 180000 | K78: =H78+J78 -> 11351604.22
D82: TOTAL UTILITY CONSERVATION PORTFOLIO | G82: =G72 -> 206521.2499 | H82: =H72+H78 -> 136419201 | I82: =I72 -> 3829765.117 | J82: =J72+J78 -> 35574178.5 | K82: =H82+J82 -> 171993379.5
D83: Savings and Budgets | G83: =G82/8760 -> 23.57548515
E85: Blue cells = use for 10% "info-only" calculation: | H85: =(H38+H61)/H72 -> 0.1159783384 | J85: =(J38+J61)/J72 -> 0.08234966578
F86: Add up all blue cells and divide by "Total, Efficiency Programs Included in CE Calculations" line.
F87: HER program costs excluded from "info-only" calculation because savings will be measured.
E89: Purple cells = use to indicate a reasonable amt. spent on EM&V (condition (6)(c)): | H89: =(H48+H50+SUM(H67:H68))/(H23+H33) -> 0.0377434712 | J89: =(J48+J50+SUM(J67:J68))/(J23+J33) -> 0.01760100962
E90: EM&V Budget (WAC 480-109-120(1)(b)(vi)(B)) | H90: =(H48+H50+SUM(H67:H68)) -> 3780345.35 | J90: =(J48+J50+SUM(J67:J68)) -> 506787.14
F91: (Line bh) Add up the sum of [Data & Systems Services + Program Evaluation + BECAR + Verification] purple cells and divide by the [Residential + Business] purple cells.
F92: (Line bi) Add up the sum of [Data & Systems Services + Program Evaluation + BECAR + Verification] purple cells

Sheet 2025 Sector View Elect
C2: Energy Efficiency 2025 Budgets and Aggregate Program Savings
C3: Sector View | I3: Please see category descriptions at the bottom of the sector table.
C4: Electric Programs
I5: Budget Category
B6: Workbook Name | C6: Schedule | D6: Comment | E6: Description (Blue, indented text indicates a sub-total value) | H6: Order Number (Click on the order# below to link to the detail page) | I6: Labor | J6: Overhead | K6: Marketing | L6: Employee/Office Expense | M6: Outside Services | N6: Materials | O6: Miscellaneous | P6: DBtC | Q6: Revenue | R6: Total Budget | S6: Total Savings kWh | U6: Comments
C7: Residential Energy Management
B8: LIW Detail_REM E201_Elec | C8: E201 | E8: Low Income Weatherization | H8: 18230611 | I8: =' LowIncWx Detail_REM E201_Elec'!D6 -> 175745 | J8: =' LowIncWx Detail_REM E201_Elec'!E6 -> 139365.79 | K8: =' LowIncWx Detail_REM E201_Elec'!F6 -> 97200 | L8: =' LowIncWx Detail_REM E201_Elec'!G6 -> 2000 | M8: =' LowIncWx Detail_REM E201_Elec'!H6 -> 22500 | N8: =' LowIncWx Detail_REM E201_Elec'!I6 -> 1350 | O8: =' LowIncWx Detail_REM E201_Elec'!J6 -> 0 | P8: =' LowIncWx Detail_REM E201_Elec'!K6 -> 14172741.8 | Q8: =' LowIncWx Detail_REM E201_Elec'!L6 -> 0 | R8: =' LowIncWx Detail_REM E201_Elec'!M6 -> 14610902.59 | S8: =' LowIncWx Detail_REM E201_Elec'!N6 -> 2150056.099
B9: HomePrint Detail_REM_E214 Elec | C9: E214 | E9: Home Energy Assessments | H9: 18230625 | I9: ='HmEnrgAsmt Detail_REM_E214 Elec'!D6 -> 0 | J9: ='HmEnrgAsmt Detail_REM_E214 Elec'!E6 -> 0 | K9: ='HmEnrgAsmt Detail_REM_E214 Elec'!F6 -> 0 | L9: ='HmEnrgAsmt Detail_REM_E214 Elec'!G6 -> 0 | M9: ='HmEnrgAsmt Detail_REM_E214 Elec'!H6 -> 0 | N9: ='HmEnrgAsmt Detail_REM_E214 Elec'!I6 -> 0 | O9: ='HmEnrgAsmt Detail_REM_E214 Elec'!J6 -> 0 | P9: ='HmEnrgAsmt Detail_REM_E214 Elec'!K6 -> 0 | Q9: ='HmEnrgAsmt Detail_REM_E214 Elec'!L6 -> 0 | R9: ='HmEnrgAsmt Detail_REM_E214 Elec'!M6 -> 0 | S9: ='HmEnrgAsmt Detail_REM_E214 Elec'!N6 -> 0
B10: WaterHea_Detail_REM_E214 Elec | C10: E214 | E10: SF Existing Water Heat | H10: 18230626 | I10: ='WaterHea_Detail_REM_E214 Elec'!D6 -> 113862 | J10: ='WaterHea_Detail_REM_E214 Elec'!E6 -> 90292.57 | K10: ='WaterHea_Detail_REM_E214 Elec'!F6 -> 154000 | L10: ='WaterHea_Detail_REM_E214 Elec'!G6 -> 1000 | M10: ='WaterHea_Detail_REM_E214 Elec'!H6 -> 130000 | N10: ='WaterHea_Detail_REM_E214 Elec'!I6 -> 0 | O10: ='WaterHea_Detail_REM_E214 Elec'!J6 -> 0 | P10: ='WaterHea_Detail_REM_E214 Elec'!K6 -> 344500 | Q10: ='WaterHea_Detail_REM_E214 Elec'!L6 -> 0 | R10: ='WaterHea_Detail_REM_E214 Elec'!M6 -> 833654.57 | S10: ='WaterHea_Detail_REM_E214 Elec'!N6 -> 637466.48
B11: Wx_Detail_REM E214 Elec | C11: E214 | E11: SF Existing Weatherization | H11: 18230627 | I11: ='Wx_Detail_REM E214 Elec'!D6 -> 133452 | J11: ='Wx_Detail_REM E214 Elec'!E6 -> 105827.44 | K11: ='Wx_Detail_REM E214 Elec'!F6 -> 112500 | L11: ='Wx_Detail_REM E214 Elec'!G6 -> 1200 | M11: ='Wx_Detail_REM E214 Elec'!H6 -> 65000 | N11: ='Wx_Detail_REM E214 Elec'!I6 -> 50500 | O11: ='Wx_Detail_REM E214 Elec'!J6 -> 0 | P11: ='Wx_Detail_REM E214 Elec'!K6 -> 4687947.75 | Q11: ='Wx_Detail_REM E214 Elec'!L6 -> 0 | R11: ='Wx_Detail_REM E214 Elec'!M6 -> 5156427.19 | S11: ='Wx_Detail_REM E214 Elec'!N6 -> 1956799.347
B12: SpcHeat Detail_REM_E214 Elec | C12: E214 | E12: SF Existing Space Heat | H12: 18230628 | I12: ='SpcHeat Detail_REM_E214 Elec'!D6 -> 117906 | J12: ='SpcHeat Detail_REM_E214 Elec'!E6 -> 93499.46 | K12: ='SpcHeat Detail_REM_E214 Elec'!F6 -> 270000 | L12: ='SpcHeat Detail_REM_E214 Elec'!G6 -> 1200 | M12: ='SpcHeat Detail_REM_E214 Elec'!H6 -> 40000 | N12: ='SpcHeat Detail_REM_E214 Elec'!I6 -> 2000 | O12: ='SpcHeat Detail_REM_E214 Elec'!J6 -> 0 | P12: ='SpcHeat Detail_REM_E214 Elec'!K6 -> 5996405 | Q12: ='SpcHeat Detail_REM_E214 Elec'!L6 -> 0 | R12: ='SpcHeat Detail_REM_E214 Elec'!M6 -> 6521010.46 | S12: ='SpcHeat Detail_REM_E214 Elec'!N6 -> 7325321
C13: E214 | E13: Residential Midstream HVAC and Water Heat | H13: 18230162 | I13: ='HVAC&WH Mdsrm_E214_Elec'!D6 -> 129415 | J13: ='HVAC&WH Mdsrm_E214_Elec'!E6 -> 102626.1 | K13: ='HVAC&WH Mdsrm_E214_Elec'!F6 -> 0 | L13: ='HVAC&WH Mdsrm_E214_Elec'!G6 -> 1500 | M13: ='HVAC&WH Mdsrm_E214_Elec'!H6 -> 1300296.91 | N13: ='HVAC&WH Mdsrm_E214_Elec'!I6 -> 500 | O13: ='HVAC&WH Mdsrm_E214_Elec'!J6 -> 0 | P13: ='HVAC&WH Mdsrm_E214_Elec'!K6 -> 4391515 | Q13: ='HVAC&WH Mdsrm_E214_Elec'!L6 -> 0 | R13: ='HVAC&WH Mdsrm_E214_Elec'!M6 -> 5925853.01 | S13: ='HVAC&WH Mdsrm_E214_Elec'!N6 -> 14604340
B14: HmAppplc_Detail_REM_E214 Elec | C14: E214 | E14: Home Appliances | H14: 18230434 | I14: ='HmAppplc_Detail_REM_E214 Elec'!D6 -> 58185 | J14: ='HmAppplc_Detail_REM_E214 Elec'!E6 -> 46140.71 | K14: ='HmAppplc_Detail_REM_E214 Elec'!F6 -> 72000 | L14: ='HmAppplc_Detail_REM_E214 Elec'!G6 -> 1000 | M14: ='HmAppplc_Detail_REM_E214 Elec'!H6 -> 255000 | N14: ='HmAppplc_Detail_REM_E214 Elec'!I6 -> 0 | O14: ='HmAppplc_Detail_REM_E214 Elec'!J6 -> 0 | P14: ='HmAppplc_Detail_REM_E214 Elec'!K6 -> 520000 | Q14: ='HmAppplc_Detail_REM_E214 Elec'!L6 -> 0 | R14: ='HmAppplc_Detail_REM_E214 Elec'!M6 -> 952325.71 | S14: ='HmAppplc_Detail_REM_E214 Elec'!N6 -> 755323.95
B15: Lighting Detail_REM_E214 Elec | C15: E214 | E15: Energy Efficient Lighting Services | H15: 18230440 | I15: ='Lighting Detail_REM_E214 Elec'!D6 -> 0 | J15: ='Lighting Detail_REM_E214 Elec'!E6 -> 0 | K15: ='Lighting Detail_REM_E214 Elec'!F6 -> 0 | L15: ='Lighting Detail_REM_E214 Elec'!G6 -> 0 | M15: ='Lighting Detail_REM_E214 Elec'!H6 -> 0 | N15: ='Lighting Detail_REM_E214 Elec'!I6 -> 0 | O15: ='Lighting Detail_REM_E214 Elec'!J6 -> 0 | P15: ='Lighting Detail_REM_E214 Elec'!K6 -> 0 | Q15: ='Lighting Detail_REM_E214 Elec'!L6 -> 0 | R15: ='Lighting Detail_REM_E214 Elec'!M6 -> 0 | S15: ='Lighting Detail_REM_E214 Elec'!N6 -> 0
B16: HER Detail_REM_E214 elec. | C16: E214 | E16: Home Energy Reports | H16: 18230461 | I16: ='HER Detail_REM_E214 elec.'!D6 -> 57495 | J16: ='HER Detail_REM_E214 elec.'!E6 -> 45593.54 | K16: ='HER Detail_REM_E214 elec.'!F6 -> 0 | L16: ='HER Detail_REM_E214 elec.'!G6 -> 1450 | M16: ='HER Detail_REM_E214 elec.'!H6 -> 665735.28 | N16: ='HER Detail_REM_E214 elec.'!I6 -> 0 | O16: ='HER Detail_REM_E214 elec.'!J6 -> 0 | P16: ='HER Detail_REM_E214 elec.'!K6 -> 658800 | Q16: ='HER Detail_REM_E214 elec.'!L6 -> 0 | R16: ='HER Detail_REM_E214 elec.'!M6 -> 1429073.82 | S16: ='HER Detail_REM_E214 elec.'!N6 -> 43200000
B17: Web Tstat Detail_REM E214 Elec | C17: E214 | E17: Smart Thermostats | H17: 18230023 | I17: ='Web Tstat Detail_REM E214 Elec'!D6 -> 59026 | J17: ='Web Tstat Detail_REM E214 Elec'!E6 -> 46807.62 | K17: ='Web Tstat Detail_REM E214 Elec'!F6 -> 22000 | L17: ='Web Tstat Detail_REM E214 Elec'!G6 -> 100 | M17: ='Web Tstat Detail_REM E214 Elec'!H6 -> 73419.6 | N17: ='Web Tstat Detail_REM E214 Elec'!I6 -> 1000 | O17: ='Web Tstat Detail_REM E214 Elec'!J6 -> 0 | P17: ='Web Tstat Detail_REM E214 Elec'!K6 -> 607530 | Q17: ='Web Tstat Detail_REM E214 Elec'!L6 -> 0 | R17: ='Web Tstat Detail_REM E214 Elec'!M6 -> 809883.22 | S17: ='Web Tstat Detail_REM E214 Elec'!N6 -> 852882
C18: E214 | E18: Electric Vehicle Chargers | H18: 18230016 | I18: ='EV Charg_REM_E214 elec'!D6 -> 11020 | J18: ='EV Charg_REM_E214 elec'!E6 -> 8738.86 | K18: ='EV Charg_REM_E214 elec'!F6 -> 0 | L18: ='EV Charg_REM_E214 elec'!G6 -> 0 | M18: ='EV Charg_REM_E214 elec'!H6 -> 0 | N18: ='EV Charg_REM_E214 elec'!I6 -> 0 | O18: ='EV Charg_REM_E214 elec'!J6 -> 0 | P18: ='EV Charg_REM_E214 elec'!K6 -> 0 | Q18: ='EV Charg_REM_E214 elec'!L6 -> 0 | R18: ='EV Charg_REM_E214 elec'!M6 -> 19758.86 | S18: ='EV Charg_REM_E214 elec'!N6 -> 145200
B19: SFNC Detail_REM E215 Elec | C19: E215 | E19: Single Family New Construction | H19: 18230405 | I19: ='SFNC Detail_REM E215 Elec'!D6 -> 37825 | J19: ='SFNC Detail_REM E215 Elec'!E6 -> 29995.23 | K19: ='SFNC Detail_REM E215 Elec'!F6 -> 30000 | L19: ='SFNC Detail_REM E215 Elec'!G6 -> 0 | M19: ='SFNC Detail_REM E215 Elec'!H6 -> 597391.08 | N19: ='SFNC Detail_REM E215 Elec'!I6 -> 0 | O19: ='SFNC Detail_REM E215 Elec'!J6 -> 0 | P19: ='SFNC Detail_REM E215 Elec'!K6 -> 1710000 | Q19: ='SFNC Detail_REM E215 Elec'!L6 -> 0 | R19: ='SFNC Detail_REM E215 Elec'!M6 -> 2405211.31 | S19: ='SFNC Detail_REM E215 Elec'!N6 -> 2040600
B20: MfgHmNew Detail_REM E215 Elec | C20: E215 | E20: Manufactured Home New Construction | H20: 18230071 | I20: ='NCMfgHome Detail_REM E215 Elec'!D6 -> 15801 | J20: ='NCMfgHome Detail_REM E215 Elec'!E6 -> 12530.19 | K20: ='NCMfgHome Detail_REM E215 Elec'!F6 -> 6000 | L20: ='NCMfgHome Detail_REM E215 Elec'!G6 -> 0 | M20: ='NCMfgHome Detail_REM E215 Elec'!H6 -> 60000 | N20: ='NCMfgHome Detail_REM E215 Elec'!I6 -> 0 | O20: ='NCMfgHome Detail_REM E215 Elec'!J6 -> 0 | P20: ='NCMfgHome Detail_REM E215 Elec'!K6 -> 233600 | Q20: ='NCMfgHome Detail_REM E215 Elec'!L6 -> 0 | R20: ='NCMfgHome Detail_REM E215 Elec'!M6 -> 327931.19 | S20: ='NCMfgHome Detail_REM E215 Elec'!N6 -> 186128
B21: Efficiency Boost E217 Elec | C21: E214 & 217 | E21: Efficiency Boost | H21: 18230751 | I21: ='Efficiency Boost_E217 Elec'!D6 -> 23423 | J21: ='Efficiency Boost_E217 Elec'!E6 -> 18574.44 | K21: ='Efficiency Boost_E217 Elec'!F6 -> 36000 | L21: ='Efficiency Boost_E217 Elec'!G6 -> 0 | M21: ='Efficiency Boost_E217 Elec'!H6 -> 0 | N21: ='Efficiency Boost_E217 Elec'!I6 -> 0 | O21: ='Efficiency Boost_E217 Elec'!J6 -> 0 | P21: ='Efficiency Boost_E217 Elec'!K6 -> 0 | Q21: ='Efficiency Boost_E217 Elec'!L6 -> 0 | R21: ='Efficiency Boost_E217 Elec'!M6 -> 77997.44 | S21: ='Efficiency Boost_E217 Elec'!N6 -> 0
B22: MF Retr Detail_REM E217 Elec | C22: E217 | E22: Multifamily Retrofit | H22: 18230407 | I22: ='MF Retr Detail_REM E217 Elec'!D6 -> 123120 | J22: ='MF Retr Detail_REM E217 Elec'!E6 -> 97634.16 | K22: ='MF Retr Detail_REM E217 Elec'!F6 -> 30000 | L22: ='MF Retr Detail_REM E217 Elec'!G6 -> 1500 | M22: ='MF Retr Detail_REM E217 Elec'!H6 -> 1066911.46 | N22: ='MF Retr Detail_REM E217 Elec'!I6 -> 0 | O22: ='MF Retr Detail_REM E217 Elec'!J6 -> 0 | P22: ='MF Retr Detail_REM E217 Elec'!K6 -> 9216543.83 | Q22: ='MF Retr Detail_REM E217 Elec'!L6 -> 0 | R22: ='MF Retr Detail_REM E217 Elec'!M6 -> 10535709.45 | S22: ='MF Retr Detail_REM E217 Elec'!N6 -> 6755191
B23: MFNC Detail_REM E218 Elec | C23: E218 | E23: Multi-Family New Construction | H23: 18230486 | I23: ='MFNC Detail_REM E218 Elec'!D6 -> 109484 | J23: ='MFNC Detail_REM E218 Elec'!E6 -> 86820.81 | K23: ='MFNC Detail_REM E218 Elec'!F6 -> 20000 | L23: ='MFNC Detail_REM E218 Elec'!G6 -> 0 | M23: ='MFNC Detail_REM E218 Elec'!H6 -> 535080 | N23: ='MFNC Detail_REM E218 Elec'!I6 -> 0 | O23: ='MFNC Detail_REM E218 Elec'!J6 -> 0 | P23: ='MFNC Detail_REM E218 Elec'!K6 -> 1869000 | Q23: ='MFNC Detail_REM E218 Elec'!L6 -> 0 | R23: ='MFNC Detail_REM E218 Elec'!M6 -> 2620384.81 | S23: ='MFNC Detail_REM E218 Elec'!N6 -> 4000000
G24: Total, Residential Energy Management | I24: =SUM(I8:I23) -> 1165759 | J24: 924446.92 | K24: 849700 | L24: 10950 | M24: 4811334.33 | N24: 55350 | O24: 0 | P24: 44408583.38 | Q24: 0 | R24: 52226123.63 | S24: 84609307.88
C27: Business Energy Managment
E28: Commercial/Industrial Retrofit | I28: =SUM(I29:I34) -> 2597165 | J28: 2065551.85 | K28: 107000 | L28: 91000 | M28: 2099774.9 | N28: 23500 | O28: 115000 | P28: 14390000 | Q28: 0 | R28: =SUM(R29:R34) -> 21488991.75 | S28: =SUM(S29:S34) -> 42500000
B29: CI Retr Detail_BEM E250 Elec | C29: E250 | E29: Retrofit Custom Grants | H29: 18230711 | I29: ='CI Retr Detail_BEM E250 Elec'!D6 -> 951563 | J29: ='CI Retr Detail_BEM E250 Elec'!E6 -> 754589.46 | K29: ='CI Retr Detail_BEM E250 Elec'!F6 -> 20000 | L29: ='CI Retr Detail_BEM E250 Elec'!G6 -> 25000 | M29: ='CI Retr Detail_BEM E250 Elec'!H6 -> 245000 | N29: ='CI Retr Detail_BEM E250 Elec'!I6 -> 3500 | O29: ='CI Retr Detail_BEM E250 Elec'!J6 -> 107000 | P29: ='CI Retr Detail_BEM E250 Elec'!K6 -> 3400000 | Q29: ='CI Retr Detail_BEM E250 Elec'!L6 -> 0 | R29: ='CI Retr Detail_BEM E250 Elec'!M6 -> 5506652.46 | S29: ='CI Retr Detail_BEM E250 Elec'!N6 -> 8000000
B30: BusLgtGrants_BEM E250 Elect | C30: E250 | E30: Custom Lighting Grants | H30: 18230724 | I30: ='BusLgtGrants_BEM E250 Elect'!D6 -> 852980 | J30: ='BusLgtGrants_BEM E250 Elect'!E6 -> 676413.14 | K30: ='BusLgtGrants_BEM E250 Elect'!F6 -> 25000 | L30: ='BusLgtGrants_BEM E250 Elect'!G6 -> 34000 | M30: ='BusLgtGrants_BEM E250 Elect'!H6 -> 105000 | N30: ='BusLgtGrants_BEM E250 Elect'!I6 -> 20000 | O30: ='BusLgtGrants_BEM E250 Elect'!J6 -> 0 | P30: ='BusLgtGrants_BEM E250 Elect'!K6 -> 5460000 | Q30: ='BusLgtGrants_BEM E250 Elect'!L6 -> 0 | R30: ='BusLgtGrants_BEM E250 Elect'!M6 -> 7173393.14 | S30: ='BusLgtGrants_BEM E250 Elect'!N6 -> 15600000
B31: CI Indust_BEM_E250_Elec | C31: E250 | E31: Industrial Programs | H31: 18231137 | I31: ='CI Indust_BEM_E250_Elec'!D6 -> 621199 | J31: ='CI Indust_BEM_E250_Elec'!E6 -> 492610.81 | K31: ='CI Indust_BEM_E250_Elec'!F6 -> 30000 | L31: ='CI Indust_BEM_E250_Elec'!G6 -> 24000 | M31: ='CI Indust_BEM_E250_Elec'!H6 -> 110000 | N31: ='CI Indust_BEM_E250_Elec'!I6 -> 0 | O31: ='CI Indust_BEM_E250_Elec'!J6 -> 0 | P31: ='CI Indust_BEM_E250_Elec'!K6 -> 2335000 | Q31: ='CI Indust_BEM_E250_Elec'!L6 -> 0 | R31: ='CI Indust_BEM_E250_Elec'!M6 -> 3612809.81 | S31: ='CI Indust_BEM_E250_Elec'!N6 -> 7500000
C32: E250 | E32: Clean Buildings Accelerator | H32: 18230013 | I32: ='Cln Build Accel_E250_Elec'!D6 -> 110386 | J32: ='Cln Build Accel_E250_Elec'!E6 -> 87536.1 | K32: ='Cln Build Accel_E250_Elec'!F6 -> 32000 | L32: ='Cln Build Accel_E250_Elec'!G6 -> 8000 | M32: ='Cln Build Accel_E250_Elec'!H6 -> 407000 | N32: ='Cln Build Accel_E250_Elec'!I6 -> 0 | O32: ='Cln Build Accel_E250_Elec'!J6 -> 8000 | P32: ='Cln Build Accel_E250_Elec'!K6 -> 0 | Q32: ='Cln Build Accel_E250_Elec'!L6 -> 0 | R32: ='Cln Build Accel_E250_Elec'!M6 -> 652922.1 | S32: ='Cln Build Accel_E250_Elec'!N6 -> 1300000
C33: E250 | E33: Telecommunications Efficiency | H33: 18239043 | I33: ='Telecom Effic_E250_Elec'!D6 -> 45550 | J33: ='Telecom Effic_E250_Elec'!E6 -> 36121.15 | K33: ='Telecom Effic_E250_Elec'!F6 -> 0 | L33: ='Telecom Effic_E250_Elec'!G6 -> 0 | M33: ='Telecom Effic_E250_Elec'!H6 -> 332774.9 | N33: ='Telecom Effic_E250_Elec'!I6 -> 0 | O33: ='Telecom Effic_E250_Elec'!J6 -> 0 | P33: ='Telecom Effic_E250_Elec'!K6 -> 3195000 | Q33: ='Telecom Effic_E250_Elec'!L6 -> 0 | R33: ='Telecom Effic_E250_Elec'!M6 -> 3609446.05 | S33: ='Telecom Effic_E250_Elec'!N6 -> 7100000
C34: E250 | E34: Virtual Commissioning | H34: 18230015 | I34: ='Virt Commiss_E250_Elec'!D6 -> 15487 | J34: ='Virt Commiss_E250_Elec'!E6 -> 18281.19 | K34: ='Virt Commiss_E250_Elec'!F6 -> 0 | L34: ='Virt Commiss_E250_Elec'!G6 -> 0 | M34: ='Virt Commiss_E250_Elec'!H6 -> 900000 | N34: ='Virt Commiss_E250_Elec'!I6 -> 0 | O34: ='Virt Commiss_E250_Elec'!J6 -> 0 | P34: ='Virt Commiss_E250_Elec'!K6 -> 0 | Q34: ='Virt Commiss_E250_Elec'!L6 -> 0 | R34: ='Virt Commiss_E250_Elec'!M6 -> 933768.19 | S34: ='Virt Commiss_E250_Elec'!N6 -> 3000000
B35: CI NC Detail_BEM E251 Elec | C35: E251 | E35: Commercial/Industrial New Construction | H35: 18230715 | I35: ='CI NC Detail_BEM E251 Elec'!D6 -> 265462 | J35: ='CI NC Detail_BEM E251 Elec'!E6 -> 210511.37 | K35: ='CI NC Detail_BEM E251 Elec'!F6 -> 10500 | L35: ='CI NC Detail_BEM E251 Elec'!G6 -> 4725 | M35: ='CI NC Detail_BEM E251 Elec'!H6 -> 35000 | N35: ='CI NC Detail_BEM E251 Elec'!I6 -> 5250 | O35: ='CI NC Detail_BEM E251 Elec'!J6 -> 21000 | P35: ='CI NC Detail_BEM E251 Elec'!K6 -> 1395000 | Q35: ='CI NC Detail_BEM E251 Elec'!L6 -> 0 | R35: ='CI NC Detail_BEM E251 Elec'!M6 -> 1947448.37 | S35: ='CI NC Detail_BEM E251 Elec'!N6 -> 3000000
E36: Commercial Strategic Energy Management | I36: =SUM(I37:I38) -> 728618 | J36: =SUM(J37:J38) -> 577794.07 | K36: 4200 | L36: 19500 | M36: 224762 | N36: 2500 | O36: 1500 | P36: 1115000 | Q36: 0 | R36: 2673874.07 | S36: 14744500
B37: RCM Detail_BEM E253 Elec | C37: E253 | E37: SEM | H37: 18230723 | I37: ='RCM Detail_BEM E253 Elec'!D6 -> 677588 | J37: ='RCM Detail_BEM E253 Elec'!E6 -> 537327.28 | K37: ='RCM Detail_BEM E253 Elec'!F6 -> 3500 | L37: ='RCM Detail_BEM E253 Elec'!G6 -> 16500 | M37: ='RCM Detail_BEM E253 Elec'!H6 -> 224762 | N37: ='RCM Detail_BEM E253 Elec'!I6 -> 2500 | O37: ='RCM Detail_BEM E253 Elec'!J6 -> 1500 | P37: ='RCM Detail_BEM E253 Elec'!K6 -> 640000 | Q37: ='RCM Detail_BEM E253 Elec'!L6 -> 0 | R37: ='RCM Detail_BEM E253 Elec'!M6 -> 2103677.28 | S37: ='RCM Detail_BEM E253 Elec'!N6 -> 13744500
C38: E253 | E38: Pay For Performance | H38: 18236102 | I38: ='Pay For Perf_E253_Elec'!D6 -> 51030 | J38: ='Pay For Perf_E253_Elec'!E6 -> 40466.79 | K38: ='Pay For Perf_E253_Elec'!F6 -> 700 | L38: ='Pay For Perf_E253_Elec'!G6 -> 3000 | M38: ='Pay For Perf_E253_Elec'!H6 -> 0 | N38: ='Pay For Perf_E253_Elec'!I6 -> 0 | O38: ='Pay For Perf_E253_Elec'!J6 -> 0 | P38: ='Pay For Perf_E253_Elec'!K6 -> 475000 | Q38: ='Pay For Perf_E253_Elec'!L6 -> 0 | R38: ='Pay For Perf_E253_Elec'!M6 -> 570196.79 | S38: ='Pay For Perf_E253_Elec'!N6 -> 1000000
E39: High Voltage, Self-Directed | I39: =SUM(I40:I41) -> 221753 | J39: =SUM(J40:J41) -> 175850.13 | K39: 0 | L39: 0 | M39: 0 | N39: 0 | O39: 0 | P39: 5239196 | Q39: =SUM(Q40:Q41) -> 0 | R39: 5636799.13 | S39: =SUM(S40:S41) -> 6800000
B40: LPSD_Detail_449_Elec | C40: E258 | E40: 449 Customers | H40: 18230720 | I40: =LPSD_Detail_449_Elec!D6 -> 127730 | J40: =LPSD_Detail_449_Elec!E6 -> 101289.89 | K40: =LPSD_Detail_449_Elec!F6 -> 0 | L40: =LPSD_Detail_449_Elec!G6 -> 0 | M40: =LPSD_Detail_449_Elec!H6 -> 0 | N40: =LPSD_Detail_449_Elec!I6 -> 0 | O40: =LPSD_Detail_449_Elec!J6 -> 0 | P40: =LPSD_Detail_449_Elec!K6 -> 4152496 | Q40: =LPSD_Detail_449_Elec!L6 -> 0 | R40: =LPSD_Detail_449_Elec!M6 -> 4381515.89 | S40: =LPSD_Detail_449_Elec!N6 -> 6000000
B41: LPSD_Detail_Non-449 Elec | C41: E258 | E41: Non-449 Customers | H41: 18230721 | I41: ='LPSD_Detail_Non-449 Elec'!D6 -> 94023 | J41: ='LPSD_Detail_Non-449 Elec'!E6 -> 74560.24 | K41: ='LPSD_Detail_Non-449 Elec'!F6 -> 0 | L41: ='LPSD_Detail_Non-449 Elec'!G6 -> 0 | M41: ='LPSD_Detail_Non-449 Elec'!H6 -> 0 | N41: ='LPSD_Detail_Non-449 Elec'!I6 -> 0 | O41: ='LPSD_Detail_Non-449 Elec'!J6 -> 0 | P41: ='LPSD_Detail_Non-449 Elec'!K6 -> 1086700 | Q41: ='LPSD_Detail_Non-449 Elec'!L6 -> 0 | R41: ='LPSD_Detail_Non-449 Elec'!M6 -> 1255283.24 | S41: ='LPSD_Detail_Non-449 Elec'!N6 -> 800000
C42: E262 | E42: Business Rebates | I42: =SUM(I43:I48) -> 523866 | J42: 415425.75 | K42: 301420 | L42: 17950 | M42: 2371281.87 | N42: 4100 | O42: 2000 | P42: 12549640.43 | Q42: 0 | R42: 16185684.05 | S42: 31486849.06
B43: Comm Lgt Mkdn_E262 Elect | C43: E262 | E43: Lighting to Go--also referred to as Business Lighting Markdowns | H43: 18230714 | I43: ='Comm Lgt Mkdn_E262 Elect'!D6 -> 113002 | J43: ='Comm Lgt Mkdn_E262 Elect'!E6 -> 89610.59 | K43: ='Comm Lgt Mkdn_E262 Elect'!F6 -> 10000 | L43: ='Comm Lgt Mkdn_E262 Elect'!G6 -> 4000 | M43: ='Comm Lgt Mkdn_E262 Elect'!H6 -> 309163.75 | N43: ='Comm Lgt Mkdn_E262 Elect'!I6 -> 1000 | O43: ='Comm Lgt Mkdn_E262 Elect'!J6 -> 1000 | P43: ='Comm Lgt Mkdn_E262 Elect'!K6 -> 2031735.42 | Q43: ='Comm Lgt Mkdn_E262 Elect'!L6 -> 0 | R43: ='Comm Lgt Mkdn_E262 Elect'!M6 -> 2559511.76 | S43: ='Comm Lgt Mkdn_E262 Elect'!N6 -> 13500000
B44: Comm Kit-Laund_E262 Elect | C44: E262 | E44: Commercial Foodservice | H44: 18230716 | I44: ='Comm Kit-Laund_E262 Elect'!D6 -> 6612 | J44: ='Comm Kit-Laund_E262 Elect'!E6 -> 5243.32 | K44: ='Comm Kit-Laund_E262 Elect'!F6 -> 12520 | L44: ='Comm Kit-Laund_E262 Elect'!G6 -> 950 | M44: ='Comm Kit-Laund_E262 Elect'!H6 -> 369952 | N44: ='Comm Kit-Laund_E262 Elect'!I6 -> 100 | O44: ='Comm Kit-Laund_E262 Elect'!J6 -> 0 | P44: ='Comm Kit-Laund_E262 Elect'!K6 -> 653463 | Q44: ='Comm Kit-Laund_E262 Elect'!L6 -> 0 | R44: ='Comm Kit-Laund_E262 Elect'!M6 -> 1048840.32 | S44: ='Comm Kit-Laund_E262 Elect'!N6 -> 1162661
B45: Comm HVAC_E262 Elect | C45: E262 | E45: Commercial HVAC Rebates | H45: 18230718 | I45: ='Comm HVAC_E262 Elect'!D6 -> 101413 | J45: ='Comm HVAC_E262 Elect'!E6 -> 80420.51 | K45: ='Comm HVAC_E262 Elect'!F6 -> 64200 | L45: ='Comm HVAC_E262 Elect'!G6 -> 4000 | M45: ='Comm HVAC_E262 Elect'!H6 -> 0 | N45: ='Comm HVAC_E262 Elect'!I6 -> 1000 | O45: ='Comm HVAC_E262 Elect'!J6 -> 0 | P45: ='Comm HVAC_E262 Elect'!K6 -> 360100 | Q45: ='Comm HVAC_E262 Elect'!L6 -> 0 | R45: ='Comm HVAC_E262 Elect'!M6 -> 611133.51 | S45: ='Comm HVAC_E262 Elect'!N6 -> 684738.06
C46: E262 | E46: Commercial Midstream HVAC and Water Heat | H46: 18230524 | I46: ='Comm Midstream_E262 Elect'!D6 -> 62863 | J46: ='Comm Midstream_E262 Elect'!E6 -> 49850.36 | K46: ='Comm Midstream_E262 Elect'!F6 -> 0 | L46: ='Comm Midstream_E262 Elect'!G6 -> 1500 | M46: ='Comm Midstream_E262 Elect'!H6 -> 67794.3 | N46: ='Comm Midstream_E262 Elect'!I6 -> 500 | O46: ='Comm Midstream_E262 Elect'!J6 -> 0 | P46: ='Comm Midstream_E262 Elect'!K6 -> 409500 | Q46: ='Comm Midstream_E262 Elect'!L6 -> 0 | R46: ='Comm Midstream_E262 Elect'!M6 -> 592007.66 | S46: ='Comm Midstream_E262 Elect'!N6 -> 639450
B47: Sm Bus DI_E262 Elect | C47: E262 | E47: Small Business Direct Install | H47: 18230570 | I47: ='Sm Bus DI_E262 Elect'!D6 -> 122194 | J47: ='Sm Bus DI_E262 Elect'!E6 -> 96899.84 | K47: ='Sm Bus DI_E262 Elect'!F6 -> 129500 | L47: ='Sm Bus DI_E262 Elect'!G6 -> 6000 | M47: ='Sm Bus DI_E262 Elect'!H6 -> 1624371.82 | N47: ='Sm Bus DI_E262 Elect'!I6 -> 1000 | O47: ='Sm Bus DI_E262 Elect'!J6 -> 1000 | P47: ='Sm Bus DI_E262 Elect'!K6 -> 6490868.17 | Q47: ='Sm Bus DI_E262 Elect'!L6 -> 0 | R47: ='Sm Bus DI_E262 Elect'!M6 -> 8471833.83 | S47: ='Sm Bus DI_E262 Elect'!N6 -> 13000000
C48: E262 | E48: Lodging Rebates | H48: 18230569 | I48: ='Lodging Rbats_E262 Elec'!D6 -> 117782 | J48: ='Lodging Rbats_E262 Elec'!E6 -> 93401.13 | K48: ='Lodging Rbats_E262 Elec'!F6 -> 85200 | L48: ='Lodging Rbats_E262 Elec'!G6 -> 1500 | M48: ='Lodging Rbats_E262 Elec'!H6 -> 0 | N48: ='Lodging Rbats_E262 Elec'!I6 -> 500 | O48: ='Lodging Rbats_E262 Elec'!J6 -> 0 | P48: ='Lodging Rbats_E262 Elec'!K6 -> 2603973.84 | Q48: ='Lodging Rbats_E262 Elec'!L6 -> 0 | R48: ='Lodging Rbats_E262 Elec'!M6 -> 2902356.97 | S48: ='Lodging Rbats_E262 Elec'!N6 -> 2500000
G49: Total, Business Energy Management | I49: =SUM(I29:I36)+I39+I42 -> 4336864 | J49: 3445133.17 | K49: 423120 | L49: 133175 | M49: 4730818.77 | N49: 35350 | O49: 139500 | P49: 34688836.43 | Q49: 0 | R49: 47932797.37 | S49: =SUM(S29:S36)+S39+S97+S42 -> 98531349.06
C52: Pilots With Uncertain Savings
B53: REM Pilots E249 Elec | C53: E249 | E53: Residential Pilots | I53: =SUM(I54:I54) -> 0 | J53: 0 | K53: 0 | L53: 0 | M53: 0 | N53: 0 | O53: 0 | P53: 0 | Q53: 0 | R53: 0 | S53: 0
C54: E249 | E54: Single Family AMI Engagement | H54: 18230749 | I54: ='SF AMI Engmt Pilot_Elec'!D6 -> 0 | J54: ='SF AMI Engmt Pilot_Elec'!E6 -> 0 | K54: ='SF AMI Engmt Pilot_Elec'!F6 -> 0 | L54: ='SF AMI Engmt Pilot_Elec'!G6 -> 0 | M54: ='SF AMI Engmt Pilot_Elec'!H6 -> 0 | N54: ='SF AMI Engmt Pilot_Elec'!I6 -> 0 | O54: ='SF AMI Engmt Pilot_Elec'!J6 -> 0 | P54: ='SF AMI Engmt Pilot_Elec'!K6 -> 0 | Q54: ='SF AMI Engmt Pilot_Elec'!L6 -> 0 | R54: ='SF AMI Engmt Pilot_Elec'!M6 -> 0 | S54: ='SF AMI Engmt Pilot_Elec'!N6 -> 0
B55: BEM Pilots E249 Elec | C55: E249 | E55: Commercial Pilots | I55: =SUM(I56) -> 0 | J55: =SUM(J56) -> 0 | K55: 0 | L55: 0 | M55: 0 | N55: 0 | O55: 0 | P55: 0 | Q55: 0 | R55: 0 | S55: =SUM(S56) -> 0
C56: E249 | I56: ='SMB AMI Engmt Pilot_Elec'!E6 -> 0 | J56: ='SMB AMI Engmt Pilot_Elec'!F6 -> 0 | K56: ='SMB AMI Engmt Pilot_Elec'!G6 -> 0 | L56: ='SMB AMI Engmt Pilot_Elec'!H6 -> 0 | M56: ='SMB AMI Engmt Pilot_Elec'!I6 -> 0 | N56: ='SMB AMI Engmt Pilot_Elec'!J6 -> 0 | O56: ='SMB AMI Engmt Pilot_Elec'!K6 -> 0 | P56: ='SMB AMI Engmt Pilot_Elec'!L6 -> 0 | Q56: ='SMB AMI Engmt Pilot_Elec'!M6 -> 0 | R56: ='SMB AMI Engmt Pilot_Elec'!N6 -> 0 | S56: ='SMB AMI Engmt Pilot_Elec'!O6 -> 0
G57: Total, Pilots | I57: =SUM(I53)+I55 -> 0 | J57: 0 | K57: 0 | L57: 0 | M57: 0 | N57: 0 | O57: 0 | P57: 0 | Q57: 0 | R57: 0 | S57: 0
C61: Regional Efficiency Programs
B62: NEEA Detail_E254 elec | C62: E254 | E62: Northwest Energy Efficiency Alliance | H62: 18230421 | I62: ='NEEA Detail_E254 elec'!D6 -> 0 | J62: ='NEEA Detail_E254 elec'!E6 -> 0 | K62: ='NEEA Detail_E254 elec'!F6 -> 0 | L62: ='NEEA Detail_E254 elec'!G6 -> 0 | M62: ='NEEA Detail_E254 elec'!H6 -> 6687538.2 | N62: ='NEEA Detail_E254 elec'!I6 -> 0 | O62: ='NEEA Detail_E254 elec'!J6 -> 0 | P62: ='NEEA Detail_E254 elec'!K6 -> 0 | R62: ='NEEA Detail_E254 elec'!M6 -> 6687538.2 | S62: ='NEEA Detail_E254 elec'!N6 -> 18976749
B63: TDSM_Regnl_elec_e219 | C63: E219 | E63: Targeted DSM | H63: 18230567 | I63: ='TDSM_Regnl_E219 Elec'!D6 -> 166588 | J63: ='TDSM_Regnl_E219 Elec'!E6 -> 132104.28 | K63: ='TDSM_Regnl_E219 Elec'!F6 -> 10000 | L63: ='TDSM_Regnl_E219 Elec'!G6 -> 1600 | M63: ='TDSM_Regnl_E219 Elec'!H6 -> 200000 | N63: ='TDSM_Regnl_E219 Elec'!I6 -> 0 | O63: ='TDSM_Regnl_E219 Elec'!J6 -> 0 | P63: ='TDSM_Regnl_E219 Elec'!K6 -> 70000 | Q63: ='TDSM_Regnl_E219 Elec'!L6 -> 0 | R63: ='TDSM_Regnl_E219 Elec'!M6 -> 580292.28 | S63: ='TDSM_Regnl_E219 Elec'!N6 -> 0
B64: T&D Detail_Reg E292 elec | C64: E292 | E64: Transmission & Distribution | H64: 18230713 | I64: ='T&D Detail_Reg E292 elec'!C6 -> 0 | J64: ='T&D Detail_Reg E292 elec'!D6 -> 0 | K64: ='T&D Detail_Reg E292 elec'!E6 -> 0 | L64: ='T&D Detail_Reg E292 elec'!F6 -> 0 | M64: ='T&D Detail_Reg E292 elec'!G6 -> 0 | N64: ='T&D Detail_Reg E292 elec'!H6 -> 0 | O64: ='T&D Detail_Reg E292 elec'!I6 -> 0 | P64: ='T&D Detail_Reg E292 elec'!J6 -> 0 | R64: ='T&D Detail_Reg E292 elec'!L6 -> 0 | S64: ='T&D Detail_Reg E292 elec'!M6 -> 4403843.988
G65: Total, Regional Efficiency Programs | I65: =SUM(I62:I64) -> 166588 | J65: 132104.28 | K65: 10000 | L65: 1600 | M65: 6887538.2 | N65: 0 | O65: 0 | P65: 70000 | Q65: 0 | R65: 7267830.48 | S65: 23380592.99
C69: Energy Efficiency Portfolio Support
B70: Data & Systm Svcs_Elect | E70: Data and Systems Services | H70: 18230745 | I70: ='Data & Systm Svcs_Elect'!D6 -> 437523 | J70: ='Data & Systm Svcs_Elect'!E6 -> 346955.74 | K70: ='Data & Systm Svcs_Elect'!F6 -> 0 | L70: ='Data & Systm Svcs_Elect'!G6 -> 8700 | M70: ='Data & Systm Svcs_Elect'!H6 -> 269700 | N70: ='Data & Systm Svcs_Elect'!I6 -> 0 | O70: ='Data & Systm Svcs_Elect'!J6 -> 0 | P70: ='Data & Systm Svcs_Elect'!K6 -> 0 | Q70: ='Data & Systm Svcs_Elect'!L6 -> 0 | R70: ='Data & Systm Svcs_Elect'!M6 -> 1062878.74
B71: Rebt Procg Detail_Elect | E71: Rebates Processing | H71: 18230507 | I71: ='Rebt Procg Detail_Elect'!D6 -> 504927 | J71: ='Rebt Procg Detail_Elect'!E6 -> 400407.11 | K71: ='Rebt Procg Detail_Elect'!F6 -> 0 | L71: ='Rebt Procg Detail_Elect'!G6 -> 20000 | M71: ='Rebt Procg Detail_Elect'!H6 -> 180000 | N71: ='Rebt Procg Detail_Elect'!I6 -> 5000 | O71: ='Rebt Procg Detail_Elect'!J6 -> 0 | P71: ='Rebt Procg Detail_Elect'!K6 -> 0 | Q71: ='Rebt Procg Detail_Elect'!L6 -> 0 | R71: ='Rebt Procg Detail_Elect'!M6 -> 1110334.11
B72: VTeam Detail_R&C_Elec | E72: Verification Team | H72: 18230418 | I72: ='Verifctn Team Detail Elec'!D6 -> 530157 | J72: ='Verifctn Team Detail Elec'!E6 -> 420414.5 | K72: ='Verifctn Team Detail Elec'!F6 -> 0 | L72: ='Verifctn Team Detail Elec'!G6 -> 20000 | M72: ='Verifctn Team Detail Elec'!H6 -> 120000 | N72: ='Verifctn Team Detail Elec'!I6 -> 10000 | O72: ='Verifctn Team Detail Elec'!J6 -> 0 | P72: ='Verifctn Team Detail Elec'!K6 -> 0 | Q72: ='Verifctn Team Detail Elec'!L6 -> 0 | R72: ='Verifctn Team Detail Elec'!M6 -> 1100571.5
B73: ProgDev Detail_R&C_ Elec | E73: Programs Support | H73: 18230810 | I73: ='Progs Supp Detail_PS_ Elec'!D6 -> 671118 | J73: ='Progs Supp Detail_PS_ Elec'!E6 -> 532196.57 | K73: ='Progs Supp Detail_PS_ Elec'!F6 -> 0 | L73: ='Progs Supp Detail_PS_ Elec'!G6 -> 34800 | M73: ='Progs Supp Detail_PS_ Elec'!H6 -> 0 | N73: ='Progs Supp Detail_PS_ Elec'!I6 -> 0 | O73: ='Progs Supp Detail_PS_ Elec'!J6 -> 0 | P73: ='Progs Supp Detail_PS_ Elec'!K6 -> 0 | Q73: ='Progs Supp Detail_PS_ Elec'!L6 -> 0 | R73: ='Progs Supp Detail_PS_ Elec'!M6 -> 1238114.57
B74: TradeAlly Detail_PS_ Elec | E74: Trade Ally Memberships | H74: 18230730 | I74: ='TradeAlly Detail_PS_ Elec'!D6 -> 0 | J74: ='TradeAlly Detail_PS_ Elec'!E6 -> 0 | K74: ='TradeAlly Detail_PS_ Elec'!F6 -> 0 | L74: ='TradeAlly Detail_PS_ Elec'!G6 -> 0 | M74: ='TradeAlly Detail_PS_ Elec'!H6 -> 174000 | N74: ='TradeAlly Detail_PS_ Elec'!I6 -> 0 | O74: ='TradeAlly Detail_PS_ Elec'!J6 -> 0 | P74: ='TradeAlly Detail_PS_ Elec'!K6 -> 0 | Q74: ='TradeAlly Detail_PS_ Elec'!L6 -> 0 | R74: ='TradeAlly Detail_PS_ Elec'!M6 -> 174000
B75: CAN_Elect | E75: Trade Ally Network (revenue + cost) | H75: 18230568 | I75: =REP_Elect!D6 -> 208300 | J75: =REP_Elect!E6 -> 165181.9 | K75: =REP_Elect!F6 -> 20000 | L75: =REP_Elect!G6 -> 5000 | M75: =REP_Elect!H6 -> 60000 | N75: =REP_Elect!I6 -> 2000 | O75: =REP_Elect!J6 -> 500 | P75: =REP_Elect!K6 -> 0 | Q75: =REP_Elect!L6 -> -485000 | R75: =REP_Elect!M6 -> -24018.1
B76: ABS Detail_PSWE_Elec | E76: Energy CAP | H76: 18230052 | I76: ='Energy CAP_Elec'!D6 -> 244455 | J76: ='Energy CAP_Elec'!E6 -> 193852.82 | K76: ='Energy CAP_Elec'!F6 -> 0 | L76: ='Energy CAP_Elec'!G6 -> 0 | M76: ='Energy CAP_Elec'!H6 -> 1936000 | N76: ='Energy CAP_Elec'!I6 -> 0 | O76: ='Energy CAP_Elec'!J6 -> 0 | P76: ='Energy CAP_Elec'!K6 -> 0 | Q76: ='Energy CAP_Elec'!L6 -> 0 | R76: ='Energy CAP_Elec'!M6 -> 2374307.82
B77: Engy Adv Detail_PSCE Elec | E77: Energy Advisors | H77: 18230575 | I77: ='Engy Adv Detail_PSCE Elec'!D6 -> 842073 | J77: ='Engy Adv Detail_PSCE Elec'!E6 -> 667763.89 | K77: ='Engy Adv Detail_PSCE Elec'!F6 -> 0 | L77: ='Engy Adv Detail_PSCE Elec'!G6 -> 0 | M77: ='Engy Adv Detail_PSCE Elec'!H6 -> 0 | N77: ='Engy Adv Detail_PSCE Elec'!I6 -> 0 | O77: ='Engy Adv Detail_PSCE Elec'!J6 -> 0 | P77: ='Engy Adv Detail_PSCE Elec'!K6 -> 0 | Q77: ='Engy Adv Detail_PSCE Elec'!L6 -> 0 | R77: ='Engy Adv Detail_PSCE Elec'!M6 -> 1509836.89
E78: Public Participation - Equity | H78: 18230032 | I78: ='Public Part Equity Elec'!D6 -> 0 | J78: ='Public Part Equity Elec'!E6 -> 0 | K78: ='Public Part Equity Elec'!F6 -> 0 | L78: ='Public Part Equity Elec'!G6 -> 0 | M78: ='Public Part Equity Elec'!H6 -> 39620 | N78: ='Public Part Equity Elec'!I6 -> 4015 | O78: ='Public Part Equity Elec'!J6 -> 0 | P78: ='Public Part Equity Elec'!K6 -> 0 | Q78: ='Public Part Equity Elec'!L6 -> 0 | R78: ='Public Part Equity Elec'!M6 -> 43635
B79: EEC Detail_PS_Elec | E79: Energy Efficient Communities | H79: 18230576 | I79: ='EEC Detail_PS_Elec'!D6 -> 649650 | J79: ='EEC Detail_PS_Elec'!E6 -> 515172.45 | K79: ='EEC Detail_PS_Elec'!F6 -> 17000 | L79: ='EEC Detail_PS_Elec'!G6 -> 34000 | M79: ='EEC Detail_PS_Elec'!H6 -> 20000 | N79: ='EEC Detail_PS_Elec'!I6 -> 26000 | O79: ='EEC Detail_PS_Elec'!J6 -> 0 | P79: ='EEC Detail_PS_Elec'!K6 -> 0 | Q79: ='EEC Detail_PS_Elec'!L6 -> 0 | R79: ='EEC Detail_PS_Elec'!M6 -> 1261822.45
B80: CustOnline Detail_PSWE_Elec | D80: New Name | E80: Customer Digital Services | I80: =SUM(I81:I84) -> 122464 | J80: =SUM(J81:J84) -> 97113.96 | K80: 137500 | L80: 2750 | M80: 1170375.12 | N80: 0 | O80: 0 | P80: 0 | Q80: 0 | R80: 1530203.08
F81: Digital Experience | H81: 18230577 | I81: ='Dig Exprnc_Elec'!D6 -> 0 | J81: ='Dig Exprnc_Elec'!E6 -> 0 | K81: ='Dig Exprnc_Elec'!F6 -> 0 | L81: ='Dig Exprnc_Elec'!G6 -> 0 | M81: ='Dig Exprnc_Elec'!H6 -> 0 | N81: ='Dig Exprnc_Elec'!I6 -> 0 | O81: ='Dig Exprnc_Elec'!J6 -> 0 | P81: ='Dig Exprnc_Elec'!K6 -> 0 | Q81: ='Dig Exprnc_Elec'!L6 -> 0 | R81: ='Dig Exprnc_Elec'!M6 -> 0
F82: Customer Digital Experience | H82: 18230571 | I82: ='Customer Dig Exprnc_Elec'!D6 -> 16530 | J82: ='Customer Dig Exprnc_Elec'!E6 -> 13108.29 | K82: ='Customer Dig Exprnc_Elec'!F6 -> 0 | L82: ='Customer Dig Exprnc_Elec'!G6 -> 0 | M82: ='Customer Dig Exprnc_Elec'!H6 -> 437918.52 | N82: ='Customer Dig Exprnc_Elec'!I6 -> 0 | O82: ='Customer Dig Exprnc_Elec'!J6 -> 0 | P82: ='Customer Dig Exprnc_Elec'!K6 -> 0 | Q82: ='Customer Dig Exprnc_Elec'!L6 -> 0 | R82: ='Customer Dig Exprnc_Elec'!M6 -> 467556.81
B83: CustAwarTools_elec | F83: Customer Awareness Tools | H83: 18230572 | I83: =CustAwarTools_Elect!D6 -> 40965 | J83: =CustAwarTools_Elect!E6 -> 32485.25 | K83: =CustAwarTools_Elect!F6 -> 0 | L83: =CustAwarTools_Elect!G6 -> 250 | M83: =CustAwarTools_Elect!H6 -> 692956.6 | N83: =CustAwarTools_Elect!I6 -> 0 | O83: =CustAwarTools_Elect!J6 -> 0 | P83: =CustAwarTools_Elect!K6 -> 0 | Q83: =CustAwarTools_Elect!L6 -> 0 | R83: =CustAwarTools_Elect!M6 -> 766656.85
B84: ShopPSE_elec | F84: PSE Marketplace | H84: 18230509 | I84: ='PSE Mktplce_elect'!D6 -> 64969 | J84: ='PSE Mktplce_elect'!E6 -> 51520.42 | K84: ='PSE Mktplce_elect'!F6 -> 137500 | L84: ='PSE Mktplce_elect'!G6 -> 2500 | M84: ='PSE Mktplce_elect'!H6 -> 39500 | N84: ='PSE Mktplce_elect'!I6 -> 0 | O84: ='PSE Mktplce_elect'!J6 -> 0 | P84: ='PSE Mktplce_elect'!K6 -> 0 | Q84: ='PSE Mktplce_elect'!L6 -> 0 | R84: ='PSE Mktplce_elect'!M6 -> 295989.42
B85: Mkt Intgn Detail_PSWE_Elec | E85: Market Integration | H85: 18230573 | I85: ='Mkt Intgn Detail_PSWE_Elec'!D6 -> 256004 | J85: ='Mkt Intgn Detail_PSWE_Elec'!E6 -> 203011.17 | K85: ='Mkt Intgn Detail_PSWE_Elec'!F6 -> 1735911.35 | L85: ='Mkt Intgn Detail_PSWE_Elec'!G6 -> 0 | M85: ='Mkt Intgn Detail_PSWE_Elec'!H6 -> 404550 | N85: ='Mkt Intgn Detail_PSWE_Elec'!I6 -> 0 | O85: ='Mkt Intgn Detail_PSWE_Elec'!J6 -> 0 | P85: ='Mkt Intgn Detail_PSWE_Elec'!K6 -> 0 | Q85: ='Mkt Intgn Detail_PSWE_Elec'!L6 -> 0 | R85: ='Mkt Intgn Detail_PSWE_Elec'!M6 -> 2599476.52
B86: Events Detail_PSCE Elec | E86: Events | H86: 18230574 | I86: ='Events Detail_PSCE Elec'!D6 -> 102089 | J86: ='Events Detail_PSCE Elec'!E6 -> 80956.58 | K86: ='Events Detail_PSCE Elec'!F6 -> 0 | L86: ='Events Detail_PSCE Elec'!G6 -> 0 | M86: ='Events Detail_PSCE Elec'!H6 -> 344400 | N86: ='Events Detail_PSCE Elec'!I6 -> 17400 | O86: ='Events Detail_PSCE Elec'!J6 -> 0 | P86: ='Events Detail_PSCE Elec'!K6 -> 0 | Q86: ='Events Detail_PSCE Elec'!L6 -> 0 | R86: ='Events Detail_PSCE Elec'!M6 -> 544845.58
G87: Total, Portfolio Support | I87: =SUM(I70:I80)+SUM(I85:I86) -> 4568760 | J87: =SUM(J70:J80)+SUM(J85:J86) -> 3623026.69 | K87: 1910411.35 | L87: =SUM(L70:L80)+SUM(L85:L86) -> 125250 | M87: 4718645.12 | N87: 64415 | O87: 500 | P87: 0 | Q87: -485000 | R87: =SUM(R70:R80)+SUM(R85:R86) -> 14526008.16
C91: Research & Compliance
B92: SuppCrv Detail_R&C_Elec | E92: Conservation Supply Curves | H92: 18230564 | I92: ='SuppCrv Detail_R&C_Elec'!D6 -> 153278 | J92: ='SuppCrv Detail_R&C_Elec'!E6 -> 121549.45 | K92: ='SuppCrv Detail_R&C_Elec'!F6 -> 0 | L92: ='SuppCrv Detail_R&C_Elec'!G6 -> 870 | M92: ='SuppCrv Detail_R&C_Elec'!H6 -> 316000 | N92: ='SuppCrv Detail_R&C_Elec'!I6 -> 0 | O92: ='SuppCrv Detail_R&C_Elec'!J6 -> 0 | P92: ='SuppCrv Detail_R&C_Elec'!K6 -> 0 | Q92: ='SuppCrv Detail_R&C_Elec'!L6 -> 0 | R92: ='SuppCrv Detail_R&C_Elec'!M6 -> 591697.45
B93: Strat Plan Detail_R&C_Elec | E93: Strategic Planning | H93: 18230561 | I93: ='Strat Plan Detail_R&C_Elec'!D6 -> 426883.4 | J93: ='Strat Plan Detail_R&C_Elec'!E6 -> 338518.54 | K93: ='Strat Plan Detail_R&C_Elec'!F6 -> 0 | L93: ='Strat Plan Detail_R&C_Elec'!G6 -> 13050 | M93: ='Strat Plan Detail_R&C_Elec'!H6 -> 0 | N93: ='Strat Plan Detail_R&C_Elec'!I6 -> 0 | O93: ='Strat Plan Detail_R&C_Elec'!J6 -> 0 | P93: ='Strat Plan Detail_R&C_Elec'!K6 -> 0 | Q93: ='Strat Plan Detail_R&C_Elec'!L6 -> 0 | R93: ='Strat Plan Detail_R&C_Elec'!M6 -> 778451.94
B94: Mktg Resch Detail_PS_ Elec | E94: Market Research | H94: 18230560 | I94: ='Mktg Resch Detail_PS_ Elec'!D6 -> 74717 | J94: ='Mktg Resch Detail_PS_ Elec'!E6 -> 59250.58 | K94: ='Mktg Resch Detail_PS_ Elec'!F6 -> 0 | L94: ='Mktg Resch Detail_PS_ Elec'!G6 -> 0 | M94: ='Mktg Resch Detail_PS_ Elec'!H6 -> 31649 | N94: ='Mktg Resch Detail_PS_ Elec'!I6 -> 0 | O94: ='Mktg Resch Detail_PS_ Elec'!J6 -> 0 | P94: ='Mktg Resch Detail_PS_ Elec'!K6 -> 0 | Q94: ='Mktg Resch Detail_PS_ Elec'!L6 -> 0 | R94: ='Mktg Resch Detail_PS_ Elec'!M6 -> 165616.58
B95: Eval Detail_R&C_Elec | E95: Program Evaluation | H95: 18230563 | I95: ='Eval Detail_R&C_Elec'!D6 -> 171966.6 | J95: ='Eval Detail_R&C_Elec'!E6 -> 136369.51 | K95: ='Eval Detail_R&C_Elec'!F6 -> 0 | L95: ='Eval Detail_R&C_Elec'!G6 -> 6525 | M95: ='Eval Detail_R&C_Elec'!H6 -> 1244034 | N95: ='Eval Detail_R&C_Elec'!I6 -> 0 | O95: ='Eval Detail_R&C_Elec'!J6 -> 0 | P95: ='Eval Detail_R&C_Elec'!K6 -> 0 | Q95: ='Eval Detail_R&C_Elec'!L6 -> 0 | R95: ='Eval Detail_R&C_Elec'!M6 -> 1558895.11
B96: BECAR Detail_R&C Elec | E96: Biennial Consv. Aquisitn. Review | H96: 18230559 | I96: ='BCAR Detail_R&C Elec'!D6 -> 0 | J96: ='BCAR Detail_R&C Elec'!E6 -> 0 | K96: ='BCAR Detail_R&C Elec'!F6 -> 0 | L96: ='BCAR Detail_R&C Elec'!G6 -> 0 | M96: ='BCAR Detail_R&C Elec'!H6 -> 58000 | N96: ='BCAR Detail_R&C Elec'!I6 -> 0 | O96: ='BCAR Detail_R&C Elec'!J6 -> 0 | P96: ='BCAR Detail_R&C Elec'!K6 -> 0 | Q96: ='BCAR Detail_R&C Elec'!L6 -> 0 | R96: ='BCAR Detail_R&C Elec'!M6 -> 58000
B97: TechEval Detail Elec | C97: E261 | E97: Technology Evaluation | H97: 18230511 | I97: ='TechEval Detail Elec'!D6 -> 6512 | J97: ='TechEval Detail Elec'!E6 -> 5164.02 | K97: ='TechEval Detail Elec'!F6 -> 0 | L97: ='TechEval Detail Elec'!G6 -> 0 | M97: ='TechEval Detail Elec'!H6 -> 130500 | N97: ='TechEval Detail Elec'!I6 -> 0 | O97: ='TechEval Detail Elec'!J6 -> 0 | P97: ='TechEval Detail Elec'!K6 -> 0 | Q97: ='TechEval Detail Elec'!L6 -> 0 | R97: ='TechEval Detail Elec'!M6 -> 142176.02
G98: Total, Research & Compliance | I98: =SUM(I92:I97) -> 833357 | J98: =SUM(J92:J97) -> 660852.1 | K98: 0 | L98: 20445 | M98: 1780183 | N98: 0 | O98: 0 | P98: 0 | Q98: 0 | R98: =SUM(R92:R97) -> 3294837.1
C102: Other Customer Programs
B103: Net Mtr Details_Oth Elec E150 | C103: E150 | E103: Net Metering | H103: 18230128 | I103: ='Net Mtr Details_Oth Elec E150'!D6 -> 730990 | J103: ='Net Mtr Details_Oth Elec E150'!E6 -> 579675.07 | K103: ='Net Mtr Details_Oth Elec E150'!F6 -> 20000 | L103: ='Net Mtr Details_Oth Elec E150'!G6 -> 10000 | M103: ='Net Mtr Details_Oth Elec E150'!H6 -> 241500 | N103: ='Net Mtr Details_Oth Elec E150'!I6 -> 0 | O103: ='Net Mtr Details_Oth Elec E150'!J6 -> 2700000 | P103: ='Net Mtr Details_Oth Elec E150'!K6 -> 0 | Q103: ='Net Mtr Details_Oth Elec E150'!L6 -> 0 | R103: ='Net Mtr Details_Oth Elec E150'!M6 -> 4282165.07
B104: DemndResp_Detail_E249_Elec | C104: 249A | E104: Demand Response Pilot | H104: 18230566 | I104: =DmndResp_Detail_249A_Elec!D6 -> 0 | J104: =DmndResp_Detail_249A_Elec!E6 -> 0 | K104: =DmndResp_Detail_249A_Elec!F6 -> 0 | L104: =DmndResp_Detail_249A_Elec!G6 -> 0 | M104: =DmndResp_Detail_249A_Elec!H6 -> 420000 | N104: =DmndResp_Detail_249A_Elec!I6 -> 0 | O104: =DmndResp_Detail_249A_Elec!J6 -> 0 | P104: =DmndResp_Detail_249A_Elec!K6 -> 0 | Q104: =DmndResp_Detail_249A_Elec!L6 -> 0 | R104: =DmndResp_Detail_249A_Elec!M6 -> 420000
C105: 272, 271 | E105: Demand Response Administration | H105: 18230753 | I105: =DmndResp_Admi_E271_Elec!D6 -> 621550 | J105: =DmndResp_Admi_E271_Elec!E6 -> 492889.15 | K105: =DmndResp_Admi_E271_Elec!F6 -> 2000000 | L105: =DmndResp_Admi_E271_Elec!G6 -> 100000 | M105: =DmndResp_Admi_E271_Elec!H6 -> 380000 | N105: =DmndResp_Admi_E271_Elec!I6 -> 20000 | O105: =DmndResp_Admi_E271_Elec!J6 -> 2855000 | P105: =DmndResp_Admi_E271_Elec!K6 -> 0 | Q105: =DmndResp_Admi_E271_Elec!L6 -> 0 | R105: =DmndResp_Admi_E271_Elec!M6 -> 6469439.15
G106: Total, Other Energy Efficiency Programs | I106: =SUM(I103:I105) -> 1352540 | J106: =SUM(J103:J105) -> 1072564.22 | K106: 2020000 | L106: 110000 | M106: 1041500 | N106: 20000 | O106: 5555000 | P106: 0 | Q106: 0 | R106: =SUM(R103:R105) -> 11171604.22
G110: GRAND TOTAL, ELECTRIC PROGRAMS | I110: =I106+I98+I87+I65+I57+I49+I24 -> 12423868 | J110: 9858127.38 | K110: 5213231.35 | L110: 401420 | M110: 23970019.42 | N110: 175115 | O110: 5695000 | P110: 79167419.81 | Q110: -485000 | R110: 136419201 | S110: =S106+S98+S65+S57+S49+S24 -> 206521249.9
S113: =S110/1000/8760 -> 23.57548515
G114: Budget Category Includes | H114: This is the main level of tracking expenditures and expenses in EES. Per FERC rules, all conservation order numbers start with a "1823nnnn", where "n" is some number. Cost elements apply to all order numbers (for instance, all conservation programs that | I114: Energy Efficiency program staff labor. Average FTE cost including management assessments. This Budget Category group includes assessments from Major Accounts management, Resource Planning, Corporate Communications management, IT specialists and some building maintenance allocations. | J114: Overhead--costs associated with primarily employee labor; benefits, for instance. For 2017, includes micro-overhead. | K114: Service and materials associated with the cost of printing program brochures, marketing pieces, advertising, banners, etc. Also includes marketing conducted by vendors and contractors. | L114: Costs associated with EE staff attending events, employee training, conferences, business meals, business parking, ferry & bridge tolls, mileage incurred on employee automobiles, office supplies, phones, subscriptions, software/hardware, etc. | M114: Contractors and vendors, such as PECI, Ecos, CostCo, EFI, etc. Legal expenses, technical services (CMS design, PSE.com web portals, etc.). These costs do NOT include brochure development, marketing pieces, (which are classified under MARKETING). These costs do NOT include incentives paid to customers by contractors. | N114: Primarily tools, trade show equipment, etc. | O114: This category should seldomly be used, and only expenses that cannot be classified under one of the above categories. | P114: All costs associated with rebates, grants, remuneration, value-added services that have a direct bearing on a customer's perceived value of PSE offerings. | Q114: Any amount that PSE is paid by a customer, partner, municipality or outside entity.

Sheet 2025 Sector View Gas
C2: Energy Efficiency 2025 Budgets and Aggregate Program Savings
C3: Sector View | I3: Please see category descriptions at the bottom of the sector table.
C4: Natural Gas Programs
I5: Budget Category
B6: Workbook Name | C6: Schedule | D6: Comment | E6: Description (Blue, indented text indicates a sub-total value) | H6: Order Number (Click on the order# below to link to the detail page) | I6: Labor | J6: Overhead | K6: Marketing | L6: Employee/Office Expense | M6: Outside Services | N6: Materials | O6: Miscellaneous | P6: DBtC | Q6: Revenue | R6: Total Budget | S6: Total Savings Therms
C7: Residential Energy Management
B8: LIW Detail_REM G201 Gas | C8: G201 | E8: Low Income Weatherization | H8: 18230661 | I8: ='LowIncWx Detail_REM G201 Gas'!D6 -> 30704 | J8: ='LowIncWx Detail_REM G201 Gas'!E6 -> 24348.27 | K8: ='LowIncWx Detail_REM G201 Gas'!F6 -> 10800 | L8: ='LowIncWx Detail_REM G201 Gas'!G6 -> 500 | M8: ='LowIncWx Detail_REM G201 Gas'!H6 -> 2500 | N8: ='LowIncWx Detail_REM G201 Gas'!I6 -> 150 | O8: ='LowIncWx Detail_REM G201 Gas'!J6 -> 0 | P8: ='LowIncWx Detail_REM G201 Gas'!K6 -> 1912018.91 | Q8: ='LowIncWx Detail_REM G201 Gas'!L6 -> 0 | R8: ='LowIncWx Detail_REM G201 Gas'!M6 -> 1981021.18 | S8: ='LowIncWx Detail_REM G201 Gas'!N6 -> 21727.67
B9: WtrHeat Detail_REM G214 Gas | C9: G214 | E9: SF Existing Water Heat | H9: 18230249 | I9: ='WtrHeat Detail_REM G214 Gas'!D6 -> 65476.34 | J9: ='WtrHeat Detail_REM G214 Gas'!E6 -> 51922.74 | K9: ='WtrHeat Detail_REM G214 Gas'!F6 -> 89000 | L9: ='WtrHeat Detail_REM G214 Gas'!G6 -> 1000 | M9: ='WtrHeat Detail_REM G214 Gas'!H6 -> 1000 | N9: ='WtrHeat Detail_REM G214 Gas'!I6 -> 0 | O9: ='WtrHeat Detail_REM G214 Gas'!J6 -> 1500 | P9: ='WtrHeat Detail_REM G214 Gas'!K6 -> 456400 | Q9: ='WtrHeat Detail_REM G214 Gas'!L6 -> 0 | R9: ='WtrHeat Detail_REM G214 Gas'!M6 -> 666299.08 | S9: ='WtrHeat Detail_REM G214 Gas'!N6 -> 61231.1
B10: Wx Detail_REM G214 Gas | C10: G214 | E10: SF Existing Weatherization | H10: 18230637 | I10: ='Wx Detail_REM G214 Gas'!D6 -> 126558 | J10: ='Wx Detail_REM G214 Gas'!E6 -> 100360.49 | K10: ='Wx Detail_REM G214 Gas'!F6 -> 125000 | L10: ='Wx Detail_REM G214 Gas'!G6 -> 1200 | M10: ='Wx Detail_REM G214 Gas'!H6 -> 110000 | N10: ='Wx Detail_REM G214 Gas'!I6 -> 50500 | O10: ='Wx Detail_REM G214 Gas'!J6 -> 0 | P10: ='Wx Detail_REM G214 Gas'!K6 -> 11881542.15 | Q10: ='Wx Detail_REM G214 Gas'!L6 -> 0 | R10: ='Wx Detail_REM G214 Gas'!M6 -> 12395160.64 | S10: ='Wx Detail_REM G214 Gas'!N6 -> 500077.2873
B11: SpHeat Detail_REM G214 Gas | C11: G214 | E11: SF Existing Space Heat | H11: 18230638 | I11: ='SpHeat Detail_REM G214 Gas'!D6 -> 14324 | J11: ='SpHeat Detail_REM G214 Gas'!E6 -> 11358.93 | K11: ='SpHeat Detail_REM G214 Gas'!F6 -> 195761 | L11: ='SpHeat Detail_REM G214 Gas'!G6 -> 1200 | M11: ='SpHeat Detail_REM G214 Gas'!H6 -> 0 | N11: ='SpHeat Detail_REM G214 Gas'!I6 -> 0 | O11: ='SpHeat Detail_REM G214 Gas'!J6 -> 0 | P11: ='SpHeat Detail_REM G214 Gas'!K6 -> 2473475 | Q11: ='SpHeat Detail_REM G214 Gas'!L6 -> 0 | R11: ='SpHeat Detail_REM G214 Gas'!M6 -> 2696118.93 | S11: ='SpHeat Detail_REM G214 Gas'!N6 -> 447011.9
C12: G214 | E12: Residential Midstream HVAC and Water Heat | H12: 18230161 | I12: ='HVAC&WH Mdstm_G214 Gas'!D6 -> 0 | J12: ='HVAC&WH Mdstm_G214 Gas'!E6 -> 0 | K12: ='HVAC&WH Mdstm_G214 Gas'!F6 -> 0 | L12: ='HVAC&WH Mdstm_G214 Gas'!G6 -> 0 | M12: ='HVAC&WH Mdstm_G214 Gas'!H6 -> 152964 | N12: ='HVAC&WH Mdstm_G214 Gas'!I6 -> 0 | O12: ='HVAC&WH Mdstm_G214 Gas'!J6 -> 0 | P12: ='HVAC&WH Mdstm_G214 Gas'!K6 -> 387182 | Q12: ='HVAC&WH Mdstm_G214 Gas'!L6 -> 0 | R12: ='HVAC&WH Mdstm_G214 Gas'!M6 -> 540146 | S12: ='HVAC&WH Mdstm_G214 Gas'!N6 -> 76404
B13: HmApplSvgs Detail_REM G214 Gas | C13: G214 | E13: Home Appliances | H13: 18230434 | I13: ='HmApplSvgs Detail_REM G214 Gas'!D6 -> 0 | J13: ='HmApplSvgs Detail_REM G214 Gas'!E6 -> 0 | K13: ='HmApplSvgs Detail_REM G214 Gas'!F6 -> 0 | L13: ='HmApplSvgs Detail_REM G214 Gas'!G6 -> 0 | M13: ='HmApplSvgs Detail_REM G214 Gas'!H6 -> 0 | N13: ='HmApplSvgs Detail_REM G214 Gas'!I6 -> 0 | O13: ='HmApplSvgs Detail_REM G214 Gas'!J6 -> 0 | P13: ='HmApplSvgs Detail_REM G214 Gas'!K6 -> 0 | Q13: ='HmApplSvgs Detail_REM G214 Gas'!L6 -> 0 | R13: ='HmApplSvgs Detail_REM G214 Gas'!M6 -> 0 | S13: ='HmApplSvgs Detail_REM G214 Gas'!N6 -> 4836
B14: WebTstat Detail_REM G214 Gas | C14: G214 | E14: Smart Thermostats | H14: 18230687 | I14: ='WebTstat Detail_REM G214 Gas'!D6 -> 83845 | J14: ='WebTstat Detail_REM G214 Gas'!E6 -> 66489.09 | K14: ='WebTstat Detail_REM G214 Gas'!F6 -> 100000 | L14: ='WebTstat Detail_REM G214 Gas'!G6 -> 2000 | M14: ='WebTstat Detail_REM G214 Gas'!H6 -> 669953.9 | N14: ='WebTstat Detail_REM G214 Gas'!I6 -> 0 | O14: ='WebTstat Detail_REM G214 Gas'!J6 -> 0 | P14: ='WebTstat Detail_REM G214 Gas'!K6 -> 813450 | Q14: ='WebTstat Detail_REM G214 Gas'!L6 -> 0 | R14: ='WebTstat Detail_REM G214 Gas'!M6 -> 1735737.99 | S14: ='WebTstat Detail_REM G214 Gas'!N6 -> 195043.5
B15: HER Detail_REM G214 gas | C15: G214 | E15: Home Energy Reports | H15: 18230738 | I15: ='HER Detail_REM G214 gas'!D6 -> 57495 | J15: ='HER Detail_REM G214 gas'!E6 -> 45593.54 | K15: ='HER Detail_REM G214 gas'!F6 -> 0 | L15: ='HER Detail_REM G214 gas'!G6 -> 600 | M15: ='HER Detail_REM G214 gas'!H6 -> 545828.88 | N15: ='HER Detail_REM G214 gas'!I6 -> 0 | O15: ='HER Detail_REM G214 gas'!J6 -> 0 | P15: ='HER Detail_REM G214 gas'!K6 -> 538743.1 | Q15: ='HER Detail_REM G214 gas'!L6 -> 0 | R15: ='HER Detail_REM G214 gas'!M6 -> 1188260.52 | S15: ='HER Detail_REM G214 gas'!N6 -> 1244780.11
B16: SFNC Detail_REM G215 Gas | C16: G215 | E16: Single Family New Construction | H16: 18230684 | I16: ='SFNC Detail_REM G215 Gas'!D6 -> 0 | J16: ='SFNC Detail_REM G215 Gas'!E6 -> 0 | K16: ='SFNC Detail_REM G215 Gas'!F6 -> 0 | L16: ='SFNC Detail_REM G215 Gas'!G6 -> 0 | M16: ='SFNC Detail_REM G215 Gas'!H6 -> 0 | N16: ='SFNC Detail_REM G215 Gas'!I6 -> 0 | O16: ='SFNC Detail_REM G215 Gas'!J6 -> 0 | P16: ='SFNC Detail_REM G215 Gas'!K6 -> 0 | Q16: ='SFNC Detail_REM G215 Gas'!L6 -> 0 | R16: ='SFNC Detail_REM G215 Gas'!M6 -> 0 | S16: ='SFNC Detail_REM G215 Gas'!N6 -> 0
B17: MfgHmNew Detail_REM E215 Elec | C17: E215 | E17: Manufactured Home New Construction | H17: 18230752 | I17: ='NCMfgHome Detail_REM G215 Gas'!D6 -> 0 | J17: ='NCMfgHome Detail_REM G215 Gas'!E6 -> 0 | K17: ='NCMfgHome Detail_REM G215 Gas'!F6 -> 0 | L17: ='NCMfgHome Detail_REM G215 Gas'!G6 -> 0 | M17: ='NCMfgHome Detail_REM G215 Gas'!H6 -> 0 | N17: ='NCMfgHome Detail_REM G215 Gas'!I6 -> 0 | O17: ='NCMfgHome Detail_REM G215 Gas'!J6 -> 0 | P17: ='NCMfgHome Detail_REM G215 Gas'!K6 -> 14800 | Q17: ='NCMfgHome Detail_REM G215 Gas'!L6 -> 0 | R17: ='NCMfgHome Detail_REM G215 Gas'!M6 -> 14800 | S17: ='NCMfgHome Detail_REM G215 Gas'!N6 -> 547.4
B18: Efficiency Boost G217 Gas | C18: G214 & 217 | E18: Efficiency Boost | H18: 18230254 | I18: ='Efficiency Boost_G217 Gas'!D6 -> 24860 | J18: ='Efficiency Boost_G217 Gas'!E6 -> 19713.98 | K18: ='Efficiency Boost_G217 Gas'!F6 -> 24000 | L18: ='Efficiency Boost_G217 Gas'!G6 -> 0 | M18: ='Efficiency Boost_G217 Gas'!H6 -> 0 | N18: ='Efficiency Boost_G217 Gas'!I6 -> 0 | O18: ='Efficiency Boost_G217 Gas'!J6 -> 0 | P18: ='Efficiency Boost_G217 Gas'!K6 -> 0 | Q18: ='Efficiency Boost_G217 Gas'!L6 -> 0 | R18: ='Efficiency Boost_G217 Gas'!M6 -> 68573.98 | S18: ='Efficiency Boost_G217 Gas'!N6 -> 0
B19: MF Retr Detail_REM G217 Gas | C19: G217 | E19: Multifamily Retrofit | H19: 18230736 | I19: ='MF Retr Detail_REM G217 Gas'!D6 -> 19734 | J19: ='MF Retr Detail_REM G217 Gas'!E6 -> 15649.06 | K19: ='MF Retr Detail_REM G217 Gas'!F6 -> 5000 | L19: ='MF Retr Detail_REM G217 Gas'!G6 -> 500 | M19: ='MF Retr Detail_REM G217 Gas'!H6 -> 71116.8 | N19: ='MF Retr Detail_REM G217 Gas'!I6 -> 0 | O19: ='MF Retr Detail_REM G217 Gas'!J6 -> 0 | P19: ='MF Retr Detail_REM G217 Gas'!K6 -> 254523.14 | Q19: ='MF Retr Detail_REM G217 Gas'!L6 -> 0 | R19: ='MF Retr Detail_REM G217 Gas'!M6 -> 366523 | S19: ='MF Retr Detail_REM G217 Gas'!N6 -> 17433.6
B20: MFNC Detail_REM G218 Gas | C20: G218 | E20: Multi-Family New Construction | H20: 18230673 | I20: ='MFNC Detail_REM G218 Gas'!D6 -> 0 | J20: ='MFNC Detail_REM G218 Gas'!E6 -> 0 | K20: ='MFNC Detail_REM G218 Gas'!F6 -> 0 | L20: ='MFNC Detail_REM G218 Gas'!G6 -> 0 | M20: ='MFNC Detail_REM G218 Gas'!H6 -> 10920 | N20: ='MFNC Detail_REM G218 Gas'!I6 -> 0 | O20: ='MFNC Detail_REM G218 Gas'!J6 -> 0 | P20: ='MFNC Detail_REM G218 Gas'!K6 -> 23100 | Q20: ='MFNC Detail_REM G218 Gas'!L6 -> 0 | R20: ='MFNC Detail_REM G218 Gas'!M6 -> 34020 | S20: ='MFNC Detail_REM G218 Gas'!N6 -> 3200
G21: Total, Residential Energy Management | I21: =SUM(I8:I20) -> 422996.34 | J21: 335436.1 | K21: 549561 | L21: 7000 | M21: 1564283.58 | N21: 50650 | O21: 1500 | P21: 18755234.3 | Q21: 0 | R21: 21686661.32 | S21: 2572292.567
C25: Business Energy Management
E26: Commercial/Industrial Retrofit | I26: =SUM(I27:I29) -> 469224 | J26: 372094.63 | K26: 13000 | L26: 5000 | M26: 163000 | N26: 1500 | O26: 30500 | P26: 1742290 | Q26: 0 | R26: =SUM(R27:R29) -> 2796608.63 | S26: =S27+S28+S29 -> 389000
B27: CI Retr Detail_BEM G250 Gas | C27: G250 | E27: Retrofit Custom Grants | H27: 18230731 | I27: ='CI Retr Detail_BEM G250 Gas'!C6 -> 347637 | J27: ='CI Retr Detail_BEM G250 Gas'!D6 -> 275676.14 | K27: ='CI Retr Detail_BEM G250 Gas'!E6 -> 5000 | L27: ='CI Retr Detail_BEM G250 Gas'!F6 -> 3000 | M27: ='CI Retr Detail_BEM G250 Gas'!G6 -> 70000 | N27: ='CI Retr Detail_BEM G250 Gas'!H6 -> 1500 | O27: ='CI Retr Detail_BEM G250 Gas'!I6 -> 28500 | P27: ='CI Retr Detail_BEM G250 Gas'!J6 -> 1680250 | R27: ='CI Retr Detail_BEM G250 Gas'!L6 -> 2411563.14 | S27: ='CI Retr Detail_BEM G250 Gas'!M6 -> 290000
B28: CI Industrial BEM G250_Gas | C28: G250 | E28: Industrial Programs | H28: 18231037 | I28: =CI_Indust_BEM_G250_Gas!C6 -> 71943 | J28: =CI_Indust_BEM_G250_Gas!D6 -> 57050.8 | K28: =CI_Indust_BEM_G250_Gas!E6 -> 0 | L28: =CI_Indust_BEM_G250_Gas!F6 -> 0 | M28: =CI_Indust_BEM_G250_Gas!G6 -> 0 | N28: =CI_Indust_BEM_G250_Gas!H6 -> 0 | O28: =CI_Indust_BEM_G250_Gas!I6 -> 0 | P28: =CI_Indust_BEM_G250_Gas!J6 -> 62040 | Q28: =CI_Indust_BEM_G250_Gas!K6 -> 0 | R28: =CI_Indust_BEM_G250_Gas!L6 -> 191033.8 | S28: =CI_Indust_BEM_G250_Gas!M6 -> 24000
C29: E250 | E29: Clean Buildings Accelerator | H29: 18230220 | I29: ='Cln Build Accel_G250_Gas'!C6 -> 49644 | J29: ='Cln Build Accel_G250_Gas'!D6 -> 39367.69 | K29: ='Cln Build Accel_G250_Gas'!E6 -> 8000 | L29: ='Cln Build Accel_G250_Gas'!F6 -> 2000 | M29: ='Cln Build Accel_G250_Gas'!G6 -> 93000 | N29: ='Cln Build Accel_G250_Gas'!H6 -> 0 | O29: ='Cln Build Accel_G250_Gas'!I6 -> 2000 | P29: ='Cln Build Accel_G250_Gas'!J6 -> 0 | Q29: ='Cln Build Accel_G250_Gas'!K6 -> 0 | R29: ='Cln Build Accel_G250_Gas'!L6 -> 194011.69 | S29: ='Cln Build Accel_G250_Gas'!M6 -> 75000
B30: CI NC Detail_BEM G251 Gas | C30: G251 | E30: Commercial/Industrial New Construction | H30: 18230706 | I30: ='CI NC Detail_BEM G251 Gas'!C6 -> 44852 | J30: ='CI NC Detail_BEM G251 Gas'!D6 -> 35567.64 | K30: ='CI NC Detail_BEM G251 Gas'!E6 -> 4500 | L30: ='CI NC Detail_BEM G251 Gas'!F6 -> 2025 | M30: ='CI NC Detail_BEM G251 Gas'!G6 -> 15000 | N30: ='CI NC Detail_BEM G251 Gas'!H6 -> 2250 | O30: ='CI NC Detail_BEM G251 Gas'!I6 -> 9000 | P30: ='CI NC Detail_BEM G251 Gas'!J6 -> 146000 | R30: ='CI NC Detail_BEM G251 Gas'!L6 -> 259194.64 | S30: ='CI NC Detail_BEM G251 Gas'!M6 -> 20000
E31: Commercial Strategic Energy Management | I31: =SUM(I32:I33) -> 342276 | J31: 271424.87 | K31: 1800 | L31: 6000 | M31: 161862.5 | N31: 1000 | O31: 4500 | P31: 212500 | Q31: 0 | R31: 1001363.37 | S31: 383502
B32: RCM Detail_BEM 253 Gas | C32: G253 | E32: SEM | H32: 18230691 | I32: ='RCM Detail_BEM 253 Gas'!C6 -> 304896 | J32: ='RCM Detail_BEM 253 Gas'!D6 -> 241782.53 | K32: ='RCM Detail_BEM 253 Gas'!E6 -> 1500 | L32: ='RCM Detail_BEM 253 Gas'!F6 -> 6000 | M32: ='RCM Detail_BEM 253 Gas'!G6 -> 161862.5 | N32: ='RCM Detail_BEM 253 Gas'!H6 -> 1000 | O32: ='RCM Detail_BEM 253 Gas'!I6 -> 500 | P32: ='RCM Detail_BEM 253 Gas'!J6 -> 172500 | R32: ='RCM Detail_BEM 253 Gas'!L6 -> 890041.03 | S32: ='RCM Detail_BEM 253 Gas'!M6 -> 370000
C33: G253 | E33: Pay For Performance | H33: 18231039 | I33: ='Pay For Perf_E253_Gas'!C6 -> 37380 | J33: ='Pay For Perf_E253_Gas'!D6 -> 29642.34 | K33: ='Pay For Perf_E253_Gas'!E6 -> 300 | L33: ='Pay For Perf_E253_Gas'!F6 -> 0 | M33: ='Pay For Perf_E253_Gas'!G6 -> 0 | N33: ='Pay For Perf_E253_Gas'!H6 -> 0 | O33: ='Pay For Perf_E253_Gas'!I6 -> 4000 | P33: ='Pay For Perf_E253_Gas'!J6 -> 40000 | Q33: ='Pay For Perf_E253_Gas'!K6 -> 0 | R33: ='Pay For Perf_E253_Gas'!L6 -> 111322.34 | S33: ='Pay For Perf_E253_Gas'!M6 -> 13502
B34: Rebates Detail_BEM G262 Gas | C34: G262 | E34: Business Rebates | I34: =SUM(I35:I39) -> 286298 | J34: 227034.31 | K34: 112680 | L34: 8550 | M34: 778817.89 | N34: 900 | O34: 10000 | P34: 1624964 | Q34: 0 | R34: 3049244.2 | S34: 464970.55
B35: Comm Kit-Laund_G262 Gas | C35: G262 | E35: Commercial Foodservice | H35: 18231027 | I35: ='Comm Kit-Laund_G262 Gas'!D6 -> 103673 | J35: ='Comm Kit-Laund_G262 Gas'!E6 -> 82212.69 | K35: ='Comm Kit-Laund_G262 Gas'!F6 -> 112680 | L35: ='Comm Kit-Laund_G262 Gas'!G6 -> 8550 | M35: ='Comm Kit-Laund_G262 Gas'!H6 -> 432568 | N35: ='Comm Kit-Laund_G262 Gas'!I6 -> 900 | O35: ='Comm Kit-Laund_G262 Gas'!J6 -> 0 | P35: ='Comm Kit-Laund_G262 Gas'!K6 -> 753756 | Q35: ='Comm Kit-Laund_G262 Gas'!L6 -> 0 | R35: ='Comm Kit-Laund_G262 Gas'!M6 -> 1494339.69 | S35: ='Comm Kit-Laund_G262 Gas'!N6 -> 171582
B36: Comm HVAC_G262 Gas | C36: G262 | E36: Commercial HVAC Rebates | H36: 18231029 | I36: ='Comm HVAC Rbts_G262 Gas'!D6 -> 27824 | J36: ='Comm HVAC Rbts_G262 Gas'!E6 -> 22064.43 | K36: ='Comm HVAC Rbts_G262 Gas'!F6 -> 0 | L36: ='Comm HVAC Rbts_G262 Gas'!G6 -> 0 | M36: ='Comm HVAC Rbts_G262 Gas'!H6 -> 0 | N36: ='Comm HVAC Rbts_G262 Gas'!I6 -> 0 | O36: ='Comm HVAC Rbts_G262 Gas'!J6 -> 0 | P36: ='Comm HVAC Rbts_G262 Gas'!K6 -> 77350 | Q36: ='Comm HVAC Rbts_G262 Gas'!L6 -> 0 | R36: ='Comm HVAC Rbts_G262 Gas'!M6 -> 127238.43 | S36: ='Comm HVAC Rbts_G262 Gas'!N6 -> 19428.55
C37: E262 | E37: Commercial Midstream HVAC and Water Heat | H37: 18230248 | I37: ='Comm Midstream_G262 Gas'!D6 -> 154801 | J37: ='Comm Midstream_G262 Gas'!E6 -> 122757.19 | K37: ='Comm Midstream_G262 Gas'!F6 -> 0 | L37: ='Comm Midstream_G262 Gas'!G6 -> 0 | M37: ='Comm Midstream_G262 Gas'!H6 -> 346249.89 | N37: ='Comm Midstream_G262 Gas'!I6 -> 0 | O37: ='Comm Midstream_G262 Gas'!J6 -> 10000 | P37: ='Comm Midstream_G262 Gas'!K6 -> 779058 | Q37: ='Comm Midstream_G262 Gas'!L6 -> 0 | R37: ='Comm Midstream_G262 Gas'!M6 -> 1412866.08 | S37: ='Comm Midstream_G262 Gas'!N6 -> 270270
B38: Sm Bus DI_G262 Gas | C38: G262 | E38: Small Business Direct Install | H38: 18230273 | I38: ='Sm Bus DI_G262 Gas'!D6 -> 0 | J38: ='Sm Bus DI_G262 Gas'!E6 -> 0 | K38: ='Sm Bus DI_G262 Gas'!F6 -> 0 | L38: ='Sm Bus DI_G262 Gas'!G6 -> 0 | M38: ='Sm Bus DI_G262 Gas'!H6 -> 0 | N38: ='Sm Bus DI_G262 Gas'!I6 -> 0 | O38: ='Sm Bus DI_G262 Gas'!J6 -> 0 | P38: ='Sm Bus DI_G262 Gas'!K6 -> 14800 | Q38: ='Sm Bus DI_G262 Gas'!L6 -> 0 | R38: ='Sm Bus DI_G262 Gas'!M6 -> 14800 | S38: ='Sm Bus DI_G262 Gas'!N6 -> 3690
C39: G262 | E39: Lodging Rebates | H39: 18230269 | I39: ='Lodging Rbats_Gas'!D6 -> 0 | J39: ='Lodging Rbats_Gas'!E6 -> 0 | K39: ='Lodging Rbats_Gas'!F6 -> 0 | L39: ='Lodging Rbats_Gas'!G6 -> 0 | M39: ='Lodging Rbats_Gas'!H6 -> 0 | N39: ='Lodging Rbats_Gas'!I6 -> 0 | O39: ='Lodging Rbats_Gas'!J6 -> 0 | P39: ='Lodging Rbats_Gas'!K6 -> 0 | Q39: ='Lodging Rbats_Gas'!L6 -> 0 | R39: ='Lodging Rbats_Gas'!M6 -> 0 | S39: ='Lodging Rbats_Gas'!N6 -> 0
G40: Total, Business Energy Management | I40: =SUM(I27:I31)+I34 -> 1142650 | J40: 906121.45 | K40: 131980 | L40: 21575 | M40: 1118680.39 | N40: 5650 | O40: 54000 | P40: 3725754 | Q40: 0 | R40: 7106410.84 | S40: 1257472.55
C44: Pilots With Uncertain Savings
B45: REM Pilots Detail G249 Gas | C45: E249 | E45: Residential Pilots | I45: =SUM(I46:I47) -> 0 | J45: =SUM(J46:J47) -> 0 | K45: 0 | L45: 0 | M45: 0 | N45: 0 | O45: 0 | P45: 0 | Q45: 0 | R45: 0 | S45: 0
C46: E249 | E46: Placeholder | H46: 18230255 | I46: ='HEA Behavioral Pilot_Gas'!D6 -> 0 | J46: ='HEA Behavioral Pilot_Gas'!E6 -> 0 | K46: ='HEA Behavioral Pilot_Gas'!F6 -> 0 | L46: ='HEA Behavioral Pilot_Gas'!G6 -> 0 | M46: ='HEA Behavioral Pilot_Gas'!H6 -> 0 | N46: ='HEA Behavioral Pilot_Gas'!I6 -> 0 | O46: ='HEA Behavioral Pilot_Gas'!J6 -> 0 | P46: ='HEA Behavioral Pilot_Gas'!K6 -> 0 | Q46: ='HEA Behavioral Pilot_Gas'!L6 -> 0 | R46: ='HEA Behavioral Pilot_Gas'!M6 -> 0 | S46: ='HEA Behavioral Pilot_Gas'!N6 -> 0
C47: E249 | E47: Placeholder | H47: 18230256 | I47: ='Retail Choice Pilot_Gas'!D6 -> 0 | J47: ='Retail Choice Pilot_Gas'!E6 -> 0 | K47: ='Retail Choice Pilot_Gas'!F6 -> 0 | L47: ='Retail Choice Pilot_Gas'!G6 -> 0 | M47: ='Retail Choice Pilot_Gas'!H6 -> 0 | N47: ='Retail Choice Pilot_Gas'!I6 -> 0 | O47: ='Retail Choice Pilot_Gas'!J6 -> 0 | P47: ='Retail Choice Pilot_Gas'!K6 -> 0 | Q47: ='Retail Choice Pilot_Gas'!L6 -> 0 | R47: ='Retail Choice Pilot_Gas'!M6 -> 0 | S47: ='Retail Choice Pilot_Gas'!N6 -> 0
B48: BEM Pilots Detail G249 Gas | C48: E249 | E48: Commercial Pilots | I48: =SUM(I49) -> 0 | J48: =SUM(J49) -> 0 | K48: 0 | L48: 0 | M48: 0 | N48: 0 | O48: 0 | P48: 0 | Q48: 0 | R48: 0 | S48: 0
C49: E249 | E49: Placeholder | H49: 18231038 | I49: ='SMB AMI Engmt Pilot_Gas'!D6 -> 0 | J49: ='SMB AMI Engmt Pilot_Gas'!E6 -> 0 | K49: ='SMB AMI Engmt Pilot_Gas'!F6 -> 0 | L49: ='SMB AMI Engmt Pilot_Gas'!G6 -> 0 | M49: ='SMB AMI Engmt Pilot_Gas'!H6 -> 0 | N49: ='SMB AMI Engmt Pilot_Gas'!I6 -> 0 | O49: ='SMB AMI Engmt Pilot_Gas'!J6 -> 0 | P49: ='SMB AMI Engmt Pilot_Gas'!K6 -> 0 | Q49: ='SMB AMI Engmt Pilot_Gas'!L6 -> 0 | R49: ='SMB AMI Engmt Pilot_Gas'!M6 -> 0 | S49: ='SMB AMI Engmt Pilot_Gas'!N6 -> 0
G50: Total, Pilots | I50: =I45+I48 -> 0 | J50: =J45+J48 -> 0 | K50: 0 | L50: 0 | M50: 0 | N50: 0 | O50: 0 | P50: 0 | Q50: 0 | R50: 0 | S50: 0
C54: Regional Efficiency Programs
B55: TDSM_Regnl_Gas_g219 | E55: Targeted DSM | H55: 18230267 | I55: ='TDSM_Regnl_G219 Gas'!D6 -> 91868 | J55: ='TDSM_Regnl_G219 Gas'!E6 -> 72851.32 | K55: ='TDSM_Regnl_G219 Gas'!F6 -> 10000 | L55: ='TDSM_Regnl_G219 Gas'!G6 -> 800 | M55: ='TDSM_Regnl_G219 Gas'!H6 -> 60000 | N55: ='TDSM_Regnl_G219 Gas'!I6 -> 0 | O55: ='TDSM_Regnl_G219 Gas'!J6 -> 0 | P55: ='TDSM_Regnl_G219 Gas'!K6 -> 32000 | Q55: ='TDSM_Regnl_G219 Gas'!L6 -> 0 | R55: ='TDSM_Regnl_G219 Gas'!M6 -> 267519.32 | S55: ='TDSM_Regnl_G219 Gas'!N6 -> 0
E56: NW Gas Market Transformation | H56: 18230660 | I56: ='NEEA Gas MT_no Sched Gas'!D6 -> 0 | J56: ='NEEA Gas MT_no Sched Gas'!E6 -> 0 | K56: ='NEEA Gas MT_no Sched Gas'!F6 -> 0 | L56: ='NEEA Gas MT_no Sched Gas'!G6 -> 0 | M56: ='NEEA Gas MT_no Sched Gas'!H6 -> 2983459 | N56: ='NEEA Gas MT_no Sched Gas'!I6 -> 0 | O56: ='NEEA Gas MT_no Sched Gas'!J6 -> 0 | P56: ='NEEA Gas MT_no Sched Gas'!K6 -> 0 | R56: ='NEEA Gas MT_no Sched Gas'!M6 -> 2983459 | S56: ='NEEA Gas MT_no Sched Gas'!N6 -> 0
G57: Total, Regional Efficiency Programs | I57: =SUM(I55:I56) -> 91868 | J57: =SUM(J55:J56) -> 72851.32 | K57: 10000 | L57: 800 | M57: 3043459 | N57: 0 | O57: 0 | P57: 32000 | Q57: 0 | R57: 3250978.32 | S57: 0
C61: Energy Efficiency Portfolio Support
B62: Data & Systm Svcs Detail Gas | E62: Data and Systems Services | H62: 18231005 | I62: ='Data & Systm Svcs Detail Gas'!D6 -> 71032 | J62: ='Data & Systm Svcs Detail Gas'!E6 -> 56328.38 | K62: ='Data & Systm Svcs Detail Gas'!F6 -> 0 | L62: ='Data & Systm Svcs Detail Gas'!G6 -> 1300 | M62: ='Data & Systm Svcs Detail Gas'!H6 -> 40300 | N62: ='Data & Systm Svcs Detail Gas'!I6 -> 0 | O62: ='Data & Systm Svcs Detail Gas'!J6 -> 0 | P62: ='Data & Systm Svcs Detail Gas'!K6 -> 0 | Q62: ='Data & Systm Svcs Detail Gas'!L6 -> 0 | R62: ='Data & Systm Svcs Detail Gas'!M6 -> 168960.38
B63: Rebt Procg_Detail Gas | E63: Rebates Processing | H63: 18230659 | I63: ='Rebt Procg_Detail Gas'!D6 -> 74623 | J63: ='Rebt Procg_Detail Gas'!E6 -> 59176.04 | K63: ='Rebt Procg_Detail Gas'!F6 -> 0 | L63: ='Rebt Procg_Detail Gas'!G6 -> 3500 | M63: ='Rebt Procg_Detail Gas'!H6 -> 14000 | N63: ='Rebt Procg_Detail Gas'!I6 -> 1000 | O63: ='Rebt Procg_Detail Gas'!J6 -> 0 | P63: ='Rebt Procg_Detail Gas'!K6 -> 0 | Q63: ='Rebt Procg_Detail Gas'!L6 -> 0 | R63: ='Rebt Procg_Detail Gas'!M6 -> 152299.04
B64: Vteam Detail_R&C_Gas | E64: Verification Team | H64: 18230668 | I64: ='Verifctn team Detail Gas'!D6 -> 78393 | J64: ='Verifctn team Detail Gas'!E6 -> 62165.65 | K64: ='Verifctn team Detail Gas'!F6 -> 0 | L64: ='Verifctn team Detail Gas'!G6 -> 2000 | M64: ='Verifctn team Detail Gas'!H6 -> 10000 | N64: ='Verifctn team Detail Gas'!I6 -> 1000 | O64: ='Verifctn team Detail Gas'!J6 -> 0 | P64: ='Verifctn team Detail Gas'!K6 -> 0 | Q64: ='Verifctn team Detail Gas'!L6 -> 0 | R64: ='Verifctn team Detail Gas'!M6 -> 153558.65
B65: ProgDev Detail_R&C_ Elec | E65: Programs Support | H65: 18230688 | I65: ='Progs Supp Detail_PS_Gas'!D6 -> 100282 | J65: ='Progs Supp Detail_PS_Gas'!E6 -> 79523.63 | K65: ='Progs Supp Detail_PS_Gas'!F6 -> 0 | L65: ='Progs Supp Detail_PS_Gas'!G6 -> 5200 | M65: ='Progs Supp Detail_PS_Gas'!H6 -> 0 | N65: ='Progs Supp Detail_PS_Gas'!I6 -> 0 | O65: ='Progs Supp Detail_PS_Gas'!J6 -> 0 | P65: ='Progs Supp Detail_PS_Gas'!K6 -> 0 | Q65: ='Progs Supp Detail_PS_Gas'!L6 -> 0 | R65: ='Progs Supp Detail_PS_Gas'!M6 -> 185005.63
B66: TradeAlly Detail_PS_gas | E66: Trade Ally Memberships | H66: 18230698 | I66: ='TradeAlly Detail_PS_gas'!D6 -> 0 | J66: ='TradeAlly Detail_PS_gas'!E6 -> 0 | K66: ='TradeAlly Detail_PS_gas'!F6 -> 0 | L66: ='TradeAlly Detail_PS_gas'!G6 -> 0 | M66: ='TradeAlly Detail_PS_gas'!H6 -> 26000 | N66: ='TradeAlly Detail_PS_gas'!I6 -> 0 | O66: ='TradeAlly Detail_PS_gas'!J6 -> 0 | P66: ='TradeAlly Detail_PS_gas'!K6 -> 0 | Q66: ='TradeAlly Detail_PS_gas'!L6 -> 0 | R66: ='TradeAlly Detail_PS_gas'!M6 -> 26000
B67: CAN_PS_Detail Gas | E67: Trade Ally Network (revenue + cost) | H67: 18230268 | I67: ='REP_PS_Detail Gas'!D6 -> 131700 | J67: ='REP_PS_Detail Gas'!E6 -> 104438.1 | K67: ='REP_PS_Detail Gas'!F6 -> 20000 | L67: ='REP_PS_Detail Gas'!G6 -> 5000 | M67: ='REP_PS_Detail Gas'!H6 -> 60000 | N67: ='REP_PS_Detail Gas'!I6 -> 2000 | O67: ='REP_PS_Detail Gas'!J6 -> 500 | P67: ='REP_PS_Detail Gas'!K6 -> 0 | Q67: ='REP_PS_Detail Gas'!L6 -> -340000 | R67: ='REP_PS_Detail Gas'!M6 -> -16361.9
B68: ABS Detail_PSWE_Gas | E68: Energy CAP | H68: 18230231 | I68: ='Energy CAP_Gas'!D6 -> 244455 | J68: ='Energy CAP_Gas'!E6 -> 193852.82 | K68: ='Energy CAP_Gas'!F6 -> 0 | L68: ='Energy CAP_Gas'!G6 -> 0 | M68: ='Energy CAP_Gas'!H6 -> 296400 | N68: ='Energy CAP_Gas'!I6 -> 0 | O68: ='Energy CAP_Gas'!J6 -> 0 | P68: ='Energy CAP_Gas'!K6 -> 0 | Q68: ='Energy CAP_Gas'!L6 -> 0 | R68: ='Energy CAP_Gas'!M6 -> 734707.82
B69: Engy Adv Detail_PSCE_Gas | E69: Energy Advisors | H69: 18230226 | I69: ='Engy Adv Detail_PSCE_Gas'!D6 -> 134563 | J69: ='Engy Adv Detail_PSCE_Gas'!E6 -> 106708.46 | K69: ='Engy Adv Detail_PSCE_Gas'!F6 -> 0 | L69: ='Engy Adv Detail_PSCE_Gas'!G6 -> 0 | M69: ='Engy Adv Detail_PSCE_Gas'!H6 -> 0 | N69: ='Engy Adv Detail_PSCE_Gas'!I6 -> 0 | O69: ='Engy Adv Detail_PSCE_Gas'!J6 -> 0 | P69: ='Engy Adv Detail_PSCE_Gas'!K6 -> 0 | Q69: ='Engy Adv Detail_PSCE_Gas'!L6 -> 0 | R69: ='Engy Adv Detail_PSCE_Gas'!M6 -> 241271.46
E70: Public Participation - Equity | H70: 18230230 | I70: ='Public Part Equity_Gas'!D6 -> 0 | J70: ='Public Part Equity_Gas'!E6 -> 0 | K70: ='Public Part Equity_Gas'!F6 -> 0 | L70: ='Public Part Equity_Gas'!G6 -> 0 | M70: ='Public Part Equity_Gas'!H6 -> 39620 | N70: ='Public Part Equity_Gas'!I6 -> 4015 | O70: ='Public Part Equity_Gas'!J6 -> 0 | P70: ='Public Part Equity_Gas'!K6 -> 0 | Q70: ='Public Part Equity_Gas'!L6 -> 0 | R70: ='Public Part Equity_Gas'!M6 -> 43635
B71: EEC Detail_PS_Gas | E71: Energy Efficient Communities | H71: 18230227 | I71: ='EEC Detail_PS_Gas'!D6 -> 98980 | J71: ='EEC Detail_PS_Gas'!E6 -> 78491.14 | K71: ='EEC Detail_PS_Gas'!F6 -> 2600 | L71: ='EEC Detail_PS_Gas'!G6 -> 3647 | M71: ='EEC Detail_PS_Gas'!H6 -> 2600 | N71: ='EEC Detail_PS_Gas'!I6 -> 3347 | O71: ='EEC Detail_PS_Gas'!J6 -> 0 | P71: ='EEC Detail_PS_Gas'!K6 -> 0 | Q71: ='EEC Detail_PS_Gas'!L6 -> 0 | R71: ='EEC Detail_PS_Gas'!M6 -> 189665.14
E72: Customer Digital Services | I72: =SUM(I73:I76) -> 113165 | J72: =SUM(J73:J76) -> 89739.84 | K72: 137500 | L72: 2750 | M72: 208481.32 | N72: 0 | O72: 0 | P72: 0 | Q72: 0 | R72: 551636.16
E73: Digital Experience | H73: 18230228 | I73: ='Dig Exprnc_Gas'!D6 -> 0 | J73: ='Dig Exprnc_Gas'!E6 -> 0 | K73: ='Dig Exprnc_Gas'!F6 -> 0 | L73: ='Dig Exprnc_Gas'!G6 -> 0 | M73: ='Dig Exprnc_Gas'!H6 -> 0 | N73: ='Dig Exprnc_Gas'!I6 -> 0 | O73: ='Dig Exprnc_Gas'!J6 -> 0 | P73: ='Dig Exprnc_Gas'!K6 -> 0 | Q73: ='Dig Exprnc_Gas'!L6 -> 0 | R73: ='Dig Exprnc_Gas'!M6 -> 0
E74: Customer Digital Experience | H74: 18230271 | I74: ='Customer Dig Exprnc_Gas'!D6 -> 17967 | J74: ='Customer Dig Exprnc_Gas'!E6 -> 14247.83 | K74: ='Customer Dig Exprnc_Gas'!F6 -> 0 | L74: ='Customer Dig Exprnc_Gas'!G6 -> 0 | M74: ='Customer Dig Exprnc_Gas'!H6 -> 65436.08 | N74: ='Customer Dig Exprnc_Gas'!I6 -> 0 | O74: ='Customer Dig Exprnc_Gas'!J6 -> 0 | P74: ='Customer Dig Exprnc_Gas'!K6 -> 0 | Q74: ='Customer Dig Exprnc_Gas'!L6 -> 0 | R74: ='Customer Dig Exprnc_Gas'!M6 -> 97650.91
B75: CustAwarTools_gas | E75: Cutomer Awareness Tools | H75: 18230272 | I75: =CustAwarTools_gas!D6 -> 30900 | J75: =CustAwarTools_gas!E6 -> 24503.7 | K75: =CustAwarTools_gas!F6 -> 0 | L75: =CustAwarTools_gas!G6 -> 250 | M75: =CustAwarTools_gas!H6 -> 103545.24 | N75: =CustAwarTools_gas!I6 -> 0 | O75: =CustAwarTools_gas!J6 -> 0 | P75: =CustAwarTools_gas!K6 -> 0 | Q75: =CustAwarTools_gas!L6 -> 0 | R75: =CustAwarTools_gas!M6 -> 159198.94
B76: ShopPSE_gas | E76: PSE Marketplace | H76: 18230662 | I76: ='PSE Mktplc_gas'!D6 -> 64298 | J76: ='PSE Mktplc_gas'!E6 -> 50988.31 | K76: ='PSE Mktplc_gas'!F6 -> 137500 | L76: ='PSE Mktplc_gas'!G6 -> 2500 | M76: ='PSE Mktplc_gas'!H6 -> 39500 | N76: ='PSE Mktplc_gas'!I6 -> 0 | O76: ='PSE Mktplc_gas'!J6 -> 0 | P76: ='PSE Mktplc_gas'!K6 -> 0 | Q76: ='PSE Mktplc_gas'!L6 -> 0 | R76: ='PSE Mktplc_gas'!M6 -> 294786.31
B77: Mkt Intg Detail_PSWE_Gas | E77: Market Integration | H77: 18230224 | I77: ='Mkt Intg Detail_PSWE_Gas'!D6 -> 42828 | J77: ='Mkt Intg Detail_PSWE_Gas'!E6 -> 33962.6 | K77: ='Mkt Intg Detail_PSWE_Gas'!F6 -> 259389 | L77: ='Mkt Intg Detail_PSWE_Gas'!G6 -> 0 | M77: ='Mkt Intg Detail_PSWE_Gas'!H6 -> 60450 | N77: ='Mkt Intg Detail_PSWE_Gas'!I6 -> 0 | O77: ='Mkt Intg Detail_PSWE_Gas'!J6 -> 0 | P77: ='Mkt Intg Detail_PSWE_Gas'!K6 -> 0 | Q77: ='Mkt Intg Detail_PSWE_Gas'!L6 -> 0 | R77: ='Mkt Intg Detail_PSWE_Gas'!M6 -> 396629.6
B78: Events Detail_PSCE_Gas | E78: Events | H78: 18230225 | I78: ='Events Detail_PSCE_Gas'!D6 -> 16001 | J78: ='Events Detail_PSCE_Gas'!E6 -> 12688.79 | K78: ='Events Detail_PSCE_Gas'!F6 -> 0 | L78: ='Events Detail_PSCE_Gas'!G6 -> 0 | M78: ='Events Detail_PSCE_Gas'!H6 -> 56402 | N78: ='Events Detail_PSCE_Gas'!I6 -> 2600 | O78: ='Events Detail_PSCE_Gas'!J6 -> 0 | P78: ='Events Detail_PSCE_Gas'!K6 -> 0 | Q78: ='Events Detail_PSCE_Gas'!L6 -> 0 | R78: ='Events Detail_PSCE_Gas'!M6 -> 87691.79
G79: Total, Portfolio Support | I79: =SUM(I62:I72)+SUM(I77:I78) -> 1106022 | J79: =SUM(J62:J72)+SUM(J77:J78) -> 877075.45 | K79: 419489 | L79: 23397 | M79: 814253.32 | N79: 13962 | O79: 500 | P79: 0 | Q79: -340000 | R79: =SUM(R62:R72)+SUM(R77:R78) -> 2914698.77
C83: Energy Efficiency Research & Compliance
B84: Supp Crv Detail_R&C_gas | E84: Conservation Supply Curves | H84: 18230264 | I84: ='Supp Crv Detail_R&C_gas'!D6 -> 23334 | J84: ='Supp Crv Detail_R&C_gas'!E6 -> 18503.86 | K84: ='Supp Crv Detail_R&C_gas'!F6 -> 0 | L84: ='Supp Crv Detail_R&C_gas'!G6 -> 0 | M84: ='Supp Crv Detail_R&C_gas'!H6 -> 47000 | N84: ='Supp Crv Detail_R&C_gas'!I6 -> 0 | O84: ='Supp Crv Detail_R&C_gas'!J6 -> 0 | P84: ='Supp Crv Detail_R&C_gas'!K6 -> 0 | Q84: ='Supp Crv Detail_R&C_gas'!L6 -> 0 | R84: ='Supp Crv Detail_R&C_gas'!M6 -> 88837.86
B85: Strat Pln Detail_R&C_Gas | E85: Strategic Planning | H85: 18230261 | I85: ='Strat Pln Detail_R&C_Gas'!D6 -> 62561 | J85: ='Strat Pln Detail_R&C_Gas'!E6 -> 49610.87 | K85: ='Strat Pln Detail_R&C_Gas'!F6 -> 0 | L85: ='Strat Pln Detail_R&C_Gas'!G6 -> 1950 | M85: ='Strat Pln Detail_R&C_Gas'!H6 -> 0 | N85: ='Strat Pln Detail_R&C_Gas'!I6 -> 0 | O85: ='Strat Pln Detail_R&C_Gas'!J6 -> 0 | P85: ='Strat Pln Detail_R&C_Gas'!K6 -> 0 | Q85: ='Strat Pln Detail_R&C_Gas'!L6 -> 0 | R85: ='Strat Pln Detail_R&C_Gas'!M6 -> 114121.87
B86: Mktg Rsch Detail_PS_gas | E86: Market Research | H86: 18230260 | I86: ='Mktg Rsch Detail_PS_gas'!D6 -> 11742 | J86: ='Mktg Rsch Detail_PS_gas'!E6 -> 9311.41 | K86: ='Mktg Rsch Detail_PS_gas'!F6 -> 0 | L86: ='Mktg Rsch Detail_PS_gas'!G6 -> 0 | M86: ='Mktg Rsch Detail_PS_gas'!H6 -> 4729 | N86: ='Mktg Rsch Detail_PS_gas'!I6 -> 0 | O86: ='Mktg Rsch Detail_PS_gas'!J6 -> 0 | P86: ='Mktg Rsch Detail_PS_gas'!K6 -> 0 | Q86: ='Mktg Rsch Detail_PS_gas'!L6 -> 0 | R86: ='Mktg Rsch Detail_PS_gas'!M6 -> 25782.41
B87: Eval Detail_R&C_Gas | E87: Program Evaluation | H87: 18230263 | I87: ='Eval Detail_R&C_Gas'!D6 -> 26201.4 | J87: ='Eval Detail_R&C_Gas'!E6 -> 20777.71 | K87: ='Eval Detail_R&C_Gas'!F6 -> 0 | L87: ='Eval Detail_R&C_Gas'!G6 -> 975 | M87: ='Eval Detail_R&C_Gas'!H6 -> 127614 | N87: ='Eval Detail_R&C_Gas'!I6 -> 0 | O87: ='Eval Detail_R&C_Gas'!J6 -> 0 | P87: ='Eval Detail_R&C_Gas'!K6 -> 0 | Q87: ='Eval Detail_R&C_Gas'!L6 -> 0 | R87: ='Eval Detail_R&C_Gas'!M6 -> 175568.11
B88: BECAR Detail_R&C Elec | E88: Biennial Consv. Aquisitn. Review | H88: 18230262 | I88: ='BCAR Detail Gas'!D6 -> 0 | J88: ='BCAR Detail Gas'!E6 -> 0 | K88: ='BCAR Detail Gas'!F6 -> 0 | L88: ='BCAR Detail Gas'!G6 -> 0 | M88: ='BCAR Detail Gas'!H6 -> 8700 | N88: ='BCAR Detail Gas'!I6 -> 0 | O88: ='BCAR Detail Gas'!J6 -> 0 | P88: ='BCAR Detail Gas'!K6 -> 0 | Q88: ='BCAR Detail Gas'!L6 -> 0 | R88: ='BCAR Detail Gas'!M6 -> 8700
B89: TechEval Detail Gas | E89: Technology Evaluation | H89: 18230229 | I89: ='TechEval Detail Gas'!C6 -> 1628 | J89: ='TechEval Detail Gas'!D6 -> 1291 | K89: ='TechEval Detail Gas'!E6 -> 0 | L89: ='TechEval Detail Gas'!F6 -> 0 | M89: ='TechEval Detail Gas'!G6 -> 19500 | N89: ='TechEval Detail Gas'!H6 -> 0 | O89: ='TechEval Detail Gas'!I6 -> 0 | P89: ='TechEval Detail Gas'!J6 -> 0 | R89: ='TechEval Detail Gas'!L6 -> 22419
G90: Total, Research & Compliance | I90: =SUM(I84:I89) -> 125466.4 | J90: =SUM(J84:J89) -> 99494.85 | K90: 0 | L90: 2925 | M90: =SUM(M84:M89) -> 207543 | N90: 0 | O90: 0 | P90: 0 | Q90: 0 | R90: 435429.25
C94: Other Customer Programs
B95: DemndResp_Detail_E249_Elec | C95: G249A | E95: Demand Response Pilot | H95: 18230266 | I95: =DmndResp_Detail_G249A_Gas!D6 -> 0 | J95: =DmndResp_Detail_G249A_Gas!E6 -> 0 | K95: =DmndResp_Detail_G249A_Gas!F6 -> 0 | L95: =DmndResp_Detail_G249A_Gas!G6 -> 0 | M95: =DmndResp_Detail_G249A_Gas!H6 -> 180000 | N95: =DmndResp_Detail_G249A_Gas!I6 -> 0 | O95: =DmndResp_Detail_G249A_Gas!J6 -> 0 | P95: =DmndResp_Detail_G249A_Gas!K6 -> 0 | Q95: =DmndResp_Detail_G249A_Gas!L6 -> 0 | R95: =DmndResp_Detail_G249A_Gas!M6 -> 180000
G96: Total, Other Energy Efficiency Programs | I96: =SUM(I95:I95) -> 0 | J96: 0 | K96: 0 | L96: 0 | M96: 180000 | N96: 0 | O96: 0 | P96: 0 | Q96: 0 | R96: 180000
G98: GRAND TOTAL, GAS PROGRAMS | I98: =I90+I79+I57+I50+I40+I21 -> 2889002.74 | J98: 2290979.17 | K98: 1111030 | L98: 55697 | M98: 6748219.29 | N98: 70262 | O98: 56000 | P98: 22512988.3 | Q98: -340000 | R98: =R90+R79+R57+R50+R40+R21+R96 -> 35574178.5 | S98: =S90+S79+S57+S50+S40+S21 -> 3829765.117
S101: 305279 | U101: =S101/S98 -> 0.07971219922
G102: Budget Category Includes | H102: This is the main level of tracking expenditures and expenses in EES. Per FERC rules, all conservation order numbers start with a "1823nnnn", where "n" is some number. Cost elements apply to all order numbers (for instance, all conservation programs that | I102: Energy Efficiency program staff labor. Average FTE cost including management assessments. This Budget Category group includes assessments from Major Accounts management, Resource Planning, Corporate Communications management, IT specialists and some building maintenance allocations. | J102: Overhead--costs associated with primarily employee labor; benefits, for instance. For 2017, includes micro-overhead | K102: Service and materials associated with the cost of printing program brochures, marketing pieces, advertising, banners, etc. Also includes marketing conducted by vendors and contractors. | L102: Costs associated with EE staff attending events, employee training, conferences, business meals, business parking, ferry & bridge tolls, mileage incurred on employee automobiles, office supplies, phones, subscriptions, software/hardware, etc. | M102: Contractors and vendors, such as PECI, Ecos, CostCo, EFI, etc. Legal expenses, technical services (CMS design, PSE.com web portals, etc.). These costs do NOT include brochure development, marketing pieces, (which are classified under MARKETING). These costs do NOT include incentives paid to customers by contractors. | N102: Primarily tools, trade show equipment, etc. | O102: This category should seldomly be used, and only expenses that cannot be classified under one of the above categories. | P102: All costs associated with rebates, grants, remuneration, value-added services that have a direct bearing on a customer's perceived value of PSE offerings. | Q102: Any amount that PSE is paid by a customer, partner, municipality or outside entity.

Sheet LowIncWx Detail_REM E201_Elec
C1: Low Income Weatherization | D1: Schedule 201 | E1: Order Number | F1: 18230611 | G1: Electric | L1: Low Income Weatherization | M1: Schedule 201 | N1: Order Number | O1: 18230611 | P1: Electric | T1: Low Income Weatherization | U1: Schedule 201 | V1: Order Number | W1: 18230611 | X1: Electric
D2: ='Global Figures Reference'!D13 -> This table summarizes the subtotals in the detail table below and is used to populate 2024-2025 Sector view tables (located at the front of this workbook).
A3: Low Income Weatherization | D3: Program Labor | E3: Overhead | F3: Marketing | G3: Employee/Office Expense | H3: Outside Services | I3: Materials | J3: Miscellaneous | K3: DBtC | L3: Revenue | M3: Total Budget | N3: Total Savings
A4: Schedule 201
A5: Order Number | C5: ='Global Figures Reference'!D15 -> 2024 | D5: =E16 -> 170651 | E5: =E26 -> 153585.9 | F5: =E33 -> 97200 | G5: =E39 -> 2000 | H5: =E46 -> 22500 | I5: =E54 -> 1350 | J5: =E60 -> 0 | K5: =E66 -> 10313942.6 | L5: =E69 -> 0 | M5: =SUM(D5:L5) -> 10761229.5 | N5: =AP16 -> 2153755.7
A6: 18230611 | C6: ='Global Figures Reference'!D16 -> 2025 | D6: =F16 -> 175745 | E6: =F26 -> 139365.79 | F6: =F33 -> 97200 | G6: =F39 -> 2000 | H6: =F46 -> 22500 | I6: =F54 -> 1350 | J6: =F60 -> 0 | K6: =F66 -> 14172741.8 | L6: =F69 -> 0 | M6: =SUM(D6:L6) -> 14610902.59 | N6: =AQ16 -> 2150056.099
A7: Electric | C7: ='Global Figures Reference'!D17 -> 2024-2025 Total | D7: =D5+D6 -> 346396 | E7: =E5+E6 -> 292951.69 | F7: 194400 | G7: 4000 | H7: 45000 | I7: 2700 | J7: 0 | K7: 24486684.4 | L7: 0 | M7: 25372132.09 | N7: 4303811.799
M8: =G14-M7 -> 0 | N8: =N7-AR16 -> 0
D9: Spending Section | I9: Savings Section | M9: Check | N9: Check
E12: ='Global Figures Reference'!D15 -> 2024 | F12: ='Global Figures Reference'!D16 -> 2025
AM13: Unit Totals | AP13: Projected Savings - kWh | AS13: Incentive Totals - E | AV13: Program Support
D14: Total Program Expenses | E14: =E16+E26+E33+E39+E46+E54+E60+E66 -> 10761229.5 | F14: =F16+F26+F33+F39+F46+F54+F60+F66 -> 14610902.59 | G14: =G16+G26+G33+G39+G46+G54+G60+G66+G72 -> 25372132.09 | I14: Measure Case Information | L14: Measure Metrics | AM14: 2024 | AN14: 2025 | AO14: Biennium | AP14: 2024 | AQ14: 2025 | AR14: Biennium | AS14: 2024 | AT14: 2025 | AU14: Biennium | AV14: Agency % | AW14: Paid to Agency | AZ14: PSE | BC14: Combined | BD14: Program Dollars | BE14: Program Dollars | BF14: Other Cost Contributions
B15: FTE (2 decimals max) | I15: Grouping | J15: Approval Status | K15: DSMC ID | L15: Measure Name | M15: Description | N15: Measure Category | O15: Measure Type | P15: Measure Sub-Type | Q15: Measure Version | R15: Unit Savings - kWh [Period 1] | S15: Unit Savings - kWh [Period 2] | T15: Unit Savings - Therm [Period 1] | U15: Unit Savings - Therm [Period 2] | V15: Savings UOM Type | W15: Unit Type | X15: Source of Savings Type | Y15: PSE-Deemed Type | Z15: Unit Incentive - kWh | AA15: Unit Incentive - Therm | AB15: Unit Measure Cost - kWh | AC15: Unit Measure Cost - Therm | AD15: Measure Cost Type | AE15: Measure Life [Period 1] | AF15: Measure Life [Period 2] | AG15: End Use | AH15: Secondary End Use [Dual Fuel Measures] | AI15: Unit Year 1 NEIs | AJ15: Unit Year 1 Improved Home Comfort | AK15: Unit Annual O&M | AM15: i | AN15: i | AV15: i | AW15: 2024 | AX15: 2025 | AY15: Biennium | AZ15: 2024 | BA15: 2025 | BB15: Biennium | BC15: 2024 | BD15: 2025 | BE15: Biennium | BF15: i
B16: 2024 | C16: 2025 | D16: Labor | E16: 170651 | F16: 175745 | G16: 346396 | AO16: 0 | AP16: 2153755.7 | AQ16: 2150056.099 | AR16: 4303811.799 | AS16: 7933802 | AT16: 10902109.08 | AU16: 18835911.08 | AV16: 0 | AW16: 2380140.6 | AX16: 3270632.724 | AY16: 5650773.324 | AZ16: 476028.12 | BA16: 545105.454 | BB16: 1021133.574 | BC16: 2856168.72 | BD16: 3815738.178 | BE16: 6671906.898 | BF16: 0
B17: 0.85 | C17: 0.85 | D17: Program Manager | E17: 90950 | F17: 93670 | G17: 184620 | I17: 0 | J17: 0 | K17: 0 | L17: Shareholder | M17: 0 | N17: 0 | O17: 0 | P17: 0 | Q17: 0 | R17: 0 | S17: 0 | T17: 0 | U17: 0 | V17: kWh | W17: calculated | X17: 0 | Y17: 0 | Z17: 0 | AA17: 0 | AB17: 0 | AC17: 0 | AD17: 0 | AE17: 0 | AF17: 0 | AG17: 0 | AH17: 0 | AI17: 0 | AJ17: 0 | AK17: 0 | AL17: 0 | AM17: 0 | AN17: 0 | AP17: 0 | AQ17: 0 | AR17: 0 | AS17: 0 | AT17: 0 | AU17: 0 | AV17: 0 | AW17: 0 | AX17: 0 | AY17: 0 | AZ17: 0 | BA17: 0 | BB17: 0 | BC17: 0 | BD17: 0 | BE17: 0 | BF17: 0
B18: 0.64 | C18: 0.64 | D18: Program Support | E18: 47616 | F18: 49024 | G18: 96640 | I18: 0 | J18: 0 | K18: 0 | L18: Repairs - Year 1 | M18: 0 | N18: 0 | O18: 0 | P18: 0 | Q18: 0 | R18: 0 | S18: 0 | T18: 0 | U18: 0 | V18: kWh | W18: calculated | X18: 0 | Y18: 0 | Z18: 1322300 | AA18: 0 | AB18: 1322300 | AC18: 0 | AD18: 0 | AE18: 1 | AF18: 0 | AG18: 0 | AH18: 0 | AI18: 1322300 | AJ18: 0 | AK18: 0 | AL18: 0 | AM18: 1 | AN18: 0 | AO18: 1 | AP18: 0 | AQ18: 0 | AR18: 0 | AS18: 1322300 | AT18: 0 | AU18: 1322300 | AV18: 0.3 | AW18: 396690 | AX18: 0 | AY18: 396690 | AZ18: 79338 | BA18: 0 | BB18: 79338 | BC18: 476028 | BD18: 0 | BE18: 476028 | BF18: 0
B19: 0.23 | C19: 0.23 | D19: Supervisor or Consultant | E19: 32085 | F19: 33051 | G19: 65136 | I19: 0 | J19: 0 | K19: 0 | L19: Repairs - Year 2 | M19: 0 | N19: 0 | O19: 0 | P19: 0 | Q19: 0 | R19: 0 | S19: 0 | T19: 0 | U19: 0 | V19: kWh | W19: calculated | X19: 0 | Y19: 0 | Z19: 1322300 | AA19: 0 | AB19: 1322300 | AC19: 0 | AD19: 0 | AE19: 1 | AF19: 0 | AG19: 0 | AH19: 0 | AI19: 1322300 | AJ19: 0 | AK19: 0 | AL19: 0 | AM19: 0 | AN19: 1 | AO19: 1 | AP19: 0 | AQ19: 0 | AR19: 0 | AS19: 0 | AT19: 1322300 | AU19: 1322300 | AV19: 0.3 | AW19: 0 | AX19: 396690 | AY19: 396690 | AZ19: 0 | BA19: 66115 | BB19: 66115 | BC19: 0 | BD19: 462805 | BE19: 462805 | BF19: 0
B20: 0 | C20: 0 | D20: 0 | E20: 0 | F20: 0 | G20: 0 | I20: Air_Sealing | J20: Open | K20: 13944 | L20: Sealing - Air - Prescriptive - EH - MH - LI | M20: Prescriptive air sealing: manufactured home heated with electricity; low income customer | N20: Weatherization | O20: Sealing | P20: Air Sealing | Q20: 2 | R20: 0.34 | S20: 0 | T20: 0 | U20: 0 | V20: kWh | W20: per unit | X20: RTF-deemed | Y20: 0 | Z20: 1.58 | AA20: 0 | AB20: 1.58 | AC20: 0 | AD20: Full | AE20: 25 | AF20: 0 | AG20: SF Space Heat | AH20: 0 | AI20: 0.0279 | AJ20: 0.0021 | AK20: 0 | AL20: 0 | AM20: 70000 | AN20: 0 | AO20: 70000 | AP20: 23800 | AQ20: 0 | AR20: 23800 | AS20: 110600 | AT20: 0 | AU20: 110600 | AV20: 0.3 | AW20: 33180 | AX20: 0 | AY20: 33180 | AZ20: 6636 | BA20: 0 | BB20: 6636 | BC20: 39816 | BD20: 0 | BE20: 39816 | BF20: 0
B21: 0 | C21: 0 | D21: 0 | E21: 0 | F21: 0 | G21: 0 | I21: Air_Sealing | J21: Open | K21: 13945 | L21: Sealing - Air - Prescriptive - EH - SF - LI | M21: Prescriptive air sealing: single family dwelling heated with electricity; low income customer | N21: Weatherization | O21: Sealing | P21: Air Sealing | Q21: 2 | R21: 0.13 | S21: 0 | T21: 0 | U21: 0 | V21: kWh | W21: per unit | X21: RTF-deemed | Y21: 0 | Z21: 1.81 | AA21: 0 | AB21: 1.81 | AC21: 0 | AD21: Full | AE21: 15 | AF21: 0 | AG21: SF Space Heat | AH21: 0 | AI21: 0.0107 | AJ21: 0.0008 | AK21: 0 | AL21: 0 | AM21: 40000 | AN21: 0 | AO21: 40000 | AP21: 5200 | AQ21: 0 | AR21: 5200 | AS21: 72400 | AT21: 0 | AU21: 72400 | AV21: 0.3 | AW21: 21720 | AX21: 0 | AY21: 21720 | AZ21: 4344 | BA21: 0 | BB21: 4344 | BC21: 26064 | BD21: 0 | BE21: 26064 | BF21: 0
B22: 0 | C22: 0 | D22: 0 | E22: 0 | F22: 0 | G22: 0 | I22: Air_Sealing | J22: Open | K22: 13952 | L22: Sealing - Duct - EH - MH - LI | M22: Duct sealing: manufactured home heated with electricity; low income customer | N22: Weatherization | O22: Sealing | P22: Duct Sealing | Q22: 2 | R22: 888.03 | S22: 0 | T22: 0 | U22: 0 | V22: kWh | W22: per home | X22: PSE-deemed | Y22: Other Utility | Z22: 714 | AA22: 0 | AB22: 714 | AC22: 0 | AD22: Full | AE22: 18 | AF22: 0 | AG22: SF Space Heat | AH22: 0 | AI22: 246.3253 | AJ22: 46.4876 | AK22: 0 | AL22: 0 | AM22: 50 | AN22: 0 | AO22: 50 | AP22: 44401.5 | AQ22: 0 | AR22: 44401.5 | AS22: 35700 | AT22: 0 | AU22: 35700 | AV22: 0.3 | AW22: 10710 | AX22: 0 | AY22: 10710 | AZ22: 2142 | BA22: 0 | BB22: 2142 | BC22: 12852 | BD22: 0 | BE22: 12852 | BF22: 0
B23: 0 | C23: 0 | D23: 0 | E23: 0 | F23: 0 | G23: 0 | I23: Air_Sealing | J23: Open | K23: 13953 | L23: Sealing - Duct - EH - SF - LI | M23: Duct sealing: single family dwelling heated with electricity; low income customer | N23: Weatherization | O23: Sealing | P23: Duct Sealing | Q23: 2 | R23: 1134 | S23: 0 | T23: 0 | U23: 0 | V23: kWh | W23: per home | X23: RTF-deemed | Y23: 0 | Z23: 895 | AA23: 0 | AB23: 895 | AC23: 0 | AD23: Full | AE23: 20 | AF23: 0 | AG23: SF Space Heat | AH23: 0 | AI23: 90.0306 | AJ23: 2.0808 | AK23: 0 | AL23: 0 | AM23: 15 | AN23: 0 | AO23: 15 | AP23: 17010 | AQ23: 0 | AR23: 17010 | AS23: 13425 | AT23: 0 | AU23: 13425 | AV23: 0.3 | AW23: 4027.5 | AX23: 0 | AY23: 4027.5 | AZ23: 805.5 | BA23: 0 | BB23: 805.5 | BC23: 4833 | BD23: 0 | BE23: 4833 | BF23: 0
B24: 0 | C24: 0 | D24: 0 | E24: 0 | F24: 0 | G24: 0 | I24: Air_Sealing | J24: Open | K24: 13956 | L24: Sealing - Shell - EH - MH - LI | M24: Shell sealing: manufactured home heated with electricity; low income customer | N24: Weatherization | O24: Sealing | P24: Shell Sealing | Q24: 2 | R24: 0.34 | S24: 0 | T24: 0 | U24: 0 | V24: kWh | W24: per unit | X24: RTF-deemed | Y24: 0 | Z24: 1.58 | AA24: 0 | AB24: 1.58 | AC24: 0 | AD24: Full | AE24: 25 | AF24: 0 | AG24: SF Space Heat | AH24: 0 | AI24: 0.1922 | AJ24: 0.1646 | AK24: 0 | AL24: 0 | AM24: 140000 | AN24: 0 | AO24: 140000 | AP24: 47600 | AQ24: 0 | AR24: 47600 | AS24: 221200 | AT24: 0 | AU24: 221200 | AV24: 0.3 | AW24: 66360 | AX24: 0 | AY24: 66360 | AZ24: 13272 | BA24: 0 | BB24: 13272 | BC24: 79632 | BD24: 0 | BE24: 79632 | BF24: 0
B25: 1.72 | C25: 1.72 | I25: Air_Sealing | J25: Open | K25: 13957 | L25: Sealing - Shell - EH - SF - LI | M25: Shell sealing: single family dwelling heated with electricity; low income customer | N25: Weatherization | O25: Sealing | P25: Shell Sealing | Q25: 2 | R25: 0.13 | S25: 0 | T25: 0 | U25: 0 | V25: kWh | W25: per unit | X25: PSE-deemed | Y25: RTF Derived | Z25: 1.81 | AA25: 0 | AB25: 1.81 | AC25: 0 | AD25: Full | AE25: 15 | AF25: 0 | AG25: SF Space Heat | AH25: 0 | AI25: 0.0391 | AJ25: 0.0289 | AK25: 0 | AL25: 0 | AM25: 80000 | AN25: 0 | AO25: 80000 | AP25: 10400 | AQ25: 0 | AR25: 10400 | AS25: 144800 | AT25: 0 | AU25: 144800 | AV25: 0.3 | AW25: 43440 | AX25: 0 | AY25: 43440 | AZ25: 8688 | BA25: 0 | BB25: 8688 | BC25: 52128 | BD25: 0 | BE25: 52128 | BF25: 0
D26: Overhead (Labor OH + Micro OH) | E26: 153585.9 | F26: 139365.79 | G26: 292951.69 | I26: Air_Sealing | J26: Open | K26: 13940 | L26: Sealing - Air - Ceiling - EH - MF - LI | M26: Ceiling air sealing: multi-family dwelling heated with electricity; low income customer | N26: Weatherization | O26: Sealing | P26: Air Sealing | Q26: 2 | R26: 0 | S26: 0 | T26: 0 | U26: 0 | V26: kWh | W26: per unit | X26: 0 | Y26: 0 | Z26: 1.3 | AA26: 0 | AB26: 1.3 | AC26: 0 | AD26: Full | AE26: 45 | AF26: 0 | AG26: MF Space Heat | AH26: 0 | AI26: 0 | AJ26: 0 | AK26: 0 | AL26: 0 | AM26: 70000 | AN26: 0 | AO26: 70000 | AP26: 0 | AQ26: 0 | AR26: 0 | AS26: 91000 | AT26: 0 | AU26: 91000 | AV26: 0.3 | AW26: 27300 | AX26: 0 | AY26: 27300 | AZ26: 5460 | BA26: 0 | BB26: 5460 | BC26: 32760 | BD26: 0 | BE26: 32760 | BF26: 0
D27: Percentages for Applicable Year | E27: 0.9 | F27: 0.793 | G27: 0 | I27: Air_Sealing | J27: Open | K27: 13941 | L27: Sealing - Air - Floor - EH - MF - LI | M27: Floor air sealing: multi-family dwelling heated with electricity; low income customer | N27: Weatherization | O27: Sealing | P27: Air Sealing | Q27: 2 | R27: 0 | S27: 0 | T27: 0 | U27: 0 | V27: kWh | W27: per unit | X27: 0 | Y27: 0 | Z27: 1.3 | AA27: 0 | AB27: 1.3 | AC27: 0 | AD27: Full | AE27: 45 | AF27: 0 | AG27: MF Space Heat | AH27: 0 | AI27: 0 | AJ27: 0 | AK27: 0 | AL27: 0 | AM27: 63000 | AN27: 0 | AO27: 63000 | AP27: 0 | AQ27: 0 | AR27: 0 | AS27: 81900 | AT27: 0 | AU27: 81900 | AV27: 0.3 | AW27: 24570 | AX27: 0 | AY27: 24570 | AZ27: 4914 | BA27: 0 | BB27: 4914 | BC27: 29484 | BD27: 0 | BE27: 29484 | BF27: 0
D28: Direct Program Labor | E28: 153585.9 | F28: 139365.79 | G28: 292951.69 | I28: Air_Sealing | J28: Open | K28: 13942 | L28: Sealing - Air - Package - EH - MF - LI | M28: Package air sealing: multi-family dwelling heated with electricity; low income customer | N28: Weatherization | O28: Sealing | P28: Air Sealing | Q28: 2 | R28: 764 | S28: 0 | T28: 0 | U28: 0 | V28: kWh | W28: per home | X28: PSE-deemed | Y28: Evaluation Study | Z28: 0 | AA28: 0 | AB28: 0 | AC28: 0 | AD28: 0 | AE28: 45 | AF28: 0 | AG28: MF Space Heat | AH28: 0 | AI28: 68.7386 | AJ28: 10.5758 | AK28: 0 | AL28: 0 | AM28: 200 | AN28: 0 | AO28: 200 | AP28: 152800 | AQ28: 0 | AR28: 152800 | AS28: 0 | AT28: 0 | AU28: 0 | AV28: 0.3 | AW28: 0 | AX28: 0 | AY28: 0 | AZ28: 0 | BA28: 0 | BB28: 0 | BC28: 0 | BD28: 0 | BE28: 0 | BF28: 0
D29: 0 | E29: 0 | F29: 0 | G29: 0 | I29: Air_Sealing | J29: Open | K29: 13950 | L29: Sealing - Air - Wall - EH - MF - LI | M29: Wall air sealing: multi-family dwelling heated with electricity; low income customer | N29: Weatherization | O29: Sealing | P29: Air Sealing | Q29: 2 | R29: 0 | S29: 0 | T29: 0 | U29: 0 | V29: kWh | W29: per unit | X29: 0 | Y29: 0 | Z29: 3.01 | AA29: 0 | AB29: 3.01 | AC29: 0 | AD29: Full | AE29: 45 | AF29: 0 | AG29: MF Space Heat | AH29: 0 | AI29: 0 | AJ29: 0 | AK29: 0 | AL29: 0 | AM29: 57000 | AN29: 0 | AO29: 57000 | AP29: 0 | AQ29: 0 | AR29: 0 | AS29: 171570 | AT29: 0 | AU29: 171570 | AV29: 0.3 | AW29: 51471 | AX29: 0 | AY29: 51471 | AZ29: 10294.2 | BA29: 0 | BB29: 10294.2 | BC29: 61765.2 | BD29: 0 | BE29: 61765.2 | BF29: 0
D30: 0 | E30: 0 | F30: 0 | G30: 0 | I30: Insulation | J30: Open | K30: 14030 | L30: Insulation - SIR - Res - LI | M30: Insulation using Savings-to-Investment Ratio: residential low income customer | N30: Weatherization | O30: Insulation | P30: Building Shell | Q30: 1 | R30: 5000 | S30: 0 | T30: 0 | U30: 0 | V30: Dual | W30: per unit | X30: Custom | Y30: 0 | Z30: 15000 | AA30: 0 | AB30: 15000 | AC30: 0 | AD30: Full | AE30: 45 | AF30: 0 | AG30: SF Space Heat | AH30: SF Space Heat | AI30: 0 | AJ30: 0 | AK30: 0 | AL30: 0 | AM30: 1 | AN30: 1 | AO30: 2 | AP30: 5000 | AQ30: 5000 | AR30: 10000 | AS30: 15000 | AT30: 15000 | AU30: 30000 | AV30: 0.3 | AW30: 4500 | AX30: 4500 | AY30: 9000 | AZ30: 900 | BA30: 750 | BB30: 1650 | BC30: 5400 | BD30: 5250 | BE30: 10650 | BF30: 0
D31: 0 | E31: 0 | F31: 0 | G31: 0 | I31: Insulation | J31: Open | K31: 14031 | L31: Insulation - Slab On - SIR - EH - Res - LI | M31: Slab-on grade foundation insulation using Savings-to-Investment Ratio: home heated with electricity; low income customer | N31: Weatherization | O31: Insulation | P31: Slab On Grade Insulation | Q31: 1 | R31: 2800 | S31: 0 | T31: 0 | U31: 0 | V31: kWh | W31: per unit | X31: Custom | Y31: 0 | Z31: 8400 | AA31: 0 | AB31: 8400 | AC31: 0 | AD31: Full | AE31: 45 | AF31: 0 | AG31: MF Space Heat | AH31: 0 | AI31: 0 | AJ31: 0 | AK31: 0 | AL31: 0 | AM31: 1 | AN31: 1 | AO31: 2 | AP31: 2800 | AQ31: 2800 | AR31: 5600 | AS31: 8400 | AT31: 8400 | AU31: 16800 | AV31: 0.3 | AW31: 2520 | AX31: 2520 | AY31: 5040 | AZ31: 504 | BA31: 420 | BB31: 924 | BC31: 3024 | BD31: 2940 | BE31: 5964 | BF31: 0
I32: Insulation | J32: Open | K32: 14038 | L32: Insulation - Wall - Rigid - SIR - EH - Res - LI | M32: Rigid wall insulation using Savings-to-Investment Ratio: home heated with electricity; low income customer | N32: Weatherization | O32: Insulation | P32: Wall Insulation | Q32: 1 | R32: 4000 | S32: 0 | T32: 0 | U32: 0 | V32: kWh | W32: per unit | X32: Custom | Y32: 0 | Z32: 16000 | AA32: 0 | AB32: 16000 | AC32: 0 | AD32: Full | AE32: 45 | AF32: 0 | AG32: MF Space Heat | AH32: 0 | AI32: 0 | AJ32: 0 | AK32: 0 | AL32: 0 | AM32: 1 | AN32: 1 | AO32: 2 | AP32: 4000 | AQ32: 4000 | AR32: 8000 | AS32: 16000 | AT32: 16000 | AU32: 32000 | AV32: 0.3 | AW32: 4800 | AX32: 4800 | AY32: 9600 | AZ32: 960 | BA32: 800 | BB32: 1760 | BC32: 5760 | BD32: 5600 | BE32: 11360 | BF32: 0
D33: Marketing | E33: 97200 | F33: 97200 | G33: 194400 | I33: Insulation | J33: Open | K33: 13988 | L33: Insulation - Attic - R0 to R22 - EH - MH - LI | M33: R0 to R22 attic insulation: manufactured home heated with electricity; low income customer | N33: Weatherization | O33: Insulation | P33: Attic Insulation | Q33: 2 | R33: 0.68 | S33: 0 | T33: 0 | U33: 0 | V33: kWh | W33: square foot | X33: RTF-deemed | Y33: 0 | Z33: 2.12 | AA33: 0 | AB33: 2.12 | AC33: 0 | AD33: Full | AE33: 25 | AF33: 0 | AG33: SF Space Heat | AH33: 0 | AI33: 0 | AJ33: 0.0984 | AK33: 0 | AL33: 0 | AM33: 17000 | AN33: 0 | AO33: 17000 | AP33: 11560 | AQ33: 0 | AR33: 11560 | AS33: 36040 | AT33: 0 | AU33: 36040 | AV33: 0.3 | AW33: 10812 | AX33: 0 | AY33: 10812 | AZ33: 2162.4 | BA33: 0 | BB33: 2162.4 | BC33: 12974.4 | BD33: 0 | BE33: 12974.4 | BF33: 0
A34: Low Income Weatherization | D34: 0 | E34: 97200 | F34: 97200 | G34: 194400 | I34: Insulation | J34: Open | K34: 13990 | L34: Insulation - Attic - R0 to R30 - EH - MH - LI | M34: R0 to R30 attic insulation: manufactured home heated with electricity; low income customer | N34: Weatherization | O34: Insulation | P34: Attic Insulation | Q34: 2 | R34: 0.93 | S34: 0 | T34: 0 | U34: 0 | V34: kWh | W34: square foot | X34: RTF-deemed | Y34: 0 | Z34: 2.41 | AA34: 0 | AB34: 2.41 | AC34: 0 | AD34: Full | AE34: 25 | AF34: 0 | AG34: SF Space Heat | AH34: 0 | AI34: 0.3014 | AJ34: 0.2156 | AK34: 0 | AL34: 0 | AM34: 43000 | AN34: 0 | AO34: 43000 | AP34: 39990 | AQ34: 0 | AR34: 39990 | AS34: 103630 | AT34: 0 | AU34: 103630 | AV34: 0.3 | AW34: 31089 | AX34: 0 | AY34: 31089 | AZ34: 6217.8 | BA34: 0 | BB34: 6217.8 | BC34: 37306.8 | BD34: 0 | BE34: 37306.8 | BF34: 0
A35: Schedule 201 | D35: 0 | E35: 0 | F35: 0 | G35: 0 | I35: Insulation | J35: Open | K35: 13993 | L35: Insulation - Attic - R0 to R38 - EH - SF - LI | M35: R0 to R38 attic insulation: single family dwelling heated with electricity; low income customer | N35: Weatherization | O35: Insulation | P35: Attic Insulation | Q35: 2 | R35: 1.35 | S35: 0 | T35: 0 | U35: 0 | V35: kWh | W35: square foot | X35: PSE-deemed | Y35: RTF Derived | Z35: 2.63 | AA35: 0 | AB35: 2.63 | AC35: 0 | AD35: Full | AE35: 45 | AF35: 0 | AG35: SF Space Heat | AH35: 0 | AI35: 0.1857 | AJ35: 0.0639 | AK35: 0 | AL35: 0 | AM35: 1100 | AN35: 0 | AO35: 1100 | AP35: 1485 | AQ35: 0 | AR35: 1485 | AS35: 2893 | AT35: 0 | AU35: 2893 | AV35: 0.3 | AW35: 867.9 | AX35: 0 | AY35: 867.9 | AZ35: 173.58 | BA35: 0 | BB35: 173.58 | BC35: 1041.48 | BD35: 0 | BE35: 1041.48 | BF35: 0
A36: Order Number | D36: 0 | E36: 0 | F36: 0 | G36: 0 | I36: Insulation | J36: Open | K36: 13997 | L36: Insulation - Attic - R0 to R49 - EH - SF - LI | M36: R0 to R49 attic insulation: single family dwelling heated with electricity; low income customer | N36: Weatherization | O36: Insulation | P36: Attic Insulation | Q36: 2 | R36: 1.37 | S36: 0 | T36: 0 | U36: 0 | V36: kWh | W36: square foot | X36: PSE-deemed | Y36: RTF Derived | Z36: 2.93 | AA36: 0 | AB36: 2.93 | AC36: 0 | AD36: Full | AE36: 45 | AF36: 0 | AG36: SF Space Heat | AH36: 0 | AI36: 0.1669 | AJ36: 0.0435 | AK36: 0 | AL36: 0 | AM36: 10000 | AN36: 0 | AO36: 10000 | AP36: 13700 | AQ36: 0 | AR36: 13700 | AS36: 29300 | AT36: 0 | AU36: 29300 | AV36: 0.3 | AW36: 8790 | AX36: 0 | AY36: 8790 | AZ36: 1758 | BA36: 0 | BB36: 1758 | BC36: 10548 | BD36: 0 | BE36: 10548 | BF36: 0
A37: 18230611 | D37: 0 | E37: 0 | F37: 0 | G37: 0 | I37: Insulation | J37: Open | K37: 14001 | L37: Insulation - Attic - R11 to R38 - EH - SF - LI | M37: R11 to R38 attic insulation: single family dwelling heated with electricity; low income customer | N37: Weatherization | O37: Insulation | P37: Attic Insulation | Q37: 2 | R37: 0.36 | S37: 0 | T37: 0 | U37: 0 | V37: kWh | W37: square foot | X37: PSE-deemed | Y37: RTF Derived | Z37: 2.18 | AA37: 0 | AB37: 2.18 | AC37: 0 | AD37: Full | AE37: 45 | AF37: 0 | AG37: SF Space Heat | AH37: 0 | AI37: 0.0951 | AJ37: 0.0621 | AK37: 0 | AL37: 0 | AM37: 30000 | AN37: 0 | AO37: 30000 | AP37: 10800 | AQ37: 0 | AR37: 10800 | AS37: 65400 | AT37: 0 | AU37: 65400 | AV37: 0.3 | AW37: 19620 | AX37: 0 | AY37: 19620 | AZ37: 3924 | BA37: 0 | BB37: 3924 | BC37: 23544 | BD37: 0 | BE37: 23544 | BF37: 0
A38: Electric | I38: Insulation | J38: Open | K38: 14003 | L38: Insulation - Attic - R11 to R49 - EH - SF - LI | M38: R11 to R49 attic insulation: single family dwelling heated with electricity; low income customer | N38: Weatherization | O38: Insulation | P38: Attic Insulation | Q38: 2 | R38: 0.38 | S38: 0 | T38: 0 | U38: 0 | V38: kWh | W38: square foot | X38: PSE-deemed | Y38: RTF Derived | Z38: 2.49 | AA38: 0 | AB38: 2.49 | AC38: 0 | AD38: Full | AE38: 45 | AF38: 0 | AG38: SF Space Heat | AH38: 0 | AI38: 0.0953 | AJ38: 0.0605 | AK38: 0 | AL38: 0 | AM38: 9000 | AN38: 0 | AO38: 9000 | AP38: 3420 | AQ38: 0 | AR38: 3420 | AS38: 22410 | AT38: 0 | AU38: 22410 | AV38: 0.3 | AW38: 6723 | AX38: 0 | AY38: 6723 | AZ38: 1344.6 | BA38: 0 | BB38: 1344.6 | BC38: 8067.6 | BD38: 0 | BE38: 8067.6 | BF38: 0
D39: Employee Expense | E39: 2000 | F39: 2000 | G39: 4000 | I39: Insulation | J39: Open | K39: 14006 | L39: Insulation - Attic - R19 to R38 - EH - SF - LI | M39: R19 to R38 attic insulation: single family dwelling heated with electricity; low income customer | N39: Weatherization | O39: Insulation | P39: Attic Insulation | Q39: 2 | R39: 0.17 | S39: 0 | T39: 0 | U39: 0 | V39: kWh | W39: square foot | X39: PSE-deemed | Y39: RTF Derived | Z39: 1.77 | AA39: 0 | AB39: 1.77 | AC39: 0 | AD39: Full | AE39: 45 | AF39: 0 | AG39: SF Space Heat | AH39: 0 | AI39: 0.0726 | AJ39: 0.0568 | AK39: 0 | AL39: 0 | AM39: 14000 | AN39: 0 | AO39: 14000 | AP39: 2380 | AQ39: 0 | AR39: 2380 | AS39: 24780 | AT39: 0 | AU39: 24780 | AV39: 0.3 | AW39: 7434 | AX39: 0 | AY39: 7434 | AZ39: 1486.8 | BA39: 0 | BB39: 1486.8 | BC39: 8920.8 | BD39: 0 | BE39: 8920.8 | BF39: 0
D40: 0 | E40: 2000 | F40: 2000 | G40: 4000 | I40: Insulation | J40: Open | K40: 14013 | L40: Insulation - Floor - R0 to R19 - EH - SF - LI | M40: R0 to R19 floor insulation: single family dwelling heated with electricity; low income customer | N40: Weatherization | O40: Insulation | P40: Floor Insulation | Q40: 2 | R40: 0.36 | S40: 0 | T40: 0 | U40: 0 | V40: kWh | W40: square foot | X40: PSE-deemed | Y40: RTF Derived | Z40: 2.55 | AA40: 0 | AB40: 2.55 | AC40: 0 | AD40: Full | AE40: 45 | AF40: 0 | AG40: SF Space Heat | AH40: 0 | AI40: 0.073 | AJ40: 0.0403 | AK40: 0 | AL40: 0 | AM40: 2000 | AN40: 0 | AO40: 2000 | AP40: 720 | AQ40: 0 | AR40: 720 | AS40: 5100 | AT40: 0 | AU40: 5100 | AV40: 0.3 | AW40: 1530 | AX40: 0 | AY40: 1530 | AZ40: 306 | BA40: 0 | BB40: 306 | BC40: 1836 | BD40: 0 | BE40: 1836 | BF40: 0
D41: 0 | E41: 0 | F41: 0 | G41: 0 | I41: Insulation | J41: Open | K41: 14014 | L41: Insulation - Floor - R0 to R22 - EH - MH - LI | M41: R0 to R22 floor insulation: manufactured home heated with electricity; low income customer | N41: Weatherization | O41: Insulation | P41: Floor Insulation | Q41: 2 | R41: 0.8 | S41: 0 | T41: 0 | U41: 0 | V41: kWh | W41: square foot | X41: RTF-deemed | Y41: 0 | Z41: 3.25 | AA41: 0 | AB41: 3.25 | AC41: 0 | AD41: Full | AE41: 25 | AF41: 0 | AG41: SF Space Heat | AH41: 0 | AI41: 0.1837 | AJ41: 0.1107 | AK41: 0 | AL41: 0 | AM41: 92000 | AN41: 0 | AO41: 92000 | AP41: 73600 | AQ41: 0 | AR41: 73600 | AS41: 299000 | AT41: 0 | AU41: 299000 | AV41: 0.3 | AW41: 89700 | AX41: 0 | AY41: 89700 | AZ41: 17940 | BA41: 0 | BB41: 17940 | BC41: 107640 | BD41: 0 | BE41: 107640 | BF41: 0
D42: 0 | E42: 0 | F42: 0 | G42: 0 | I42: Insulation | J42: Open | K42: 14017 | L42: Insulation - Floor - R0 to R30 - EH - MH - LI | M42: R0 to R30 floor insulation: manufactured home heated with electricity; low income customer | N42: Weatherization | O42: Insulation | P42: Floor Insulation | Q42: 2 | R42: 0.52 | S42: 0 | T42: 0 | U42: 0 | V42: kWh | W42: square foot | X42: RTF-deemed | Y42: 0 | Z42: 3.7 | AA42: 0 | AB42: 3.7 | AC42: 0 | AD42: Full | AE42: 25 | AF42: 0 | AG42: SF Space Heat | AH42: 0 | AI42: 0.1177 | AJ42: 0.0702 | AK42: 0 | AL42: 0 | AM42: 53000 | AN42: 0 | AO42: 53000 | AP42: 27560 | AQ42: 0 | AR42: 27560 | AS42: 196100 | AT42: 0 | AU42: 196100 | AV42: 0.3 | AW42: 58830 | AX42: 0 | AY42: 58830 | AZ42: 11766 | BA42: 0 | BB42: 11766 | BC42: 70596 | BD42: 0 | BE42: 70596 | BF42: 0
D43: 0 | E43: 0 | F43: 0 | G43: 0 | I43: Insulation | J43: Open | K43: 14018 | L43: Insulation - Floor - R0 to R30 - EH - SF - LI | M43: R0 to R30 floor insulation: single family dwelling heated with electricity; low income customer | N43: Weatherization | O43: Insulation | P43: Floor Insulation | Q43: 2 | R43: 0.4 | S43: 0 | T43: 0 | U43: 0 | V43: kWh | W43: square foot | X43: PSE-deemed | Y43: RTF Derived | Z43: 2.93 | AA43: 0 | AB43: 2.93 | AC43: 0 | AD43: Full | AE43: 45 | AF43: 0 | AG43: SF Space Heat | AH43: 0 | AI43: 0.0711 | AJ43: 0.0348 | AK43: 0 | AL43: 0 | AM43: 33000 | AN43: 0 | AO43: 33000 | AP43: 13200 | AQ43: 0 | AR43: 13200 | AS43: 96690 | AT43: 0 | AU43: 96690 | AV43: 0.3 | AW43: 29007 | AX43: 0 | AY43: 29007 | AZ43: 5801.4 | BA43: 0 | BB43: 5801.4 | BC43: 34808.4 | BD43: 0 | BE43: 34808.4 | BF43: 0
D44: 0 | E44: 0 | F44: 0 | G44: 0 | I44: Insulation | J44: Open | K44: 14022 | L44: Insulation - Floor - R11 to R22 - EH - MH - LI | M44: R11 to R22 floor insulation: manufactured home heated with electricity; low income customer | N44: Weatherization | O44: Insulation | P44: Floor Insulation | Q44: 2 | R44: 0.37 | S44: 0 | T44: 0 | U44: 0 | V44: kWh | W44: square foot | X44: RTF-deemed | Y44: 0 | Z44: 2.52 | AA44: 0 | AB44: 2.52 | AC44: 0 | AD44: Full | AE44: 25 | AF44: 0 | AG44: SF Space Heat | AH44: 0 | AI44: 0.1539 | AJ44: 0.1194 | AK44: 0 | AL44: 0 | AM44: 18000 | AN44: 0 | AO44: 18000 | AP44: 6660 | AQ44: 0 | AR44: 6660 | AS44: 45360 | AT44: 0 | AU44: 45360 | AV44: 0.3 | AW44: 13608 | AX44: 0 | AY44: 13608 | AZ44: 2721.6 | BA44: 0 | BB44: 2721.6 | BC44: 16329.6 | BD44: 0 | BE44: 16329.6 | BF44: 0
I45: Insulation | J45: Open | K45: 14009 | L45: Insulation - Duct - R0 to R11 - EH - SF - LI | M45: R0 to R11 duct insulation: single family dwelling heated with electricity; low income customer | N45: Weatherization | O45: Insulation | P45: Duct Insulation | Q45: 2 | R45: 4.65 | S45: 0 | T45: 0 | U45: 0 | V45: kWh | W45: square foot | X45: PSE-deemed | Y45: Program Staff | Z45: 8.85 | AA45: 0 | AB45: 8.85 | AC45: 0 | AD45: Full | AE45: 20 | AF45: 0 | AG45: SF Space Heat | AH45: 0 | AI45: 1.3131 | AJ45: 0.8861 | AK45: 0 | AL45: 0 | AM45: 1700 | AN45: 0 | AO45: 1700 | AP45: 7905 | AQ45: 0 | AR45: 7905 | AS45: 15045 | AT45: 0 | AU45: 15045 | AV45: 0.3 | AW45: 4513.5 | AX45: 0 | AY45: 4513.5 | AZ45: 902.7 | BA45: 0 | BB45: 902.7 | BC45: 5416.2 | BD45: 0 | BE45: 5416.2 | BF45: 0
D46: Outside Services | E46: 22500 | F46: 22500 | G46: 45000 | I46: Insulation | J46: Open | K46: 14025 | L46: Insulation - Pipe - Water Heater - EH - MH - LI | M46: Pipe insulation for water heater using electricity in manufactured home: low income customer | N46: Weatherization | O46: Insulation | P46: Pipe Insulation | Q46: 2 | R46: 20.68 | S46: 0 | T46: 0 | U46: 0 | V46: kWh | W46: per unit | X46: PSE-deemed | Y46: Other Utility | Z46: 27.4 | AA46: 0 | AB46: 27.4 | AC46: 0 | AD46: Full | AE46: 15 | AF46: 0 | AG46: Res Water Heat | AH46: 0 | AI46: 17.0192 | AJ46: 15.4235 | AK46: 0 | AL46: 0 | AM46: 90 | AN46: 0 | AO46: 90 | AP46: 1861.2 | AQ46: 0 | AR46: 1861.2 | AS46: 2466 | AT46: 0 | AU46: 2466 | AV46: 0.3 | AW46: 739.8 | AX46: 0 | AY46: 739.8 | AZ46: 147.96 | BA46: 0 | BB46: 147.96 | BC46: 887.76 | BD46: 0 | BE46: 887.76 | BF46: 0
D47: 0 | E47: 22500 | F47: 22500 | G47: 45000 | I47: Insulation | J47: Open | K47: 14026 | L47: Insulation - Pipe - Water Heater - EH - SF - LI | M47: Pipe insulation for water heater using electricity in single family dwelling: low income customer | N47: Weatherization | O47: Insulation | P47: Pipe Insulation | Q47: 2 | R47: 20.68 | S47: 0 | T47: 0 | U47: 0 | V47: kWh | W47: per unit | X47: PSE-deemed | Y47: Other Utility | Z47: 27.4 | AA47: 0 | AB47: 27.4 | AC47: 0 | AD47: Full | AE47: 15 | AF47: 0 | AG47: Res Water Heat | AH47: 0 | AI47: 17.0184 | AJ47: 15.4227 | AK47: 0 | AL47: 0 | AM47: 40 | AN47: 0 | AO47: 40 | AP47: 827.2 | AQ47: 0 | AR47: 827.2 | AS47: 1096 | AT47: 0 | AU47: 1096 | AV47: 0.3 | AW47: 328.8 | AX47: 0 | AY47: 328.8 | AZ47: 65.76 | BA47: 0 | BB47: 65.76 | BC47: 394.56 | BD47: 0 | BE47: 394.56 | BF47: 0
D48: 0 | E48: 0 | F48: 0 | G48: 0 | I48: Insulation | J48: Open | K48: 14033 | L48: Insulation - Wall - R0 to R11 - EH - MH - LI | M48: R0 to R11 wall insulation: manufactured home heated with electricity; low income customer | N48: Weatherization | O48: Insulation | P48: Wall Insulation | Q48: 2 | R48: 4.58 | S48: 0 | T48: 0 | U48: 0 | V48: kWh | W48: square foot | X48: RTF-deemed | Y48: 0 | Z48: 3.08 | AA48: 0 | AB48: 3.08 | AC48: 0 | AD48: Full | AE48: 25 | AF48: 0 | AG48: SF Space Heat | AH48: 0 | AI48: 5.0485 | AJ48: 4.5869 | AK48: 0 | AL48: 0 | AM48: 350 | AN48: 0 | AO48: 350 | AP48: 1603 | AQ48: 0 | AR48: 1603 | AS48: 1078 | AT48: 0 | AU48: 1078 | AV48: 0.3 | AW48: 323.4 | AX48: 0 | AY48: 323.4 | AZ48: 64.68 | BA48: 0 | BB48: 64.68 | BC48: 388.08 | BD48: 0 | BE48: 388.08 | BF48: 0
D49: 0 | E49: 0 | F49: 0 | G49: 0 | I49: Insulation | J49: Open | K49: 14034 | L49: Insulation - Wall - R0 to R11 - EH - SF - LI | M49: R0 to R11 wall insulation: single family dwelling heated with electricity; low income customer | N49: Weatherization | O49: Insulation | P49: Wall Insulation | Q49: 2 | R49: 0.83 | S49: 0 | T49: 0 | U49: 0 | V49: kWh | W49: square foot | X49: PSE-deemed | Y49: RTF Derived | Z49: 3.01 | AA49: 0 | AB49: 3.01 | AC49: 0 | AD49: Full | AE49: 45 | AF49: 0 | AG49: SF Space Heat | AH49: 0 | AI49: 0.1348 | AJ49: 0.0597 | AK49: 0 | AL49: 0 | AM49: 9500 | AN49: 0 | AO49: 9500 | AP49: 7885 | AQ49: 0 | AR49: 7885 | AS49: 28595 | AT49: 0 | AU49: 28595 | AV49: 0.3 | AW49: 8578.5 | AX49: 0 | AY49: 8578.5 | AZ49: 1715.7 | BA49: 0 | BB49: 1715.7 | BC49: 10294.2 | BD49: 0 | BE49: 10294.2 | BF49: 0
D50: 0 | E50: 0 | F50: 0 | G50: 0 | I50: Insulation | J50: Open | K50: 13992 | L50: Insulation - Attic - R0 to R38 - EH - MF - LI | M50: R0 to R38 attic insulation: multi-family dwelling heated with electricity; low income customer | N50: Weatherization | O50: Insulation | P50: Attic Insulation | Q50: 2 | R50: 0.91 | S50: 0 | T50: 0 | U50: 0 | V50: kWh | W50: square foot | X50: RTF-deemed | Y50: 0 | Z50: 2.63 | AA50: 0 | AB50: 2.63 | AC50: 0 | AD50: Full | AE50: 45 | AF50: 0 | AG50: MF Space Heat | AH50: 0 | AI50: 0.12 | AJ50: 0.0379 | AK50: 0 | AL50: 0 | AM50: 2300 | AN50: 0 | AO50: 2300 | AP50: 2093 | AQ50: 0 | AR50: 2093 | AS50: 6049 | AT50: 0 | AU50: 6049 | AV50: 0.3 | AW50: 1814.7 | AX50: 0 | AY50: 1814.7 | AZ50: 362.94 | BA50: 0 | BB50: 362.94 | BC50: 2177.64 | BD50: 0 | BE50: 2177.64 | BF50: 0
D51: 0 | E51: 0 | F51: 0 | G51: 0 | I51: Insulation | J51: Open | K51: 13996 | L51: Insulation - Attic - R0 to R49 - EH - MF - LI | M51: R0 to R49 attic insulation: multi-family dwelling heated with electricity; low income customer | N51: Weatherization | O51: Insulation | P51: Attic Insulation | Q51: 2 | R51: 0.95 | S51: 0 | T51: 0 | U51: 0 | V51: kWh | W51: square foot | X51: RTF-deemed | Y51: 0 | Z51: 2.93 | AA51: 0 | AB51: 2.93 | AC51: 0 | AD51: Full | AE51: 45 | AF51: 0 | AG51: MF Space Heat | AH51: 0 | AI51: 0.1037 | AJ51: 0.0183 | AK51: 0 | AL51: 0 | AM51: 5000 | AN51: 0 | AO51: 5000 | AP51: 4750 | AQ51: 0 | AR51: 4750 | AS51: 14650 | AT51: 0 | AU51: 14650 | AV51: 0.3 | AW51: 4395 | AX51: 0 | AY51: 4395 | AZ51: 879 | BA51: 0 | BB51: 879 | BC51: 5274 | BD51: 0 | BE51: 5274 | BF51: 0
D52: 0 | E52: 0 | F52: 0 | G52: 0 | I52: Insulation | J52: Open | K52: 14000 | L52: Insulation - Attic - R11 to R38 - EH - MF - LI | M52: R11 to R38 attic insulation: multi-family dwelling heated with electricity; low income customer | N52: Weatherization | O52: Insulation | P52: Attic Insulation | Q52: 2 | R52: 0.56 | S52: 0 | T52: 0 | U52: 0 | V52: kWh | W52: square foot | X52: PSE-deemed | Y52: RTF Derived | Z52: 2.18 | AA52: 0 | AB52: 2.18 | AC52: 0 | AD52: Full | AE52: 45 | AF52: 0 | AG52: MF Space Heat | AH52: 0 | AI52: 0.054 | AJ52: 0.0037 | AK52: 0 | AL52: 0 | AM52: 5000 | AN52: 0 | AO52: 5000 | AP52: 2800 | AQ52: 0 | AR52: 2800 | AS52: 10900 | AT52: 0 | AU52: 10900 | AV52: 0.3 | AW52: 3270 | AX52: 0 | AY52: 3270 | AZ52: 654 | BA52: 0 | BB52: 654 | BC52: 3924 | BD52: 0 | BE52: 3924 | BF52: 0
I53: Insulation | J53: Open | K53: 14005 | L53: Insulation - Attic - R19 to R38 - EH - MF - LI | M53: R19 to R38 attic insulation: multi-family dwelling heated with electricity; low income customer | N53: Weatherization | O53: Insulation | P53: Attic Insulation | Q53: 2 | R53: 0.23 | S53: 0 | T53: 0 | U53: 0 | V53: kWh | W53: square foot | X53: RTF-deemed | Y53: 0 | Z53: 1.77 | AA53: 0 | AB53: 1.77 | AC53: 0 | AD53: Full | AE53: 45 | AF53: 0 | AG53: MF Space Heat | AH53: 0 | AI53: 0.0222 | AJ53: 0.0015 | AK53: 0 | AL53: 0 | AM53: 27000 | AN53: 0 | AO53: 27000 | AP53: 6210 | AQ53: 0 | AR53: 6210 | AS53: 47790 | AT53: 0 | AU53: 47790 | AV53: 0.3 | AW53: 14337 | AX53: 0 | AY53: 14337 | AZ53: 2867.4 | BA53: 0 | BB53: 2867.4 | BC53: 17204.4 | BD53: 0 | BE53: 17204.4 | BF53: 0
D54: Materials | E54: 1350 | F54: 1350 | G54: 2700 | I54: Insulation | J54: Open | K54: 14007 | L54: Insulation - Attic - R19 to R49 - EH - MF - LI | M54: R19 to R49 attic insulation: multi-family dwelling heated with electricity; low income customer | N54: Weatherization | O54: Insulation | P54: Attic Insulation | Q54: 2 | R54: 0.28 | S54: 0 | T54: 0 | U54: 0 | V54: kWh | W54: square foot | X54: RTF-deemed | Y54: 0 | Z54: 2.18 | AA54: 0 | AB54: 2.18 | AC54: 0 | AD54: Full | AE54: 45 | AF54: 0 | AG54: MF Space Heat | AH54: 0 | AI54: 0.0468 | AJ54: 0.0215 | AK54: 0 | AL54: 0 | AM54: 91000 | AN54: 0 | AO54: 91000 | AP54: 25480 | AQ54: 0 | AR54: 25480 | AS54: 198380 | AT54: 0 | AU54: 198380 | AV54: 0.3 | AW54: 59514 | AX54: 0 | AY54: 59514 | AZ54: 11902.8 | BA54: 0 | BB54: 11902.8 | BC54: 71416.8 | BD54: 0 | BE54: 71416.8 | BF54: 0
D55: 0 | E55: 1350 | F55: 1350 | G55: 2700 | I55: Insulation | J55: Open | K55: 14008 | L55: Insulation - Duct - R0 to R11 - EH - MF - LI | M55: R0 to R11 duct insulation: multi- family dwelling heated with electricity; low income customer | N55: Weatherization | O55: Insulation | P55: Duct Insulation | Q55: 2 | R55: 4.65 | S55: 0 | T55: 0 | U55: 0 | V55: kWh | W55: square foot | X55: PSE-deemed | Y55: Program Staff | Z55: 8.85 | AA55: 0 | AB55: 8.85 | AC55: 0 | AD55: Full | AE55: 20 | AF55: 0 | AG55: MF Space Heat | AH55: 0 | AI55: 0.4485 | AJ55: 0.0309 | AK55: 0 | AL55: 0 | AM55: 500 | AN55: 0 | AO55: 500 | AP55: 2325 | AQ55: 0 | AR55: 2325 | AS55: 4425 | AT55: 0 | AU55: 4425 | AV55: 0.3 | AW55: 1327.5 | AX55: 0 | AY55: 1327.5 | AZ55: 265.5 | BA55: 0 | BB55: 265.5 | BC55: 1593 | BD55: 0 | BE55: 1593 | BF55: 0
D56: 0 | E56: 0 | F56: 0 | G56: 0 | I56: Insulation | J56: Open | K56: 14012 | L56: Insulation - Floor - R0 to R19 - EH - MF - LI | M56: R0 to R19 floor insulation: multi-family dwelling heated with electricity; low income customer | N56: Weatherization | O56: Insulation | P56: Floor Insulation | Q56: 2 | R56: 1.01 | S56: 0 | T56: 0 | U56: 0 | V56: kWh | W56: square foot | X56: RTF-deemed | Y56: 0 | Z56: 2.46 | AA56: 0 | AB56: 2.46 | AC56: 0 | AD56: Full | AE56: 45 | AF56: 0 | AG56: MF Space Heat | AH56: 0 | AI56: 0.1176 | AJ56: 0.0266 | AK56: 0 | AL56: 0 | AM56: 3000 | AN56: 0 | AO56: 3000 | AP56: 3030 | AQ56: 0 | AR56: 3030 | AS56: 7380 | AT56: 0 | AU56: 7380 | AV56: 0.3 | AW56: 2214 | AX56: 0 | AY56: 2214 | AZ56: 442.8 | BA56: 0 | BB56: 442.8 | BC56: 2656.8 | BD56: 0 | BE56: 2656.8 | BF56: 0
D57: 0 | E57: 0 | F57: 0 | G57: 0 | I57: Insulation | J57: Open | K57: 14016 | L57: Insulation - Floor - R0 to R30 - EH - MF - LI | M57: R0 to R30 floor insulation: multi-family dwelling heated with electricity; low income customer | N57: Weatherization | O57: Insulation | P57: Floor Insulation | Q57: 2 | R57: 1.35 | S57: 0 | T57: 0 | U57: 0 | V57: kWh | W57: square foot | X57: RTF-deemed | Y57: 0 | Z57: 2.93 | AA57: 0 | AB57: 2.93 | AC57: 0 | AD57: Full | AE57: 45 | AF57: 0 | AG57: MF Space Heat | AH57: 0 | AI57: 0.1503 | AJ57: 0.0289 | AK57: 0 | AL57: 0 | AM57: 12500 | AN57: 0 | AO57: 12500 | AP57: 16875 | AQ57: 0 | AR57: 16875 | AS57: 36625 | AT57: 0 | AU57: 36625 | AV57: 0.3 | AW57: 10987.5 | AX57: 0 | AY57: 10987.5 | AZ57: 2197.5 | BA57: 0 | BB57: 2197.5 | BC57: 13185 | BD57: 0 | BE57: 13185 | BF57: 0
D58: 0 | E58: 0 | F58: 0 | G58: 0 | I58: Insulation | J58: Open | K58: 14023 | L58: Insulation - Floor - R11 to R30 - EH - MF - LI | M58: R11 to R30 floor insulation: multi-family dwelling heated with electricity; low income customer | N58: Weatherization | O58: Insulation | P58: Floor Insulation | Q58: 2 | R58: 0.77 | S58: 0 | T58: 0 | U58: 0 | V58: kWh | W58: square foot | X58: PSE-deemed | Y58: RTF Derived | Z58: 2.55 | AA58: 0 | AB58: 2.55 | AC58: 0 | AD58: Full | AE58: 45 | AF58: 0 | AG58: MF Space Heat | AH58: 0 | AI58: 0.1441 | AJ58: 0.0742 | AK58: 0 | AL58: 0 | AM58: 2200 | AN58: 0 | AO58: 2200 | AP58: 1694 | AQ58: 0 | AR58: 1694 | AS58: 5610 | AT58: 0 | AU58: 5610 | AV58: 0.3 | AW58: 1683 | AX58: 0 | AY58: 1683 | AZ58: 336.6 | BA58: 0 | BB58: 336.6 | BC58: 2019.6 | BD58: 0 | BE58: 2019.6 | BF58: 0
I59: Insulation | J59: Open | K59: 14024 | L59: Insulation - Pipe - Water Heater - EH - MF - LI | M59: Pipe insulation for water heater using electricity in multi-family dwelling: low income customer | N59: Weatherization | O59: Insulation | P59: Pipe Insulation | Q59: 2 | R59: 20.68 | S59: 0 | T59: 0 | U59: 0 | V59: kWh | W59: per unit | X59: PSE-deemed | Y59: Other Utility | Z59: 27.4 | AA59: 0 | AB59: 27.4 | AC59: 0 | AD59: Full | AE59: 15 | AF59: 0 | AG59: Res Water Heat | AH59: 0 | AI59: 16.6055 | AJ59: 15.0127 | AK59: 0 | AL59: 0 | AM59: 185 | AN59: 0 | AO59: 185 | AP59: 3825.8 | AQ59: 0 | AR59: 3825.8 | AS59: 5069 | AT59: 0 | AU59: 5069 | AV59: 0.3 | AW59: 1520.7 | AX59: 0 | AY59: 1520.7 | AZ59: 304.14 | BA59: 0 | BB59: 304.14 | BC59: 1824.84 | BD59: 0 | BE59: 1824.84 | BF59: 0
D60: Miscellaneous | E60: 0 | F60: 0 | G60: 0 | I60: Insulation | J60: Open | K60: 14032 | L60: Insulation - Wall - R0 to R11 - EH - MF - LI | M60: R0 to R11 wall insulation: multi-family dwelling heated with electricity; low income customer | N60: Weatherization | O60: Insulation | P60: Wall Insulation | Q60: 2 | R60: 2.05 | S60: 0 | T60: 0 | U60: 0 | V60: kWh | W60: square foot | X60: RTF-deemed | Y60: 0 | Z60: 3.01 | AA60: 0 | AB60: 3.01 | AC60: 0 | AD60: Full | AE60: 45 | AF60: 0 | AG60: MF Space Heat | AH60: 0 | AI60: 0.2233 | AJ60: 0.0389 | AK60: 0 | AL60: 0 | AM60: 75000 | AN60: 0 | AO60: 75000 | AP60: 153750 | AQ60: 0 | AR60: 153750 | AS60: 225750 | AT60: 0 | AU60: 225750 | AV60: 0.3 | AW60: 67725 | AX60: 0 | AY60: 67725 | AZ60: 13545 | BA60: 0 | BB60: 13545 | BC60: 81270 | BD60: 0 | BE60: 81270 | BF60: 0
D61: 0 | E61: 0 | F61: 0 | G61: 0 | I61: Heat_Pump | J61: Open | K61: 13983 | L61: Heat Pump - Ductless - SIR - EH - Res - LI | M61: Ductless heat pump using Savings-to-Investment Ratio: home heated with electricity; low income customer | N61: HVAC | O61: Heat Pump | P61: Ductless Heat Pump | Q61: 1 | R61: 21000 | S61: 0 | T61: 0 | U61: 0 | V61: kWh | W61: per unit | X61: Custom | Y61: 0 | Z61: 31000 | AA61: 0 | AB61: 31000 | AC61: 0 | AD61: Full | AE61: 45 | AF61: 0 | AG61: SF Space Heat | AH61: 0 | AI61: 0 | AJ61: 0 | AK61: 0 | AL61: 0 | AM61: 1 | AN61: 1 | AO61: 2 | AP61: 21000 | AQ61: 21000 | AR61: 42000 | AS61: 31000 | AT61: 31000 | AU61: 62000 | AV61: 0.3 | AW61: 9300 | AX61: 9300 | AY61: 18600 | AZ61: 1860 | BA61: 1550 | BB61: 3410 | BC61: 11160 | BD61: 10850 | BE61: 22010 | BF61: 0
D62: 0 | E62: 0 | F62: 0 | G62: 0 | I62: Heat_Pump | J62: Open | K62: 13986 | L62: Heat Pump - SIR - EH - Res - LI | M62: Heat pump using Savings-to-Investment Ratio: home heated with electricity; low income customer | N62: HVAC | O62: Heat Pump | P62: Heat Pump | Q62: 1 | R62: 60000 | S62: 0 | T62: 0 | U62: 0 | V62: kWh | W62: per unit | X62: Custom | Y62: 0 | Z62: 50000 | AA62: 0 | AB62: 50000 | AC62: 0 | AD62: Full | AE62: 15 | AF62: 0 | AG62: SF Space Heat | AH62: 0 | AI62: 0 | AJ62: 0 | AK62: 0 | AL62: 0 | AM62: 1 | AN62: 1 | AO62: 2 | AP62: 60000 | AQ62: 60000 | AR62: 120000 | AS62: 50000 | AT62: 50000 | AU62: 100000 | AV62: 0.3 | AW62: 15000 | AX62: 15000 | AY62: 30000 | AZ62: 3000 | BA62: 2500 | BB62: 5500 | BC62: 18000 | BD62: 17500 | BE62: 35500 | BF62: 0
D63: 0 | E63: 0 | F63: 0 | G63: 0 | I63: Heat_Pump | J63: Open | K63: 13981 | L63: Heat Pump - Ductless - EH - MH - LI | M63: Ductless heat pump: manufactured home heated with electricity; low income customer | N63: HVAC | O63: Heat Pump | P63: Ductless Heat Pump | Q63: 2 | R63: 2502 | S63: 0 | T63: 0 | U63: 0 | V63: kWh | W63: per unit | X63: PSE-deemed | Y63: RTF Derived | Z63: 5704 | AA63: 0 | AB63: 5704 | AC63: 0 | AD63: Full | AE63: 15 | AF63: 0 | AG63: SF Heat Pump | AH63: 0 | AI63: 299.407 | AJ63: 82.7567 | AK63: 0 | AL63: 0 | AM63: 175 | AN63: 0 | AO63: 175 | AP63: 437850 | AQ63: 0 | AR63: 437850 | AS63: 998200 | AT63: 0 | AU63: 998200 | AV63: 0.3 | AW63: 299460 | AX63: 0 | AY63: 299460 | AZ63: 59892 | BA63: 0 | BB63: 59892 | BC63: 359352 | BD63: 0 | BE63: 359352 | BF63: 0
D64: 0 | E64: 0 | F64: 0 | G64: 0 | I64: Heat_Pump | J64: Open | K64: 13982 | L64: Heat Pump - Ductless - EH - SF - LI | M64: Ductless heat pump: single family dwelling heated with electricity; low income customer | N64: HVAC | O64: Heat Pump | P64: Ductless Heat Pump | Q64: 2 | R64: 1790 | S64: 0 | T64: 0 | U64: 0 | V64: kWh | W64: per unit | X64: PSE-deemed | Y64: RTF Derived | Z64: 5867 | AA64: 0 | AB64: 5867 | AC64: 0 | AD64: Full | AE64: 15 | AF64: 0 | AG64: SF Heat Pump | AH64: 0 | AI64: 208.3053 | AJ64: 53.756 | AK64: 0 | AL64: 0 | AM64: 160 | AN64: 0 | AO64: 160 | AP64: 286400 | AQ64: 0 | AR64: 286400 | AS64: 938720 | AT64: 0 | AU64: 938720 | AV64: 0.3 | AW64: 281616 | AX64: 0 | AY64: 281616 | AZ64: 56323.2 | BA64: 0 | BB64: 56323.2 | BC64: 337939.2 | BD64: 0 | BE64: 337939.2 | BF64: 0
I65: Heat_Pump | J65: Open | K65: 13984 | L65: Heat Pump - from E FAF - MH - LI | M65: Electric forced air furnace to heat pump conversion: manufactured home; low income customer | N65: HVAC | O65: Heat Pump | P65: Heat Pump Conversion | Q65: 2 | R65: 4126 | S65: 3094.71 | T65: 0 | U65: 0 | V65: kWh | W65: per unit | X65: RTF-deemed | Y65: 0 | Z65: 8336 | AA65: 0 | AB65: 8336 | AC65: 0 | AD65: Full | AE65: 10 | AF65: 8 | AG65: SF Heat Pump | AH65: 0 | AI65: 869.3052 | AJ65: 243.6388 | AK65: 0 | AL65: 0 | AM65: 12 | AN65: 0 | AO65: 12 | AP65: 49512 | AQ65: 0 | AR65: 49512 | AS65: 100032 | AT65: 0 | AU65: 100032 | AV65: 0.3 | AW65: 30009.6 | AX65: 0 | AY65: 30009.6 | AZ65: 6001.92 | BA65: 0 | BB65: 6001.92 | BC65: 36011.52 | BD65: 0 | BE65: 36011.52 | BF65: 0
D66: Direct Benefit to Customer | E66: 10313942.6 | F66: 14172741.8 | G66: 24486684.4 | I66: Heat_Pump | J66: Open | K66: 13985 | L66: Heat Pump - from E FAF - SF - LI | M66: Electric forced air furnace to heat pump conversion: single family dwelling; low income customer | N66: HVAC | O66: Heat Pump | P66: Heat Pump Conversion | Q66: 2 | R66: 4482 | S66: 3361.81 | T66: 0 | U66: 0 | V66: kWh | W66: per unit | X66: RTF-deemed | Y66: 0 | Z66: 9229 | AA66: 0 | AB66: 9229 | AC66: 0 | AD66: Full | AE66: 10 | AF66: 8 | AG66: SF Heat Pump | AH66: 0 | AI66: 742.0586 | AJ66: 77.7664 | AK66: 0 | AL66: 0 | AM66: 12 | AN66: 0 | AO66: 12 | AP66: 53784 | AQ66: 0 | AR66: 53784 | AS66: 110748 | AT66: 0 | AU66: 110748 | AV66: 0.3 | AW66: 33224.4 | AX66: 0 | AY66: 33224.4 | AZ66: 6644.88 | BA66: 0 | BB66: 6644.88 | BC66: 39869.28 | BD66: 0 | BE66: 39869.28 | BF66: 0
A67: Low Income Weatherization | D67: Ratio | E67: 0.9584353349 | F67: 0.9700113811 | G67: 0.9651015655 | I67: Thermostat | J67: Open | K67: 14049 | L67: Thermostat - SIR - EH - Res - LI | M67: Thermostat using Savings-to-Investment Ratio: home heated with electricity; low income customer | N67: Controls | O67: Thermostat | P67: Programmable Thermostat | Q67: 1 | R67: 70000 | S67: 0 | T67: 0 | U67: 0 | V67: kWh | W67: per unit | X67: Custom | Y67: 0 | Z67: 50000 | AA67: 0 | AB67: 50000 | AC67: 0 | AD67: Full | AE67: 15 | AF67: 0 | AG67: MF Space Heat | AH67: 0 | AI67: 0 | AJ67: 0 | AK67: 0 | AL67: 0 | AM67: 1 | AN67: 1 | AO67: 2 | AP67: 70000 | AQ67: 70000 | AR67: 140000 | AS67: 50000 | AT67: 50000 | AU67: 100000 | AV67: 0.3 | AW67: 15000 | AX67: 15000 | AY67: 30000 | AZ67: 3000 | BA67: 2500 | BB67: 5500 | BC67: 18000 | BD67: 17500 | BE67: 35500 | BF67: 0
A68: Schedule 201 | I68: Thermostat | J68: Open | K68: 14047 | L68: Thermostat - ELV - EH - MF - LI | M68: Electronic line voltage thermostat: multi-family dwelling heated with electricity; low income customer | N68: Controls | O68: Thermostat | P68: ELV Thermostat | Q68: 2 | R68: 59 | S68: 53 | T68: 0 | U68: 0 | V68: kWh | W68: per unit | X68: RTF-deemed | Y68: 0 | Z68: 95 | AA68: 0 | AB68: 95 | AC68: 0 | AD68: Full | AE68: 5 | AF68: 10 | AG68: MF Space Heat | AH68: 0 | AI68: 13.2018 | AJ68: 5.2332 | AK68: 0 | AL68: 0 | AM68: 20 | AN68: 0 | AO68: 20 | AP68: 1180 | AQ68: 0 | AR68: 1180 | AS68: 1900 | AT68: 0 | AU68: 1900 | AV68: 0.3 | AW68: 570 | AX68: 0 | AY68: 570 | AZ68: 114 | BA68: 0 | BB68: 114 | BC68: 684 | BD68: 0 | BE68: 684 | BF68: 0
A69: Order Number | D69: Revenue | E69: 0 | F69: 0 | G69: 0 | I69: Thermostat | J69: Open | K69: 14048 | L69: Thermostat - ELV - EH - SF - LI | M69: Electronic line voltage thermostat: single family dwelling heated with electricity; low income customer | N69: Controls | O69: Thermostat | P69: ELV Thermostat | Q69: 2 | R69: 72 | S69: 65 | T69: 0 | U69: 0 | V69: kWh | W69: per unit | X69: RTF-deemed | Y69: 0 | Z69: 95 | AA69: 0 | AB69: 95 | AC69: 0 | AD69: Full | AE69: 5 | AF69: 10 | AG69: SF Space Heat | AH69: 0 | AI69: 29.1283 | AJ69: 17.1484 | AK69: 0 | AL69: 0 | AM69: 5 | AN69: 0 | AO69: 5 | AP69: 360 | AQ69: 0 | AR69: 360 | AS69: 475 | AT69: 0 | AU69: 475 | AV69: 0.3 | AW69: 142.5 | AX69: 0 | AY69: 142.5 | AZ69: 28.5 | BA69: 0 | BB69: 28.5 | BC69: 171 | BD69: 0 | BE69: 171 | BF69: 0
A70: 18230611 | D70: ***Enter as a negative value*** | I70: Thermostat | J70: Open | K70: 14050 | L70: Thermostat - Smart - EH - MF - LI | M70: Smart thermostat: multi-family dwelling heated with electricity; low income customer | N70: Controls | O70: Thermostat | P70: Web-Enabled Thermostat | Q70: 2 | R70: 95 | S70: 0 | T70: 0 | U70: 0 | V70: kWh | W70: per unit | X70: PSE-deemed | Y70: RTF Derived | Z70: 484 | AA70: 0 | AB70: 484 | AC70: 0 | AD70: Full | AE70: 7 | AF70: 0 | AG70: MF Space Heat | AH70: 0 | AI70: 7.5916 | AJ70: 0.0026 | AK70: 0 | AL70: 0 | AM70: 70 | AN70: 0 | AO70: 70 | AP70: 6650 | AQ70: 0 | AR70: 6650 | AS70: 33880 | AT70: 0 | AU70: 33880 | AV70: 0.3 | AW70: 10164 | AX70: 0 | AY70: 10164 | AZ70: 2032.8 | BA70: 0 | BB70: 2032.8 | BC70: 12196.8 | BD70: 0 | BE70: 12196.8 | BF70: 0
A71: Electric | I71: Thermostat | J71: Open | K71: 14051 | L71: Thermostat - Smart - EH - SF - LI | M71: Smart thermostat: single family dwelling heated with electricity; low income customer | N71: Controls | O71: Thermostat | P71: Web-Enabled Thermostat | Q71: 2 | R71: 245 | S71: 0 | T71: 0 | U71: 0 | V71: kWh | W71: per unit | X71: PSE-deemed | Y71: RTF Derived | Z71: 484 | AA71: 0 | AB71: 484 | AC71: 0 | AD71: Full | AE71: 7 | AF71: 0 | AG71: SF Space Heat | AH71: 0 | AI71: 29.4738 | AJ71: 6.9569 | AK71: 0 | AL71: 0 | AM71: 20 | AN71: 0 | AO71: 20 | AP71: 4900 | AQ71: 0 | AR71: 4900 | AS71: 9680 | AT71: 0 | AU71: 9680 | AV71: 0.3 | AW71: 2904 | AX71: 0 | AY71: 2904 | AZ71: 580.8 | BA71: 0 | BB71: 580.8 | BC71: 3484.8 | BD71: 0 | BE71: 3484.8 | BF71: 0
I72: Thermostat | J72: Open | K72: 14078 | L72: Thermostat - Smart - EH - MH - LI | M72: Smart thermostat: manufactured home heated with electricity; low income customer | N72: Controls | O72: Thermostat | P72: Web-Enabled Thermostat | Q72: 2 | R72: 245 | S72: 0 | T72: 0 | U72: 0 | V72: kWh | W72: per unit | X72: PSE-deemed | Y72: RTF Derived | Z72: 484 | AA72: 0 | AB72: 484 | AC72: 0 | AD72: Full | AE72: 7 | AF72: 0 | AG72: SF Space Heat | AH72: 0 | AI72: 29.47 | AJ72: 14.4249 | AK72: 0 | AL72: 0 | AM72: 20 | AN72: 0 | AO72: 20 | AP72: 4900 | AQ72: 0 | AR72: 4900 | AS72: 9680 | AT72: 0 | AU72: 9680 | AV72: 0.3 | AW72: 2904 | AX72: 0 | AY72: 2904 | AZ72: 580.8 | BA72: 0 | BB72: 580.8 | BC72: 3484.8 | BD72: 0 | BE72: 3484.8 | BF72: 0
I73: Window | J73: Open | K73: 14060 | L73: Windows - Double Pane - from DP - EH - MH - LI | M73: Double pane windows: from double pane; manufactured home heated with electricity; low income customer | N73: Weatherization | O73: Window | P73: Double Pane | Q73: 2 | R73: 6.71 | S73: 0 | T73: 0 | U73: 0 | V73: kWh | W73: square foot | X73: RTF-deemed | Y73: 0 | Z73: 26.53 | AA73: 0 | AB73: 26.53 | AC73: 0 | AD73: Full | AE73: 25 | AF73: 0 | AG73: SF Space Heat | AH73: 0 | AI73: 4.6707 | AJ73: 4.2142 | AK73: 0 | AL73: 0 | AM73: 30 | AN73: 0 | AO73: 30 | AP73: 201.3 | AQ73: 0 | AR73: 201.3 | AS73: 795.9 | AT73: 0 | AU73: 795.9 | AV73: 0.3 | AW73: 238.77 | AX73: 0 | AY73: 238.77 | AZ73: 47.754 | BA73: 0 | BB73: 47.754 | BC73: 286.524 | BD73: 0 | BE73: 286.524 | BF73: 0
D74: Notes Section (for Spending and/or Savings) | I74: Window | J74: Open | K74: 14061 | L74: Windows - Double Pane - from DP - EH - SF - LI | M74: Double pane windows: from double pane; single family dwelling heated with electricity; low income customer | N74: Weatherization | O74: Window | P74: Double Pane | Q74: 2 | R74: 2.6 | S74: 0 | T74: 0 | U74: 0 | V74: kWh | W74: square foot | X74: PSE-deemed | Y74: RTF Derived | Z74: 32.31 | AA74: 0 | AB74: 32.31 | AC74: 0 | AD74: Full | AE74: 45 | AF74: 0 | AG74: SF Space Heat | AH74: 0 | AI74: 0.1632 | AJ74: 0.0002 | AK74: 0 | AL74: 0 | AM74: 110 | AN74: 0 | AO74: 110 | AP74: 286 | AQ74: 0 | AR74: 286 | AS74: 3554.1 | AT74: 0 | AU74: 3554.1 | AV74: 0.3 | AW74: 1066.23 | AX74: 0 | AY74: 1066.23 | AZ74: 213.246 | BA74: 0 | BB74: 213.246 | BC74: 1279.476 | BD74: 0 | BE74: 1279.476 | BF74: 0
I75: Window | J75: Open | K75: 14063 | L75: Windows - Double Pane - from SP - EH - MH - LI | M75: Double pane windows: from single pane; manufactured home heated with electricity; low income customer | N75: Weatherization | O75: Window | P75: Double Pane | Q75: 2 | R75: 16.54 | S75: 0 | T75: 0 | U75: 0 | V75: kWh | W75: square foot | X75: RTF-deemed | Y75: 0 | Z75: 26.53 | AA75: 0 | AB75: 26.53 | AC75: 0 | AD75: Full | AE75: 25 | AF75: 0 | AG75: SF Space Heat | AH75: 0 | AI75: 2.6362 | AJ75: 1.5858 | AK75: 0 | AL75: 0 | AM75: 2200 | AN75: 0 | AO75: 2200 | AP75: 36388 | AQ75: 0 | AR75: 36388 | AS75: 58366 | AT75: 0 | AU75: 58366 | AV75: 0.3 | AW75: 17509.8 | AX75: 0 | AY75: 17509.8 | AZ75: 3501.96 | BA75: 0 | BB75: 3501.96 | BC75: 21011.76 | BD75: 0 | BE75: 21011.76 | BF75: 0
I76: Window | J76: Open | K76: 14064 | L76: Windows - Double Pane - from SP - EH - SF - LI | M76: Double pane windows: from single pane; single family dwelling heated with electricity; low income customer | N76: Weatherization | O76: Window | P76: Double Pane | Q76: 2 | R76: 3.98 | S76: 0 | T76: 0 | U76: 0 | V76: kWh | W76: square foot | X76: PSE-deemed | Y76: RTF Derived | Z76: 32.31 | AA76: 0 | AB76: 32.31 | AC76: 0 | AD76: Full | AE76: 45 | AF76: 0 | AG76: SF Space Heat | AH76: 0 | AI76: 0.5007 | AJ76: 0.249 | AK76: 0 | AL76: 0 | AM76: 900 | AN76: 0 | AO76: 900 | AP76: 3582 | AQ76: 0 | AR76: 3582 | AS76: 29079 | AT76: 0 | AU76: 29079 | AV76: 0.3 | AW76: 8723.7 | AX76: 0 | AY76: 8723.7 | AZ76: 1744.74 | BA76: 0 | BB76: 1744.74 | BC76: 10468.44 | BD76: 0 | BE76: 10468.44 | BF76: 0
D77: Note | G77: Applies To: | I77: Window | J77: Open | K77: 14059 | L77: Windows - Double Pane - from DP - EH - MF - LI | M77: Double pane windows: from double pane; multi-family dwelling heated with electricity; low income customer | N77: Weatherization | O77: Window | P77: Double Pane | Q77: 2 | R77: 12.86 | S77: 0 | T77: 0 | U77: 0 | V77: kWh | W77: square foot | X77: RTF-deemed | Y77: 0 | Z77: 33.1 | AA77: 0 | AB77: 33.1 | AC77: 0 | AD77: Full | AE77: 45 | AF77: 0 | AG77: MF Space Heat | AH77: 0 | AI77: 0.8977 | AJ77: 0.0907 | AK77: 0 | AL77: 0 | AM77: 50 | AN77: 0 | AO77: 50 | AP77: 643 | AQ77: 0 | AR77: 643 | AS77: 1655 | AT77: 0 | AU77: 1655 | AV77: 0.3 | AW77: 496.5 | AX77: 0 | AY77: 496.5 | AZ77: 99.3 | BA77: 0 | BB77: 99.3 | BC77: 595.8 | BD77: 0 | BE77: 595.8 | BF77: 0
D78: 0 | G78: 0 | I78: Window | J78: Open | K78: 14062 | L78: Windows - Double Pane - from SP - EH - MF - LI | M78: Double pane windows: from single pane; multi-family dwelling heated with electricity; low income customer | N78: Weatherization | O78: Window | P78: Double Pane | Q78: 2 | R78: 23.87 | S78: 0 | T78: 0 | U78: 0 | V78: kWh | W78: square foot | X78: RTF-deemed | Y78: 0 | Z78: 33.1 | AA78: 0 | AB78: 33.1 | AC78: 0 | AD78: Full | AE78: 45 | AF78: 0 | AG78: MF Space Heat | AH78: 0 | AI78: 1.4985 | AJ78: 0.002 | AK78: 0 | AL78: 0 | AM78: 10 | AN78: 0 | AO78: 10 | AP78: 238.7 | AQ78: 0 | AR78: 238.7 | AS78: 331 | AT78: 0 | AU78: 331 | AV78: 0.3 | AW78: 99.3 | AX78: 0 | AY78: 99.3 | AZ78: 19.86 | BA78: 0 | BB78: 19.86 | BC78: 119.16 | BD78: 0 | BE78: 119.16 | BF78: 0
D79: 0 | G79: 0 | I79: Ventilation | J79: Open | K79: 14056 | L79: Ventilation - Whole House - MF - LI | M79: Whole house ventilation in multi-family dwelling: low income customer | N79: HVAC | O79: Ventilation | P79: Whole House Ventilation | Q79: 2 | R79: 127 | S79: 0 | T79: 0 | U79: 0 | V79: kWh | W79: per unit | X79: PSE-deemed | Y79: Program Staff | Z79: 970 | AA79: 0 | AB79: 970 | AC79: 0 | AD79: Full | AE79: 45 | AF79: 0 | AG79: Res Plug Load | AH79: 0 | AI79: 13.8549 | AJ79: 4.333 | AK79: 0 | AL79: 0 | AM79: 200 | AN79: 0 | AO79: 200 | AP79: 25400 | AQ79: 0 | AR79: 25400 | AS79: 194000 | AT79: 0 | AU79: 194000 | AV79: 0.3 | AW79: 58200 | AX79: 0 | AY79: 58200 | AZ79: 11640 | BA79: 0 | BB79: 11640 | BC79: 69840 | BD79: 0 | BE79: 69840 | BF79: 0
D80: 0 | G80: 0 | I80: Ventilation | J80: Open | K80: 14057 | L80: Ventilation - Whole House - MH - LI | M80: Whole house ventilation in manufactured home: low income customer | N80: HVAC | O80: Ventilation | P80: Whole House Ventilation | Q80: 2 | R80: 127 | S80: 0 | T80: 0 | U80: 0 | V80: kWh | W80: per unit | X80: PSE-deemed | Y80: Program Staff | Z80: 1000 | AA80: 0 | AB80: 1000 | AC80: 0 | AD80: Full | AE80: 45 | AF80: 0 | AG80: Res Plug Load | AH80: 0 | AI80: 50.1379 | AJ80: 35.816 | AK80: 0 | AL80: 0 | AM80: 140 | AN80: 0 | AO80: 140 | AP80: 17780 | AQ80: 0 | AR80: 17780 | AS80: 140000 | AT80: 0 | AU80: 140000 | AV80: 0.3 | AW80: 42000 | AX80: 0 | AY80: 42000 | AZ80: 8400 | BA80: 0 | BB80: 8400 | BC80: 50400 | BD80: 0 | BE80: 50400 | BF80: 0
D81: 0 | G81: 0 | I81: Ventilation | J81: Open | K81: 14058 | L81: Ventilation - Whole House - SF - LI | M81: Whole house ventilation in single family dwelling: low income customer | N81: HVAC | O81: Ventilation | P81: Whole House Ventilation | Q81: 2 | R81: 127 | S81: 0 | T81: 0 | U81: 0 | V81: kWh | W81: per unit | X81: PSE-deemed | Y81: Program Staff | Z81: 970 | AA81: 0 | AB81: 970 | AC81: 0 | AD81: Full | AE81: 45 | AF81: 0 | AG81: Res Plug Load | AH81: 0 | AI81: 40.9012 | AJ81: 27.8013 | AK81: 0 | AL81: 0 | AM81: 100 | AN81: 0 | AO81: 100 | AP81: 12700 | AQ81: 0 | AR81: 12700 | AS81: 97000 | AT81: 0 | AU81: 97000 | AV81: 0.3 | AW81: 29100 | AX81: 0 | AY81: 29100 | AZ81: 5820 | BA81: 0 | BB81: 5820 | BC81: 34920 | BD81: 0 | BE81: 34920 | BF81: 0
D82: 0 | G82: 0 | I82: Heat_Pump | J82: Open | K82: 13980 | L82: Heat Pump - Ductless - EH - MF - LI | M82: Ductless heat pump: multi-family dwelling heated with electricity; low income customer | N82: HVAC | O82: Heat Pump | P82: Ductless Heat Pump | Q82: 2 | R82: 1300 | S82: 0 | T82: 0 | U82: 0 | V82: kWh | W82: per unit | X82: RTF-deemed | Y82: 0 | Z82: 5360 | AA82: 0 | AB82: 5360 | AC82: 0 | AD82: Full | AE82: 15 | AF82: 0 | AG82: MF Heat Pump | AH82: 0 | AI82: 125.1316 | AJ82: 14.8769 | AK82: 0 | AL82: 0 | AM82: 230 | AN82: 0 | AO82: 230 | AP82: 299000 | AQ82: 0 | AR82: 299000 | AS82: 1232800 | AT82: 0 | AU82: 1232800 | AV82: 0.3 | AW82: 369840 | AX82: 0 | AY82: 369840 | AZ82: 73968 | BA82: 0 | BB82: 73968 | BC82: 443808 | BD82: 0 | BE82: 443808 | BF82: 0
D83: 0 | G83: 0 | I83: Air_Sealing | J83: Open | K83: 13944 | L83: Sealing - Air - Prescriptive - EH - MH - LI | M83: Prescriptive air sealing: manufactured home heated with electricity; low income customer | N83: Weatherization | O83: Sealing | P83: Air Sealing | Q83: 3 | R83: 0.3368 | S83: 0 | T83: 0 | U83: 0 | V83: kWh | W83: per unit | X83: RTF-deemed | Y83: 0 | Z83: 2.33 | AA83: 0 | AB83: 2.33 | AC83: 0 | AD83: Full | AE83: 25 | AF83: 0 | AG83: SF Space Heat | AH83: 0 | AI83: 0.0279 | AJ83: 0.0021 | AK83: 0 | AL83: 0 | AM83: 0 | AN83: 70000 | AO83: 70000 | AP83: 0 | AQ83: 23576 | AR83: 23576 | AS83: 0 | AT83: 163100 | AU83: 163100 | AV83: 0.3 | AW83: 0 | AX83: 48930 | AY83: 48930 | AZ83: 0 | BA83: 8155 | BB83: 8155 | BC83: 0 | BD83: 57085 | BE83: 57085 | BF83: 0
D84: 0 | G84: 0 | I84: Air_Sealing | J84: Open | K84: 13945 | L84: Sealing - Air - Prescriptive - EH - SF - LI | M84: Prescriptive air sealing: single family dwelling heated with electricity; low income customer | N84: Weatherization | O84: Sealing | P84: Air Sealing | Q84: 3 | R84: 0.159 | S84: 0 | T84: 0 | U84: 0 | V84: kWh | W84: per unit | X84: RTF-deemed | Y84: 0 | Z84: 2.93 | AA84: 0 | AB84: 2.93 | AC84: 0 | AD84: Full | AE84: 15 | AF84: 0 | AG84: SF Space Heat | AH84: 0 | AI84: 0.0131 | AJ84: 0.001 | AK84: 0 | AL84: 0 | AM84: 0 | AN84: 40000 | AO84: 40000 | AP84: 0 | AQ84: 6360 | AR84: 6360 | AS84: 0 | AT84: 117200 | AU84: 117200 | AV84: 0.3 | AW84: 0 | AX84: 35160 | AY84: 35160 | AZ84: 0 | BA84: 5860 | BB84: 5860 | BC84: 0 | BD84: 41020 | BE84: 41020 | BF84: 0
D85: 0 | G85: 0 | I85: Air_Sealing | J85: Open | K85: 13952 | L85: Sealing - Duct - EH - MH - LI | M85: Duct sealing: manufactured home heated with electricity; low income customer | N85: Weatherization | O85: Sealing | P85: Duct Sealing | Q85: 3 | R85: 888 | S85: 0 | T85: 0 | U85: 0 | V85: kWh | W85: per home | X85: PSE-deemed | Y85: Other Utility | Z85: 1404 | AA85: 0 | AB85: 1404 | AC85: 0 | AD85: Full | AE85: 18 | AF85: 0 | AG85: SF Space Heat | AH85: 0 | AI85: 246.317 | AJ85: 46.486 | AK85: 0 | AL85: 0 | AM85: 0 | AN85: 50 | AO85: 50 | AP85: 0 | AQ85: 44400 | AR85: 44400 | AS85: 0 | AT85: 70200 | AU85: 70200 | AV85: 0.3 | AW85: 0 | AX85: 21060 | AY85: 21060 | AZ85: 0 | BA85: 3510 | BB85: 3510 | BC85: 0 | BD85: 24570 | BE85: 24570 | BF85: 0
D86: 0 | G86: 0 | I86: Air_Sealing | J86: Open | K86: 13953 | L86: Sealing - Duct - EH - SF - LI | M86: Duct sealing: single family dwelling heated with electricity; low income customer | N86: Weatherization | O86: Sealing | P86: Duct Sealing | Q86: 3 | R86: 1134 | S86: 0 | T86: 0 | U86: 0 | V86: kWh | W86: per home | X86: RTF-deemed | Y86: 0 | Z86: 1586 | AA86: 0 | AB86: 1586 | AC86: 0 | AD86: Full | AE86: 20 | AF86: 0 | AG86: SF Space Heat | AH86: 0 | AI86: 90.0306 | AJ86: 2.0808 | AK86: 0 | AL86: 0 | AM86: 0 | AN86: 15 | AO86: 15 | AP86: 0 | AQ86: 17010 | AR86: 17010 | AS86: 0 | AT86: 23790 | AU86: 23790 | AV86: 0.3 | AW86: 0 | AX86: 7137 | AY86: 7137 | AZ86: 0 | BA86: 1189.5 | BB86: 1189.5 | BC86: 0 | BD86: 8326.5 | BE86: 8326.5 | BF86: 0
D87: 0 | G87: 0 | I87: Air_Sealing | J87: Open | K87: 13956 | L87: Sealing - Shell - EH - MH - LI | M87: Shell sealing: manufactured home heated with electricity; low income customer | N87: Weatherization | O87: Sealing | P87: Shell Sealing | Q87: 3 | R87: 0.3368 | S87: 0 | T87: 0 | U87: 0 | V87: kWh | W87: per unit | X87: RTF-deemed | Y87: 0 | Z87: 2.33 | AA87: 0 | AB87: 2.33 | AC87: 0 | AD87: Full | AE87: 25 | AF87: 0 | AG87: SF Space Heat | AH87: 0 | AI87: 0.1904 | AJ87: 0.163 | AK87: 0 | AL87: 0 | AM87: 0 | AN87: 140000 | AO87: 140000 | AP87: 0 | AQ87: 47152 | AR87: 47152 | AS87: 0 | AT87: 326200 | AU87: 326200 | AV87: 0.3 | AW87: 0 | AX87: 97860 | AY87: 97860 | AZ87: 0 | BA87: 16310 | BB87: 16310 | BC87: 0 | BD87: 114170 | BE87: 114170 | BF87: 0
D88: 0 | G88: 0 | I88: Air_Sealing | J88: Open | K88: 13957 | L88: Sealing - Shell - EH - SF - LI | M88: Shell sealing: single family dwelling heated with electricity; low income customer | N88: Weatherization | O88: Sealing | P88: Shell Sealing | Q88: 3 | R88: 0.159 | S88: 0 | T88: 0 | U88: 0 | V88: kWh | W88: per unit | X88: PSE-deemed | Y88: RTF Derived | Z88: 2.93 | AA88: 0 | AB88: 2.93 | AC88: 0 | AD88: Full | AE88: 15 | AF88: 0 | AG88: SF Space Heat | AH88: 0 | AI88: 0.0479 | AJ88: 0.0354 | AK88: 0 | AL88: 0 | AM88: 0 | AN88: 80000 | AO88: 80000 | AP88: 0 | AQ88: 12720 | AR88: 12720 | AS88: 0 | AT88: 234400 | AU88: 234400 | AV88: 0.3 | AW88: 0 | AX88: 70320 | AY88: 70320 | AZ88: 0 | BA88: 11720 | BB88: 11720 | BC88: 0 | BD88: 82040 | BE88: 82040 | BF88: 0
D89: 0 | G89: 0 | I89: Air_Sealing | J89: Open | K89: 13940 | L89: Sealing - Air - Ceiling - EH - MF - LI | M89: Ceiling air sealing: multi-family dwelling heated with electricity; low income customer | N89: Weatherization | O89: Sealing | P89: Air Sealing | Q89: 3 | R89: 0 | S89: 0 | T89: 0 | U89: 0 | V89: kWh | W89: per unit | X89: 0 | Y89: 0 | Z89: 1.35 | AA89: 0 | AB89: 1.35 | AC89: 0 | AD89: Full | AE89: 45 | AF89: 0 | AG89: MF Space Heat | AH89: 0 | AI89: 0 | AJ89: 0 | AK89: 0 | AL89: 0 | AM89: 0 | AN89: 5000 | AO89: 5000 | AP89: 0 | AQ89: 0 | AR89: 0 | AS89: 0 | AT89: 6750 | AU89: 6750 | AV89: 0.3 | AW89: 0 | AX89: 2025 | AY89: 2025 | AZ89: 0 | BA89: 337.5 | BB89: 337.5 | BC89: 0 | BD89: 2362.5 | BE89: 2362.5 | BF89: 0
D90: 0 | G90: 0 | I90: Air_Sealing | J90: Open | K90: 13941 | L90: Sealing - Air - Floor - EH - MF - LI | M90: Floor air sealing: multi-family dwelling heated with electricity; low income customer | N90: Weatherization | O90: Sealing | P90: Air Sealing | Q90: 3 | R90: 0 | S90: 0 | T90: 0 | U90: 0 | V90: kWh | W90: per unit | X90: 0 | Y90: 0 | Z90: 1.35 | AA90: 0 | AB90: 1.35 | AC90: 0 | AD90: Full | AE90: 45 | AF90: 0 | AG90: MF Space Heat | AH90: 0 | AI90: 0 | AJ90: 0 | AK90: 0 | AL90: 0 | AM90: 0 | AN90: 5000 | AO90: 5000 | AP90: 0 | AQ90: 0 | AR90: 0 | AS90: 0 | AT90: 6750 | AU90: 6750 | AV90: 0.3 | AW90: 0 | AX90: 2025 | AY90: 2025 | AZ90: 0 | BA90: 337.5 | BB90: 337.5 | BC90: 0 | BD90: 2362.5 | BE90: 2362.5 | BF90: 0
D91: 0 | G91: 0 | I91: Air_Sealing | J91: Open | K91: 13942 | L91: Sealing - Air - Package - EH - MF - LI | M91: Package air sealing: multi-family dwelling heated with electricity; low income customer | N91: Weatherization | O91: Sealing | P91: Air Sealing | Q91: 3 | R91: 764 | S91: 0 | T91: 0 | U91: 0 | V91: kWh | W91: per home | X91: PSE-deemed | Y91: Evaluation Study | Z91: 0 | AA91: 0 | AB91: 0 | AC91: 0 | AD91: 0 | AE91: 45 | AF91: 0 | AG91: MF Space Heat | AH91: 0 | AI91: 68.7386 | AJ91: 10.5758 | AK91: 0 | AL91: 0 | AM91: 0 | AN91: 125 | AO91: 125 | AP91: 0 | AQ91: 95500 | AR91: 95500 | AS91: 0 | AT91: 0 | AU91: 0 | AV91: 0 | AW91: 0 | AX91: 0 | AY91: 0 | AZ91: 0 | BA91: 0 | BB91: 0 | BC91: 0 | BD91: 0 | BE91: 0 | BF91: 0
D92: 0 | G92: 0 | I92: Air_Sealing | J92: Open | K92: 13950 | L92: Sealing - Air - Wall - EH - MF - LI | M92: Wall air sealing: multi-family dwelling heated with electricity; low income customer | N92: Weatherization | O92: Sealing | P92: Air Sealing | Q92: 3 | R92: 0 | S92: 0 | T92: 0 | U92: 0 | V92: kWh | W92: per unit | X92: 0 | Y92: 0 | Z92: 3.12 | AA92: 0 | AB92: 3.12 | AC92: 0 | AD92: Full | AE92: 45 | AF92: 0 | AG92: MF Space Heat | AH92: 0 | AI92: 0 | AJ92: 0 | AK92: 0 | AL92: 0 | AM92: 0 | AN92: 60000 | AO92: 60000 | AP92: 0 | AQ92: 0 | AR92: 0 | AS92: 0 | AT92: 187200 | AU92: 187200 | AV92: 0.3 | AW92: 0 | AX92: 56160 | AY92: 56160 | AZ92: 0 | BA92: 9360 | BB92: 9360 | BC92: 0 | BD92: 65520 | BE92: 65520 | BF92: 0
D93: 0 | G93: 0 | I93: Insulation | J93: Open | K93: 13988 | L93: Insulation - Attic - R0 to R22 - EH - MH - LI | M93: R0 to R22 attic insulation: manufactured home heated with electricity; low income customer | N93: Weatherization | O93: Insulation | P93: Attic Insulation | Q93: 3 | R93: 0.68 | S93: 0 | T93: 0 | U93: 0 | V93: kWh | W93: square foot | X93: RTF-deemed | Y93: 0 | Z93: 3.1 | AA93: 0 | AB93: 3.1 | AC93: 0 | AD93: Full | AE93: 25 | AF93: 0 | AG93: SF Space Heat | AH93: 0 | AI93: 0.1605 | AJ93: 0.0984 | AK93: 0 | AL93: 0 | AM93: 0 | AN93: 17000 | AO93: 17000 | AP93: 0 | AQ93: 11560 | AR93: 11560 | AS93: 0 | AT93: 52700 | AU93: 52700 | AV93: 0.3 | AW93: 0 | AX93: 15810 | AY93: 15810 | AZ93: 0 | BA93: 2635 | BB93: 2635 | BC93: 0 | BD93: 18445 | BE93: 18445 | BF93: 0
D94: 0 | G94: 0 | I94: Insulation | J94: Open | K94: 13990 | L94: Insulation - Attic - R0 to R30 - EH - MH - LI | M94: R0 to R30 attic insulation: manufactured home heated with electricity; low income customer | N94: Weatherization | O94: Insulation | P94: Attic Insulation | Q94: 3 | R94: 0.93 | S94: 0 | T94: 0 | U94: 0 | V94: kWh | W94: square foot | X94: RTF-deemed | Y94: 0 | Z94: 3.33 | AA94: 0 | AB94: 3.33 | AC94: 0 | AD94: Full | AE94: 25 | AF94: 0 | AG94: SF Space Heat | AH94: 0 | AI94: 0.3014 | AJ94: 0.2156 | AK94: 0 | AL94: 0 | AM94: 0 | AN94: 43000 | AO94: 43000 | AP94: 0 | AQ94: 39990 | AR94: 39990 | AS94: 0 | AT94: 143190 | AU94: 143190 | AV94: 0.3 | AW94: 0 | AX94: 42957 | AY94: 42957 | AZ94: 0 | BA94: 7159.5 | BB94: 7159.5 | BC94: 0 | BD94: 50116.5 | BE94: 50116.5 | BF94: 0
D95: 0 | G95: 0 | I95: Insulation | J95: Open | K95: 13993 | L95: Insulation - Attic - R0 to R38 - EH - SF - LI | M95: R0 to R38 attic insulation: single family dwelling heated with electricity; low income customer | N95: Weatherization | O95: Insulation | P95: Attic Insulation | Q95: 3 | R95: 1.1833 | S95: 0 | T95: 0 | U95: 0 | V95: kWh | W95: square foot | X95: PSE-deemed | Y95: RTF Derived | Z95: 4.45 | AA95: 0 | AB95: 4.45 | AC95: 0 | AD95: Full | AE95: 45 | AF95: 0 | AG95: SF Space Heat | AH95: 0 | AI95: 0.1628 | AJ95: 0.056 | AK95: 0 | AL95: 0 | AM95: 0 | AN95: 1100 | AO95: 1100 | AP95: 0 | AQ95: 1301.63 | AR95: 1301.63 | AS95: 0 | AT95: 4895 | AU95: 4895 | AV95: 0.3 | AW95: 0 | AX95: 1468.5 | AY95: 1468.5 | AZ95: 0 | BA95: 244.75 | BB95: 244.75 | BC95: 0 | BD95: 1713.25 | BE95: 1713.25 | BF95: 0
D96: 0 | G96: 0 | I96: Insulation | J96: Open | K96: 13997 | L96: Insulation - Attic - R0 to R49 - EH - SF - LI | M96: R0 to R49 attic insulation: single family dwelling heated with electricity; low income customer | N96: Weatherization | O96: Insulation | P96: Attic Insulation | Q96: 3 | R96: 1.2001 | S96: 0 | T96: 0 | U96: 0 | V96: kWh | W96: square foot | X96: PSE-deemed | Y96: RTF Derived | Z96: 4.4 | AA96: 0 | AB96: 4.4 | AC96: 0 | AD96: Full | AE96: 45 | AF96: 0 | AG96: SF Space Heat | AH96: 0 | AI96: 0.1462 | AJ96: 0.0381 | AK96: 0 | AL96: 0 | AM96: 0 | AN96: 10000 | AO96: 10000 | AP96: 0 | AQ96: 12001 | AR96: 12001 | AS96: 0 | AT96: 44000 | AU96: 44000 | AV96: 0.3 | AW96: 0 | AX96: 13200 | AY96: 13200 | AZ96: 0 | BA96: 2200 | BB96: 2200 | BC96: 0 | BD96: 15400 | BE96: 15400 | BF96: 0
D97: 0 | G97: 0 | I97: Insulation | J97: Open | K97: 14001 | L97: Insulation - Attic - R11 to R38 - EH - SF - LI | M97: R11 to R38 attic insulation: single family dwelling heated with electricity; low income customer | N97: Weatherization | O97: Insulation | P97: Attic Insulation | Q97: 3 | R97: 0.3531 | S97: 0 | T97: 0 | U97: 0 | V97: kWh | W97: square foot | X97: PSE-deemed | Y97: RTF Derived | Z97: 3.29 | AA97: 0 | AB97: 3.29 | AC97: 0 | AD97: Full | AE97: 45 | AF97: 0 | AG97: SF Space Heat | AH97: 0 | AI97: 0.0933 | AJ97: 0.0609 | AK97: 0 | AL97: 0 | AM97: 0 | AN97: 30000 | AO97: 30000 | AP97: 0 | AQ97: 10593 | AR97: 10593 | AS97: 0 | AT97: 98700 | AU97: 98700 | AV97: 0.3 | AW97: 0 | AX97: 29610 | AY97: 29610 | AZ97: 0 | BA97: 4935 | BB97: 4935 | BC97: 0 | BD97: 34545 | BE97: 34545 | BF97: 0
D98: 0 | G98: 0 | I98: Insulation | J98: Open | K98: 14003 | L98: Insulation - Attic - R11 to R49 - EH - SF - LI | M98: R11 to R49 attic insulation: single family dwelling heated with electricity; low income customer | N98: Weatherization | O98: Insulation | P98: Attic Insulation | Q98: 3 | R98: 0.3711 | S98: 0 | T98: 0 | U98: 0 | V98: kWh | W98: square foot | X98: PSE-deemed | Y98: RTF Derived | Z98: 3.95 | AA98: 0 | AB98: 3.95 | AC98: 0 | AD98: Full | AE98: 45 | AF98: 0 | AG98: SF Space Heat | AH98: 0 | AI98: 0.093 | AJ98: 0.0591 | AK98: 0 | AL98: 0 | AM98: 0 | AN98: 9000 | AO98: 9000 | AP98: 0 | AQ98: 3339.9 | AR98: 3339.9 | AS98: 0 | AT98: 35550 | AU98: 35550 | AV98: 0.3 | AW98: 0 | AX98: 10665 | AY98: 10665 | AZ98: 0 | BA98: 1777.5 | BB98: 1777.5 | BC98: 0 | BD98: 12442.5 | BE98: 12442.5 | BF98: 0
D99: 0 | G99: 0 | I99: Insulation | J99: Open | K99: 14006 | L99: Insulation - Attic - R19 to R38 - EH - SF - LI | M99: R19 to R38 attic insulation: single family dwelling heated with electricity; low income customer | N99: Weatherization | O99: Insulation | P99: Attic Insulation | Q99: 3 | R99: 0.1512 | S99: 0 | T99: 0 | U99: 0 | V99: kWh | W99: square foot | X99: PSE-deemed | Y99: RTF Derived | Z99: 1.83 | AA99: 0 | AB99: 1.83 | AC99: 0 | AD99: Full | AE99: 45 | AF99: 0 | AG99: SF Space Heat | AH99: 0 | AI99: 0.0646 | AJ99: 0.0505 | AK99: 0 | AL99: 0 | AM99: 0 | AN99: 14000 | AO99: 14000 | AP99: 0 | AQ99: 2116.8 | AR99: 2116.8 | AS99: 0 | AT99: 25620 | AU99: 25620 | AV99: 0.3 | AW99: 0 | AX99: 7686 | AY99: 7686 | AZ99: 0 | BA99: 1281 | BB99: 1281 | BC99: 0 | BD99: 8967 | BE99: 8967 | BF99: 0
D100: 0 | G100: 0 | I100: Insulation | J100: Open | K100: 14013 | L100: Insulation - Floor - R0 to R19 - EH - SF - LI | M100: R0 to R19 floor insulation: single family dwelling heated with electricity; low income customer | N100: Weatherization | O100: Insulation | P100: Floor Insulation | Q100: 3 | R100: 0.4001 | S100: 0 | T100: 0 | U100: 0 | V100: kWh | W100: square foot | X100: PSE-deemed | Y100: RTF Derived | Z100: 4.24 | AA100: 0 | AB100: 4.24 | AC100: 0 | AD100: Full | AE100: 45 | AF100: 0 | AG100: SF Space Heat | AH100: 0 | AI100: 0.0812 | AJ100: 0.0448 | AK100: 0 | AL100: 0 | AM100: 0 | AN100: 25000 | AO100: 25000 | AP100: 0 | AQ100: 10002.5 | AR100: 10002.5 | AS100: 0 | AT100: 106000 | AU100: 106000 | AV100: 0.3 | AW100: 0 | AX100: 31800 | AY100: 31800 | AZ100: 0 | BA100: 5300 | BB100: 5300 | BC100: 0 | BD100: 37100 | BE100: 37100 | BF100: 0
D101: 0 | G101: 0 | I101: Insulation | J101: Open | K101: 14014 | L101: Insulation - Floor - R0 to R22 - EH - MH - LI | M101: R0 to R22 floor insulation: manufactured home heated with electricity; low income customer | N101: Weatherization | O101: Insulation | P101: Floor Insulation | Q101: 3 | R101: 0.8 | S101: 0 | T101: 0 | U101: 0 | V101: kWh | W101: square foot | X101: RTF-deemed | Y101: 0 | Z101: 5.7 | AA101: 0 | AB101: 5.7 | AC101: 0 | AD101: Full | AE101: 25 | AF101: 0 | AG101: SF Space Heat | AH101: 0 | AI101: 0.1837 | AJ101: 0.1107 | AK101: 0 | AL101: 0 | AM101: 0 | AN101: 115000 | AO101: 115000 | AP101: 0 | AQ101: 92000 | AR101: 92000 | AS101: 0 | AT101: 655500 | AU101: 655500 | AV101: 0.3 | AW101: 0 | AX101: 196650 | AY101: 196650 | AZ101: 0 | BA101: 32775 | BB101: 32775 | BC101: 0 | BD101: 229425 | BE101: 229425 | BF101: 0
D102: 0 | G102: 0 | I102: Insulation | J102: Open | K102: 14017 | L102: Insulation - Floor - R0 to R30 - EH - MH - LI | M102: R0 to R30 floor insulation: manufactured home heated with electricity; low income customer | N102: Weatherization | O102: Insulation | P102: Floor Insulation | Q102: 3 | R102: 0.52 | S102: 0 | T102: 0 | U102: 0 | V102: kWh | W102: square foot | X102: RTF-deemed | Y102: 0 | Z102: 5.67 | AA102: 0 | AB102: 5.67 | AC102: 0 | AD102: Full | AE102: 25 | AF102: 0 | AG102: SF Space Heat | AH102: 0 | AI102: 0.1177 | AJ102: 0.0702 | AK102: 0 | AL102: 0 | AM102: 0 | AN102: 53000 | AO102: 53000 | AP102: 0 | AQ102: 27560 | AR102: 27560 | AS102: 0 | AT102: 300510 | AU102: 300510 | AV102: 0.3 | AW102: 0 | AX102: 90153 | AY102: 90153 | AZ102: 0 | BA102: 15025.5 | BB102: 15025.5 | BC102: 0 | BD102: 105178.5 | BE102: 105178.5 | BF102: 0
D103: 0 | G103: 0 | I103: Insulation | J103: Open | K103: 14018 | L103: Insulation - Floor - R0 to R30 - EH - SF - LI | M103: R0 to R30 floor insulation: single family dwelling heated with electricity; low income customer | N103: Weatherization | O103: Insulation | P103: Floor Insulation | Q103: 3 | R103: 0.4532 | S103: 0 | T103: 0 | U103: 0 | V103: kWh | W103: square foot | X103: PSE-deemed | Y103: RTF Derived | Z103: 4.45 | AA103: 0 | AB103: 4.45 | AC103: 0 | AD103: Full | AE103: 45 | AF103: 0 | AG103: SF Space Heat | AH103: 0 | AI103: 0.0806 | AJ103: 0.0395 | AK103: 0 | AL103: 0 | AM103: 0 | AN103: 67000 | AO103: 67000 | AP103: 0 | AQ103: 30364.4 | AR103: 30364.4 | AS103: 0 | AT103: 298150 | AU103: 298150 | AV103: 0.3 | AW103: 0 | AX103: 89445 | AY103: 89445 | AZ103: 0 | BA103: 14907.5 | BB103: 14907.5 | BC103: 0 | BD103: 104352.5 | BE103: 104352.5 | BF103: 0
D104: 0 | G104: 0 | I104: Insulation | J104: Open | K104: 14022 | L104: Insulation - Floor - R11 to R22 - EH - MH - LI | M104: R11 to R22 floor insulation: manufactured home heated with electricity; low income customer | N104: Weatherization | O104: Insulation | P104: Floor Insulation | Q104: 3 | R104: 0.37 | S104: 0 | T104: 0 | U104: 0 | V104: kWh | W104: square foot | X104: RTF-deemed | Y104: 0 | Z104: 5.2 | AA104: 0 | AB104: 5.2 | AC104: 0 | AD104: Full | AE104: 25 | AF104: 0 | AG104: SF Space Heat | AH104: 0 | AI104: 0.1539 | AJ104: 0.1194 | AK104: 0 | AL104: 0 | AM104: 0 | AN104: 18000 | AO104: 18000 | AP104: 0 | AQ104: 6660 | AR104: 6660 | AS104: 0 | AT104: 93600 | AU104: 93600 | AV104: 0.3 | AW104: 0 | AX104: 28080 | AY104: 28080 | AZ104: 0 | BA104: 4680 | BB104: 4680 | BC104: 0 | BD104: 32760 | BE104: 32760 | BF104: 0
D105: 0 | G105: 0 | I105: Insulation | J105: Open | K105: 14009 | L105: Insulation - Duct - R0 to R11 - EH - SF - LI | M105: R0 to R11 duct insulation: single family dwelling heated with electricity; low income customer | N105: Weatherization | O105: Insulation | P105: Duct Insulation | Q105: 3 | R105: 4.65 | S105: 0 | T105: 0 | U105: 0 | V105: kWh | W105: square foot | X105: PSE-deemed | Y105: Program Staff | Z105: 9.17 | AA105: 0 | AB105: 9.17 | AC105: 0 | AD105: Full | AE105: 20 | AF105: 0 | AG105: SF Space Heat | AH105: 0 | AI105: 1.3131 | AJ105: 0.8861 | AK105: 0 | AL105: 0 | AM105: 0 | AN105: 1700 | AO105: 1700 | AP105: 0 | AQ105: 7905 | AR105: 7905 | AS105: 0 | AT105: 15589 | AU105: 15589 | AV105: 0.3 | AW105: 0 | AX105: 4676.7 | AY105: 4676.7 | AZ105: 0 | BA105: 779.45 | BB105: 779.45 | BC105: 0 | BD105: 5456.15 | BE105: 5456.15 | BF105: 0
D106: 0 | G106: 0 | I106: Insulation | J106: Open | K106: 14025 | L106: Insulation - Pipe - Water Heater - EH - MH - LI | M106: Pipe insulation for water heater using electricity in manufactured home: low income customer | N106: Weatherization | O106: Insulation | P106: Pipe Insulation | Q106: 3 | R106: 20.68 | S106: 0 | T106: 0 | U106: 0 | V106: kWh | W106: per unit | X106: PSE-deemed | Y106: Other Utility | Z106: 28.4 | AA106: 0 | AB106: 28.4 | AC106: 0 | AD106: Full | AE106: 15 | AF106: 0 | AG106: Res Water Heat | AH106: 0 | AI106: 17.0192 | AJ106: 15.4235 | AK106: 0 | AL106: 0 | AM106: 0 | AN106: 90 | AO106: 90 | AP106: 0 | AQ106: 1861.2 | AR106: 1861.2 | AS106: 0 | AT106: 2556 | AU106: 2556 | AV106: 0.3 | AW106: 0 | AX106: 766.8 | AY106: 766.8 | AZ106: 0 | BA106: 127.8 | BB106: 127.8 | BC106: 0 | BD106: 894.6 | BE106: 894.6 | BF106: 0
D107: 0 | G107: 0 | I107: Insulation | J107: Open | K107: 14026 | L107: Insulation - Pipe - Water Heater - EH - SF - LI | M107: Pipe insulation for water heater using electricity in single family dwelling: low income customer | N107: Weatherization | O107: Insulation | P107: Pipe Insulation | Q107: 3 | R107: 20.68 | S107: 0 | T107: 0 | U107: 0 | V107: kWh | W107: per unit | X107: PSE-deemed | Y107: Other Utility | Z107: 28.4 | AA107: 0 | AB107: 28.4 | AC107: 0 | AD107: Full | AE107: 15 | AF107: 0 | AG107: Res Water Heat | AH107: 0 | AI107: 17.0184 | AJ107: 15.4227 | AK107: 0 | AL107: 0 | AM107: 0 | AN107: 40 | AO107: 40 | AP107: 0 | AQ107: 827.2 | AR107: 827.2 | AS107: 0 | AT107: 1136 | AU107: 1136 | AV107: 0.3 | AW107: 0 | AX107: 340.8 | AY107: 340.8 | AZ107: 0 | BA107: 56.8 | BB107: 56.8 | BC107: 0 | BD107: 397.6 | BE107: 397.6 | BF107: 0
I108: Insulation | J108: Open | K108: 14033 | L108: Insulation - Wall - R0 to R11 - EH - MH - LI | M108: R0 to R11 wall insulation: manufactured home heated with electricity; low income customer | N108: Weatherization | O108: Insulation | P108: Wall Insulation | Q108: 3 | R108: 4.58 | S108: 0 | T108: 0 | U108: 0 | V108: kWh | W108: square foot | X108: RTF-deemed | Y108: 0 | Z108: 3.2 | AA108: 0 | AB108: 3.2 | AC108: 0 | AD108: Full | AE108: 25 | AF108: 0 | AG108: SF Space Heat | AH108: 0 | AI108: 5.0485 | AJ108: 4.5869 | AK108: 0 | AL108: 0 | AM108: 0 | AN108: 350 | AO108: 350 | AP108: 0 | AQ108: 1603 | AR108: 1603 | AS108: 0 | AT108: 1120 | AU108: 1120 | AV108: 0.3 | AW108: 0 | AX108: 336 | AY108: 336 | AZ108: 0 | BA108: 56 | BB108: 56 | BC108: 0 | BD108: 392 | BE108: 392 | BF108: 0
I109: Insulation | J109: Open | K109: 14034 | L109: Insulation - Wall - R0 to R11 - EH - SF - LI | M109: R0 to R11 wall insulation: single family dwelling heated with electricity; low income customer | N109: Weatherization | O109: Insulation | P109: Wall Insulation | Q109: 3 | R109: 0.7703 | S109: 0 | T109: 0 | U109: 0 | V109: kWh | W109: square foot | X109: PSE-deemed | Y109: RTF Derived | Z109: 5.61 | AA109: 0 | AB109: 5.61 | AC109: 0 | AD109: Full | AE109: 45 | AF109: 0 | AG109: SF Space Heat | AH109: 0 | AI109: 0.1251 | AJ109: 0.0554 | AK109: 0 | AL109: 0 | AM109: 0 | AN109: 9500 | AO109: 9500 | AP109: 0 | AQ109: 7317.85 | AR109: 7317.85 | AS109: 0 | AT109: 53295 | AU109: 53295 | AV109: 0.3 | AW109: 0 | AX109: 15988.5 | AY109: 15988.5 | AZ109: 0 | BA109: 2664.75 | BB109: 2664.75 | BC109: 0 | BD109: 18653.25 | BE109: 18653.25 | BF109: 0
I110: Insulation | J110: Open | K110: 13992 | L110: Insulation - Attic - R0 to R38 - EH - MF - LI | M110: R0 to R38 attic insulation: multi-family dwelling heated with electricity; low income customer | N110: Weatherization | O110: Insulation | P110: Attic Insulation | Q110: 3 | R110: 0.91 | S110: 0 | T110: 0 | U110: 0 | V110: kWh | W110: square foot | X110: RTF-deemed | Y110: 0 | Z110: 2.73 | AA110: 0 | AB110: 2.73 | AC110: 0 | AD110: Full | AE110: 45 | AF110: 0 | AG110: MF Space Heat | AH110: 0 | AI110: 0.12 | AJ110: 0.0379 | AK110: 0 | AL110: 0 | AM110: 0 | AN110: 2300 | AO110: 2300 | AP110: 0 | AQ110: 2093 | AR110: 2093 | AS110: 0 | AT110: 6279 | AU110: 6279 | AV110: 0.3 | AW110: 0 | AX110: 1883.7 | AY110: 1883.7 | AZ110: 0 | BA110: 313.95 | BB110: 313.95 | BC110: 0 | BD110: 2197.65 | BE110: 2197.65 | BF110: 0
I111: Insulation | J111: Open | K111: 13996 | L111: Insulation - Attic - R0 to R49 - EH - MF - LI | M111: R0 to R49 attic insulation: multi-family dwelling heated with electricity; low income customer | N111: Weatherization | O111: Insulation | P111: Attic Insulation | Q111: 3 | R111: 0.95 | S111: 0 | T111: 0 | U111: 0 | V111: kWh | W111: square foot | X111: RTF-deemed | Y111: 0 | Z111: 3.04 | AA111: 0 | AB111: 3.04 | AC111: 0 | AD111: Full | AE111: 45 | AF111: 0 | AG111: MF Space Heat | AH111: 0 | AI111: 0.1037 | AJ111: 0.0183 | AK111: 0 | AL111: 0 | AM111: 0 | AN111: 5000 | AO111: 5000 | AP111: 0 | AQ111: 4750 | AR111: 4750 | AS111: 0 | AT111: 15200 | AU111: 15200 | AV111: 0.3 | AW111: 0 | AX111: 4560 | AY111: 4560 | AZ111: 0 | BA111: 760 | BB111: 760 | BC111: 0 | BD111: 5320 | BE111: 5320 | BF111: 0
I112: Insulation | J112: Open | K112: 14000 | L112: Insulation - Attic - R11 to R38 - EH - MF - LI | M112: R11 to R38 attic insulation: multi-family dwelling heated with electricity; low income customer | N112: Weatherization | O112: Insulation | P112: Attic Insulation | Q112: 3 | R112: 0.56 | S112: 0 | T112: 0 | U112: 0 | V112: kWh | W112: square foot | X112: PSE-deemed | Y112: RTF Derived | Z112: 2.26 | AA112: 0 | AB112: 2.26 | AC112: 0 | AD112: Full | AE112: 45 | AF112: 0 | AG112: MF Space Heat | AH112: 0 | AI112: 0.054 | AJ112: 0.0037 | AK112: 0 | AL112: 0 | AM112: 0 | AN112: 5000 | AO112: 5000 | AP112: 0 | AQ112: 2800 | AR112: 2800 | AS112: 0 | AT112: 11300 | AU112: 11300 | AV112: 0.3 | AW112: 0 | AX112: 3390 | AY112: 3390 | AZ112: 0 | BA112: 565 | BB112: 565 | BC112: 0 | BD112: 3955 | BE112: 3955 | BF112: 0
I113: Insulation | J113: Open | K113: 14005 | L113: Insulation - Attic - R19 to R38 - EH - MF - LI | M113: R19 to R38 attic insulation: multi-family dwelling heated with electricity; low income customer | N113: Weatherization | O113: Insulation | P113: Attic Insulation | Q113: 3 | R113: 0.23 | S113: 0 | T113: 0 | U113: 0 | V113: kWh | W113: square foot | X113: RTF-deemed | Y113: 0 | Z113: 1.83 | AA113: 0 | AB113: 1.83 | AC113: 0 | AD113: Full | AE113: 45 | AF113: 0 | AG113: MF Space Heat | AH113: 0 | AI113: 0.0222 | AJ113: 0.0015 | AK113: 0 | AL113: 0 | AM113: 0 | AN113: 27000 | AO113: 27000 | AP113: 0 | AQ113: 6210 | AR113: 6210 | AS113: 0 | AT113: 49410 | AU113: 49410 | AV113: 0.3 | AW113: 0 | AX113: 14823 | AY113: 14823 | AZ113: 0 | BA113: 2470.5 | BB113: 2470.5 | BC113: 0 | BD113: 17293.5 | BE113: 17293.5 | BF113: 0
I114: Insulation | J114: Open | K114: 14007 | L114: Insulation - Attic - R19 to R49 - EH - MF - LI | M114: R19 to R49 attic insulation: multi-family dwelling heated with electricity; low income customer | N114: Weatherization | O114: Insulation | P114: Attic Insulation | Q114: 3 | R114: 0.28 | S114: 0 | T114: 0 | U114: 0 | V114: kWh | W114: square foot | X114: RTF-deemed | Y114: 0 | Z114: 2.22 | AA114: 0 | AB114: 2.22 | AC114: 0 | AD114: Full | AE114: 45 | AF114: 0 | AG114: MF Space Heat | AH114: 0 | AI114: 0.0468 | AJ114: 0.0215 | AK114: 0 | AL114: 0 | AM114: 0 | AN114: 91000 | AO114: 91000 | AP114: 0 | AQ114: 25480 | AR114: 25480 | AS114: 0 | AT114: 202020 | AU114: 202020 | AV114: 0.3 | AW114: 0 | AX114: 60606 | AY114: 60606 | AZ114: 0 | BA114: 10101 | BB114: 10101 | BC114: 0 | BD114: 70707 | BE114: 70707 | BF114: 0
I115: Insulation | J115: Open | K115: 14008 | L115: Insulation - Duct - R0 to R11 - EH - MF - LI | M115: R0 to R11 duct insulation: multi- family dwelling heated with electricity; low income customer | N115: Weatherization | O115: Insulation | P115: Duct Insulation | Q115: 3 | R115: 4.65 | S115: 0 | T115: 0 | U115: 0 | V115: kWh | W115: square foot | X115: PSE-deemed | Y115: Program Staff | Z115: 9.17 | AA115: 0 | AB115: 9.17 | AC115: 0 | AD115: Full | AE115: 20 | AF115: 0 | AG115: MF Space Heat | AH115: 0 | AI115: 0.4485 | AJ115: 0.0309 | AK115: 0 | AL115: 0 | AM115: 0 | AN115: 500 | AO115: 500 | AP115: 0 | AQ115: 2325 | AR115: 2325 | AS115: 0 | AT115: 4585 | AU115: 4585 | AV115: 0.3 | AW115: 0 | AX115: 1375.5 | AY115: 1375.5 | AZ115: 0 | BA115: 229.25 | BB115: 229.25 | BC115: 0 | BD115: 1604.75 | BE115: 1604.75 | BF115: 0
I116: Insulation | J116: Open | K116: 14012 | L116: Insulation - Floor - R0 to R19 - EH - MF - LI | M116: R0 to R19 floor insulation: multi-family dwelling heated with electricity; low income customer | N116: Weatherization | O116: Insulation | P116: Floor Insulation | Q116: 3 | R116: 1.01 | S116: 0 | T116: 0 | U116: 0 | V116: kWh | W116: square foot | X116: RTF-deemed | Y116: 0 | Z116: 2.64 | AA116: 0 | AB116: 2.64 | AC116: 0 | AD116: Full | AE116: 45 | AF116: 0 | AG116: MF Space Heat | AH116: 0 | AI116: 0.1176 | AJ116: 0.0266 | AK116: 0 | AL116: 0 | AM116: 0 | AN116: 3000 | AO116: 3000 | AP116: 0 | AQ116: 3030 | AR116: 3030 | AS116: 0 | AT116: 7920 | AU116: 7920 | AV116: 0.3 | AW116: 0 | AX116: 2376 | AY116: 2376 | AZ116: 0 | BA116: 396 | BB116: 396 | BC116: 0 | BD116: 2772 | BE116: 2772 | BF116: 0
I117: Insulation | J117: Open | K117: 14016 | L117: Insulation - Floor - R0 to R30 - EH - MF - LI | M117: R0 to R30 floor insulation: multi-family dwelling heated with electricity; low income customer | N117: Weatherization | O117: Insulation | P117: Floor Insulation | Q117: 3 | R117: 1.35 | S117: 0 | T117: 0 | U117: 0 | V117: kWh | W117: square foot | X117: RTF-deemed | Y117: 0 | Z117: 3.04 | AA117: 0 | AB117: 3.04 | AC117: 0 | AD117: Full | AE117: 45 | AF117: 0 | AG117: MF Space Heat | AH117: 0 | AI117: 0.1503 | AJ117: 0.0289 | AK117: 0 | AL117: 0 | AM117: 0 | AN117: 12500 | AO117: 12500 | AP117: 0 | AQ117: 16875 | AR117: 16875 | AS117: 0 | AT117: 38000 | AU117: 38000 | AV117: 0.3 | AW117: 0 | AX117: 11400 | AY117: 11400 | AZ117: 0 | BA117: 1900 | BB117: 1900 | BC117: 0 | BD117: 13300 | BE117: 13300 | BF117: 0
I118: Insulation | J118: Open | K118: 14023 | L118: Insulation - Floor - R11 to R30 - EH - MF - LI | M118: R11 to R30 floor insulation: multi-family dwelling heated with electricity; low income customer | N118: Weatherization | O118: Insulation | P118: Floor Insulation | Q118: 3 | R118: 0.77 | S118: 0 | T118: 0 | U118: 0 | V118: kWh | W118: square foot | X118: PSE-deemed | Y118: RTF Derived | Z118: 2.64 | AA118: 0 | AB118: 2.64 | AC118: 0 | AD118: Full | AE118: 45 | AF118: 0 | AG118: MF Space Heat | AH118: 0 | AI118: 0.1441 | AJ118: 0.0742 | AK118: 0 | AL118: 0 | AM118: 0 | AN118: 2200 | AO118: 2200 | AP118: 0 | AQ118: 1694 | AR118: 1694 | AS118: 0 | AT118: 5808 | AU118: 5808 | AV118: 0.3 | AW118: 0 | AX118: 1742.4 | AY118: 1742.4 | AZ118: 0 | BA118: 290.4 | BB118: 290.4 | BC118: 0 | BD118: 2032.8 | BE118: 2032.8 | BF118: 0
I119: Insulation | J119: Open | K119: 14024 | L119: Insulation - Pipe - Water Heater - EH - MF - LI | M119: Pipe insulation for water heater using electricity in multi-family dwelling: low income customer | N119: Weatherization | O119: Insulation | P119: Pipe Insulation | Q119: 3 | R119: 20.68 | S119: 0 | T119: 0 | U119: 0 | V119: kWh | W119: per unit | X119: PSE-deemed | Y119: Other Utility | Z119: 28.4 | AA119: 0 | AB119: 28.4 | AC119: 0 | AD119: Full | AE119: 15 | AF119: 0 | AG119: Res Water Heat | AH119: 0 | AI119: 16.6055 | AJ119: 15.0127 | AK119: 0 | AL119: 0 | AM119: 0 | AN119: 185 | AO119: 185 | AP119: 0 | AQ119: 3825.8 | AR119: 3825.8 | AS119: 0 | AT119: 5254 | AU119: 5254 | AV119: 0.3 | AW119: 0 | AX119: 1576.2 | AY119: 1576.2 | AZ119: 0 | BA119: 262.7 | BB119: 262.7 | BC119: 0 | BD119: 1838.9 | BE119: 1838.9 | BF119: 0
I120: Insulation | J120: Open | K120: 14032 | L120: Insulation - Wall - R0 to R11 - EH - MF - LI | M120: R0 to R11 wall insulation: multi-family dwelling heated with electricity; low income customer | N120: Weatherization | O120: Insulation | P120: Wall Insulation | Q120: 3 | R120: 2.05 | S120: 0 | T120: 0 | U120: 0 | V120: kWh | W120: square foot | X120: RTF-deemed | Y120: 0 | Z120: 3.12 | AA120: 0 | AB120: 3.12 | AC120: 0 | AD120: Full | AE120: 45 | AF120: 0 | AG120: MF Space Heat | AH120: 0 | AI120: 0.2233 | AJ120: 0.0389 | AK120: 0 | AL120: 0 | AM120: 0 | AN120: 75000 | AO120: 75000 | AP120: 0 | AQ120: 153750 | AR120: 153750 | AS120: 0 | AT120: 234000 | AU120: 234000 | AV120: 0.3 | AW120: 0 | AX120: 70200 | AY120: 70200 | AZ120: 0 | BA120: 11700 | BB120: 11700 | BC120: 0 | BD120: 81900 | BE120: 81900 | BF120: 0
I121: Heat_Pump | J121: Open | K121: 13981 | L121: Heat Pump - Ductless - EH - MH - LI | M121: Ductless heat pump: manufactured home heated with electricity; low income customer | N121: HVAC | O121: Heat Pump | P121: Ductless Heat Pump | Q121: 3 | R121: 2126 | S121: 0 | T121: 0 | U121: 0 | V121: kWh | W121: per unit | X121: PSE-deemed | Y121: RTF Derived | Z121: 8819 | AA121: 0 | AB121: 8819 | AC121: 0 | AD121: Full | AE121: 15 | AF121: 0 | AG121: SF Heat Pump | AH121: 0 | AI121: 254.4122 | AJ121: 70.32 | AK121: 0 | AL121: 0 | AM121: 0 | AN121: 175 | AO121: 175 | AP121: 0 | AQ121: 372050 | AR121: 372050 | AS121: 0 | AT121: 1543325 | AU121: 1543325 | AV121: 0.3 | AW121: 0 | AX121: 462997.5 | AY121: 462997.5 | AZ121: 0 | BA121: 77166.25 | BB121: 77166.25 | BC121: 0 | BD121: 540163.75 | BE121: 540163.75 | BF121: 0
I122: Heat_Pump | J122: Open | K122: 13982 | L122: Heat Pump - Ductless - EH - SF - LI | M122: Ductless heat pump: single family dwelling heated with electricity; low income customer | N122: HVAC | O122: Heat Pump | P122: Ductless Heat Pump | Q122: 3 | R122: 1995 | S122: 0 | T122: 0 | U122: 0 | V122: kWh | W122: per unit | X122: PSE-deemed | Y122: RTF Derived | Z122: 8657 | AA122: 0 | AB122: 8657 | AC122: 0 | AD122: Full | AE122: 15 | AF122: 0 | AG122: SF Heat Pump | AH122: 0 | AI122: 232.1615 | AJ122: 59.9124 | AK122: 0 | AL122: 0 | AM122: 0 | AN122: 160 | AO122: 160 | AP122: 0 | AQ122: 319200 | AR122: 319200 | AS122: 0 | AT122: 1385120 | AU122: 1385120 | AV122: 0.3 | AW122: 0 | AX122: 415536 | AY122: 415536 | AZ122: 0 | BA122: 69256 | BB122: 69256 | BC122: 0 | BD122: 484792 | BE122: 484792 | BF122: 0
I123: Heat_Pump | J123: Open | K123: 13984 | L123: Heat Pump - from E FAF - MH - LI | M123: Electric forced air furnace to heat pump conversion: manufactured home; low income customer | N123: HVAC | O123: Heat Pump | P123: Heat Pump Conversion | Q123: 3 | R123: 2975 | S123: 1590 | T123: 0 | U123: 0 | V123: kWh | W123: per unit | X123: RTF-deemed | Y123: 0 | Z123: 11759.55 | AA123: 0 | AB123: 11759.55 | AC123: 0 | AD123: Full | AE123: 10 | AF123: 8 | AG123: SF Heat Pump | AH123: 0 | AI123: 496.7119 | AJ123: 139.2127 | AK123: 0 | AL123: 0 | AM123: 0 | AN123: 38 | AO123: 38 | AP123: 0 | AQ123: 113050 | AR123: 113050 | AS123: 0 | AT123: 446862.9 | AU123: 446862.9 | AV123: 0.3 | AW123: 0 | AX123: 134058.87 | AY123: 134058.87 | AZ123: 0 | BA123: 22343.145 | BB123: 22343.145 | BC123: 0 | BD123: 156402.015 | BE123: 156402.015 | BF123: 0
I124: Heat_Pump | J124: Open | K124: 13985 | L124: Heat Pump - from E FAF - SF - LI | M124: Electric forced air furnace to heat pump conversion: single family dwelling; low income customer | N124: HVAC | O124: Heat Pump | P124: Heat Pump Conversion | Q124: 3 | R124: 2894 | S124: 1596 | T124: 0 | U124: 0 | V124: kWh | W124: per unit | X124: RTF-deemed | Y124: 0 | Z124: 12598.29 | AA124: 0 | AB124: 12598.29 | AC124: 0 | AD124: Full | AE124: 10 | AF124: 8 | AG124: SF Heat Pump | AH124: 0 | AI124: 423.9942 | AJ124: 44.4338 | AK124: 0 | AL124: 0 | AM124: 0 | AN124: 12 | AO124: 12 | AP124: 0 | AQ124: 34728 | AR124: 34728 | AS124: 0 | AT124: 151179.48 | AU124: 151179.48 | AV124: 0.3 | AW124: 0 | AX124: 45353.844 | AY124: 45353.844 | AZ124: 0 | BA124: 7558.974 | BB124: 7558.974 | BC124: 0 | BD124: 52912.818 | BE124: 52912.818 | BF124: 0
I125: Thermostat | J125: Open | K125: 14047 | L125: Thermostat - ELV - EH - MF - LI | M125: Electronic line voltage thermostat: multi-family dwelling heated with electricity; low income customer | N125: Controls | O125: Thermostat | P125: ELV Thermostat | Q125: 3 | R125: 59 | S125: 53 | T125: 0 | U125: 0 | V125: kWh | W125: per unit | X125: RTF-deemed | Y125: 0 | Z125: 176.21 | AA125: 0 | AB125: 176.21 | AC125: 0 | AD125: Full | AE125: 5 | AF125: 10 | AG125: MF Space Heat | AH125: 0 | AI125: 10.8182 | AJ125: 4.2883 | AK125: 0 | AL125: 0 | AM125: 0 | AN125: 5 | AO125: 5 | AP125: 0 | AQ125: 295 | AR125: 295 | AS125: 0 | AT125: 881.05 | AU125: 881.05 | AV125: 0.3 | AW125: 0 | AX125: 264.315 | AY125: 264.315 | AZ125: 0 | BA125: 44.0525 | BB125: 44.0525 | BC125: 0 | BD125: 308.3675 | BE125: 308.3675 | BF125: 0
I126: Thermostat | J126: Open | K126: 14048 | L126: Thermostat - ELV - EH - SF - LI | M126: Electronic line voltage thermostat: single family dwelling heated with electricity; low income customer | N126: Controls | O126: Thermostat | P126: ELV Thermostat | Q126: 3 | R126: 72 | S126: 65 | T126: 0 | U126: 0 | V126: kWh | W126: per unit | X126: RTF-deemed | Y126: 0 | Z126: 176.21 | AA126: 0 | AB126: 176.21 | AC126: 0 | AD126: Full | AE126: 5 | AF126: 10 | AG126: SF Space Heat | AH126: 0 | AI126: 35.5464 | AJ126: 20.9269 | AK126: 0 | AL126: 0 | AM126: 0 | AN126: 5 | AO126: 5 | AP126: 0 | AQ126: 360 | AR126: 360 | AS126: 0 | AT126: 881.05 | AU126: 881.05 | AV126: 0.3 | AW126: 0 | AX126: 264.315 | AY126: 264.315 | AZ126: 0 | BA126: 44.0525 | BB126: 44.0525 | BC126: 0 | BD126: 308.3675 | BE126: 308.3675 | BF126: 0
I127: Thermostat | J127: Open | K127: 14050 | L127: Thermostat - Smart - EH - MF - LI | M127: Smart thermostat: multi-family dwelling heated with electricity; low income customer | N127: Controls | O127: Thermostat | P127: Web-Enabled Thermostat | Q127: 3 | R127: 107 | S127: 0 | T127: 0 | U127: 0 | V127: kWh | W127: per unit | X127: PSE-deemed | Y127: RTF Derived | Z127: 504 | AA127: 0 | AB127: 504 | AC127: 0 | AD127: Full | AE127: 7 | AF127: 0 | AG127: MF Space Heat | AH127: 0 | AI127: 8.5505 | AJ127: 0.003 | AK127: 0 | AL127: 0 | AM127: 0 | AN127: 120 | AO127: 120 | AP127: 0 | AQ127: 12840 | AR127: 12840 | AS127: 0 | AT127: 60480 | AU127: 60480 | AV127: 0.3 | AW127: 0 | AX127: 18144 | AY127: 18144 | AZ127: 0 | BA127: 3024 | BB127: 3024 | BC127: 0 | BD127: 21168 | BE127: 21168 | BF127: 0
I128: Thermostat | J128: Open | K128: 14051 | L128: Thermostat - Smart - EH - SF - LI | M128: Smart thermostat: single family dwelling heated with electricity; low income customer | N128: Controls | O128: Thermostat | P128: Web-Enabled Thermostat | Q128: 3 | R128: 260 | S128: 0 | T128: 0 | U128: 0 | V128: kWh | W128: per unit | X128: PSE-deemed | Y128: RTF Derived | Z128: 484 | AA128: 0 | AB128: 484 | AC128: 0 | AD128: Full | AE128: 7 | AF128: 0 | AG128: SF Space Heat | AH128: 0 | AI128: 31.2783 | AJ128: 7.3828 | AK128: 0 | AL128: 0 | AM128: 0 | AN128: 20 | AO128: 20 | AP128: 0 | AQ128: 5200 | AR128: 5200 | AS128: 0 | AT128: 9680 | AU128: 9680 | AV128: 0.3 | AW128: 0 | AX128: 2904 | AY128: 2904 | AZ128: 0 | BA128: 484 | BB128: 484 | BC128: 0 | BD128: 3388 | BE128: 3388 | BF128: 0
I129: Thermostat | J129: Open | K129: 14078 | L129: Thermostat - Smart - EH - MH - LI | M129: Smart thermostat: manufactured home heated with electricity; low income customer | N129: Controls | O129: Thermostat | P129: Web-Enabled Thermostat | Q129: 3 | R129: 260 | S129: 0 | T129: 0 | U129: 0 | V129: kWh | W129: per unit | X129: PSE-deemed | Y129: RTF Derived | Z129: 504 | AA129: 0 | AB129: 504 | AC129: 0 | AD129: Full | AE129: 7 | AF129: 0 | AG129: SF Space Heat | AH129: 0 | AI129: 31.2783 | AJ129: 7.3828 | AK129: 0 | AL129: 0 | AM129: 0 | AN129: 20 | AO129: 20 | AP129: 0 | AQ129: 5200 | AR129: 5200 | AS129: 0 | AT129: 10080 | AU129: 10080 | AV129: 0.3 | AW129: 0 | AX129: 3024 | AY129: 3024 | AZ129: 0 | BA129: 504 | BB129: 504 | BC129: 0 | BD129: 3528 | BE129: 3528 | BF129: 0
I130: Window | J130: Open | K130: 14059 | L130: Windows - Double Pane - from DP - EH - MF - LI | M130: Double pane windows: from double pane; multi-family dwelling heated with electricity; low income customer | N130: Weatherization | O130: Window | P130: Double Pane | Q130: 3 | R130: 12.86 | S130: 0 | T130: 0 | U130: 0 | V130: kWh | W130: square foot | X130: RTF-deemed | Y130: 0 | Z130: 44.202 | AA130: 0 | AB130: 44.202 | AC130: 0 | AD130: Full | AE130: 45 | AF130: 0 | AG130: MF Space Heat | AH130: 0 | AI130: 0.8977 | AJ130: 0.0907 | AK130: 0 | AL130: 0 | AM130: 0 | AN130: 30 | AO130: 30 | AP130: 0 | AQ130: 385.8 | AR130: 385.8 | AS130: 0 | AT130: 1326.06 | AU130: 1326.06 | AV130: 0.3 | AW130: 0 | AX130: 397.818 | AY130: 397.818 | AZ130: 0 | BA130: 66.303 | BB130: 66.303 | BC130: 0 | BD130: 464.121 | BE130: 464.121 | BF130: 0
I131: Window | J131: Open | K131: 14060 | L131: Windows - Double Pane - from DP - EH - MH - LI | M131: Double pane windows: from double pane; manufactured home heated with electricity; low income customer | N131: Weatherization | O131: Window | P131: Double Pane | Q131: 3 | R131: 7.9 | S131: 0 | T131: 0 | U131: 0 | V131: kWh | W131: square foot | X131: RTF-deemed | Y131: 0 | Z131: 36.237 | AA131: 0 | AB131: 36.237 | AC131: 0 | AD131: Full | AE131: 25 | AF131: 0 | AG131: SF Space Heat | AH131: 0 | AI131: 5.499 | AJ131: 4.9616 | AK131: 0 | AL131: 0 | AM131: 0 | AN131: 110 | AO131: 110 | AP131: 0 | AQ131: 869 | AR131: 869 | AS131: 0 | AT131: 3986.07 | AU131: 3986.07 | AV131: 0.3 | AW131: 0 | AX131: 1195.821 | AY131: 1195.821 | AZ131: 0 | BA131: 199.3035 | BB131: 199.3035 | BC131: 0 | BD131: 1395.1245 | BE131: 1395.1245 | BF131: 0
I132: Window | J132: Open | K132: 14061 | L132: Windows - Double Pane - from DP - EH - SF - LI | M132: Double pane windows: from double pane; single family dwelling heated with electricity; low income customer | N132: Weatherization | O132: Window | P132: Double Pane | Q132: 3 | R132: 2.4935 | S132: 0 | T132: 0 | U132: 0 | V132: kWh | W132: square foot | X132: PSE-deemed | Y132: RTF Derived | Z132: 44.202 | AA132: 0 | AB132: 44.202 | AC132: 0 | AD132: Full | AE132: 45 | AF132: 0 | AG132: SF Space Heat | AH132: 0 | AI132: 0.1544 | AJ132: 0.0002 | AK132: 0 | AL132: 0 | AM132: 0 | AN132: 2200 | AO132: 2200 | AP132: 0 | AQ132: 5485.7 | AR132: 5485.7 | AS132: 0 | AT132: 97244.4 | AU132: 97244.4 | AV132: 0.3 | AW132: 0 | AX132: 29173.32 | AY132: 29173.32 | AZ132: 0 | BA132: 4862.22 | BB132: 4862.22 | BC132: 0 | BD132: 34035.54 | BE132: 34035.54 | BF132: 0
I133: Window | J133: Open | K133: 14062 | L133: Windows - Double Pane - from SP - EH - MF - LI | M133: Double pane windows: from single pane; multi-family dwelling heated with electricity; low income customer | N133: Weatherization | O133: Window | P133: Double Pane | Q133: 3 | R133: 23.87 | S133: 0 | T133: 0 | U133: 0 | V133: kWh | W133: square foot | X133: RTF-deemed | Y133: 0 | Z133: 44.202 | AA133: 0 | AB133: 44.202 | AC133: 0 | AD133: Full | AE133: 45 | AF133: 0 | AG133: MF Space Heat | AH133: 0 | AI133: 1.4985 | AJ133: 0.002 | AK133: 0 | AL133: 0 | AM133: 0 | AN133: 900 | AO133: 900 | AP133: 0 | AQ133: 21483 | AR133: 21483 | AS133: 0 | AT133: 39781.8 | AU133: 39781.8 | AV133: 0.3 | AW133: 0 | AX133: 11934.54 | AY133: 11934.54 | AZ133: 0 | BA133: 1989.09 | BB133: 1989.09 | BC133: 0 | BD133: 13923.63 | BE133: 13923.63 | BF133: 0
I134: Window | J134: Open | K134: 14063 | L134: Windows - Double Pane - from SP - EH - MH - LI | M134: Double pane windows: from single pane; manufactured home heated with electricity; low income customer | N134: Weatherization | O134: Window | P134: Double Pane | Q134: 3 | R134: 16.54 | S134: 0 | T134: 0 | U134: 0 | V134: kWh | W134: square foot | X134: RTF-deemed | Y134: 0 | Z134: 36.237 | AA134: 0 | AB134: 36.237 | AC134: 0 | AD134: Full | AE134: 25 | AF134: 0 | AG134: SF Space Heat | AH134: 0 | AI134: 2.6362 | AJ134: 1.5858 | AK134: 0 | AL134: 0 | AM134: 0 | AN134: 50 | AO134: 50 | AP134: 0 | AQ134: 827 | AR134: 827 | AS134: 0 | AT134: 1811.85 | AU134: 1811.85 | AV134: 0.3 | AW134: 0 | AX134: 543.555 | AY134: 543.555 | AZ134: 0 | BA134: 90.5925 | BB134: 90.5925 | BC134: 0 | BD134: 634.1475 | BE134: 634.1475 | BF134: 0
I135: Window | J135: Open | K135: 14064 | L135: Windows - Double Pane - from SP - EH - SF - LI | M135: Double pane windows: from single pane; single family dwelling heated with electricity; low income customer | N135: Weatherization | O135: Window | P135: Double Pane | Q135: 3 | R135: 3.8319 | S135: 0 | T135: 0 | U135: 0 | V135: kWh | W135: square foot | X135: PSE-deemed | Y135: RTF Derived | Z135: 44.202 | AA135: 0 | AB135: 44.202 | AC135: 0 | AD135: Full | AE135: 45 | AF135: 0 | AG135: SF Space Heat | AH135: 0 | AI135: 0.4595 | AJ135: 0.2286 | AK135: 0 | AL135: 0 | AM135: 0 | AN135: 10 | AO135: 10 | AP135: 0 | AQ135: 38.319 | AR135: 38.319 | AS135: 0 | AT135: 442.02 | AU135: 442.02 | AV135: 0.3 | AW135: 0 | AX135: 132.606 | AY135: 132.606 | AZ135: 0 | BA135: 22.101 | BB135: 22.101 | BC135: 0 | BD135: 154.707 | BE135: 154.707 | BF135: 0
I136: Ventilation | J136: Open | K136: 14056 | L136: Ventilation - Whole House - MF - LI | M136: Whole house ventilation in multi-family dwelling: low income customer | N136: HVAC | O136: Ventilation | P136: Whole House Ventilation | Q136: 3 | R136: 127 | S136: 0 | T136: 0 | U136: 0 | V136: kWh | W136: per unit | X136: PSE-deemed | Y136: Program Staff | Z136: 1005.502 | AA136: 0 | AB136: 1005.502 | AC136: 0 | AD136: Full | AE136: 19 | AF136: 0 | AG136: Res Plug Load | AH136: 0 | AI136: 13.8549 | AJ136: 4.333 | AK136: 0 | AL136: 0 | AM136: 0 | AN136: 200 | AO136: 200 | AP136: 0 | AQ136: 25400 | AR136: 25400 | AS136: 0 | AT136: 201100.4 | AU136: 201100.4 | AV136: 0.3 | AW136: 0 | AX136: 60330.12 | AY136: 60330.12 | AZ136: 0 | BA136: 10055.02 | BB136: 10055.02 | BC136: 0 | BD136: 70385.14 | BE136: 70385.14 | BF136: 0
I137: Ventilation | J137: Open | K137: 14057 | L137: Ventilation - Whole House - MH - LI | M137: Whole house ventilation in manufactured home: low income customer | N137: HVAC | O137: Ventilation | P137: Whole House Ventilation | Q137: 3 | R137: 127 | S137: 0 | T137: 0 | U137: 0 | V137: kWh | W137: per unit | X137: PSE-deemed | Y137: Program Staff | Z137: 2182 | AA137: 0 | AB137: 2182 | AC137: 0 | AD137: Full | AE137: 19 | AF137: 0 | AG137: Res Plug Load | AH137: 0 | AI137: 50.1379 | AJ137: 35.816 | AK137: 0 | AL137: 0 | AM137: 0 | AN137: 140 | AO137: 140 | AP137: 0 | AQ137: 17780 | AR137: 17780 | AS137: 0 | AT137: 305480 | AU137: 305480 | AV137: 0.3 | AW137: 0 | AX137: 91644 | AY137: 91644 | AZ137: 0 | BA137: 15274 | BB137: 15274 | BC137: 0 | BD137: 106918 | BE137: 106918 | BF137: 0
I138: Ventilation | J138: Open | K138: 14058 | L138: Ventilation - Whole House - SF - LI | M138: Whole house ventilation in single family dwelling: low income customer | N138: HVAC | O138: Ventilation | P138: Whole House Ventilation | Q138: 3 | R138: 127 | S138: 0 | T138: 0 | U138: 0 | V138: kWh | W138: per unit | X138: PSE-deemed | Y138: Program Staff | Z138: 1719 | AA138: 0 | AB138: 1719 | AC138: 0 | AD138: Full | AE138: 19 | AF138: 0 | AG138: Res Plug Load | AH138: 0 | AI138: 40.9012 | AJ138: 27.8013 | AK138: 0 | AL138: 0 | AM138: 0 | AN138: 130 | AO138: 130 | AP138: 0 | AQ138: 16510 | AR138: 16510 | AS138: 0 | AT138: 223470 | AU138: 223470 | AV138: 0.3 | AW138: 0 | AX138: 67041 | AY138: 67041 | AZ138: 0 | BA138: 11173.5 | BB138: 11173.5 | BC138: 0 | BD138: 78214.5 | BE138: 78214.5 | BF138: 0
I139: Heat_Pump | J139: Open | K139: 13980 | L139: Heat Pump - Ductless - EH - MF - LI | M139: Ductless heat pump: multi-family dwelling heated with electricity; low income customer | N139: HVAC | O139: Heat Pump | P139: Ductless Heat Pump | Q139: 3 | R139: 1300 | S139: 0 | T139: 0 | U139: 0 | V139: kWh | W139: per unit | X139: RTF-deemed | Y139: 0 | Z139: 5560 | AA139: 0 | AB139: 5560 | AC139: 0 | AD139: Full | AE139: 15 | AF139: 0 | AG139: MF Heat Pump | AH139: 0 | AI139: 125.1316 | AJ139: 14.8769 | AK139: 0 | AL139: 0 | AM139: 0 | AN139: 230 | AO139: 230 | AP139: 0 | AQ139: 299000 | AR139: 299000 | AS139: 0 | AT139: 1278800 | AU139: 1278800 | AV139: 0.3 | AW139: 0 | AX139: 383640 | AY139: 383640 | AZ139: 0 | BA139: 63940 | BB139: 63940 | BC139: 0 | BD139: 447580 | BE139: 447580 | BF139: 0
I140: 0 | J140: 0 | K140: 0 | L140: 0 | M140: 0 | N140: 0 | O140: 0 | P140: 0 | Q140: 0 | R140: 0 | S140: 0 | T140: 0 | U140: 0 | V140: 0 | W140: 0 | X140: 0 | Y140: 0 | Z140: 0 | AA140: 0 | AB140: 0 | AC140: 0 | AD140: 0 | AE140: 0 | AF140: 0 | AG140: 0 | AH140: 0 | AI140: 0 | AJ140: 0 | AK140: 0 | AL140: 0 | AM140: 0 | AN140: 0 | AS140: 0 | AT140: 0 | AU140: 0 | AV140: 0 | AW140: 0 | AX140: 0 | AY140: 0 | AZ140: 0 | BA140: 0 | BB140: 0 | BC140: 0 | BD140: 0 | BE140: 0 | BF140: 0
I141: 0 | J141: 0 | K141: 0 | L141: 0 | M141: 0 | N141: 0 | O141: 0 | P141: 0 | Q141: 0 | R141: 0 | S141: 0 | T141: 0 | U141: 0 | V141: 0 | W141: 0 | X141: 0 | Y141: 0 | Z141: 0 | AA141: 0 | AB141: 0 | AC141: 0 | AD141: 0 | AE141: 0 | AF141: 0 | AG141: 0 | AH141: 0 | AI141: 0 | AJ141: 0 | AK141: 0 | AL141: 0 | AM141: 0 | AN141: 0 | AS141: 0 | AT141: 0 | AU141: 0 | AV141: 0 | AW141: 0 | AX141: 0 | AY141: 0 | AZ141: 0 | BA141: 0 | BB141: 0 | BC141: 0 | BD141: 0 | BE141: 0 | BF141: 0
I142: 0 | J142: 0 | K142: 0 | L142: 0 | M142: 0 | N142: 0 | O142: 0 | P142: 0 | Q142: 0 | R142: 0 | S142: 0 | T142: 0 | U142: 0 | V142: 0 | W142: 0 | X142: 0 | Y142: 0 | Z142: 0 | AA142: 0 | AB142: 0 | AC142: 0 | AD142: 0 | AE142: 0 | AF142: 0 | AG142: 0 | AH142: 0 | AI142: 0 | AJ142: 0 | AK142: 0 | AL142: 0 | AM142: 0 | AN142: 0 | AS142: 0 | AT142: 0 | AU142: 0 | AV142: 0 | AW142: 0 | AX142: 0 | AY142: 0 | AZ142: 0 | BA142: 0 | BB142: 0 | BC142: 0 | BD142: 0 | BE142: 0 | BF142: 0
I143: 0 | J143: 0 | K143: 0 | L143: 0 | M143: 0 | N143: 0 | O143: 0 | P143: 0 | Q143: 0 | R143: 0 | S143: 0 | T143: 0 | U143: 0 | V143: 0 | W143: 0 | X143: 0 | Y143: 0 | Z143: 0 | AA143: 0 | AB143: 0 | AC143: 0 | AD143: 0 | AE143: 0 | AF143: 0 | AG143: 0 | AH143: 0 | AI143: 0 | AJ143: 0 | AK143: 0 | AL143: 0 | AM143: 0 | AN143: 0 | AS143: 0 | AT143: 0 | AU143: 0 | AV143: 0 | AW143: 0 | AX143: 0 | AY143: 0 | AZ143: 0 | BA143: 0 | BB143: 0 | BC143: 0 | BD143: 0 | BE143: 0 | BF143: 0
I144: 0 | J144: 0 | K144: 0 | L144: 0 | M144: 0 | N144: 0 | O144: 0 | P144: 0 | Q144: 0 | R144: 0 | S144: 0 | T144: 0 | U144: 0 | V144: 0 | W144: 0 | X144: 0 | Y144: 0 | Z144: 0 | AA144: 0 | AB144: 0 | AC144: 0 | AD144: 0 | AE144: 0 | AF144: 0 | AG144: 0 | AH144: 0 | AI144: 0 | AJ144: 0 | AK144: 0 | AL144: 0 | AM144: 0 | AN144: 0 | AS144: 0 | AT144: 0 | AU144: 0 | AV144: 0 | AW144: 0 | AX144: 0 | AY144: 0 | AZ144: 0 | BA144: 0 | BB144: 0 | BC144: 0 | BD144: 0 | BE144: 0 | BF144: 0
I145: 0 | J145: 0 | K145: 0 | L145: 0 | M145: 0 | N145: 0 | O145: 0 | P145: 0 | Q145: 0 | R145: 0 | S145: 0 | T145: 0 | U145: 0 | V145: 0 | W145: 0 | X145: 0 | Y145: 0 | Z145: 0 | AA145: 0 | AB145: 0 | AC145: 0 | AD145: 0 | AE145: 0 | AF145: 0 | AG145: 0 | AH145: 0 | AI145: 0 | AJ145: 0 | AK145: 0 | AL145: 0 | AM145: 0 | AN145: 0 | AS145: 0 | AT145: 0 | AU145: 0 | AV145: 0 | AW145: 0 | AX145: 0 | AY145: 0 | AZ145: 0 | BA145: 0 | BB145: 0 | BC145: 0 | BD145: 0 | BE145: 0 | BF145: 0
I146: 0 | J146: 0 | K146: 0 | L146: 0 | M146: 0 | N146: 0 | O146: 0 | P146: 0 | Q146: 0 | R146: 0 | S146: 0 | T146: 0 | U146: 0 | V146: 0 | W146: 0 | X146: 0 | Y146: 0 | Z146: 0 | AA146: 0 | AB146: 0 | AC146: 0 | AD146: 0 | AE146: 0 | AF146: 0 | AG146: 0 | AH146: 0 | AI146: 0 | AJ146: 0 | AK146: 0 | AL146: 0 | AM146: 0 | AN146: 0 | AS146: 0 | AT146: 0 | AU146: 0 | AV146: 0 | AW146: 0 | AX146: 0 | AY146: 0 | AZ146: 0 | BA146: 0 | BB146: 0 | BC146: 0 | BD146: 0 | BE146: 0 | BF146: 0
I147: 0 | J147: 0 | K147: 0 | L147: 0 | M147: 0 | N147: 0 | O147: 0 | P147: 0 | Q147: 0 | R147: 0 | S147: 0 | T147: 0 | U147: 0 | V147: 0 | W147: 0 | X147: 0 | Y147: 0 | Z147: 0 | AA147: 0 | AB147: 0 | AC147: 0 | AD147: 0 | AE147: 0 | AF147: 0 | AG147: 0 | AH147: 0 | AI147: 0 | AJ147: 0 | AK147: 0 | AL147: 0 | AM147: 0 | AN147: 0 | AS147: 0 | AT147: 0 | AU147: 0 | AV147: 0 | AW147: 0 | AX147: 0 | AY147: 0 | AZ147: 0 | BA147: 0 | BB147: 0 | BC147: 0 | BD147: 0 | BE147: 0 | BF147: 0
I148: 0 | J148: 0 | K148: 0 | L148: 0 | M148: 0 | N148: 0 | O148: 0 | P148: 0 | Q148: 0 | R148: 0 | S148: 0 | T148: 0 | U148: 0 | V148: 0 | W148: 0 | X148: 0 | Y148: 0 | Z148: 0 | AA148: 0 | AB148: 0 | AC148: 0 | AD148: 0 | AE148: 0 | AF148: 0 | AG148: 0 | AH148: 0 | AI148: 0 | AJ148: 0 | AK148: 0 | AL148: 0 | AM148: 0 | AN148: 0 | AS148: 0 | AT148: 0 | AU148: 0 | AV148: 0 | AW148: 0 | AX148: 0 | AY148: 0 | AZ148: 0 | BA148: 0 | BB148: 0 | BC148: 0 | BD148: 0 | BE148: 0 | BF148: 0
I149: 0 | J149: 0 | K149: 0 | L149: 0 | M149: 0 | N149: 0 | O149: 0 | P149: 0 | Q149: 0 | R149: 0 | S149: 0 | T149: 0 | U149: 0 | V149: 0 | W149: 0 | X149: 0 | Y149: 0 | Z149: 0 | AA149: 0 | AB149: 0 | AC149: 0 | AD149: 0 | AE149: 0 | AF149: 0 | AG149: 0 | AH149: 0 | AI149: 0 | AJ149: 0 | AK149: 0 | AL149: 0 | AM149: 0 | AN149: 0 | AS149: 0 | AT149: 0 | AU149: 0 | AV149: 0 | AW149: 0 | AX149: 0 | AY149: 0 | AZ149: 0 | BA149: 0 | BB149: 0 | BC149: 0 | BD149: 0 | BE149: 0 | BF149: 0
I150: 0 | J150: 0 | K150: 0 | L150: 0 | M150: 0 | N150: 0 | O150: 0 | P150: 0 | Q150: 0 | R150: 0 | S150: 0 | T150: 0 | U150: 0 | V150: 0 | W150: 0 | X150: 0 | Y150: 0 | Z150: 0 | AA150: 0 | AB150: 0 | AC150: 0 | AD150: 0 | AE150: 0 | AF150: 0 | AG150: 0 | AH150: 0 | AI150: 0 | AJ150: 0 | AK150: 0 | AL150: 0 | AM150: 0 | AN150: 0 | AS150: 0 | AT150: 0 | AU150: 0 | AV150: 0 | AW150: 0 | AX150: 0 | AY150: 0 | AZ150: 0 | BA150: 0 | BB150: 0 | BC150: 0 | BD150: 0 | BE150: 0 | BF150: 0
I151: 0 | J151: 0 | K151: 0 | L151: 0 | M151: 0 | N151: 0 | O151: 0 | P151: 0 | Q151: 0 | R151: 0 | S151: 0 | T151: 0 | U151: 0 | V151: 0 | W151: 0 | X151: 0 | Y151: 0 | Z151: 0 | AA151: 0 | AB151: 0 | AC151: 0 | AD151: 0 | AE151: 0 | AF151: 0 | AG151: 0 | AH151: 0 | AI151: 0 | AJ151: 0 | AK151: 0 | AL151: 0 | AM151: 0 | AN151: 0 | AS151: 0 | AT151: 0 | AU151: 0 | AV151: 0 | AW151: 0 | AX151: 0 | AY151: 0 | AZ151: 0 | BA151: 0 | BB151: 0 | BC151: 0 | BD151: 0 | BE151: 0 | BF151: 0
I152: 0 | J152: 0 | K152: 0 | L152: 0 | M152: 0 | N152: 0 | O152: 0 | P152: 0 | Q152: 0 | R152: 0 | S152: 0 | T152: 0 | U152: 0 | V152: 0 | W152: 0 | X152: 0 | Y152: 0 | Z152: 0 | AA152: 0 | AB152: 0 | AC152: 0 | AD152: 0 | AE152: 0 | AF152: 0 | AG152: 0 | AH152: 0 | AI152: 0 | AJ152: 0 | AK152: 0 | AL152: 0 | AM152: 0 | AN152: 0 | AS152: 0 | AT152: 0 | AU152: 0 | AV152: 0 | AW152: 0 | AX152: 0 | AY152: 0 | AZ152: 0 | BA152: 0 | BB152: 0 | BC152: 0 | BD152: 0 | BE152: 0 | BF152: 0
I153: 0 | J153: 0 | K153: 0 | L153: 0 | M153: 0 | N153: 0 | O153: 0 | P153: 0 | Q153: 0 | R153: 0 | S153: 0 | T153: 0 | U153: 0 | V153: 0 | W153: 0 | X153: 0 | Y153: 0 | Z153: 0 | AA153: 0 | AB153: 0 | AC153: 0 | AD153: 0 | AE153: 0 | AF153: 0 | AG153: 0 | AH153: 0 | AI153: 0 | AJ153: 0 | AK153: 0 | AL153: 0 | AM153: 0 | AN153: 0 | AS153: 0 | AT153: 0 | AU153: 0 | AV153: 0 | AW153: 0 | AX153: 0 | AY153: 0 | AZ153: 0 | BA153: 0 | BB153: 0 | BC153: 0 | BD153: 0 | BE153: 0 | BF153: 0
I154: 0 | J154: 0 | K154: 0 | L154: 0 | M154: 0 | N154: 0 | O154: 0 | P154: 0 | Q154: 0 | R154: 0 | S154: 0 | T154: 0 | U154: 0 | V154: 0 | W154: 0 | X154: 0 | Y154: 0 | Z154: 0 | AA154: 0 | AB154: 0 | AC154: 0 | AD154: 0 | AE154: 0 | AF154: 0 | AG154: 0 | AH154: 0 | AI154: 0 | AJ154: 0 | AK154: 0 | AL154: 0 | AM154: 0 | AN154: 0 | AS154: 0 | AT154: 0 | AU154: 0 | AV154: 0 | AW154: 0 | AX154: 0 | AY154: 0 | AZ154: 0 | BA154: 0 | BB154: 0 | BC154: 0 | BD154: 0 | BE154: 0 | BF154: 0
I155: 0 | J155: 0 | K155: 0 | L155: 0 | M155: 0 | N155: 0 | O155: 0 | P155: 0 | Q155: 0 | R155: 0 | S155: 0 | T155: 0 | U155: 0 | V155: 0 | W155: 0 | X155: 0 | Y155: 0 | Z155: 0 | AA155: 0 | AB155: 0 | AC155: 0 | AD155: 0 | AE155: 0 | AF155: 0 | AG155: 0 | AH155: 0 | AI155: 0 | AJ155: 0 | AK155: 0 | AL155: 0 | AM155: 0 | AN155: 0 | AS155: 0 | AT155: 0 | AU155: 0 | AV155: 0 | AW155: 0 | AX155: 0 | AY155: 0 | AZ155: 0 | BA155: 0 | BB155: 0 | BC155: 0 | BD155: 0 | BE155: 0 | BF155: 0
I156: 0 | J156: 0 | K156: 0 | L156: 0 | M156: 0 | N156: 0 | O156: 0 | P156: 0 | Q156: 0 | R156: 0 | S156: 0 | T156: 0 | U156: 0 | V156: 0 | W156: 0 | X156: 0 | Y156: 0 | Z156: 0 | AA156: 0 | AB156: 0 | AC156: 0 | AD156: 0 | AE156: 0 | AF156: 0 | AG156: 0 | AH156: 0 | AI156: 0 | AJ156: 0 | AK156: 0 | AL156: 0 | AM156: 0 | AN156: 0 | AS156: 0 | AT156: 0 | AU156: 0 | AV156: 0 | AW156: 0 | AX156: 0 | AY156: 0 | AZ156: 0 | BA156: 0 | BB156: 0 | BC156: 0 | BD156: 0 | BE156: 0 | BF156: 0
I157: 0 | J157: 0 | K157: 0 | L157: 0 | M157: 0 | N157: 0 | O157: 0 | P157: 0 | Q157: 0 | R157: 0 | S157: 0 | T157: 0 | U157: 0 | V157: 0 | W157: 0 | X157: 0 | Y157: 0 | Z157: 0 | AA157: 0 | AB157: 0 | AC157: 0 | AD157: 0 | AE157: 0 | AF157: 0 | AG157: 0 | AH157: 0 | AI157: 0 | AJ157: 0 | AK157: 0 | AL157: 0 | AM157: 0 | AN157: 0 | AS157: 0 | AT157: 0 | AU157: 0 | AV157: 0 | AW157: 0 | AX157: 0 | AY157: 0 | AZ157: 0 | BA157: 0 | BB157: 0 | BC157: 0 | BD157: 0 | BE157: 0 | BF157: 0
I158: 0 | J158: 0 | K158: 0 | L158: 0 | M158: 0 | N158: 0 | O158: 0 | P158: 0 | Q158: 0 | R158: 0 | S158: 0 | T158: 0 | U158: 0 | V158: 0 | W158: 0 | X158: 0 | Y158: 0 | Z158: 0 | AA158: 0 | AB158: 0 | AC158: 0 | AD158: 0 | AE158: 0 | AF158: 0 | AG158: 0 | AH158: 0 | AI158: 0 | AJ158: 0 | AK158: 0 | AL158: 0 | AM158: 0 | AN158: 0 | AS158: 0 | AT158: 0 | AU158: 0 | AV158: 0 | AW158: 0 | AX158: 0 | AY158: 0 | AZ158: 0 | BA158: 0 | BB158: 0 | BC158: 0 | BD158: 0 | BE158: 0 | BF158: 0
I159: 0 | J159: 0 | K159: 0 | L159: 0 | M159: 0 | N159: 0 | O159: 0 | P159: 0 | Q159: 0 | R159: 0 | S159: 0 | T159: 0 | U159: 0 | V159: 0 | W159: 0 | X159: 0 | Y159: 0 | Z159: 0 | AA159: 0 | AB159: 0 | AC159: 0 | AD159: 0 | AE159: 0 | AF159: 0 | AG159: 0 | AH159: 0 | AI159: 0 | AJ159: 0 | AK159: 0 | AL159: 0 | AM159: 0 | AN159: 0 | AS159: 0 | AT159: 0 | AU159: 0 | AV159: 0 | AW159: 0 | AX159: 0 | AY159: 0 | AZ159: 0 | BA159: 0 | BB159: 0 | BC159: 0 | BD159: 0 | BE159: 0 | BF159: 0
I160: 0 | J160: 0 | K160: 0 | L160: 0 | M160: 0 | N160: 0 | O160: 0 | P160: 0 | Q160: 0 | R160: 0 | S160: 0 | T160: 0 | U160: 0 | V160: 0 | W160: 0 | X160: 0 | Y160: 0 | Z160: 0 | AA160: 0 | AB160: 0 | AC160: 0 | AD160: 0 | AE160: 0 | AF160: 0 | AG160: 0 | AH160: 0 | AI160: 0 | AJ160: 0 | AK160: 0 | AL160: 0 | AM160: 0 | AN160: 0 | AS160: 0 | AT160: 0 | AU160: 0 | AV160: 0 | AW160: 0 | AX160: 0 | AY160: 0 | AZ160: 0 | BA160: 0 | BB160: 0 | BC160: 0 | BD160: 0 | BE160: 0 | BF160: 0
I161: 0 | J161: 0 | K161: 0 | L161: 0 | M161: 0 | N161: 0 | O161: 0 | P161: 0 | Q161: 0 | R161: 0 | S161: 0 | T161: 0 | U161: 0 | V161: 0 | W161: 0 | X161: 0 | Y161: 0 | Z161: 0 | AA161: 0 | AB161: 0 | AC161: 0 | AD161: 0 | AE161: 0 | AF161: 0 | AG161: 0 | AH161: 0 | AI161: 0 | AJ161: 0 | AK161: 0 | AL161: 0 | AM161: 0 | AN161: 0 | AS161: 0 | AT161: 0 | AU161: 0 | AV161: 0 | AW161: 0 | AX161: 0 | AY161: 0 | AZ161: 0 | BA161: 0 | BB161: 0 | BC161: 0 | BD161: 0 | BE161: 0 | BF161: 0
I162: 0 | J162: 0 | K162: 0 | L162: 0 | M162: 0 | N162: 0 | O162: 0 | P162: 0 | Q162: 0 | R162: 0 | S162: 0 | T162: 0 | U162: 0 | V162: 0 | W162: 0 | X162: 0 | Y162: 0 | Z162: 0 | AA162: 0 | AB162: 0 | AC162: 0 | AD162: 0 | AE162: 0 | AF162: 0 | AG162: 0 | AH162: 0 | AI162: 0 | AJ162: 0 | AK162: 0 | AL162: 0 | AM162: 0 | AN162: 0 | AS162: 0 | AT162: 0 | AU162: 0 | AV162: 0 | AW162: 0 | AX162: 0 | AY162: 0 | AZ162: 0 | BA162: 0 | BB162: 0 | BC162: 0 | BD162: 0 | BE162: 0 | BF162: 0
I163: 0 | J163: 0 | K163: 0 | L163: 0 | M163: 0 | N163: 0 | O163: 0 | P163: 0 | Q163: 0 | R163: 0 | S163: 0 | T163: 0 | U163: 0 | V163: 0 | W163: 0 | X163: 0 | Y163: 0 | Z163: 0 | AA163: 0 | AB163: 0 | AC163: 0 | AD163: 0 | AE163: 0 | AF163: 0 | AG163: 0 | AH163: 0 | AI163: 0 | AJ163: 0 | AK163: 0 | AL163: 0 | AM163: 0 | AN163: 0 | AS163: 0 | AT163: 0 | AU163: 0 | AV163: 0 | AW163: 0 | AX163: 0 | AY163: 0 | AZ163: 0 | BA163: 0 | BB163: 0 | BC163: 0 | BD163: 0 | BE163: 0 | BF163: 0
I164: 0 | J164: 0 | K164: 0 | L164: 0 | M164: 0 | N164: 0 | O164: 0 | P164: 0 | Q164: 0 | R164: 0 | S164: 0 | T164: 0 | U164: 0 | V164: 0 | W164: 0 | X164: 0 | Y164: 0 | Z164: 0 | AA164: 0 | AB164: 0 | AC164: 0 | AD164: 0 | AE164: 0 | AF164: 0 | AG164: 0 | AH164: 0 | AI164: 0 | AJ164: 0 | AK164: 0 | AL164: 0 | AM164: 0 | AN164: 0 | AS164: 0 | AT164: 0 | AU164: 0 | AV164: 0 | AW164: 0 | AX164: 0 | AY164: 0 | AZ164: 0 | BA164: 0 | BB164: 0 | BC164: 0 | BD164: 0 | BE164: 0 | BF164: 0
I165: 0 | J165: 0 | K165: 0 | L165: 0 | M165: 0 | N165: 0 | O165: 0 | P165: 0 | Q165: 0 | R165: 0 | S165: 0 | T165: 0 | U165: 0 | V165: 0 | W165: 0 | X165: 0 | Y165: 0 | Z165: 0 | AA165: 0 | AB165: 0 | AC165: 0 | AD165: 0 | AE165: 0 | AF165: 0 | AG165: 0 | AH165: 0 | AI165: 0 | AJ165: 0 | AK165: 0 | AL165: 0 | AM165: 0 | AN165: 0 | AS165: 0 | AT165: 0 | AU165: 0 | AV165: 0 | AW165: 0 | AX165: 0 | AY165: 0 | AZ165: 0 | BA165: 0 | BB165: 0 | BC165: 0 | BD165: 0 | BE165: 0 | BF165: 0
I166: 0 | J166: 0 | K166: 0 | L166: 0 | M166: 0 | N166: 0 | O166: 0 | P166: 0 | Q166: 0 | R166: 0 | S166: 0 | T166: 0 | U166: 0 | V166: 0 | W166: 0 | X166: 0 | Y166: 0 | Z166: 0 | AA166: 0 | AB166: 0 | AC166: 0 | AD166: 0 | AE166: 0 | AF166: 0 | AG166: 0 | AH166: 0 | AI166: 0 | AJ166: 0 | AK166: 0 | AL166: 0 | AM166: 0 | AN166: 0 | AS166: 0 | AT166: 0 | AU166: 0 | AV166: 0 | AW166: 0 | AX166: 0 | AY166: 0 | AZ166: 0 | BA166: 0 | BB166: 0 | BC166: 0 | BD166: 0 | BE166: 0 | BF166: 0
I167: 0 | J167: 0 | K167: 0 | L167: 0 | M167: 0 | N167: 0 | O167: 0 | P167: 0 | Q167: 0 | R167: 0 | S167: 0 | T167: 0 | U167: 0 | V167: 0 | W167: 0 | X167: 0 | Y167: 0 | Z167: 0 | AA167: 0 | AB167: 0 | AC167: 0 | AD167: 0 | AE167: 0 | AF167: 0 | AG167: 0 | AH167: 0 | AI167: 0 | AJ167: 0 | AK167: 0 | AL167: 0 | AM167: 0 | AN167: 0 | AS167: 0 | AT167: 0 | AU167: 0 | AV167: 0 | AW167: 0 | AX167: 0 | AY167: 0 | AZ167: 0 | BA167: 0 | BB167: 0 | BC167: 0 | BD167: 0 | BE167: 0 | BF167: 0
I168: 0 | J168: 0 | K168: 0 | L168: 0 | M168: 0 | N168: 0 | O168: 0 | P168: 0 | Q168: 0 | R168: 0 | S168: 0 | T168: 0 | U168: 0 | V168: 0 | W168: 0 | X168: 0 | Y168: 0 | Z168: 0 | AA168: 0 | AB168: 0 | AC168: 0 | AD168: 0 | AE168: 0 | AF168: 0 | AG168: 0 | AH168: 0 | AI168: 0 | AJ168: 0 | AK168: 0 | AL168: 0 | AM168: 0 | AN168: 0 | AS168: 0 | AT168: 0 | AU168: 0 | AV168: 0 | AW168: 0 | AX168: 0 | AY168: 0 | AZ168: 0 | BA168: 0 | BB168: 0 | BC168: 0 | BD168: 0 | BE168: 0 | BF168: 0
I169: 0 | J169: 0 | K169: 0 | L169: 0 | M169: 0 | N169: 0 | O169: 0 | P169: 0 | Q169: 0 | R169: 0 | S169: 0 | T169: 0 | U169: 0 | V169: 0 | W169: 0 | X169: 0 | Y169: 0 | Z169: 0 | AA169: 0 | AB169: 0 | AC169: 0 | AD169: 0 | AE169: 0 | AF169: 0 | AG169: 0 | AH169: 0 | AI169: 0 | AJ169: 0 | AK169: 0 | AL169: 0 | AM169: 0 | AN169: 0 | AS169: 0 | AT169: 0 | AU169: 0 | AV169: 0 | AW169: 0 | AX169: 0 | AY169: 0 | AZ169: 0 | BA169: 0 | BB169: 0 | BC169: 0 | BD169: 0 | BE169: 0 | BF169: 0
I170: 0 | J170: 0 | K170: 0 | L170: 0 | M170: 0 | N170: 0 | O170: 0 | P170: 0 | Q170: 0 | R170: 0 | S170: 0 | T170: 0 | U170: 0 | V170: 0 | W170: 0 | X170: 0 | Y170: 0 | Z170: 0 | AA170: 0 | AB170: 0 | AC170: 0 | AD170: 0 | AE170: 0 | AF170: 0 | AG170: 0 | AH170: 0 | AI170: 0 | AJ170: 0 | AK170: 0 | AL170: 0 | AM170: 0 | AN170: 0 | AS170: 0 | AT170: 0 | AU170: 0 | AV170: 0 | AW170: 0 | AX170: 0 | AY170: 0 | AZ170: 0 | BA170: 0 | BB170: 0 | BC170: 0 | BD170: 0 | BE170: 0 | BF170: 0
I171: 0 | J171: 0 | K171: 0 | L171: 0 | M171: 0 | N171: 0 | O171: 0 | P171: 0 | Q171: 0 | R171: 0 | S171: 0 | T171: 0 | U171: 0 | V171: 0 | W171: 0 | X171: 0 | Y171: 0 | Z171: 0 | AA171: 0 | AB171: 0 | AC171: 0 | AD171: 0 | AE171: 0 | AF171: 0 | AG171: 0 | AH171: 0 | AI171: 0 | AJ171: 0 | AK171: 0 | AL171: 0 | AM171: 0 | AN171: 0 | AS171: 0 | AT171: 0 | AU171: 0 | AV171: 0 | AW171: 0 | AX171: 0 | AY171: 0 | AZ171: 0 | BA171: 0 | BB171: 0 | BC171: 0 | BD171: 0 | BE171: 0 | BF171: 0
I172: 0 | J172: 0 | K172: 0 | L172: 0 | M172: 0 | N172: 0 | O172: 0 | P172: 0 | Q172: 0 | R172: 0 | S172: 0 | T172: 0 | U172: 0 | V172: 0 | W172: 0 | X172: 0 | Y172: 0 | Z172: 0 | AA172: 0 | AB172: 0 | AC172: 0 | AD172: 0 | AE172: 0 | AF172: 0 | AG172: 0 | AH172: 0 | AI172: 0 | AJ172: 0 | AK172: 0 | AL172: 0 | AM172: 0 | AN172: 0 | AS172: 0 | AT172: 0 | AU172: 0 | AV172: 0 | AW172: 0 | AX172: 0 | AY172: 0 | AZ172: 0 | BA172: 0 | BB172: 0 | BC172: 0 | BD172: 0 | BE172: 0 | BF172: 0
I173: 0 | J173: 0 | K173: 0 | L173: 0 | M173: 0 | N173: 0 | O173: 0 | P173: 0 | Q173: 0 | R173: 0 | S173: 0 | T173: 0 | U173: 0 | V173: 0 | W173: 0 | X173: 0 | Y173: 0 | Z173: 0 | AA173: 0 | AB173: 0 | AC173: 0 | AD173: 0 | AE173: 0 | AF173: 0 | AG173: 0 | AH173: 0 | AI173: 0 | AJ173: 0 | AK173: 0 | AL173: 0 | AM173: 0 | AN173: 0 | AS173: 0 | AT173: 0 | AU173: 0 | AV173: 0 | AW173: 0 | AX173: 0 | AY173: 0 | AZ173: 0 | BA173: 0 | BB173: 0 | BC173: 0 | BD173: 0 | BE173: 0 | BF173: 0
I174: 0 | J174: 0 | K174: 0 | L174: 0 | M174: 0 | N174: 0 | O174: 0 | P174: 0 | Q174: 0 | R174: 0 | S174: 0 | T174: 0 | U174: 0 | V174: 0 | W174: 0 | X174: 0 | Y174: 0 | Z174: 0 | AA174: 0 | AB174: 0 | AC174: 0 | AD174: 0 | AE174: 0 | AF174: 0 | AG174: 0 | AH174: 0 | AI174: 0 | AJ174: 0 | AK174: 0 | AL174: 0 | AM174: 0 | AN174: 0 | AS174: 0 | AT174: 0 | AU174: 0 | AV174: 0 | AW174: 0 | AX174: 0 | AY174: 0 | AZ174: 0 | BA174: 0 | BB174: 0 | BC174: 0 | BD174: 0 | BE174: 0 | BF174: 0
I175: 0 | J175: 0 | K175: 0 | L175: 0 | M175: 0 | N175: 0 | O175: 0 | P175: 0 | Q175: 0 | R175: 0 | S175: 0 | T175: 0 | U175: 0 | V175: 0 | W175: 0 | X175: 0 | Y175: 0 | Z175: 0 | AA175: 0 | AB175: 0 | AC175: 0 | AD175: 0 | AE175: 0 | AF175: 0 | AG175: 0 | AH175: 0 | AI175: 0 | AJ175: 0 | AK175: 0 | AL175: 0 | AM175: 0 | AN175: 0 | AS175: 0 | AT175: 0 | AU175: 0 | AV175: 0 | AW175: 0 | AX175: 0 | AY175: 0 | AZ175: 0 | BA175: 0 | BB175: 0 | BC175: 0 | BD175: 0 | BE175: 0 | BF175: 0
I176: 0 | J176: 0 | K176: 0 | L176: 0 | M176: 0 | N176: 0 | O176: 0 | P176: 0 | Q176: 0 | R176: 0 | S176: 0 | T176: 0 | U176: 0 | V176: 0 | W176: 0 | X176: 0 | Y176: 0 | Z176: 0 | AA176: 0 | AB176: 0 | AC176: 0 | AD176: 0 | AE176: 0 | AF176: 0 | AG176: 0 | AH176: 0 | AI176: 0 | AJ176: 0 | AK176: 0 | AL176: 0 | AM176: 0 | AN176: 0 | AS176: 0 | AT176: 0 | AU176: 0 | AV176: 0 | AW176: 0 | AX176: 0 | AY176: 0 | AZ176: 0 | BA176: 0 | BB176: 0 | BC176: 0 | BD176: 0 | BE176: 0 | BF176: 0
I177: 0 | J177: 0 | K177: 0 | L177: 0 | M177: 0 | N177: 0 | O177: 0 | P177: 0 | Q177: 0 | R177: 0 | S177: 0 | T177: 0 | U177: 0 | V177: 0 | W177: 0 | X177: 0 | Y177: 0 | Z177: 0 | AA177: 0 | AB177: 0 | AC177: 0 | AD177: 0 | AE177: 0 | AF177: 0 | AG177: 0 | AH177: 0 | AI177: 0 | AJ177: 0 | AK177: 0 | AL177: 0 | AM177: 0 | AN177: 0 | AS177: 0 | AT177: 0 | AU177: 0 | AV177: 0 | AW177: 0 | AX177: 0 | AY177: 0 | AZ177: 0 | BA177: 0 | BB177: 0 | BC177: 0 | BD177: 0 | BE177: 0 | BF177: 0
I178: 0 | J178: 0 | K178: 0 | L178: 0 | M178: 0 | N178: 0 | O178: 0 | P178: 0 | Q178: 0 | R178: 0 | S178: 0 | T178: 0 | U178: 0 | V178: 0 | W178: 0 | X178: 0 | Y178: 0 | Z178: 0 | AA178: 0 | AB178: 0 | AC178: 0 | AD178: 0 | AE178: 0 | AF178: 0 | AG178: 0 | AH178: 0 | AI178: 0 | AJ178: 0 | AK178: 0 | AL178: 0 | AM178: 0 | AN178: 0 | AS178: 0 | AT178: 0 | AU178: 0 | AV178: 0 | AW178: 0 | AX178: 0 | AY178: 0 | AZ178: 0 | BA178: 0 | BB178: 0 | BC178: 0 | BD178: 0 | BE178: 0 | BF178: 0
I179: 0 | J179: 0 | K179: 0 | L179: 0 | M179: 0 | N179: 0 | O179: 0 | P179: 0 | Q179: 0 | R179: 0 | S179: 0 | T179: 0 | U179: 0 | V179: 0 | W179: 0 | X179: 0 | Y179: 0 | Z179: 0 | AA179: 0 | AB179: 0 | AC179: 0 | AD179: 0 | AE179: 0 | AF179: 0 | AG179: 0 | AH179: 0 | AI179: 0 | AJ179: 0 | AK179: 0 | AL179: 0 | AM179: 0 | AN179: 0 | AS179: 0 | AT179: 0 | AU179: 0 | AV179: 0 | AW179: 0 | AX179: 0 | AY179: 0 | AZ179: 0 | BA179: 0 | BB179: 0 | BC179: 0 | BD179: 0 | BE179: 0 | BF179: 0
I180: 0 | J180: 0 | K180: 0 | L180: 0 | M180: 0 | N180: 0 | O180: 0 | P180: 0 | Q180: 0 | R180: 0 | S180: 0 | T180: 0 | U180: 0 | V180: 0 | W180: 0 | X180: 0 | Y180: 0 | Z180: 0 | AA180: 0 | AB180: 0 | AC180: 0 | AD180: 0 | AE180: 0 | AF180: 0 | AG180: 0 | AH180: 0 | AI180: 0 | AJ180: 0 | AK180: 0 | AL180: 0 | AM180: 0 | AN180: 0 | AS180: 0 | AT180: 0 | AU180: 0 | AV180: 0 | AW180: 0 | AX180: 0 | AY180: 0 | AZ180: 0 | BA180: 0 | BB180: 0 | BC180: 0 | BD180: 0 | BE180: 0 | BF180: 0
I181: 0 | J181: 0 | K181: 0 | L181: 0 | M181: 0 | N181: 0 | O181: 0 | P181: 0 | Q181: 0 | R181: 0 | S181: 0 | T181: 0 | U181: 0 | V181: 0 | W181: 0 | X181: 0 | Y181: 0 | Z181: 0 | AA181: 0 | AB181: 0 | AC181: 0 | AD181: 0 | AE181: 0 | AF181: 0 | AG181: 0 | AH181: 0 | AI181: 0 | AJ181: 0 | AK181: 0 | AL181: 0 | AM181: 0 | AN181: 0 | AS181: 0 | AT181: 0 | AU181: 0 | AV181: 0 | AW181: 0 | AX181: 0 | AY181: 0 | AZ181: 0 | BA181: 0 | BB181: 0 | BC181: 0 | BD181: 0 | BE181: 0 | BF181: 0
I182: 0 | J182: 0 | K182: 0 | L182: 0 | M182: 0 | N182: 0 | O182: 0 | P182: 0 | Q182: 0 | R182: 0 | S182: 0 | T182: 0 | U182: 0 | V182: 0 | W182: 0 | X182: 0 | Y182: 0 | Z182: 0 | AA182: 0 | AB182: 0 | AC182: 0 | AD182: 0 | AE182: 0 | AF182: 0 | AG182: 0 | AH182: 0 | AI182: 0 | AJ182: 0 | AK182: 0 | AL182: 0 | AM182: 0 | AN182: 0 | AS182: 0 | AT182: 0 | AU182: 0 | AV182: 0 | AW182: 0 | AX182: 0 | AY182: 0 | AZ182: 0 | BA182: 0 | BB182: 0 | BC182: 0 | BD182: 0 | BE182: 0 | BF182: 0
I183: 0 | J183: 0 | K183: 0 | L183: 0 | M183: 0 | N183: 0 | O183: 0 | P183: 0 | Q183: 0 | R183: 0 | S183: 0 | T183: 0 | U183: 0 | V183: 0 | W183: 0 | X183: 0 | Y183: 0 | Z183: 0 | AA183: 0 | AB183: 0 | AC183: 0 | AD183: 0 | AE183: 0 | AF183: 0 | AG183: 0 | AH183: 0 | AI183: 0 | AJ183: 0 | AK183: 0 | AL183: 0 | AM183: 0 | AN183: 0 | AS183: 0 | AT183: 0 | AU183: 0 | AV183: 0 | AW183: 0 | AX183: 0 | AY183: 0 | AZ183: 0 | BA183: 0 | BB183: 0 | BC183: 0 | BD183: 0 | BE183: 0 | BF183: 0
I184: 0 | J184: 0 | K184: 0 | L184: 0 | M184: 0 | N184: 0 | O184: 0 | P184: 0 | Q184: 0 | R184: 0 | S184: 0 | T184: 0 | U184: 0 | V184: 0 | W184: 0 | X184: 0 | Y184: 0 | Z184: 0 | AA184: 0 | AB184: 0 | AC184: 0 | AD184: 0 | AE184: 0 | AF184: 0 | AG184: 0 | AH184: 0 | AI184: 0 | AJ184: 0 | AK184: 0 | AL184: 0 | AM184: 0 | AN184: 0 | AS184: 0 | AT184: 0 | AU184: 0 | AV184: 0 | AW184: 0 | AX184: 0 | AY184: 0 | AZ184: 0 | BA184: 0 | BB184: 0 | BC184: 0 | BD184: 0 | BE184: 0 | BF184: 0
I185: 0 | J185: 0 | K185: 0 | L185: 0 | M185: 0 | N185: 0 | O185: 0 | P185: 0 | Q185: 0 | R185: 0 | S185: 0 | T185: 0 | U185: 0 | V185: 0 | W185: 0 | X185: 0 | Y185: 0 | Z185: 0 | AA185: 0 | AB185: 0 | AC185: 0 | AD185: 0 | AE185: 0 | AF185: 0 | AG185: 0 | AH185: 0 | AI185: 0 | AJ185: 0 | AK185: 0 | AL185: 0 | AM185: 0 | AN185: 0 | AS185: 0 | AT185: 0 | AU185: 0 | AV185: 0 | AW185: 0 | AX185: 0 | AY185: 0 | AZ185: 0 | BA185: 0 | BB185: 0 | BC185: 0 | BD185: 0 | BE185: 0 | BF185: 0
I186: 0 | J186: 0 | K186: 0 | L186: 0 | M186: 0 | N186: 0 | O186: 0 | P186: 0 | Q186: 0 | R186: 0 | S186: 0 | T186: 0 | U186: 0 | V186: 0 | W186: 0 | X186: 0 | Y186: 0 | Z186: 0 | AA186: 0 | AB186: 0 | AC186: 0 | AD186: 0 | AE186: 0 | AF186: 0 | AG186: 0 | AH186: 0 | AI186: 0 | AJ186: 0 | AK186: 0 | AL186: 0 | AM186: 0 | AN186: 0 | AS186: 0 | AT186: 0 | AU186: 0 | AV186: 0 | AW186: 0 | AX186: 0 | AY186: 0 | AZ186: 0 | BA186: 0 | BB186: 0 | BC186: 0 | BD186: 0 | BE186: 0 | BF186: 0
I187: 0 | J187: 0 | K187: 0 | L187: 0 | M187: 0 | N187: 0 | O187: 0 | P187: 0 | Q187: 0 | R187: 0 | S187: 0 | T187: 0 | U187: 0 | V187: 0 | W187: 0 | X187: 0 | Y187: 0 | Z187: 0 | AA187: 0 | AB187: 0 | AC187: 0 | AD187: 0 | AE187: 0 | AF187: 0 | AG187: 0 | AH187: 0 | AI187: 0 | AJ187: 0 | AK187: 0 | AL187: 0 | AM187: 0 | AN187: 0 | AS187: 0 | AT187: 0 | AU187: 0 | AV187: 0 | AW187: 0 | AX187: 0 | AY187: 0 | AZ187: 0 | BA187: 0 | BB187: 0 | BC187: 0 | BD187: 0 | BE187: 0 | BF187: 0
I188: 0 | J188: 0 | K188: 0 | L188: 0 | M188: 0 | N188: 0 | O188: 0 | P188: 0 | Q188: 0 | R188: 0 | S188: 0 | T188: 0 | U188: 0 | V188: 0 | W188: 0 | X188: 0 | Y188: 0 | Z188: 0 | AA188: 0 | AB188: 0 | AC188: 0 | AD188: 0 | AE188: 0 | AF188: 0 | AG188: 0 | AH188: 0 | AI188: 0 | AJ188: 0 | AK188: 0 | AL188: 0 | AM188: 0 | AN188: 0 | AS188: 0 | AT188: 0 | AU188: 0 | AV188: 0 | AW188: 0 | AX188: 0 | AY188: 0 | AZ188: 0 | BA188: 0 | BB188: 0 | BC188: 0 | BD188: 0 | BE188: 0 | BF188: 0
I189: 0 | J189: 0 | K189: 0 | L189: 0 | M189: 0 | N189: 0 | O189: 0 | P189: 0 | Q189: 0 | R189: 0 | S189: 0 | T189: 0 | U189: 0 | V189: 0 | W189: 0 | X189: 0 | Y189: 0 | Z189: 0 | AA189: 0 | AB189: 0 | AC189: 0 | AD189: 0 | AE189: 0 | AF189: 0 | AG189: 0 | AH189: 0 | AI189: 0 | AJ189: 0 | AK189: 0 | AL189: 0 | AM189: 0 | AN189: 0 | AS189: 0 | AT189: 0 | AU189: 0 | AV189: 0 | AW189: 0 | AX189: 0 | AY189: 0 | AZ189: 0 | BA189: 0 | BB189: 0 | BC189: 0 | BD189: 0 | BE189: 0 | BF189: 0
I190: 0 | J190: 0 | K190: 0 | L190: 0 | M190: 0 | N190: 0 | O190: 0 | P190: 0 | Q190: 0 | R190: 0 | S190: 0 | T190: 0 | U190: 0 | V190: 0 | W190: 0 | X190: 0 | Y190: 0 | Z190: 0 | AA190: 0 | AB190: 0 | AC190: 0 | AD190: 0 | AE190: 0 | AF190: 0 | AG190: 0 | AH190: 0 | AI190: 0 | AJ190: 0 | AK190: 0 | AL190: 0 | AM190: 0 | AN190: 0 | AS190: 0 | AT190: 0 | AU190: 0 | AV190: 0 | AW190: 0 | AX190: 0 | AY190: 0 | AZ190: 0 | BA190: 0 | BB190: 0 | BC190: 0 | BD190: 0 | BE190: 0 | BF190: 0
I191: 0 | J191: 0 | K191: 0 | L191: 0 | M191: 0 | N191: 0 | O191: 0 | P191: 0 | Q191: 0 | R191: 0 | S191: 0 | T191: 0 | U191: 0 | V191: 0 | W191: 0 | X191: 0 | Y191: 0 | Z191: 0 | AA191: 0 | AB191: 0 | AC191: 0 | AD191: 0 | AE191: 0 | AF191: 0 | AG191: 0 | AH191: 0 | AI191: 0 | AJ191: 0 | AK191: 0 | AL191: 0 | AM191: 0 | AN191: 0 | AS191: 0 | AT191: 0 | AU191: 0 | AV191: 0 | AW191: 0 | AX191: 0 | AY191: 0 | AZ191: 0 | BA191: 0 | BB191: 0 | BC191: 0 | BD191: 0 | BE191: 0 | BF191: 0
I192: 0 | J192: 0 | K192: 0 | L192: 0 | M192: 0 | N192: 0 | O192: 0 | P192: 0 | Q192: 0 | R192: 0 | S192: 0 | T192: 0 | U192: 0 | V192: 0 | W192: 0 | X192: 0 | Y192: 0 | Z192: 0 | AA192: 0 | AB192: 0 | AC192: 0 | AD192: 0 | AE192: 0 | AF192: 0 | AG192: 0 | AH192: 0 | AI192: 0 | AJ192: 0 | AK192: 0 | AL192: 0 | AM192: 0 | AN192: 0 | AS192: 0 | AT192: 0 | AU192: 0 | AV192: 0 | AW192: 0 | AX192: 0 | AY192: 0 | AZ192: 0 | BA192: 0 | BB192: 0 | BC192: 0 | BD192: 0 | BE192: 0 | BF192: 0
I193: 0 | J193: 0 | K193: 0 | L193: 0 | M193: 0 | N193: 0 | O193: 0 | P193: 0 | Q193: 0 | R193: 0 | S193: 0 | T193: 0 | U193: 0 | V193: 0 | W193: 0 | X193: 0 | Y193: 0 | Z193: 0 | AA193: 0 | AB193: 0 | AC193: 0 | AD193: 0 | AE193: 0 | AF193: 0 | AG193: 0 | AH193: 0 | AI193: 0 | AJ193: 0 | AK193: 0 | AL193: 0 | AM193: 0 | AN193: 0 | AS193: 0 | AT193: 0 | AU193: 0 | AV193: 0 | AW193: 0 | AX193: 0 | AY193: 0 | AZ193: 0 | BA193: 0 | BB193: 0 | BC193: 0 | BD193: 0 | BE193: 0 | BF193: 0
I194: 0 | J194: 0 | K194: 0 | L194: 0 | M194: 0 | N194: 0 | O194: 0 | P194: 0 | Q194: 0 | R194: 0 | S194: 0 | T194: 0 | U194: 0 | V194: 0 | W194: 0 | X194: 0 | Y194: 0 | Z194: 0 | AA194: 0 | AB194: 0 | AC194: 0 | AD194: 0 | AE194: 0 | AF194: 0 | AG194: 0 | AH194: 0 | AI194: 0 | AJ194: 0 | AK194: 0 | AL194: 0 | AM194: 0 | AN194: 0 | AS194: 0 | AT194: 0 | AU194: 0 | AV194: 0 | AW194: 0 | AX194: 0 | AY194: 0 | AZ194: 0 | BA194: 0 | BB194: 0 | BC194: 0 | BD194: 0 | BE194: 0 | BF194: 0
I195: 0 | J195: 0 | K195: 0 | L195: 0 | M195: 0 | N195: 0 | O195: 0 | P195: 0 | Q195: 0 | R195: 0 | S195: 0 | T195: 0 | U195: 0 | V195: 0 | W195: 0 | X195: 0 | Y195: 0 | Z195: 0 | AA195: 0 | AB195: 0 | AC195: 0 | AD195: 0 | AE195: 0 | AF195: 0 | AG195: 0 | AH195: 0 | AI195: 0 | AJ195: 0 | AK195: 0 | AL195: 0 | AM195: 0 | AN195: 0 | AS195: 0 | AT195: 0 | AU195: 0 | AV195: 0 | AW195: 0 | AX195: 0 | AY195: 0 | AZ195: 0 | BA195: 0 | BB195: 0 | BC195: 0 | BD195: 0 | BE195: 0 | BF195: 0
I196: 0 | J196: 0 | K196: 0 | L196: 0 | M196: 0 | N196: 0 | O196: 0 | P196: 0 | Q196: 0 | R196: 0 | S196: 0 | T196: 0 | U196: 0 | V196: 0 | W196: 0 | X196: 0 | Y196: 0 | Z196: 0 | AA196: 0 | AB196: 0 | AC196: 0 | AD196: 0 | AE196: 0 | AF196: 0 | AG196: 0 | AH196: 0 | AI196: 0 | AJ196: 0 | AK196: 0 | AL196: 0 | AM196: 0 | AN196: 0 | AS196: 0 | AT196: 0 | AU196: 0 | AV196: 0 | AW196: 0 | AX196: 0 | AY196: 0 | AZ196: 0 | BA196: 0 | BB196: 0 | BC196: 0 | BD196: 0 | BE196: 0 | BF196: 0
I197: 0 | J197: 0 | K197: 0 | L197: 0 | M197: 0 | N197: 0 | O197: 0 | P197: 0 | Q197: 0 | R197: 0 | S197: 0 | T197: 0 | U197: 0 | V197: 0 | W197: 0 | X197: 0 | Y197: 0 | Z197: 0 | AA197: 0 | AB197: 0 | AC197: 0 | AD197: 0 | AE197: 0 | AF197: 0 | AG197: 0 | AH197: 0 | AI197: 0 | AJ197: 0 | AK197: 0 | AL197: 0 | AM197: 0 | AN197: 0 | AS197: 0 | AT197: 0 | AU197: 0 | AV197: 0 | AW197: 0 | AX197: 0 | AY197: 0 | AZ197: 0 | BA197: 0 | BB197: 0 | BC197: 0 | BD197: 0 | BE197: 0 | BF197: 0
I198: 0 | J198: 0 | K198: 0 | L198: 0 | M198: 0 | N198: 0 | O198: 0 | P198: 0 | Q198: 0 | R198: 0 | S198: 0 | T198: 0 | U198: 0 | V198: 0 | W198: 0 | X198: 0 | Y198: 0 | Z198: 0 | AA198: 0 | AB198: 0 | AC198: 0 | AD198: 0 | AE198: 0 | AF198: 0 | AG198: 0 | AH198: 0 | AI198: 0 | AJ198: 0 | AK198: 0 | AL198: 0 | AM198: 0 | AN198: 0 | AS198: 0 | AT198: 0 | AU198: 0 | AV198: 0 | AW198: 0 | AX198: 0 | AY198: 0 | AZ198: 0 | BA198: 0 | BB198: 0 | BC198: 0 | BD198: 0 | BE198: 0 | BF198: 0
I199: 0 | J199: 0 | K199: 0 | L199: 0 | M199: 0 | N199: 0 | O199: 0 | P199: 0 | Q199: 0 | R199: 0 | S199: 0 | T199: 0 | U199: 0 | V199: 0 | W199: 0 | X199: 0 | Y199: 0 | Z199: 0 | AA199: 0 | AB199: 0 | AC199: 0 | AD199: 0 | AE199: 0 | AF199: 0 | AG199: 0 | AH199: 0 | AI199: 0 | AJ199: 0 | AK199: 0 | AL199: 0 | AM199: 0 | AN199: 0 | AS199: 0 | AT199: 0 | AU199: 0 | AV199: 0 | AW199: 0 | AX199: 0 | AY199: 0 | AZ199: 0 | BA199: 0 | BB199: 0 | BC199: 0 | BD199: 0 | BE199: 0 | BF199: 0
I200: 0 | J200: 0 | K200: 0 | L200: 0 | M200: 0 | N200: 0 | O200: 0 | P200: 0 | Q200: 0 | R200: 0 | S200: 0 | T200: 0 | U200: 0 | V200: 0 | W200: 0 | X200: 0 | Y200: 0 | Z200: 0 | AA200: 0 | AB200: 0 | AC200: 0 | AD200: 0 | AE200: 0 | AF200: 0 | AG200: 0 | AH200: 0 | AI200: 0 | AJ200: 0 | AK200: 0 | AL200: 0 | AM200: 0 | AN200: 0 | AS200: 0 | AT200: 0 | AU200: 0 | AV200: 0 | AW200: 0 | AX200: 0 | AY200: 0 | AZ200: 0 | BA200: 0 | BB200: 0 | BC200: 0 | BD200: 0 | BE200: 0 | BF200: 0
I201: 0 | J201: 0 | K201: 0 | L201: 0 | M201: 0 | N201: 0 | O201: 0 | P201: 0 | Q201: 0 | R201: 0 | S201: 0 | T201: 0 | U201: 0 | V201: 0 | W201: 0 | X201: 0 | Y201: 0 | Z201: 0 | AA201: 0 | AB201: 0 | AC201: 0 | AD201: 0 | AE201: 0 | AF201: 0 | AG201: 0 | AH201: 0 | AI201: 0 | AJ201: 0 | AK201: 0 | AL201: 0 | AM201: 0 | AN201: 0 | AS201: 0 | AT201: 0 | AU201: 0 | AV201: 0 | AW201: 0 | AX201: 0 | AY201: 0 | AZ201: 0 | BA201: 0 | BB201: 0 | BC201: 0 | BD201: 0 | BE201: 0 | BF201: 0
I202: 0 | J202: 0 | K202: 0 | L202: 0 | M202: 0 | N202: 0 | O202: 0 | P202: 0 | Q202: 0 | R202: 0 | S202: 0 | T202: 0 | U202: 0 | V202: 0 | W202: 0 | X202: 0 | Y202: 0 | Z202: 0 | AA202: 0 | AB202: 0 | AC202: 0 | AD202: 0 | AE202: 0 | AF202: 0 | AG202: 0 | AH202: 0 | AI202: 0 | AJ202: 0 | AK202: 0 | AL202: 0 | AM202: 0 | AN202: 0 | AS202: 0 | AT202: 0 | AU202: 0 | AV202: 0 | AW202: 0 | AX202: 0 | AY202: 0 | AZ202: 0 | BA202: 0 | BB202: 0 | BC202: 0 | BD202: 0 | BE202: 0 | BF202: 0
... 114 more rows

Sheet HmEnrgAsmt Detail_REM_E214 Elec
C1: Home Energy Assessment | D1: Schedule 214 | E1: Order Number | F1: 18230625 | G1: Electric | L1: Home Energy Assessment | M1: Schedule 214 | N1: Order Number | O1: 18230625 | P1: Electric | T1: Home Energy Assessment | U1: Schedule 214 | V1: Order Number | W1: 18230625 | X1: Electric
D2: ='Global Figures Reference'!D13 -> This table summarizes the subtotals in the detail table below and is used to populate 2024-2025 Sector view tables (located at the front of this workbook).
A3: Home Energy Assessment | D3: Program Labor | E3: Overhead | F3: Marketing | G3: Employee/Office Expense | H3: Outside Services | I3: Materials | J3: Miscellaneous | K3: DBtC | L3: Revenue | M3: Total Budget | N3: Total Savings
A4: Schedule 214
A5: Order Number | C5: ='Global Figures Reference'!D15 -> 2024
A6: 18230625 | C6: ='Global Figures Reference'!D16 -> 2025
A7: Electric | C7: ='Global Figures Reference'!D17 -> 2024-2025 Total | D7: =D5+D6 -> 0 | E7: =E5+E6 -> 0 | F7: 0 | G7: 0 | H7: 0 | I7: 0 | J7: 0 | K7: 0 | L7: 0 | M7: 0 | N7: 0
C9: NO HEA PROGRAM IN 2024-2025

Sheet WaterHea_Detail_REM_E214 Elec
C1: SF Existing Water Heat | D1: Schedule 214 | E1: Order Number | F1: 18230626 | G1: Electric | L1: SF Existing Water Heat | M1: Schedule 214 | N1: Order Number | O1: 18230626 | P1: Electric | T1: SF Existing Water Heat | U1: Schedule 214 | V1: Order Number | W1: 18230626 | X1: Electric
D2: ='Global Figures Reference'!D13 -> This table summarizes the subtotals in the detail table below and is used to populate 2024-2025 Sector view tables (located at the front of this workbook).
A3: SF Existing Water Heat | D3: Program Labor | E3: Overhead | F3: Marketing | G3: Employee/Office Expense | H3: Outside Services | I3: Materials | J3: Miscellaneous | K3: DBtC | L3: Revenue | M3: Total Budget | N3: Total Savings
A4: Schedule 214
A5: Order Number | C5: ='Global Figures Reference'!D15 -> 2024 | D5: =E16 -> 131483 | E5: =E26 -> 118334.7 | F5: =E33 -> 154000 | G5: =E39 -> 1000 | H5: =E46 -> 130000 | I5: =E54 -> 0 | J5: =E60 -> 0 | K5: =E66 -> 302197 | L5: =E69 -> 0 | M5: =SUM(D5:L5) -> 837014.7 | N5: =AP16 -> 712077.0558
A6: 18230626 | C6: ='Global Figures Reference'!D16 -> 2025 | D6: =F16 -> 113862 | E6: =F26 -> 90292.57 | F6: =F33 -> 154000 | G6: =F39 -> 1000 | H6: =F46 -> 130000 | I6: =F54 -> 0 | J6: =F60 -> 0 | K6: =F66 -> 344500 | L6: =F69 -> 0 | M6: =SUM(D6:L6) -> 833654.57 | N6: =AQ16 -> 637466.48
A7: Electric | C7: ='Global Figures Reference'!D17 -> 2024-2025 Total | D7: =D5+D6 -> 245345 | E7: =E5+E6 -> 208627.27 | F7: 308000 | G7: 2000 | H7: 260000 | I7: 0 | J7: 0 | K7: 646697 | L7: 0 | M7: 1670669.27 | N7: 1349543.536
M8: =G14-M7 -> 0 | N8: =N7-AR16 -> 0
D9: Spending Section | I9: Savings Section | M9: Check | N9: Check
E12: ='Global Figures Reference'!D15 -> 2024 | F12: ='Global Figures Reference'!D16 -> 2025 | AM12: Unit Totals | AP12: Projected Savings - kWh | AS12: Incentive Totals - E
D14: Total Program Expenses | E14: =E16+E26+E33+E39+E46+E54+E60+E66+E72 -> 837014.7 | F14: =F16+F26+F33+F39+F46+F54+F60+F66+F72 -> 833654.57 | G14: =G16+G26+G33+G39+G46+G54+G60+G66+G72 -> 1670669.27 | I14: Measure Case Information | L14: Measure Metrics | AM14: 2024 | AN14: 2025 | AO14: Biennium | AP14: 2024 | AQ14: 2025 | AR14: Biennium | AS14: 2024 | AT14: 2025 | AU14: Biennium
B15: FTE (2 decimals max) | I15: Grouping | J15: Approval Status | K15: DSMC ID | L15: Measure Name | M15: Description | N15: Measure Category | O15: Measure Type | P15: Measure Sub-Type | Q15: Measure Version | R15: Unit Savings - kWh [Period 1] | S15: Unit Savings - kWh [Period 2] | T15: Unit Savings - Therm [Period 1] | U15: Unit Savings - Therm [Period 2] | V15: Savings UOM Type | W15: Unit Type | X15: Source of Savings Type | Y15: PSE-Deemed Type | Z15: Unit Incentive - kWh | AA15: Unit Incentive - Therm | AB15: Unit Measure Cost - kWh | AC15: Unit Measure Cost - Therm | AD15: Measure Cost Type | AE15: Measure Life [Period 1] | AF15: Measure Life [Period 2] | AG15: End Use | AH15: Secondary End Use [Dual Fuel Measures] | AI15: Unit Year 1 NEIs | AJ15: Unit Year 1 Improved Home Comfort | AK15: Unit Annual O&M | AM15: i | AN15: i
B16: 2024 | C16: 2025 | D16: Labor | E16: 131483 | F16: 113862 | G16: 245345 | AO16: 0 | AP16: 712077.0558 | AQ16: 637466.48 | AR16: 1349543.536 | AS16: 302197 | AT16: 344500 | AU16: 646697
B17: 0.55 | C17: 0.55 | D17: Program Manager | E17: 58850 | F17: 60610 | G17: 119460 | I17: Water_Heater_Res | J17: Open | K17: 12965 | L17: Water Heater - Heat Pump - NEEA Specs - Tier 3 - RP - Any - Res - E or B | M17: Tier 3 NEEA Northern Climate specs heat pump water heater: retail purchase in PSE electric territory; assumed residential customer with unknown home heating fuel | N17: Water Heating | O17: Water Heater | P17: Heat Pump Water Heater | Q17: 3 | R17: 1360.37 | S17: 0 | T17: -5.39 | U17: 0 | V17: Dual | W17: per unit | X17: PSE-deemed | Y17: RTF Derived | Z17: 500 | AA17: 0 | AB17: 775.8750737 | AC17: 0 | AD17: Incremental | AE17: 13 | AF17: 0 | AG17: Res Water Heat | AH17: Res Water Heat | AI17: 3.7369 | AJ17: 0 | AK17: 0 | AL17: 0 | AM17: 400 | AN17: 0 | AO17: 400 | AP17: 544148 | AQ17: 0 | AR17: 544148 | AS17: 200000 | AT17: 0 | AU17: 200000
B18: 0.35 | C18: 0.2 | D18: Supervisor or Consultant | E18: 48825 | F18: 28740 | G18: 77565 | I18: Water_Heater_Res | J18: Open | K18: 12683 | L18: Water Heater - Heat Pump - NEEA Specs - Tier 3 - EH - Res - MI | M18: Tier 3 NEEA Northern Climate specs heat pump water heater: home with electricity; moderate income customer | N18: Water Heating | O18: Water Heater | P18: Heat Pump Water Heater | Q18: 3 | R18: 1360.37 | S18: 0 | T18: -5.39 | U18: 0 | V18: Dual | W18: per unit | X18: PSE-deemed | Y18: RTF Derived | Z18: 750 | AA18: 0 | AB18: 775.8750737 | AC18: 0 | AD18: Incremental | AE18: 13 | AF18: 0 | AG18: Res Water Heat | AH18: Res Water Heat | AI18: 3.7369 | AJ18: 0 | AK18: 0 | AL18: 0 | AM18: 25 | AN18: 0 | AO18: 25 | AP18: 34009.25 | AQ18: 0 | AR18: 34009.25 | AS18: 18750 | AT18: 0 | AU18: 18750
B19: 0.32 | C19: 0.32 | D19: Program Support | E19: 23808 | F19: 24512 | G19: 48320 | I19: Water_Heater_Res | J19: Open | K19: 12548 | L19: Heat Pump Water Heater - Tier 3 - NEEA Specs - MH | M19: Tier 3 heat pump water heater: NEEA Northern Climate specs; manufactured home dwelling | N19: Water Heating | O19: Water Heater | P19: Heat Pump Water Heater | Q19: 4 | R19: 1336.72 | S19: 0 | T19: -5.39 | U19: 0 | V19: Dual | W19: per unit | X19: RTF-deemed | Y19: 0 | Z19: 750 | AA19: 0 | AB19: 775.88 | AC19: 0 | AD19: Incremental | AE19: 13 | AF19: 0 | AG19: Res Water Heat | AH19: Res Water Heat | AI19: 3.78369 | AJ19: 0 | AK19: 0 | AL19: 0 | AM19: 5 | AN19: 0 | AO19: 5 | AP19: 6683.6 | AQ19: 0 | AR19: 6683.6 | AS19: 3750 | AT19: 0 | AU19: 3750
B20: 0 | C20: 0 | D20: 0 | E20: 0 | F20: 0 | G20: 0 | I20: Water_Heater_Res | J20: Open | K20: 13628 | L20: Water Heater - Heat Pump - NEEA Specs - Tier 3 - EH - Res - TDSM - Bainbridge | M20: Tier 3 NEEA Northern Climate specs heat pump water heater: home with electricity; TDSM participant on Bainbridge Island | N20: Water_Heating | O20: Water_Heater | P20: Heat_Pump_Water_Heater | Q20: 1 | R20: 1336.72 | S20: 0 | T20: 0 | U20: 0 | V20: kWh | W20: per unit | X20: RTF-deemed | Y20: 0 | Z20: 1650 | AA20: 0 | AB20: 727.16 | AC20: 0 | AD20: Incremental | AE20: 13 | AF20: 0 | AG20: Res Water Heat | AH20: Res Water Heat | AI20: 2.601 | AJ20: 0 | AK20: 0 | AL20: 0 | AM20: 20 | AN20: 20 | AO20: 40 | AP20: 26734.4 | AQ20: 26734.4 | AR20: 53468.8 | AS20: 33000 | AT20: 33000 | AU20: 66000
B21: 0 | C21: 0 | D21: 0 | E21: 0 | F21: 0 | G21: 0 | I21: Water_Heater_Res | J21: Open | K21: 13290 | L21: Water Heater - Tankless - Energy Star - 0.9 EF - GH - SF or DX | M21: 0.9 energy factor Energy Star tankless water heater using natural gas: single family or duplex dwelling | N21: Water Heating | O21: Water Heater | P21: Tankless Water Heater | Q21: 1 | R21: -22.54 | S21: 0 | T21: 60.69 | U21: 0 | V21: Dual | W21: per unit | X21: PSE-deemed | Y21: RTF Derived | Z21: 0 | AA21: 400 | AB21: 0 | AC21: 665.13 | AD21: Incremental | AE21: 20 | AF21: 0 | AG21: Res Water Heat | AH21: Res Water Heat | AI21: 16.2147 | AJ21: 0 | AK21: 0 | AL21: 0 | AM21: 800 | AN21: 0 | AO21: 800 | AP21: -18032 | AQ21: 0 | AR21: -18032 | AS21: 0 | AT21: 0 | AU21: 0
B22: 0 | C22: 0 | D22: 0 | E22: 0 | F22: 0 | G22: 0 | I22: Water_Heater_Res | J22: Open | K22: 13289 | L22: Water Heater - Tankless - Energy Star - 0.9 EF - GH - MH | M22: 0.9 energy factor Energy Star tankless water heater using natural gas: manufactured home | N22: Water Heating | O22: Water Heater | P22: Tankless Water Heater | Q22: 1 | R22: -22.54 | S22: 0 | T22: 60.69 | U22: 0 | V22: Dual | W22: per unit | X22: PSE-deemed | Y22: RTF Derived | Z22: 0 | AA22: 660 | AB22: 0 | AC22: 665.13 | AD22: Incremental | AE22: 20 | AF22: 0 | AG22: Res Water Heat | AH22: Res Water Heat | AI22: 16.2147 | AJ22: 0 | AK22: 0 | AL22: 0 | AM22: 30 | AN22: 0 | AO22: 30 | AP22: -676.2 | AQ22: 0 | AR22: -676.2 | AS22: 0 | AT22: 0 | AU22: 0
B23: 0 | C23: 0 | D23: 0 | E23: 0 | F23: 0 | G23: 0 | I23: Water_Heater_Res | J23: Open | K23: 12687 | L23: Water Heater - Tankless - Energy Star - 0.9 EF - GH - Res - MI | M23: 0.9 Energy Factor Energy Star tankless water heater: home with natural gas; moderate income customer | N23: Water Heating | O23: Water Heater | P23: Tankless Water Heater | Q23: 1 | R23: -22.54 | S23: 0 | T23: 60.69 | U23: 0 | V23: Dual | W23: per unit | X23: PSE-deemed | Y23: RTF Derived | Z23: 0 | AA23: 660 | AB23: 0 | AC23: 665.13 | AD23: Incremental | AE23: 20 | AF23: 0 | AG23: Res Water Heat | AH23: Res Water Heat | AI23: 16.2147 | AJ23: 0 | AK23: 0 | AL23: 0 | AM23: 10 | AN23: 0 | AO23: 10 | AP23: -225.4 | AQ23: 0 | AR23: -225.4 | AS23: 0 | AT23: 0 | AU23: 0
B24: 0 | C24: 0 | D24: 0 | E24: 0 | F24: 0 | G24: 0 | I24: Water_Heater_Res | J24: Open | K24: 14067 | L24: Water Heater - Tankless - Energy Star - 0.9 EF - GH - SF or DX - LTO | M24: LTO FOR 3 MONTHS - 0.9 energy factor Energy Star tankless water heater using natural gas: single family or duplex dwelling - 13290 | N24: Water Heating | O24: Water Heater | P24: Tankless Water Heater | Q24: 1 | R24: -22.54 | S24: 0 | T24: 60.69 | U24: 0 | V24: Dual | W24: per unit | X24: PSE-deemed | Y24: RTF Derived | Z24: 0 | AA24: 550 | AB24: 0 | AC24: 665.13 | AD24: Incremental | AE24: 20 | AF24: 0 | AG24: Res Water Heat | AH24: Res Water Heat | AI24: 16.2147 | AJ24: 0 | AK24: 0 | AL24: 0 | AM24: 200 | AN24: 0 | AO24: 200 | AP24: -4508 | AQ24: 0 | AR24: -4508 | AS24: 0 | AT24: 0 | AU24: 0
B25: 1.22 | C25: 1.07 | I25: Water_Heater_Res | J25: Open | K25: NEW | L25: Water Heater - Heat Pump - NEEA Specs - Tier 3 - RP - Any - Res - E or B - Downstream | M25: Tier 3 NEEA Northern Climate specs heat pump water heater: downstream measure in PSE electric territory; assumed residential customer with unknown home heating fuel | N25: Water Heating | O25: Water Heater | P25: Heat Pump Water Heater | Q25: 1 | R25: 1360.37 | S25: 0 | T25: -5.39 | U25: 0 | V25: Dual | W25: per unit | X25: PSE-deemed | Y25: RTF Derived | Z25: 500 | AA25: 0 | AB25: 775.8750737 | AC25: 0 | AD25: Incremental | AE25: 13 | AF25: 0 | AG25: Res Water Heat | AH25: Res Water Heat | AI25: 3.7369 | AJ25: 0 | AK25: 0 | AL25: 0 | AM25: 62.394 | AN25: 0 | AO25: 62.394 | AP25: 84878.92578 | AQ25: 0 | AR25: 84878.92578 | AS25: 31197 | AT25: 0 | AU25: 31197
D26: Overhead (Labor OH + Micro OH) | E26: 118334.7 | F26: 90292.57 | G26: 208627.27 | I26: Water_Heater_Res | J26: Open | K26: NEW | L26: Water Heater - Heat Pump - NEEA Specs - Tier 4 - RP - Any - Res - E or B - Downstream | M26: Tier 4 NEEA Northern Climate specs heat pump water heater: downstream measure in PSE electric territory; assumed residential customer with unknown home heating fuel | N26: Water Heating | O26: Water Heater | P26: Heat Pump Water Heater | Q26: 1 | R26: 1502.48 | S26: 0 | T26: -5.79 | U26: 0 | V26: Dual | W26: per unit | X26: PSE-deemed | Y26: RTF Derived | Z26: 500 | AA26: 0 | AB26: 775.8750737 | AC26: 0 | AD26: Incremental | AE26: 13 | AF26: 0 | AG26: Res Water Heat | AH26: Res Water Heat | AI26: 3.7369 | AJ26: 0 | AK26: 0 | AL26: 0 | AM26: 11 | AN26: 0 | AO26: 11 | AP26: 16527.28 | AQ26: 0 | AR26: 16527.28 | AS26: 5500 | AT26: 0 | AU26: 5500
D27: Percentages for Applicable Year | E27: 0.9 | F27: 0.793 | G27: 0 | I27: Water_Heater_Res | J27: Open | K27: NEW | L27: Water Heater - Heat Pump - NEEA Specs - Tier 4 - RP - Any - Res - E or B | M27: Tier 4 NEEA Northern Climate specs heat pump water heater: retail purchase in PSE electric territory; assumed residential customer with unknown home heating fuel | N27: Water Heating | O27: Water Heater | P27: Heat Pump Water Heater | Q27: 1 | R27: 1502.48 | S27: 0 | T27: -5.79 | U27: 0 | V27: Dual | W27: per unit | X27: PSE-deemed | Y27: RTF Derived | Z27: 500 | AA27: 0 | AB27: 775.8750737 | AC27: 0 | AD27: Incremental | AE27: 13 | AF27: 0 | AG27: Res Water Heat | AH27: Res Water Heat | AI27: 3.7369 | AJ27: 0 | AK27: 0 | AL27: 0 | AM27: 5 | AN27: 0 | AO27: 5 | AP27: 7512.4 | AQ27: 0 | AR27: 7512.4 | AS27: 2500 | AT27: 0 | AU27: 2500
